Workbook

Sheet Macro (hidden)

Sheet Overview

Sheet Select School
B3: =VLOOKUP(C3,SchList!$I$1:$J$499,2,FALSE) -> 7121 | C3: 195

Sheet Grade 9 (hidden)
A2: Click here to return to the school and sheet selection interface
A3: ='Select School'!B3 -> 7121
A4: =TEXT(A3,"0000")&"-"&VLOOKUP(A3,SchList!$A$2:$B$504,2,FALSE) -> 7121-JOHN A FERGUSON SENIOR HIGH
A5: Reading - Grade 9
A6: Level of Proficiency at 70% or above | B6: 2010 AYP Met** | C6: Total # of Students | D6: % of Students Tested | E6: Overall [46] | G6: Vocabulary [8] | I6: Reading Application [24] | K6: Literary Analysis Fiction/Nonfiction [6] | M6: Informational Text/ Research Process [8]
E7: Average Score | F7: % Proficient | G7: Average Score | H7: % Proficient | I7: Average Score | J7: % Proficient | K7: Average Score | L7: % Proficient | M7: Average Score | N7: % Proficient
A8: All students | B8: =IFERROR(VLOOKUP(TEXT($A$3,"0000"),'AYP11'!$B$3006:$AU$3434,45,FALSE),"NA") -> NO | C8: =IFERROR(VLOOKUP(TEXT($A$3,"0000"),Mem_All!$A$2:$O$500,13,FALSE),"NA") -> 1087 | D8: =IFERROR((IF(OR(C8=0,C8="",C8="NA"),"NA",((IF(VLOOKUP($A$3,'G9-RALL'!$A$14:$AM$500,3,FALSE)>=C8,"100% ("&VLOOKUP($A$3,'G9-RALL'!$A$14:$AM$500,3,FALSE)&")",(ROUND((VLOOKUP($A$3,'G9-RALL'!$A$14:$AM$500,3,FALSE)/C8*100),0))&"% ("&IF(VLOOKUP($A$3,'G9-RALL'!$A$14:$AM$500,3,FALSE)="",0,VLOOKUP($A$3,'G9-RALL'!$A$14:$AM$500,3,FALSE))&")"))))),"0% (0)") -> 92% (1003) | E8: =IFERROR((IF($D8="NA","NA",VLOOKUP($A$3,'G9-RALL'!$A$14:$AM$500,4,FALSE))),"NA") -> 31.8 | F8: =IFERROR((IF($D8="NA","NA",ROUND(VLOOKUP($A$3,'G9-RALL'!$A$14:$AM$500,9,FALSE)*100,0)&"% ("&IF(VLOOKUP($A$3,'G9-RALL'!$A$14:$AM$500,7,FALSE)="",0,VLOOKUP($A$3,'G9-RALL'!$A$14:$AM$500,7,FALSE))&")")),"NA") -> 5400% (8.3) | G8: =IFERROR((IF($D8="NA","NA",VLOOKUP($A$3,'G9-RALL'!$A$14:$AM$500,10,FALSE))),"NA") -> 13.3 | H8: =IFERROR((IF($D8="NA","NA",ROUND(VLOOKUP($A$3,'G9-RALL'!$A$14:$AM$500,15,FALSE)*100,0)&"% ("&IF(VLOOKUP($A$3,'G9-RALL'!$A$14:$AM$500,13,FALSE)="",0,VLOOKUP($A$3,'G9-RALL'!$A$14:$AM$500,13,FALSE))&")")),"NA") -> 4500% (5.9) | I8: =IFERROR((IF($D8="NA","NA",VLOOKUP($A$3,'G9-RALL'!$A$14:$AM$500,16,FALSE))),"NA") -> 4.4 | J8: =IFERROR((IF($D8="NA","NA",ROUND(VLOOKUP($A$3,'G9-RALL'!$A$14:$AM$500,21,FALSE)*100,0)&"% ("&IF(VLOOKUP($A$3,'G9-RALL'!$A$14:$AM$500,19,FALSE)="",0,VLOOKUP($A$3,'G9-RALL'!$A$14:$AM$500,19,FALSE))&")")),"NA") -> 0% (0) | K8: =IFERROR((IF($D8="NA","NA",VLOOKUP($A$3,'G9-RALL'!$A$14:$AM$500,22,FALSE))),"NA") -> 0 | L8: =IFERROR((IF($D8="NA","NA",ROUND(VLOOKUP($A$3,'G9-RALL'!$A$14:$AM$500,27,FALSE)*100,0)&"% ("&IF(VLOOKUP($A$3,'G9-RALL'!$A$14:$AM$500,25,FALSE)="",0,VLOOKUP($A$3,'G9-RALL'!$A$14:$AM$500,25,FALSE))&")")),"NA") -> 0% (0) | M8: =IFERROR((IF($D8="NA","NA",VLOOKUP($A$3,'G9-RALL'!$A$14:$AM$500,28,FALSE))),"NA") -> 0 | N8: =IFERROR((IF($D8="NA","NA",ROUND(VLOOKUP($A$3,'G9-RALL'!$A$14:$AM$500,33,FALSE)*100,0)&"% ("&IF(VLOOKUP($A$3,'G9-RALL'!$A$14:$AM$500,31,FALSE)="",0,VLOOKUP($A$3,'G9-RALL'!$A$14:$AM$500,31,FALSE))&")")),"NA") -> 0% (0)
A9: FCAT Level 1 | C9: =IFERROR(VLOOKUP(TEXT($A$3,"0000"),MEM_RL1!$A$2:$M$500,10,FALSE),"NA") -> 124 | D9: =IFERROR((IF(OR(C9=0,C9="",C9="NA"),"NA",((IF(VLOOKUP($A$3,'G9-RL1'!$A$14:$AM$506,3,FALSE)>=C9,"100% ("&VLOOKUP($A$3,'G9-RL1'!$A$14:$AM$506,3,FALSE)&")",(ROUND((VLOOKUP($A$3,'G9-RL1'!$A$14:$AM$506,3,FALSE)/C9*100),0))&"% ("&IF(VLOOKUP($A$3,'G9-RL1'!$A$14:$AM$506,3,FALSE)="",0,VLOOKUP($A$3,'G9-RL1'!$A$14:$AM$506,3,FALSE))&")"))))),"0% (0)") -> 84% (104) | E9: =IFERROR((IF($D9="NA","NA",VLOOKUP($A$3,'G9-RL1'!$A$14:$AM$506,4,FALSE))),"NA") -> 20.7 | F9: =IFERROR((IF($D9="NA","NA",ROUND(VLOOKUP($A$3,'G9-RL1'!$A$14:$AM$506,9,FALSE)*100,0)&"% ("&IF(VLOOKUP($A$3,'G9-RL1'!$A$14:$AM$506,7,FALSE)="",0,VLOOKUP($A$3,'G9-RL1'!$A$14:$AM$506,7,FALSE))&")")),"NA") -> 1600% (5.5) | G9: =IFERROR((IF($D9="NA","NA",VLOOKUP($A$3,'G9-RL1'!$A$14:$AM$506,10,FALSE))),"NA") -> 8.6 | H9: =IFERROR((IF($D9="NA","NA",ROUND(VLOOKUP($A$3,'G9-RL1'!$A$14:$AM$506,15,FALSE)*100,0)&"% ("&IF(VLOOKUP($A$3,'G9-RL1'!$A$14:$AM$506,13,FALSE)="",0,VLOOKUP($A$3,'G9-RL1'!$A$14:$AM$506,13,FALSE))&")")),"NA") -> 600% (3.5) | I9: =IFERROR((IF($D9="NA","NA",VLOOKUP($A$3,'G9-RL1'!$A$14:$AM$506,16,FALSE))),"NA") -> 3.1 | J9: =IFERROR((IF($D9="NA","NA",ROUND(VLOOKUP($A$3,'G9-RL1'!$A$14:$AM$506,21,FALSE)*100,0)&"% ("&IF(VLOOKUP($A$3,'G9-RL1'!$A$14:$AM$506,19,FALSE)="",0,VLOOKUP($A$3,'G9-RL1'!$A$14:$AM$506,19,FALSE))&")")),"NA") -> 0% (0) | K9: =IFERROR((IF($D9="NA","NA",VLOOKUP($A$3,'G9-RL1'!$A$14:$AM$506,22,FALSE))),"NA") -> 0 | L9: =IFERROR((IF($D9="NA","NA",ROUND(VLOOKUP($A$3,'G9-RL1'!$A$14:$AM$506,27,FALSE)*100,0)&"% ("&IF(VLOOKUP($A$3,'G9-RL1'!$A$14:$AM$506,25,FALSE)="",0,VLOOKUP($A$3,'G9-RL1'!$A$14:$AM$506,25,FALSE))&")")),"NA") -> 0% (0) | M9: =IFERROR((IF($D9="NA","NA",VLOOKUP($A$3,'G9-RL1'!$A$14:$AM$506,28,FALSE))),"NA") -> 0 | N9: =IFERROR((IF($D9="NA","NA",ROUND(VLOOKUP($A$3,'G9-RL1'!$A$14:$AM$506,33,FALSE)*100,0)&"% ("&IF(VLOOKUP($A$3,'G9-RL1'!$A$14:$AM$506,31,FALSE)="",0,VLOOKUP($A$3,'G9-RL1'!$A$14:$AM$506,31,FALSE))&")")),"NA") -> 0% (0)
A10: FCAT Level 2 | C10: =IFERROR(VLOOKUP(TEXT($A$3,"0000"),MEM_RL2!$A$2:$O$500,10,FALSE),"NA") -> 226 | D10: =IFERROR((IF(OR(C10=0,C10="",C10="NA"),"NA",((IF(VLOOKUP($A$3,'G9-RL2'!$A$14:$AM$500,3,FALSE)>=C10,"100% ("&VLOOKUP($A$3,'G9-RL2'!$A$14:$AM$500,3,FALSE)&")",(ROUND((VLOOKUP($A$3,'G9-RL2'!$A$14:$AM$500,3,FALSE)/C10*100),0))&"% ("&IF(VLOOKUP($A$3,'G9-RL2'!$A$14:$AM$500,3,FALSE)="",0,VLOOKUP($A$3,'G9-RL2'!$A$14:$AM$500,3,FALSE))&")"))))),"0% (0)") -> 93% (211) | E10: =IFERROR((IF($D10="NA","NA",VLOOKUP($A$3,'G9-RL2'!$A$14:$AM$500,4,FALSE))),"NA") -> 25.3 | F10: =IFERROR((IF($D10="NA","NA",ROUND(VLOOKUP($A$3,'G9-RL2'!$A$14:$AM$500,9,FALSE)*100,0)&"% ("&IF(VLOOKUP($A$3,'G9-RL2'!$A$14:$AM$500,7,FALSE)="",0,VLOOKUP($A$3,'G9-RL2'!$A$14:$AM$500,7,FALSE))&")")),"NA") -> 2400% (6.6) | G10: =IFERROR((IF($D10="NA","NA",VLOOKUP($A$3,'G9-RL2'!$A$14:$AM$500,10,FALSE))),"NA") -> 10.7 | H10: =IFERROR((IF($D10="NA","NA",ROUND(VLOOKUP($A$3,'G9-RL2'!$A$14:$AM$500,15,FALSE)*100,0)&"% ("&IF(VLOOKUP($A$3,'G9-RL2'!$A$14:$AM$500,13,FALSE)="",0,VLOOKUP($A$3,'G9-RL2'!$A$14:$AM$500,13,FALSE))&")")),"NA") -> 1800% (4.3) | I10: =IFERROR((IF($D10="NA","NA",VLOOKUP($A$3,'G9-RL2'!$A$14:$AM$500,16,FALSE))),"NA") -> 3.6 | J10: =IFERROR((IF($D10="NA","NA",ROUND(VLOOKUP($A$3,'G9-RL2'!$A$14:$AM$500,21,FALSE)*100,0)&"% ("&IF(VLOOKUP($A$3,'G9-RL2'!$A$14:$AM$500,19,FALSE)="",0,VLOOKUP($A$3,'G9-RL2'!$A$14:$AM$500,19,FALSE))&")")),"NA") -> 0% (0) | K10: =IFERROR((IF($D10="NA","NA",VLOOKUP($A$3,'G9-RL2'!$A$14:$AM$500,22,FALSE))),"NA") -> 0 | L10: =IFERROR((IF($D10="NA","NA",ROUND(VLOOKUP($A$3,'G9-RL2'!$A$14:$AM$500,27,FALSE)*100,0)&"% ("&IF(VLOOKUP($A$3,'G9-RL2'!$A$14:$AM$500,25,FALSE)="",0,VLOOKUP($A$3,'G9-RL2'!$A$14:$AM$500,25,FALSE))&")")),"NA") -> 0% (0) | M10: =IFERROR((IF($D10="NA","NA",VLOOKUP($A$3,'G9-RL2'!$A$14:$AM$500,28,FALSE))),"NA") -> 0 | N10: =IFERROR((IF($D10="NA","NA",ROUND(VLOOKUP($A$3,'G9-RL2'!$A$14:$AM$500,33,FALSE)*100,0)&"% ("&IF(VLOOKUP($A$3,'G9-RL2'!$A$14:$AM$500,31,FALSE)="",0,VLOOKUP($A$3,'G9-RL2'!$A$14:$AM$500,31,FALSE))&")")),"NA") -> 0% (0)
A11: FCAT Level 3 | C11: =IFERROR(VLOOKUP(TEXT($A$3,"0000"),MEM_RL3!$A$2:$O$500,10,FALSE),"NA") -> 376 | D11: =IFERROR((IF(OR(C11=0,C11="",C11="NA"),"NA",((IF(VLOOKUP($A$3,'G9-RL3'!$A$14:$AM$500,3,FALSE)>=C11,"100% ("&VLOOKUP($A$3,'G9-RL3'!$A$14:$AM$500,3,FALSE)&")",(ROUND((VLOOKUP($A$3,'G9-RL3'!$A$14:$AM$500,3,FALSE)/C11*100),0))&"% ("&IF(VLOOKUP($A$3,'G9-RL3'!$A$14:$AM$500,3,FALSE)="",0,VLOOKUP($A$3,'G9-RL3'!$A$14:$AM$500,3,FALSE))&")"))))),"0% (0)") -> 94% (355) | E11: =IFERROR((IF($D11="NA","NA",VLOOKUP($A$3,'G9-RL3'!$A$14:$AM$500,4,FALSE))),"NA") -> 32.7 | F11: =IFERROR((IF($D11="NA","NA",ROUND(VLOOKUP($A$3,'G9-RL3'!$A$14:$AM$500,9,FALSE)*100,0)&"% ("&IF(VLOOKUP($A$3,'G9-RL3'!$A$14:$AM$500,7,FALSE)="",0,VLOOKUP($A$3,'G9-RL3'!$A$14:$AM$500,7,FALSE))&")")),"NA") -> 5400% (8.5) | G11: =IFERROR((IF($D11="NA","NA",VLOOKUP($A$3,'G9-RL3'!$A$14:$AM$500,10,FALSE))),"NA") -> 13.8 | H11: =IFERROR((IF($D11="NA","NA",ROUND(VLOOKUP($A$3,'G9-RL3'!$A$14:$AM$500,15,FALSE)*100,0)&"% ("&IF(VLOOKUP($A$3,'G9-RL3'!$A$14:$AM$500,13,FALSE)="",0,VLOOKUP($A$3,'G9-RL3'!$A$14:$AM$500,13,FALSE))&")")),"NA") -> 4700% (6) | I11: =IFERROR((IF($D11="NA","NA",VLOOKUP($A$3,'G9-RL3'!$A$14:$AM$500,16,FALSE))),"NA") -> 4.4 | J11: =IFERROR((IF($D11="NA","NA",ROUND(VLOOKUP($A$3,'G9-RL3'!$A$14:$AM$500,21,FALSE)*100,0)&"% ("&IF(VLOOKUP($A$3,'G9-RL3'!$A$14:$AM$500,19,FALSE)="",0,VLOOKUP($A$3,'G9-RL3'!$A$14:$AM$500,19,FALSE))&")")),"NA") -> 0% (0) | K11: =IFERROR((IF($D11="NA","NA",VLOOKUP($A$3,'G9-RL3'!$A$14:$AM$500,22,FALSE))),"NA") -> 0 | L11: =IFERROR((IF($D11="NA","NA",ROUND(VLOOKUP($A$3,'G9-RL3'!$A$14:$AM$500,27,FALSE)*100,0)&"% ("&IF(VLOOKUP($A$3,'G9-RL3'!$A$14:$AM$500,25,FALSE)="",0,VLOOKUP($A$3,'G9-RL3'!$A$14:$AM$500,25,FALSE))&")")),"NA") -> 0% (0) | M11: =IFERROR((IF($D11="NA","NA",VLOOKUP($A$3,'G9-RL3'!$A$14:$AM$500,28,FALSE))),"NA") -> 0 | N11: =IFERROR((IF($D11="NA","NA",ROUND(VLOOKUP($A$3,'G9-RL3'!$A$14:$AM$500,33,FALSE)*100,0)&"% ("&IF(VLOOKUP($A$3,'G9-RL3'!$A$14:$AM$500,31,FALSE)="",0,VLOOKUP($A$3,'G9-RL3'!$A$14:$AM$500,31,FALSE))&")")),"NA") -> 0% (0)
A12: FCAT Level 4 | C12: =IFERROR(VLOOKUP(TEXT($A$3,"0000"),MEM_RL4!$A$2:$P$500,10,FALSE),"NA") -> 260 | D12: =IFERROR((IF(OR(C12=0,C12="",C12="NA"),"NA",((IF(VLOOKUP($A$3,'G9-RL4'!$A$14:$AM$500,3,FALSE)>=C12,"100% ("&VLOOKUP($A$3,'G9-RL4'!$A$14:$AM$500,3,FALSE)&")",(ROUND((VLOOKUP($A$3,'G9-RL4'!$A$14:$AM$500,3,FALSE)/C12*100),0))&"% ("&IF(VLOOKUP($A$3,'G9-RL4'!$A$14:$AM$500,3,FALSE)="",0,VLOOKUP($A$3,'G9-RL4'!$A$14:$AM$500,3,FALSE))&")"))))),"0% (0)") -> 97% (252) | E12: =IFERROR((IF($D12="NA","NA",VLOOKUP($A$3,'G9-RL4'!$A$14:$AM$500,4,FALSE))),"NA") -> 38.5 | F12: =IFERROR((IF($D12="NA","NA",ROUND(VLOOKUP($A$3,'G9-RL4'!$A$14:$AM$500,9,FALSE)*100,0)&"% ("&IF(VLOOKUP($A$3,'G9-RL4'!$A$14:$AM$500,7,FALSE)="",0,VLOOKUP($A$3,'G9-RL4'!$A$14:$AM$500,7,FALSE))&")")),"NA") -> 8500% (10) | G12: =IFERROR((IF($D12="NA","NA",VLOOKUP($A$3,'G9-RL4'!$A$14:$AM$500,10,FALSE))),"NA") -> 15.9 | H12: =IFERROR((IF($D12="NA","NA",ROUND(VLOOKUP($A$3,'G9-RL4'!$A$14:$AM$500,15,FALSE)*100,0)&"% ("&IF(VLOOKUP($A$3,'G9-RL4'!$A$14:$AM$500,13,FALSE)="",0,VLOOKUP($A$3,'G9-RL4'!$A$14:$AM$500,13,FALSE))&")")),"NA") -> 7500% (7.4) | I12: =IFERROR((IF($D12="NA","NA",VLOOKUP($A$3,'G9-RL4'!$A$14:$AM$500,16,FALSE))),"NA") -> 5.2 | J12: =IFERROR((IF($D12="NA","NA",ROUND(VLOOKUP($A$3,'G9-RL4'!$A$14:$AM$500,21,FALSE)*100,0)&"% ("&IF(VLOOKUP($A$3,'G9-RL4'!$A$14:$AM$500,19,FALSE)="",0,VLOOKUP($A$3,'G9-RL4'!$A$14:$AM$500,19,FALSE))&")")),"NA") -> 0% (0) | K12: =IFERROR((IF($D12="NA","NA",VLOOKUP($A$3,'G9-RL4'!$A$14:$AM$500,22,FALSE))),"NA") -> 0 | L12: =IFERROR((IF($D12="NA","NA",ROUND(VLOOKUP($A$3,'G9-RL4'!$A$14:$AM$500,27,FALSE)*100,0)&"% ("&IF(VLOOKUP($A$3,'G9-RL4'!$A$14:$AM$500,25,FALSE)="",0,VLOOKUP($A$3,'G9-RL4'!$A$14:$AM$500,25,FALSE))&")")),"NA") -> 0% (0) | M12: =IFERROR((IF($D12="NA","NA",VLOOKUP($A$3,'G9-RL4'!$A$14:$AM$500,28,FALSE))),"NA") -> 0 | N12: =IFERROR((IF($D12="NA","NA",ROUND(VLOOKUP($A$3,'G9-RL4'!$A$14:$AM$500,33,FALSE)*100,0)&"% ("&IF(VLOOKUP($A$3,'G9-RL4'!$A$14:$AM$500,31,FALSE)="",0,VLOOKUP($A$3,'G9-RL4'!$A$14:$AM$500,31,FALSE))&")")),"NA") -> 0% (0)
A13: FCAT Level 5 | C13: =IFERROR(VLOOKUP(TEXT($A$3,"0000"),MEM_RL5!$A$2:$P$500,10,FALSE),"NA") -> 89 | D13: =IFERROR((IF(OR(C13=0,C13="",C13="NA"),"NA",((IF(VLOOKUP($A$3,'G9-RL5'!$A$14:$AM$500,3,FALSE)>=C13,"100% ("&VLOOKUP($A$3,'G9-RL5'!$A$14:$AM$500,3,FALSE)&")",(ROUND((VLOOKUP($A$3,'G9-RL5'!$A$14:$AM$500,3,FALSE)/C13*100),0))&"% ("&IF(VLOOKUP($A$3,'G9-RL5'!$A$14:$AM$500,3,FALSE)="",0,VLOOKUP($A$3,'G9-RL5'!$A$14:$AM$500,3,FALSE))&")"))))),"0% (0)") -> 64% (57) | E13: =IFERROR((IF($D13="NA","NA",VLOOKUP($A$3,'G9-RL5'!$A$14:$AM$500,4,FALSE))),"NA") -> 41.3 | F13: =IFERROR((IF($D13="NA","NA",ROUND(VLOOKUP($A$3,'G9-RL5'!$A$14:$AM$500,9,FALSE)*100,0)&"% ("&IF(VLOOKUP($A$3,'G9-RL5'!$A$14:$AM$500,7,FALSE)="",0,VLOOKUP($A$3,'G9-RL5'!$A$14:$AM$500,7,FALSE))&")")),"NA") -> 9500% (10.6) | G13: =IFERROR((IF($D13="NA","NA",VLOOKUP($A$3,'G9-RL5'!$A$14:$AM$500,10,FALSE))),"NA") -> 16.8 | H13: =IFERROR((IF($D13="NA","NA",ROUND(VLOOKUP($A$3,'G9-RL5'!$A$14:$AM$500,15,FALSE)*100,0)&"% ("&IF(VLOOKUP($A$3,'G9-RL5'!$A$14:$AM$500,13,FALSE)="",0,VLOOKUP($A$3,'G9-RL5'!$A$14:$AM$500,13,FALSE))&")")),"NA") -> 8200% (8) | I13: =IFERROR((IF($D13="NA","NA",VLOOKUP($A$3,'G9-RL5'!$A$14:$AM$500,16,FALSE))),"NA") -> 5.8 | J13: =IFERROR((IF($D13="NA","NA",ROUND(VLOOKUP($A$3,'G9-RL5'!$A$14:$AM$500,21,FALSE)*100,0)&"% ("&IF(VLOOKUP($A$3,'G9-RL5'!$A$14:$AM$500,19,FALSE)="",0,VLOOKUP($A$3,'G9-RL5'!$A$14:$AM$500,19,FALSE))&")")),"NA") -> 0% (0) | K13: =IFERROR((IF($D13="NA","NA",VLOOKUP($A$3,'G9-RL5'!$A$14:$AM$500,22,FALSE))),"NA") -> 0 | L13: =IFERROR((IF($D13="NA","NA",ROUND(VLOOKUP($A$3,'G9-RL5'!$A$14:$AM$500,27,FALSE)*100,0)&"% ("&IF(VLOOKUP($A$3,'G9-RL5'!$A$14:$AM$500,25,FALSE)="",0,VLOOKUP($A$3,'G9-RL5'!$A$14:$AM$500,25,FALSE))&")")),"NA") -> 0% (0) | M13: =IFERROR((IF($D13="NA","NA",VLOOKUP($A$3,'G9-RL5'!$A$14:$AM$500,28,FALSE))),"NA") -> 0 | N13: =IFERROR((IF($D13="NA","NA",ROUND(VLOOKUP($A$3,'G9-RL5'!$A$14:$AM$500,33,FALSE)*100,0)&"% ("&IF(VLOOKUP($A$3,'G9-RL5'!$A$14:$AM$500,31,FALSE)="",0,VLOOKUP($A$3,'G9-RL5'!$A$14:$AM$500,31,FALSE))&")")),"NA") -> 0% (0)
A14: White | B14: =IFERROR(VLOOKUP(TEXT($A$3,"0000"),'AYP11'!$B$3435:$AU$3863,45,FALSE)," ") -> Yes-SH | C14: =IFERROR(VLOOKUP(TEXT($A$3,"0000"),MEM_W!$A$2:$O$500,13,FALSE),"NA") -> 75 | D14: =IFERROR((IF(OR(C14=0,C14="",C14="NA"),"NA",((IF(VLOOKUP($A$3,'G9-RW'!$A$14:$AM$500,3,FALSE)>=C14,"100% ("&VLOOKUP($A$3,'G9-RW'!$A$14:$AM$500,3,FALSE)&")",(ROUND((VLOOKUP($A$3,'G9-RW'!$A$14:$AM$500,3,FALSE)/C14*100),0))&"% ("&IF(VLOOKUP($A$3,'G9-RW'!$A$14:$AM$500,3,FALSE)="",0,VLOOKUP($A$3,'G9-RW'!$A$14:$AM$500,3,FALSE))&")"))))),"0% (0)") -> 93% (70) | E14: =IFERROR((IF($D14="NA","NA",VLOOKUP($A$3,'G9-RW'!$A$14:$AM$500,4,FALSE))),"NA") -> 31.5 | F14: =IFERROR((IF($D14="NA","NA",ROUND(VLOOKUP($A$3,'G9-RW'!$A$14:$AM$500,9,FALSE)*100,0)&"% ("&IF(VLOOKUP($A$3,'G9-RW'!$A$14:$AM$500,7,FALSE)="",0,VLOOKUP($A$3,'G9-RW'!$A$14:$AM$500,7,FALSE))&")")),"NA") -> 5000% (8) | G14: =IFERROR((IF($D14="NA","NA",VLOOKUP($A$3,'G9-RW'!$A$14:$AM$500,10,FALSE))),"NA") -> 12.9 | H14: =IFERROR((IF($D14="NA","NA",ROUND(VLOOKUP($A$3,'G9-RW'!$A$14:$AM$500,15,FALSE)*100,0)&"% ("&IF(VLOOKUP($A$3,'G9-RW'!$A$14:$AM$500,13,FALSE)="",0,VLOOKUP($A$3,'G9-RW'!$A$14:$AM$500,13,FALSE))&")")),"NA") -> 4400% (6) | I14: =IFERROR((IF($D14="NA","NA",VLOOKUP($A$3,'G9-RW'!$A$14:$AM$500,16,FALSE))),"NA") -> 4.6 | J14: =IFERROR((IF($D14="NA","NA",ROUND(VLOOKUP($A$3,'G9-RW'!$A$14:$AM$500,21,FALSE)*100,0)&"% ("&IF(VLOOKUP($A$3,'G9-RW'!$A$14:$AM$500,19,FALSE)="",0,VLOOKUP($A$3,'G9-RW'!$A$14:$AM$500,19,FALSE))&")")),"NA") -> 0% (0) | K14: =IFERROR((IF($D14="NA","NA",VLOOKUP($A$3,'G9-RW'!$A$14:$AM$500,22,FALSE))),"NA") -> 0 | L14: =IFERROR((IF($D14="NA","NA",ROUND(VLOOKUP($A$3,'G9-RW'!$A$14:$AM$500,27,FALSE)*100,0)&"% ("&IF(VLOOKUP($A$3,'G9-RW'!$A$14:$AM$500,25,FALSE)="",0,VLOOKUP($A$3,'G9-RW'!$A$14:$AM$500,25,FALSE))&")")),"NA") -> 0% (0) | M14: =IFERROR((IF($D14="NA","NA",VLOOKUP($A$3,'G9-RW'!$A$14:$AM$500,28,FALSE))),"NA") -> 0 | N14: =IFERROR((IF($D14="NA","NA",ROUND(VLOOKUP($A$3,'G9-RW'!$A$14:$AM$500,33,FALSE)*100,0)&"% ("&IF(VLOOKUP($A$3,'G9-RW'!$A$14:$AM$500,31,FALSE)="",0,VLOOKUP($A$3,'G9-RW'!$A$14:$AM$500,31,FALSE))&")")),"NA") -> 0% (0)
A15: Black | B15: =IFERROR(VLOOKUP(TEXT($A$3,"0000"),'AYP11'!$B$861:$AU$1289,45,FALSE)," ") -> NA | C15: =IFERROR(VLOOKUP(TEXT($A$3,"0000"),MEM_B!$A$2:$O$500,13,FALSE),"NA") -> 26 | D15: =IFERROR((IF(OR(C15=0,C15="",C15="NA"),"NA",((IF(VLOOKUP($A$3,'G9-RB'!$A$14:$AG$500,3,FALSE)>=C15,"100% ("&VLOOKUP($A$3,'G9-RB'!$A$14:$AG$500,3,FALSE)&")",(ROUND((VLOOKUP($A$3,'G9-RB'!$A$14:$AG$500,3,FALSE)/C15*100),0))&"% ("&IF(VLOOKUP($A$3,'G9-RB'!$A$14:$AG$500,3,FALSE)="",0,VLOOKUP($A$3,'G9-RB'!$A$14:$AG$500,3,FALSE))&")"))))),"0% (0)") -> 100% (26) | E15: =IFERROR((IF($D15="NA","NA",VLOOKUP($A$3,'G9-RB'!$A$14:$AG$500,4,FALSE))),"NA") -> 35.3 | F15: =IFERROR((IF($D15="NA","NA",ROUND(VLOOKUP($A$3,'G9-RB'!$A$14:$AG$500,9,FALSE)*100,0)&"% ("&IF(VLOOKUP($A$3,'G9-RB'!$A$14:$AG$500,7,FALSE)="",0,VLOOKUP($A$3,'G9-RB'!$A$14:$AG$500,7,FALSE))&")")),"NA") -> 7300% (9) | G15: =IFERROR((IF($D15="NA","NA",VLOOKUP($A$3,'G9-RB'!$A$14:$AG$500,10,FALSE))),"NA") -> 14.4 | H15: =IFERROR((IF($D15="NA","NA",ROUND(VLOOKUP($A$3,'G9-RB'!$A$14:$AG$500,15,FALSE)*100,0)&"% ("&IF(VLOOKUP($A$3,'G9-RB'!$A$14:$AG$500,13,FALSE)="",0,VLOOKUP($A$3,'G9-RB'!$A$14:$AG$500,13,FALSE))&")")),"NA") -> 6500% (6.7) | I15: =IFERROR((IF($D15="NA","NA",VLOOKUP($A$3,'G9-RB'!$A$14:$AG$500,16,FALSE))),"NA") -> 5.2 | J15: =IFERROR((IF($D15="NA","NA",ROUND(VLOOKUP($A$3,'G9-RB'!$A$14:$AG$500,21,FALSE)*100,0)&"% ("&IF(VLOOKUP($A$3,'G9-RB'!$A$14:$AG$500,19,FALSE)="",0,VLOOKUP($A$3,'G9-RB'!$A$14:$AG$500,19,FALSE))&")")),"NA") -> 0% (0) | K15: =IFERROR((IF($D15="NA","NA",VLOOKUP($A$3,'G9-RB'!$A$14:$AG$500,22,FALSE))),"NA") -> 0 | L15: =IFERROR((IF($D15="NA","NA",ROUND(VLOOKUP($A$3,'G9-RB'!$A$14:$AG$500,27,FALSE)*100,0)&"% ("&IF(VLOOKUP($A$3,'G9-RB'!$A$14:$AG$500,25,FALSE)="",0,VLOOKUP($A$3,'G9-RB'!$A$14:$AG$500,25,FALSE))&")")),"NA") -> 0% (0) | M15: =IFERROR((IF($D15="NA","NA",VLOOKUP($A$3,'G9-RB'!$A$14:$AG$500,28,FALSE))),"NA") -> 0 | N15: =IFERROR((IF($D15="NA","NA",ROUND(VLOOKUP($A$3,'G9-RB'!$A$14:$AG$500,33,FALSE)*100,0)&"% ("&IF(VLOOKUP($A$3,'G9-RB'!$A$14:$AG$500,31,FALSE)="",0,VLOOKUP($A$3,'G9-RB'!$A$14:$AG$500,31,FALSE))&")")),"NA") -> 0% (0)
A16: Hispanic | B16: =IFERROR(VLOOKUP(TEXT($A$3,"0000"),'AYP11'!$B$2148:$AU$2576,45,FALSE)," ") -> NO | C16: =IFERROR(VLOOKUP(TEXT($A$3,"0000"),MEM_H!$A$2:$O$500,13,FALSE),"NA") -> 957 | D16: =IFERROR((IF(OR(C16=0,C16="",C16="NA"),"NA",((IF(VLOOKUP($A$3,'G9-RH'!$A$14:$AM$500,3,FALSE)>=C16,"100% ("&VLOOKUP($A$3,'G9-RH'!$A$14:$AM$500,3,FALSE)&")",(ROUND((VLOOKUP($A$3,'G9-RH'!$A$14:$AM$500,3,FALSE)/C16*100),0))&"% ("&IF(VLOOKUP($A$3,'G9-RH'!$A$14:$AM$500,3,FALSE)="",0,VLOOKUP($A$3,'G9-RH'!$A$14:$AM$500,3,FALSE))&")"))))),"0% (0)") -> 92% (879) | E16: =IFERROR((IF($D16="NA","NA",VLOOKUP($A$3,'G9-RH'!$A$14:$AM$500,4,FALSE))),"NA") -> 31.5 | F16: =IFERROR((IF($D16="NA","NA",ROUND(VLOOKUP($A$3,'G9-RH'!$A$14:$AM$500,9,FALSE)*100,0)&"% ("&IF(VLOOKUP($A$3,'G9-RH'!$A$14:$AM$500,7,FALSE)="",0,VLOOKUP($A$3,'G9-RH'!$A$14:$AM$500,7,FALSE))&")")),"NA") -> 5300% (8.2) | G16: =IFERROR((IF($D16="NA","NA",VLOOKUP($A$3,'G9-RH'!$A$14:$AM$500,10,FALSE))),"NA") -> 13.2 | H16: =IFERROR((IF($D16="NA","NA",ROUND(VLOOKUP($A$3,'G9-RH'!$A$14:$AM$500,15,FALSE)*100,0)&"% ("&IF(VLOOKUP($A$3,'G9-RH'!$A$14:$AM$500,13,FALSE)="",0,VLOOKUP($A$3,'G9-RH'!$A$14:$AM$500,13,FALSE))&")")),"NA") -> 4400% (5.8) | I16: =IFERROR((IF($D16="NA","NA",VLOOKUP($A$3,'G9-RH'!$A$14:$AM$500,16,FALSE))),"NA") -> 4.3 | J16: =IFERROR((IF($D16="NA","NA",ROUND(VLOOKUP($A$3,'G9-RH'!$A$14:$AM$500,21,FALSE)*100,0)&"% ("&IF(VLOOKUP($A$3,'G9-RH'!$A$14:$AM$500,19,FALSE)="",0,VLOOKUP($A$3,'G9-RH'!$A$14:$AM$500,19,FALSE))&")")),"NA") -> 0% (0) | K16: =IFERROR((IF($D16="NA","NA",VLOOKUP($A$3,'G9-RH'!$A$14:$AM$500,22,FALSE))),"NA") -> 0 | L16: =IFERROR((IF($D16="NA","NA",ROUND(VLOOKUP($A$3,'G9-RH'!$A$14:$AM$500,27,FALSE)*100,0)&"% ("&IF(VLOOKUP($A$3,'G9-RH'!$A$14:$AM$500,25,FALSE)="",0,VLOOKUP($A$3,'G9-RH'!$A$14:$AM$500,25,FALSE))&")")),"NA") -> 0% (0) | M16: =IFERROR((IF($D16="NA","NA",VLOOKUP($A$3,'G9-RH'!$A$14:$AM$500,28,FALSE))),"NA") -> 0 | N16: =IFERROR((IF($D16="NA","NA",ROUND(VLOOKUP($A$3,'G9-RH'!$A$14:$AM$500,33,FALSE)*100,0)&"% ("&IF(VLOOKUP($A$3,'G9-RH'!$A$14:$AM$500,31,FALSE)="",0,VLOOKUP($A$3,'G9-RH'!$A$14:$AM$500,31,FALSE))&")")),"NA") -> 0% (0)
A17: Asian | B17: =IFERROR(VLOOKUP(TEXT($A$3,"0000"),'AYP11'!$B$432:$AU$860,45,FALSE)," ") -> NA | C17: =IFERROR(VLOOKUP(TEXT($A$3,"0000"),MEM_A!$A$2:$O$500,13,FALSE),"NA") -> 28 | D17: =IFERROR((IF(OR(C17=0,C17="",C17="NA"),"NA",((IF(VLOOKUP($A$3,'G9-RA'!$A$14:$AM$500,3,FALSE)>=C17,"100% ("&VLOOKUP($A$3,'G9-RA'!$A$14:$AM$500,3,FALSE)&")",(ROUND((VLOOKUP($A$3,'G9-RA'!$A$14:$AM$500,3,FALSE)/C17*100),0))&"% ("&IF(VLOOKUP($A$3,'G9-RA'!$A$14:$AM$500,3,FALSE)="",0,VLOOKUP($A$3,'G9-RA'!$A$14:$AM$500,3,FALSE))&")"))))),"0% (0)") -> 96% (27) | E17: =IFERROR((IF($D17="NA","NA",VLOOKUP($A$3,'G9-RA'!$A$14:$AM$500,4,FALSE))),"NA") -> 38.1 | F17: =IFERROR((IF($D17="NA","NA",ROUND(VLOOKUP($A$3,'G9-RA'!$A$14:$AM$500,9,FALSE)*100,0)&"% ("&IF(VLOOKUP($A$3,'G9-RA'!$A$14:$AM$500,7,FALSE)="",0,VLOOKUP($A$3,'G9-RA'!$A$14:$AM$500,7,FALSE))&")")),"NA") -> 7400% (9.7) | G17: =IFERROR((IF($D17="NA","NA",VLOOKUP($A$3,'G9-RA'!$A$14:$AM$500,10,FALSE))),"NA") -> 15.4 | H17: =IFERROR((IF($D17="NA","NA",ROUND(VLOOKUP($A$3,'G9-RA'!$A$14:$AM$500,15,FALSE)*100,0)&"% ("&IF(VLOOKUP($A$3,'G9-RA'!$A$14:$AM$500,13,FALSE)="",0,VLOOKUP($A$3,'G9-RA'!$A$14:$AM$500,13,FALSE))&")")),"NA") -> 7800% (7.7) | I17: =IFERROR((IF($D17="NA","NA",VLOOKUP($A$3,'G9-RA'!$A$14:$AM$500,16,FALSE))),"NA") -> 5.3 | J17: =IFERROR((IF($D17="NA","NA",ROUND(VLOOKUP($A$3,'G9-RA'!$A$14:$AM$500,21,FALSE)*100,0)&"% ("&IF(VLOOKUP($A$3,'G9-RA'!$A$14:$AM$500,19,FALSE)="",0,VLOOKUP($A$3,'G9-RA'!$A$14:$AM$500,19,FALSE))&")")),"NA") -> 0% (0) | K17: =IFERROR((IF($D17="NA","NA",VLOOKUP($A$3,'G9-RA'!$A$14:$AM$500,22,FALSE))),"NA") -> 0 | L17: =IFERROR((IF($D17="NA","NA",ROUND(VLOOKUP($A$3,'G9-RA'!$A$14:$AM$500,27,FALSE)*100,0)&"% ("&IF(VLOOKUP($A$3,'G9-RA'!$A$14:$AM$500,25,FALSE)="",0,VLOOKUP($A$3,'G9-RA'!$A$14:$AM$500,25,FALSE))&")")),"NA") -> 0% (0) | M17: =IFERROR((IF($D17="NA","NA",VLOOKUP($A$3,'G9-RA'!$A$14:$AM$500,28,FALSE))),"NA") -> 0 | N17: =IFERROR((IF($D17="NA","NA",ROUND(VLOOKUP($A$3,'G9-RA'!$A$14:$AM$500,33,FALSE)*100,0)&"% ("&IF(VLOOKUP($A$3,'G9-RA'!$A$14:$AM$500,31,FALSE)="",0,VLOOKUP($A$3,'G9-RA'!$A$14:$AM$500,31,FALSE))&")")),"NA") -> 0% (0)
A18: Am. Indian | B18: =IFERROR(VLOOKUP(TEXT($A$3,"0000"),'AYP11'!$B$3:$AU$431,45,FALSE)," ") -> NA | C18: =IFERROR(VLOOKUP(TEXT($A$3,"0000"),MEM_I!$A$2:$O$500,13,FALSE),"NA") -> 1 | D18: =IFERROR((IF(OR(C18=0,C18="",C18="NA"),"NA",((IF(VLOOKUP($A$3,'G9-RI'!$A$14:$AM$500,3,FALSE)>=C18,"100% ("&VLOOKUP($A$3,'G9-RI'!$A$14:$AM$500,3,FALSE)&")",(ROUND((VLOOKUP($A$3,'G9-RI'!$A$14:$AM$500,3,FALSE)/C18*100),0))&"% ("&IF(VLOOKUP($A$3,'G9-RI'!$A$14:$AM$500,3,FALSE)="",0,VLOOKUP($A$3,'G9-RI'!$A$14:$AM$500,3,FALSE))&")"))))),"0% (0)") -> 100% (1) | E18: =IFERROR((IF($D18="NA","NA",VLOOKUP($A$3,'G9-RI'!$A$14:$AM$500,4,FALSE))),"NA") -> 43 | F18: =IFERROR((IF($D18="NA","NA",ROUND(VLOOKUP($A$3,'G9-RI'!$A$14:$AM$500,9,FALSE)*100,0)&"% ("&IF(VLOOKUP($A$3,'G9-RI'!$A$14:$AM$500,7,FALSE)="",0,VLOOKUP($A$3,'G9-RI'!$A$14:$AM$500,7,FALSE))&")")),"NA") -> 10000% (10) | G18: =IFERROR((IF($D18="NA","NA",VLOOKUP($A$3,'G9-RI'!$A$14:$AM$500,10,FALSE))),"NA") -> 17 | H18: =IFERROR((IF($D18="NA","NA",ROUND(VLOOKUP($A$3,'G9-RI'!$A$14:$AM$500,15,FALSE)*100,0)&"% ("&IF(VLOOKUP($A$3,'G9-RI'!$A$14:$AM$500,13,FALSE)="",0,VLOOKUP($A$3,'G9-RI'!$A$14:$AM$500,13,FALSE))&")")),"NA") -> 10000% (10) | I18: =IFERROR((IF($D18="NA","NA",VLOOKUP($A$3,'G9-RI'!$A$14:$AM$500,16,FALSE))),"NA") -> 6 | J18: =IFERROR((IF($D18="NA","NA",ROUND(VLOOKUP($A$3,'G9-RI'!$A$14:$AM$500,21,FALSE)*100,0)&"% ("&IF(VLOOKUP($A$3,'G9-RI'!$A$14:$AM$500,19,FALSE)="",0,VLOOKUP($A$3,'G9-RI'!$A$14:$AM$500,19,FALSE))&")")),"NA") -> 0% (0) | K18: =IFERROR((IF($D18="NA","NA",VLOOKUP($A$3,'G9-RI'!$A$14:$AM$500,22,FALSE))),"NA") -> 0 | L18: =IFERROR((IF($D18="NA","NA",ROUND(VLOOKUP($A$3,'G9-RI'!$A$14:$AM$500,27,FALSE)*100,0)&"% ("&IF(VLOOKUP($A$3,'G9-RI'!$A$14:$AM$500,25,FALSE)="",0,VLOOKUP($A$3,'G9-RI'!$A$14:$AM$500,25,FALSE))&")")),"NA") -> 0% (0) | M18: =IFERROR((IF($D18="NA","NA",VLOOKUP($A$3,'G9-RI'!$A$14:$AM$500,28,FALSE))),"NA") -> 0 | N18: =IFERROR((IF($D18="NA","NA",ROUND(VLOOKUP($A$3,'G9-RI'!$A$14:$AM$500,33,FALSE)*100,0)&"% ("&IF(VLOOKUP($A$3,'G9-RI'!$A$14:$AM$500,31,FALSE)="",0,VLOOKUP($A$3,'G9-RI'!$A$14:$AM$500,31,FALSE))&")")),"NA") -> 0% (0)
A19: ED | B19: =IFERROR(VLOOKUP(TEXT($A$3,"0000"),'AYP11'!$B$1290:$AU$1718,45,FALSE)," ") -> NO | C19: =IFERROR(VLOOKUP(TEXT($A$3,"0000"),MEM_ED!$A$2:$O$500,13,FALSE),"NA") -> 654 | D19: =IFERROR((IF(OR(C19=0,C19="",C19="NA"),"NA",((IF(VLOOKUP($A$3,'G9-RED'!$A$14:$AM$500,3,FALSE)>=C19,"100% ("&VLOOKUP($A$3,'G9-RED'!$A$14:$AM$500,3,FALSE)&")",(ROUND((VLOOKUP($A$3,'G9-RED'!$A$14:$AM$500,3,FALSE)/C19*100),0))&"% ("&IF(VLOOKUP($A$3,'G9-RED'!$A$14:$AM$500,3,FALSE)="",0,VLOOKUP($A$3,'G9-RED'!$A$14:$AM$500,3,FALSE))&")"))))),"0% (0)") -> 91% (598) | E19: =IFERROR((IF($D19="NA","NA",VLOOKUP($A$3,'G9-RED'!$A$14:$AM$500,4,FALSE))),"NA") -> 30.9 | F19: =IFERROR((IF($D19="NA","NA",ROUND(VLOOKUP($A$3,'G9-RED'!$A$14:$AM$500,9,FALSE)*100,0)&"% ("&IF(VLOOKUP($A$3,'G9-RED'!$A$14:$AM$500,7,FALSE)="",0,VLOOKUP($A$3,'G9-RED'!$A$14:$AM$500,7,FALSE))&")")),"NA") -> 4900% (8) | G19: =IFERROR((IF($D19="NA","NA",VLOOKUP($A$3,'G9-RED'!$A$14:$AM$500,10,FALSE))),"NA") -> 13 | H19: =IFERROR((IF($D19="NA","NA",ROUND(VLOOKUP($A$3,'G9-RED'!$A$14:$AM$500,15,FALSE)*100,0)&"% ("&IF(VLOOKUP($A$3,'G9-RED'!$A$14:$AM$500,13,FALSE)="",0,VLOOKUP($A$3,'G9-RED'!$A$14:$AM$500,13,FALSE))&")")),"NA") -> 4100% (5.7) | I19: =IFERROR((IF($D19="NA","NA",VLOOKUP($A$3,'G9-RED'!$A$14:$AM$500,16,FALSE))),"NA") -> 4.2 | J19: =IFERROR((IF($D19="NA","NA",ROUND(VLOOKUP($A$3,'G9-RED'!$A$14:$AM$500,21,FALSE)*100,0)&"% ("&IF(VLOOKUP($A$3,'G9-RED'!$A$14:$AM$500,19,FALSE)="",0,VLOOKUP($A$3,'G9-RED'!$A$14:$AM$500,19,FALSE))&")")),"NA") -> 0% (0) | K19: =IFERROR((IF($D19="NA","NA",VLOOKUP($A$3,'G9-RED'!$A$14:$AM$500,22,FALSE))),"NA") -> 0 | L19: =IFERROR((IF($D19="NA","NA",ROUND(VLOOKUP($A$3,'G9-RED'!$A$14:$AM$500,27,FALSE)*100,0)&"% ("&IF(VLOOKUP($A$3,'G9-RED'!$A$14:$AM$500,25,FALSE)="",0,VLOOKUP($A$3,'G9-RED'!$A$14:$AM$500,25,FALSE))&")")),"NA") -> 0% (0) | M19: =IFERROR((IF($D19="NA","NA",VLOOKUP($A$3,'G9-RED'!$A$14:$AM$500,28,FALSE))),"NA") -> 0 | N19: =IFERROR((IF($D19="NA","NA",ROUND(VLOOKUP($A$3,'G9-RED'!$A$14:$AM$500,33,FALSE)*100,0)&"% ("&IF(VLOOKUP($A$3,'G9-RED'!$A$14:$AM$500,31,FALSE)="",0,VLOOKUP($A$3,'G9-RED'!$A$14:$AM$500,31,FALSE))&")")),"NA") -> 0% (0)
A20: ELL | B20: =IFERROR(VLOOKUP(TEXT($A$3,"0000"),'AYP11'!$B$1719:$AU$2147,45,FALSE)," ") -> NO | C20: =IFERROR(VLOOKUP(TEXT($A$3,"0000"),MEM_ELL!$A$2:$O$500,13,FALSE),"NA") -> 98 | D20: =IFERROR((IF(OR(C20=0,C20="",C20="NA"),"NA",((IF(VLOOKUP($A$3,'G9-RELL'!$A$14:$AM$500,3,FALSE)>=C20,"100% ("&VLOOKUP($A$3,'G9-RELL'!$A$14:$AM$500,3,FALSE)&")",(ROUND((VLOOKUP($A$3,'G9-RELL'!$A$14:$AM$500,3,FALSE)/C20*100),0))&"% ("&IF(VLOOKUP($A$3,'G9-RELL'!$A$14:$AM$500,3,FALSE)="",0,VLOOKUP($A$3,'G9-RELL'!$A$14:$AM$500,3,FALSE))&")"))))),"0% (0)") -> 94% (92) | E20: =IFERROR((IF($D20="NA","NA",VLOOKUP($A$3,'G9-RELL'!$A$14:$AM$500,4,FALSE))),"NA") -> 28.68478261 | F20: =IFERROR((IF($D20="NA","NA",ROUND(VLOOKUP($A$3,'G9-RELL'!$A$14:$AM$500,9,FALSE)*100,0)&"% ("&IF(VLOOKUP($A$3,'G9-RELL'!$A$14:$AM$500,7,FALSE)="",0,VLOOKUP($A$3,'G9-RELL'!$A$14:$AM$500,7,FALSE))&")")),"NA") -> 3800% (7.55434782608696) | G20: =IFERROR((IF($D20="NA","NA",VLOOKUP($A$3,'G9-RELL'!$A$14:$AM$500,10,FALSE))),"NA") -> 12.06521739 | H20: =IFERROR((IF($D20="NA","NA",ROUND(VLOOKUP($A$3,'G9-RELL'!$A$14:$AM$500,15,FALSE)*100,0)&"% ("&IF(VLOOKUP($A$3,'G9-RELL'!$A$14:$AM$500,13,FALSE)="",0,VLOOKUP($A$3,'G9-RELL'!$A$14:$AM$500,13,FALSE))&")")),"NA") -> 2600% (4.97826086956522) | I20: =IFERROR((IF($D20="NA","NA",VLOOKUP($A$3,'G9-RELL'!$A$14:$AM$500,16,FALSE))),"NA") -> 4.086956522 | J20: =IFERROR((IF($D20="NA","NA",ROUND(VLOOKUP($A$3,'G9-RELL'!$A$14:$AM$500,21,FALSE)*100,0)&"% ("&IF(VLOOKUP($A$3,'G9-RELL'!$A$14:$AM$500,19,FALSE)="",0,VLOOKUP($A$3,'G9-RELL'!$A$14:$AM$500,19,FALSE))&")")),"NA") -> 0% (0) | K20: =IFERROR((IF($D20="NA","NA",VLOOKUP($A$3,'G9-RELL'!$A$14:$AM$500,22,FALSE))),"NA") -> 0 | L20: =IFERROR((IF($D20="NA","NA",ROUND(VLOOKUP($A$3,'G9-RELL'!$A$14:$AM$500,27,FALSE)*100,0)&"% ("&IF(VLOOKUP($A$3,'G9-RELL'!$A$14:$AM$500,25,FALSE)="",0,VLOOKUP($A$3,'G9-RELL'!$A$14:$AM$500,25,FALSE))&")")),"NA") -> 0% (0) | M20: =IFERROR((IF($D20="NA","NA",VLOOKUP($A$3,'G9-RELL'!$A$14:$AM$500,28,FALSE))),"NA") -> 0 | N20: =IFERROR((IF($D20="NA","NA",ROUND(VLOOKUP($A$3,'G9-RELL'!$A$14:$AM$500,33,FALSE)*100,0)&"% ("&IF(VLOOKUP($A$3,'G9-RELL'!$A$14:$AM$500,31,FALSE)="",0,VLOOKUP($A$3,'G9-RELL'!$A$14:$AM$500,31,FALSE))&")")),"NA") -> 0% (0)
A21: SWD | B21: =IFERROR(VLOOKUP(TEXT($A$3,"0000"),'AYP11'!$B$2577:$AU$3005,45,FALSE)," ") -> NO | C21: =IFERROR(VLOOKUP(TEXT($A$3,"0000"),MEM_SWD!$A$2:$O$500,13,FALSE),"NA") -> 117 | D21: =IFERROR((IF(OR(C21=0,C21="",C21="NA"),"NA",((IF(VLOOKUP($A$3,'G9-RSWD'!$A$14:$AM$500,3,FALSE)>=C21,"100% ("&VLOOKUP($A$3,'G9-RSWD'!$A$14:$AM$500,3,FALSE)&")",(ROUND((VLOOKUP($A$3,'G9-RSWD'!$A$14:$AM$500,3,FALSE)/C21*100),0))&"% ("&IF(VLOOKUP($A$3,'G9-RSWD'!$A$14:$AM$500,3,FALSE)="",0,VLOOKUP($A$3,'G9-RSWD'!$A$14:$AM$500,3,FALSE))&")"))))),"0% (0)") -> 85% (100) | E21: =IFERROR((IF($D21="NA","NA",VLOOKUP($A$3,'G9-RSWD'!$A$14:$AM$500,4,FALSE))),"NA") -> 21.6 | F21: =IFERROR((IF($D21="NA","NA",ROUND(VLOOKUP($A$3,'G9-RSWD'!$A$14:$AM$500,9,FALSE)*100,0)&"% ("&IF(VLOOKUP($A$3,'G9-RSWD'!$A$14:$AM$500,7,FALSE)="",0,VLOOKUP($A$3,'G9-RSWD'!$A$14:$AM$500,7,FALSE))&")")),"NA") -> 1800% (5.5) | G21: =IFERROR((IF($D21="NA","NA",VLOOKUP($A$3,'G9-RSWD'!$A$14:$AM$500,10,FALSE))),"NA") -> 8.9 | H21: =IFERROR((IF($D21="NA","NA",ROUND(VLOOKUP($A$3,'G9-RSWD'!$A$14:$AM$500,15,FALSE)*100,0)&"% ("&IF(VLOOKUP($A$3,'G9-RSWD'!$A$14:$AM$500,13,FALSE)="",0,VLOOKUP($A$3,'G9-RSWD'!$A$14:$AM$500,13,FALSE))&")")),"NA") -> 1700% (3.8) | I21: =IFERROR((IF($D21="NA","NA",VLOOKUP($A$3,'G9-RSWD'!$A$14:$AM$500,16,FALSE))),"NA") -> 3.4 | J21: =IFERROR((IF($D21="NA","NA",ROUND(VLOOKUP($A$3,'G9-RSWD'!$A$14:$AM$500,21,FALSE)*100,0)&"% ("&IF(VLOOKUP($A$3,'G9-RSWD'!$A$14:$AM$500,19,FALSE)="",0,VLOOKUP($A$3,'G9-RSWD'!$A$14:$AM$500,19,FALSE))&")")),"NA") -> 0% (0) | K21: =IFERROR((IF($D21="NA","NA",VLOOKUP($A$3,'G9-RSWD'!$A$14:$AM$500,22,FALSE))),"NA") -> 0 | L21: =IFERROR((IF($D21="NA","NA",ROUND(VLOOKUP($A$3,'G9-RSWD'!$A$14:$AM$500,27,FALSE)*100,0)&"% ("&IF(VLOOKUP($A$3,'G9-RSWD'!$A$14:$AM$500,25,FALSE)="",0,VLOOKUP($A$3,'G9-RSWD'!$A$14:$AM$500,25,FALSE))&")")),"NA") -> 0% (0) | M21: =IFERROR((IF($D21="NA","NA",VLOOKUP($A$3,'G9-RSWD'!$A$14:$AM$500,28,FALSE))),"NA") -> 0 | N21: =IFERROR((IF($D21="NA","NA",ROUND(VLOOKUP($A$3,'G9-RSWD'!$A$14:$AM$500,33,FALSE)*100,0)&"% ("&IF(VLOOKUP($A$3,'G9-RSWD'!$A$14:$AM$500,31,FALSE)="",0,VLOOKUP($A$3,'G9-RSWD'!$A$14:$AM$500,31,FALSE))&")")),"NA") -> 0% (0)
A22: Math - Grade 9
A23: Level of Proficiency at 70% or above | B23: 2010 AYP Met** | C23: Total # of Students | D23: % Tested | E23: Overall [48] | G23: Fractions, Linear Equations, & Inequalities [28] | I23: Polynomials [7] | K23: Rationals, Radicals, Quadratics, & Discrete Mathematics [13]
E24: Average Score | F24: % Proficient | G24: Average Score | H24: % Proficient | I24: Average Score | J24: % Proficient | K24: Average Score | L24: % Proficient
A25: All students | B25: =IFERROR(VLOOKUP(TEXT($A$3,"0000"),'AYP11'!$B$3006:$AU$3434,46,FALSE),"NA") -> Yes-AB | C25: =IFERROR(VLOOKUP(TEXT($A$3,"0000"),Mem_All!$A$2:$O$500,13,FALSE),"NA") -> 1087 | D25: =IFERROR((IF(OR(C25=0,C25="",C25="NA"),"NA",((IF(VLOOKUP($A$3,'ALG-ALL'!$A$14:$AG$500,3,FALSE)>=C25,"100% ("&VLOOKUP($A$3,'ALG-ALL'!$A$14:$AG$500,3,FALSE)&")",(ROUND((VLOOKUP($A$3,'ALG-ALL'!$A$14:$AG$500,3,FALSE)/C25*100),0))&"% ("&IF(VLOOKUP($A$3,'ALG-ALL'!$A$14:$AG$500,3,FALSE)="",0,VLOOKUP($A$3,'ALG-ALL'!$A$14:$AG$500,3,FALSE))&")"))))),"0% (0)") -> 67% (728) | E25: =IFERROR((IF($D25="NA","NA",VLOOKUP($A$3,'ALG-ALL'!$A$14:$AG$500,4,FALSE))),"NA") -> 14.3 | F25: =IFERROR((IF($D25="NA","NA",ROUND(VLOOKUP($A$3,'ALG-ALL'!$A$14:$AG$500,9,FALSE)*100,0)&"% ("&IF(VLOOKUP($A$3,'ALG-ALL'!$A$14:$AG$500,7,FALSE)="",0,VLOOKUP($A$3,'ALG-ALL'!$A$14:$AG$500,7,FALSE))&")")),"NA") -> 200% (14.3) | G25: =IFERROR((IF($D25="NA","NA",VLOOKUP($A$3,'ALG-ALL'!$A$14:$AG$500,10,FALSE))),"NA") -> NA | H25: =IFERROR((IF($D25="NA","NA",ROUND(VLOOKUP($A$3,'ALG-ALL'!$A$14:$AG$500,15,FALSE)*100,0)&"% ("&IF(VLOOKUP($A$3,'ALG-ALL'!$A$14:$AG$500,13,FALSE)="",0,VLOOKUP($A$3,'ALG-ALL'!$A$14:$AG$500,13,FALSE))&")")),"NA") -> 0% (NA) | I25: =IFERROR((IF($D25="NA","NA",VLOOKUP($A$3,'ALG-ALL'!$A$14:$AG$500,16,FALSE))),"NA") -> NA | J25: =IFERROR((IF($D25="NA","NA",ROUND(VLOOKUP($A$3,'ALG-ALL'!$A$14:$AG$500,21,FALSE)*100,0)&"% ("&IF(VLOOKUP($A$3,'ALG-ALL'!$A$14:$AG$500,19,FALSE)="",0,VLOOKUP($A$3,'ALG-ALL'!$A$14:$AG$500,19,FALSE))&")")),"NA") -> 0% (0) | K25: =IFERROR((IF($D25="NA","NA",VLOOKUP($A$3,'ALG-ALL'!$A$14:$AG$500,22,FALSE))),"NA") -> 0 | L25: =IFERROR((IF($D25="NA","NA",ROUND(VLOOKUP($A$3,'ALG-ALL'!$A$14:$AG$500,27,FALSE)*100,0)&"% ("&IF(VLOOKUP($A$3,'ALG-ALL'!$A$14:$AG$500,25,FALSE)="",0,VLOOKUP($A$3,'ALG-ALL'!$A$14:$AG$500,25,FALSE))&")")),"NA") -> 0% (0)
A26: FCAT Level 1 | C26: =IFERROR(VLOOKUP(TEXT($A$3,"0000"),MEM_ML1!$A$2:$M$500,10,FALSE),"NA") -> 69 | D26: =IFERROR((IF(OR(C26=0,C26="",C26="NA"),"NA",((IF(VLOOKUP($A$3,'ALG-L1'!$A$14:$AG$500,3,FALSE)>=C26,"100% ("&VLOOKUP($A$3,'ALG-L1'!$A$14:$AG$500,3,FALSE)&")",(ROUND((VLOOKUP($A$3,'ALG-L1'!$A$14:$AG$500,3,FALSE)/C26*100),0))&"% ("&IF(VLOOKUP($A$3,'ALG-L1'!$A$14:$AG$500,3,FALSE)="",0,VLOOKUP($A$3,'ALG-L1'!$A$14:$AG$500,3,FALSE))&")"))))),"0% (0)") -> 100% (88) | E26: =IFERROR((IF($D26="NA","NA",VLOOKUP($A$3,'ALG-L1'!$A$14:$AG$500,4,FALSE))),"NA") -> 10.1 | F26: =IFERROR((IF($D26="NA","NA",ROUND(VLOOKUP($A$3,'ALG-L1'!$A$14:$AG$500,9,FALSE)*100,0)&"% ("&IF(VLOOKUP($A$3,'ALG-L1'!$A$14:$AG$500,7,FALSE)="",0,VLOOKUP($A$3,'ALG-L1'!$A$14:$AG$500,7,FALSE))&")")),"NA") -> 0% (10.1) | G26: =IFERROR((IF($D26="NA","NA",VLOOKUP($A$3,'ALG-L1'!$A$14:$AG$500,10,FALSE))),"NA") -> NA | H26: =IFERROR((IF($D26="NA","NA",ROUND(VLOOKUP($A$3,'ALG-L1'!$A$14:$AG$500,15,FALSE)*100,0)&"% ("&IF(VLOOKUP($A$3,'ALG-L1'!$A$14:$AG$500,13,FALSE)="",0,VLOOKUP($A$3,'ALG-L1'!$A$14:$AG$500,13,FALSE))&")")),"NA") -> 0% (NA) | I26: =IFERROR((IF($D26="NA","NA",VLOOKUP($A$3,'ALG-L1'!$A$14:$AG$500,16,FALSE))),"NA") -> NA | J26: =IFERROR((IF($D26="NA","NA",ROUND(VLOOKUP($A$3,'ALG-L1'!$A$14:$AG$500,21,FALSE)*100,0)&"% ("&IF(VLOOKUP($A$3,'ALG-L1'!$A$14:$AG$500,19,FALSE)="",0,VLOOKUP($A$3,'ALG-L1'!$A$14:$AG$500,19,FALSE))&")")),"NA") -> 0% (0) | K26: =IFERROR((IF($D26="NA","NA",VLOOKUP($A$3,'ALG-L1'!$A$14:$AG$500,22,FALSE))),"NA") -> 0 | L26: =IFERROR((IF($D26="NA","NA",ROUND(VLOOKUP($A$3,'ALG-L1'!$A$14:$AG$500,27,FALSE)*100,0)&"% ("&IF(VLOOKUP($A$3,'ALG-L1'!$A$14:$AG$500,25,FALSE)="",0,VLOOKUP($A$3,'ALG-L1'!$A$14:$AG$500,25,FALSE))&")")),"NA") -> 0% (0)
A27: FCAT Level 2 | C27: =IFERROR(VLOOKUP(TEXT($A$3,"0000"),MEM_ML2!$A$2:$O$500,10,FALSE),"NA") -> 161 | D27: =IFERROR((IF(OR(C27=0,C27="",C27="NA"),"NA",((IF(VLOOKUP($A$3,'ALG-L2'!$A$14:$AG$500,3,FALSE)>=C27,"100% ("&VLOOKUP($A$3,'ALG-L2'!$A$14:$AG$500,3,FALSE)&")",(ROUND((VLOOKUP($A$3,'ALG-L2'!$A$14:$AG$500,3,FALSE)/C27*100),0))&"% ("&IF(VLOOKUP($A$3,'ALG-L2'!$A$14:$AG$500,3,FALSE)="",0,VLOOKUP($A$3,'ALG-L2'!$A$14:$AG$500,3,FALSE))&")"))))),"0% (0)") -> 100% (174) | E27: =IFERROR((IF($D27="NA","NA",VLOOKUP($A$3,'ALG-L2'!$A$14:$AG$500,4,FALSE))),"NA") -> 11.7 | F27: =IFERROR((IF($D27="NA","NA",ROUND(VLOOKUP($A$3,'ALG-L2'!$A$14:$AG$500,9,FALSE)*100,0)&"% ("&IF(VLOOKUP($A$3,'ALG-L2'!$A$14:$AG$500,7,FALSE)="",0,VLOOKUP($A$3,'ALG-L2'!$A$14:$AG$500,7,FALSE))&")")),"NA") -> 0% (11.7) | G27: =IFERROR((IF($D27="NA","NA",VLOOKUP($A$3,'ALG-L2'!$A$14:$AG$500,10,FALSE))),"NA") -> NA | H27: =IFERROR((IF($D27="NA","NA",ROUND(VLOOKUP($A$3,'ALG-L2'!$A$14:$AG$500,15,FALSE)*100,0)&"% ("&IF(VLOOKUP($A$3,'ALG-L2'!$A$14:$AG$500,13,FALSE)="",0,VLOOKUP($A$3,'ALG-L2'!$A$14:$AG$500,13,FALSE))&")")),"NA") -> 0% (NA) | I27: =IFERROR((IF($D27="NA","NA",VLOOKUP($A$3,'ALG-L2'!$A$14:$AG$500,16,FALSE))),"NA") -> NA | J27: =IFERROR((IF($D27="NA","NA",ROUND(VLOOKUP($A$3,'ALG-L2'!$A$14:$AG$500,21,FALSE)*100,0)&"% ("&IF(VLOOKUP($A$3,'ALG-L2'!$A$14:$AG$500,19,FALSE)="",0,VLOOKUP($A$3,'ALG-L2'!$A$14:$AG$500,19,FALSE))&")")),"NA") -> 0% (0) | K27: =IFERROR((IF($D27="NA","NA",VLOOKUP($A$3,'ALG-L2'!$A$14:$AG$500,22,FALSE))),"NA") -> 0 | L27: =IFERROR((IF($D27="NA","NA",ROUND(VLOOKUP($A$3,'ALG-L2'!$A$14:$AG$500,27,FALSE)*100,0)&"% ("&IF(VLOOKUP($A$3,'ALG-L2'!$A$14:$AG$500,25,FALSE)="",0,VLOOKUP($A$3,'ALG-L2'!$A$14:$AG$500,25,FALSE))&")")),"NA") -> 0% (0)
A28: FCAT Level 3 | C28: =IFERROR(VLOOKUP(TEXT($A$3,"0000"),MEM_ML3!$A$2:$O$500,10,FALSE),"NA") -> 355 | D28: =IFERROR((IF(OR(C28=0,C28="",C28="NA"),"NA",((IF(VLOOKUP($A$3,'ALG-L3'!$A$14:$AG$500,3,FALSE)>=C28,"100% ("&VLOOKUP($A$3,'ALG-L3'!$A$14:$AG$500,3,FALSE)&")",(ROUND((VLOOKUP($A$3,'ALG-L3'!$A$14:$AG$500,3,FALSE)/C28*100),0))&"% ("&IF(VLOOKUP($A$3,'ALG-L3'!$A$14:$AG$500,3,FALSE)="",0,VLOOKUP($A$3,'ALG-L3'!$A$14:$AG$500,3,FALSE))&")"))))),"0% (0)") -> 87% (309) | E28: =IFERROR((IF($D28="NA","NA",VLOOKUP($A$3,'ALG-L3'!$A$14:$AG$500,4,FALSE))),"NA") -> 14.7 | F28: =IFERROR((IF($D28="NA","NA",ROUND(VLOOKUP($A$3,'ALG-L3'!$A$14:$AG$500,9,FALSE)*100,0)&"% ("&IF(VLOOKUP($A$3,'ALG-L3'!$A$14:$AG$500,7,FALSE)="",0,VLOOKUP($A$3,'ALG-L3'!$A$14:$AG$500,7,FALSE))&")")),"NA") -> 100% (14.7) | G28: =IFERROR((IF($D28="NA","NA",VLOOKUP($A$3,'ALG-L3'!$A$14:$AG$500,10,FALSE))),"NA") -> NA | H28: =IFERROR((IF($D28="NA","NA",ROUND(VLOOKUP($A$3,'ALG-L3'!$A$14:$AG$500,15,FALSE)*100,0)&"% ("&IF(VLOOKUP($A$3,'ALG-L3'!$A$14:$AG$500,13,FALSE)="",0,VLOOKUP($A$3,'ALG-L3'!$A$14:$AG$500,13,FALSE))&")")),"NA") -> 0% (NA) | I28: =IFERROR((IF($D28="NA","NA",VLOOKUP($A$3,'ALG-L3'!$A$14:$AG$500,16,FALSE))),"NA") -> NA | J28: =IFERROR((IF($D28="NA","NA",ROUND(VLOOKUP($A$3,'ALG-L3'!$A$14:$AG$500,21,FALSE)*100,0)&"% ("&IF(VLOOKUP($A$3,'ALG-L3'!$A$14:$AG$500,19,FALSE)="",0,VLOOKUP($A$3,'ALG-L3'!$A$14:$AG$500,19,FALSE))&")")),"NA") -> 0% (0) | K28: =IFERROR((IF($D28="NA","NA",VLOOKUP($A$3,'ALG-L3'!$A$14:$AG$500,22,FALSE))),"NA") -> 0 | L28: =IFERROR((IF($D28="NA","NA",ROUND(VLOOKUP($A$3,'ALG-L3'!$A$14:$AG$500,27,FALSE)*100,0)&"% ("&IF(VLOOKUP($A$3,'ALG-L3'!$A$14:$AG$500,25,FALSE)="",0,VLOOKUP($A$3,'ALG-L3'!$A$14:$AG$500,25,FALSE))&")")),"NA") -> 0% (0)
A29: FCAT Level 4 | C29: =IFERROR(VLOOKUP(TEXT($A$3,"0000"),MEM_ML4!$A$2:$P$500,10,FALSE),"NA") -> 220 | D29: =IFERROR((IF(OR(C29=0,C29="",C29="NA"),"NA",((IF(VLOOKUP($A$3,'ALG-L4'!$A$14:$AG$500,3,FALSE)>=C29,"100% ("&VLOOKUP($A$3,'ALG-L4'!$A$14:$AG$500,3,FALSE)&")",(ROUND((VLOOKUP($A$3,'ALG-L4'!$A$14:$AG$500,3,FALSE)/C29*100),0))&"% ("&IF(VLOOKUP($A$3,'ALG-L4'!$A$14:$AG$500,3,FALSE)="",0,VLOOKUP($A$3,'ALG-L4'!$A$14:$AG$500,3,FALSE))&")"))))),"0% (0)") -> 49% (108) | E29: =IFERROR((IF($D29="NA","NA",VLOOKUP($A$3,'ALG-L4'!$A$14:$AG$500,4,FALSE))),"NA") -> 18.9 | F29: =IFERROR((IF($D29="NA","NA",ROUND(VLOOKUP($A$3,'ALG-L4'!$A$14:$AG$500,9,FALSE)*100,0)&"% ("&IF(VLOOKUP($A$3,'ALG-L4'!$A$14:$AG$500,7,FALSE)="",0,VLOOKUP($A$3,'ALG-L4'!$A$14:$AG$500,7,FALSE))&")")),"NA") -> 600% (18.9) | G29: =IFERROR((IF($D29="NA","NA",VLOOKUP($A$3,'ALG-L4'!$A$14:$AG$500,10,FALSE))),"NA") -> NA | H29: =IFERROR((IF($D29="NA","NA",ROUND(VLOOKUP($A$3,'ALG-L4'!$A$14:$AG$500,15,FALSE)*100,0)&"% ("&IF(VLOOKUP($A$3,'ALG-L4'!$A$14:$AG$500,13,FALSE)="",0,VLOOKUP($A$3,'ALG-L4'!$A$14:$AG$500,13,FALSE))&")")),"NA") -> 0% (NA) | I29: =IFERROR((IF($D29="NA","NA",VLOOKUP($A$3,'ALG-L4'!$A$14:$AG$500,16,FALSE))),"NA") -> NA | J29: =IFERROR((IF($D29="NA","NA",ROUND(VLOOKUP($A$3,'ALG-L4'!$A$14:$AG$500,21,FALSE)*100,0)&"% ("&IF(VLOOKUP($A$3,'ALG-L4'!$A$14:$AG$500,19,FALSE)="",0,VLOOKUP($A$3,'ALG-L4'!$A$14:$AG$500,19,FALSE))&")")),"NA") -> 0% (0) | K29: =IFERROR((IF($D29="NA","NA",VLOOKUP($A$3,'ALG-L4'!$A$14:$AG$500,22,FALSE))),"NA") -> 0 | L29: =IFERROR((IF($D29="NA","NA",ROUND(VLOOKUP($A$3,'ALG-L4'!$A$14:$AG$500,27,FALSE)*100,0)&"% ("&IF(VLOOKUP($A$3,'ALG-L4'!$A$14:$AG$500,25,FALSE)="",0,VLOOKUP($A$3,'ALG-L4'!$A$14:$AG$500,25,FALSE))&")")),"NA") -> 0% (0)
A30: FCAT Level 5 | C30: =IFERROR(VLOOKUP(TEXT($A$3,"0000"),MEM_ML5!$A$2:$P$500,10,FALSE),"NA") -> 1 | D30: =IFERROR((IF(OR(C30=0,C30="",C30="NA"),"NA",((IF(VLOOKUP($A$3,'ALG-L5'!$A$14:$AG$500,3,FALSE)>=C30,"100% ("&VLOOKUP($A$3,'ALG-L5'!$A$14:$AG$500,3,FALSE)&")",(ROUND((VLOOKUP($A$3,'ALG-L5'!$A$14:$AG$500,3,FALSE)/C30*100),0))&"% ("&IF(VLOOKUP($A$3,'ALG-L5'!$A$14:$AG$500,3,FALSE)="",0,VLOOKUP($A$3,'ALG-L5'!$A$14:$AG$500,3,FALSE))&")"))))),"0% (0)") -> 100% (27) | E30: =IFERROR((IF($D30="NA","NA",VLOOKUP($A$3,'ALG-L5'!$A$14:$AG$500,4,FALSE))),"NA") -> 22.9 | F30: =IFERROR((IF($D30="NA","NA",ROUND(VLOOKUP($A$3,'ALG-L5'!$A$14:$AG$500,9,FALSE)*100,0)&"% ("&IF(VLOOKUP($A$3,'ALG-L5'!$A$14:$AG$500,7,FALSE)="",0,VLOOKUP($A$3,'ALG-L5'!$A$14:$AG$500,7,FALSE))&")")),"NA") -> 2200% (22.9) | G30: =IFERROR((IF($D30="NA","NA",VLOOKUP($A$3,'ALG-L5'!$A$14:$AG$500,10,FALSE))),"NA") -> NA | H30: =IFERROR((IF($D30="NA","NA",ROUND(VLOOKUP($A$3,'ALG-L5'!$A$14:$AG$500,15,FALSE)*100,0)&"% ("&IF(VLOOKUP($A$3,'ALG-L5'!$A$14:$AG$500,13,FALSE)="",0,VLOOKUP($A$3,'ALG-L5'!$A$14:$AG$500,13,FALSE))&")")),"NA") -> 0% (NA) | I30: =IFERROR((IF($D30="NA","NA",VLOOKUP($A$3,'ALG-L5'!$A$14:$AG$500,16,FALSE))),"NA") -> NA | J30: =IFERROR((IF($D30="NA","NA",ROUND(VLOOKUP($A$3,'ALG-L5'!$A$14:$AG$500,21,FALSE)*100,0)&"% ("&IF(VLOOKUP($A$3,'ALG-L5'!$A$14:$AG$500,19,FALSE)="",0,VLOOKUP($A$3,'ALG-L5'!$A$14:$AG$500,19,FALSE))&")")),"NA") -> 0% (0) | K30: =IFERROR((IF($D30="NA","NA",VLOOKUP($A$3,'ALG-L5'!$A$14:$AG$500,22,FALSE))),"NA") -> 0 | L30: =IFERROR((IF($D30="NA","NA",ROUND(VLOOKUP($A$3,'ALG-L5'!$A$14:$AG$500,27,FALSE)*100,0)&"% ("&IF(VLOOKUP($A$3,'ALG-L5'!$A$14:$AG$500,25,FALSE)="",0,VLOOKUP($A$3,'ALG-L5'!$A$14:$AG$500,25,FALSE))&")")),"NA") -> 0% (0)
A31: White | B31: =IFERROR(VLOOKUP(TEXT($A$3,"0000"),'AYP11'!$B$3435:$AU$3863,46,FALSE)," ") -> NA | C31: =IFERROR(VLOOKUP(TEXT($A$3,"0000"),MEM_W!$A$2:$O$500,13,FALSE),"NA") -> 75 | D31: =IFERROR((IF(OR(C31=0,C31="",C31="NA"),"NA",((IF(VLOOKUP($A$3,'ALG-W'!$A$14:$AG$500,3,FALSE)>=C31,"100% ("&VLOOKUP($A$3,'ALG-W'!$A$14:$AG$500,3,FALSE)&")",(ROUND((VLOOKUP($A$3,'ALG-W'!$A$14:$AG$500,3,FALSE)/C31*100),0))&"% ("&IF(VLOOKUP($A$3,'ALG-W'!$A$14:$AG$500,3,FALSE)="",0,VLOOKUP($A$3,'ALG-W'!$A$14:$AG$500,3,FALSE))&")"))))),"0% (0)") -> 69% (52) | E31: =IFERROR((IF($D31="NA","NA",VLOOKUP($A$3,'ALG-W'!$A$14:$AG$500,4,FALSE))),"NA") -> 13.6 | F31: =IFERROR((IF($D31="NA","NA",ROUND(VLOOKUP($A$3,'ALG-W'!$A$14:$AG$500,9,FALSE)*100,0)&"% ("&IF(VLOOKUP($A$3,'ALG-W'!$A$14:$AG$500,7,FALSE)="",0,VLOOKUP($A$3,'ALG-W'!$A$14:$AG$500,7,FALSE))&")")),"NA") -> 0% (13.6) | G31: =IFERROR((IF($D31="NA","NA",VLOOKUP($A$3,'ALG-W'!$A$14:$AG$500,10,FALSE))),"NA") -> NA | H31: =IFERROR((IF($D31="NA","NA",ROUND(VLOOKUP($A$3,'ALG-W'!$A$14:$AG$500,15,FALSE)*100,0)&"% ("&IF(VLOOKUP($A$3,'ALG-W'!$A$14:$AG$500,13,FALSE)="",0,VLOOKUP($A$3,'ALG-W'!$A$14:$AG$500,13,FALSE))&")")),"NA") -> 0% (NA) | I31: =IFERROR((IF($D31="NA","NA",VLOOKUP($A$3,'ALG-W'!$A$14:$AG$500,16,FALSE))),"NA") -> NA | J31: =IFERROR((IF($D31="NA","NA",ROUND(VLOOKUP($A$3,'ALG-W'!$A$14:$AG$500,21,FALSE)*100,0)&"% ("&IF(VLOOKUP($A$3,'ALG-W'!$A$14:$AG$500,19,FALSE)="",0,VLOOKUP($A$3,'ALG-W'!$A$14:$AG$500,19,FALSE))&")")),"NA") -> 0% (0) | K31: =IFERROR((IF($D31="NA","NA",VLOOKUP($A$3,'ALG-W'!$A$14:$AG$500,22,FALSE))),"NA") -> 0 | L31: =IFERROR((IF($D31="NA","NA",ROUND(VLOOKUP($A$3,'ALG-W'!$A$14:$AG$500,27,FALSE)*100,0)&"% ("&IF(VLOOKUP($A$3,'ALG-W'!$A$14:$AG$500,25,FALSE)="",0,VLOOKUP($A$3,'ALG-W'!$A$14:$AG$500,25,FALSE))&")")),"NA") -> 0% (0)
A32: Black | B32: =IFERROR(VLOOKUP(TEXT($A$3,"0000"),'AYP11'!$B$861:$AU$1289,46,FALSE)," ") -> NA | C32: =IFERROR(VLOOKUP(TEXT($A$3,"0000"),MEM_B!$A$2:$O$500,13,FALSE),"NA") -> 26 | D32: =IFERROR((IF(OR(C32=0,C32="",C32="NA"),"NA",((IF(VLOOKUP($A$3,'ALG-B'!$A$14:$AG$500,3,FALSE)>=C32,"100% ("&VLOOKUP($A$3,'ALG-B'!$A$14:$AG$500,3,FALSE)&")",(ROUND((VLOOKUP($A$3,'ALG-B'!$A$14:$AG$500,3,FALSE)/C32*100),0))&"% ("&IF(VLOOKUP($A$3,'ALG-B'!$A$14:$AG$500,3,FALSE)="",0,VLOOKUP($A$3,'ALG-B'!$A$14:$AG$500,3,FALSE))&")"))))),"0% (0)") -> 42% (11) | E32: =IFERROR((IF($D32="NA","NA",VLOOKUP($A$3,'ALG-B'!$A$14:$AG$500,4,FALSE))),"NA") -> 15.5 | F32: =IFERROR((IF($D32="NA","NA",ROUND(VLOOKUP($A$3,'ALG-B'!$A$14:$AG$500,9,FALSE)*100,0)&"% ("&IF(VLOOKUP($A$3,'ALG-B'!$A$14:$AG$500,7,FALSE)="",0,VLOOKUP($A$3,'ALG-B'!$A$14:$AG$500,7,FALSE))&")")),"NA") -> 900% (15.5) | G32: =IFERROR((IF($D32="NA","NA",VLOOKUP($A$3,'ALG-B'!$A$14:$AG$500,10,FALSE))),"NA") -> NA | H32: =IFERROR((IF($D32="NA","NA",ROUND(VLOOKUP($A$3,'ALG-B'!$A$14:$AG$500,15,FALSE)*100,0)&"% ("&IF(VLOOKUP($A$3,'ALG-B'!$A$14:$AG$500,13,FALSE)="",0,VLOOKUP($A$3,'ALG-B'!$A$14:$AG$500,13,FALSE))&")")),"NA") -> 0% (NA) | I32: =IFERROR((IF($D32="NA","NA",VLOOKUP($A$3,'ALG-B'!$A$14:$AG$500,16,FALSE))),"NA") -> NA | J32: =IFERROR((IF($D32="NA","NA",ROUND(VLOOKUP($A$3,'ALG-B'!$A$14:$AG$500,21,FALSE)*100,0)&"% ("&IF(VLOOKUP($A$3,'ALG-B'!$A$14:$AG$500,19,FALSE)="",0,VLOOKUP($A$3,'ALG-B'!$A$14:$AG$500,19,FALSE))&")")),"NA") -> 0% (0) | K32: =IFERROR((IF($D32="NA","NA",VLOOKUP($A$3,'ALG-B'!$A$14:$AG$500,22,FALSE))),"NA") -> 0 | L32: =IFERROR((IF($D32="NA","NA",ROUND(VLOOKUP($A$3,'ALG-B'!$A$14:$AG$500,27,FALSE)*100,0)&"% ("&IF(VLOOKUP($A$3,'ALG-B'!$A$14:$AG$500,25,FALSE)="",0,VLOOKUP($A$3,'ALG-B'!$A$14:$AG$500,25,FALSE))&")")),"NA") -> 0% (0)
A33: Hispanic | B33: =IFERROR(VLOOKUP(TEXT($A$3,"0000"),'AYP11'!$B$2148:$AU$2576,46,FALSE)," ") -> Yes-AB | C33: =IFERROR(VLOOKUP(TEXT($A$3,"0000"),MEM_H!$A$2:$O$500,13,FALSE),"NA") -> 957 | D33: =IFERROR((IF(OR(C33=0,C33="",C33="NA"),"NA",((IF(VLOOKUP($A$3,'ALG-H'!$A$14:$AG$500,3,FALSE)>=C33,"100% ("&VLOOKUP($A$3,'ALG-H'!$A$14:$AG$500,3,FALSE)&")",(ROUND((VLOOKUP($A$3,'ALG-H'!$A$14:$AG$500,3,FALSE)/C33*100),0))&"% ("&IF(VLOOKUP($A$3,'ALG-H'!$A$14:$AG$500,3,FALSE)="",0,VLOOKUP($A$3,'ALG-H'!$A$14:$AG$500,3,FALSE))&")"))))),"0% (0)") -> 69% (657) | E33: =IFERROR((IF($D33="NA","NA",VLOOKUP($A$3,'ALG-H'!$A$14:$AG$500,4,FALSE))),"NA") -> 14.2 | F33: =IFERROR((IF($D33="NA","NA",ROUND(VLOOKUP($A$3,'ALG-H'!$A$14:$AG$500,9,FALSE)*100,0)&"% ("&IF(VLOOKUP($A$3,'ALG-H'!$A$14:$AG$500,7,FALSE)="",0,VLOOKUP($A$3,'ALG-H'!$A$14:$AG$500,7,FALSE))&")")),"NA") -> 200% (14.2) | G33: =IFERROR((IF($D33="NA","NA",VLOOKUP($A$3,'ALG-H'!$A$14:$AG$500,10,FALSE))),"NA") -> NA | H33: =IFERROR((IF($D33="NA","NA",ROUND(VLOOKUP($A$3,'ALG-H'!$A$14:$AG$500,15,FALSE)*100,0)&"% ("&IF(VLOOKUP($A$3,'ALG-H'!$A$14:$AG$500,13,FALSE)="",0,VLOOKUP($A$3,'ALG-H'!$A$14:$AG$500,13,FALSE))&")")),"NA") -> 0% (NA) | I33: =IFERROR((IF($D33="NA","NA",VLOOKUP($A$3,'ALG-H'!$A$14:$AG$500,16,FALSE))),"NA") -> NA | J33: =IFERROR((IF($D33="NA","NA",ROUND(VLOOKUP($A$3,'ALG-H'!$A$14:$AG$500,21,FALSE)*100,0)&"% ("&IF(VLOOKUP($A$3,'ALG-H'!$A$14:$AG$500,19,FALSE)="",0,VLOOKUP($A$3,'ALG-H'!$A$14:$AG$500,19,FALSE))&")")),"NA") -> 0% (0) | K33: =IFERROR((IF($D33="NA","NA",VLOOKUP($A$3,'ALG-H'!$A$14:$AG$500,22,FALSE))),"NA") -> 0 | L33: =IFERROR((IF($D33="NA","NA",ROUND(VLOOKUP($A$3,'ALG-H'!$A$14:$AG$500,27,FALSE)*100,0)&"% ("&IF(VLOOKUP($A$3,'ALG-H'!$A$14:$AG$500,25,FALSE)="",0,VLOOKUP($A$3,'ALG-H'!$A$14:$AG$500,25,FALSE))&")")),"NA") -> 0% (0)
A34: Asian | B34: =IFERROR(VLOOKUP(TEXT($A$3,"0000"),'AYP11'!$B$432:$AU$860,46,FALSE)," ") -> NA | C34: =IFERROR(VLOOKUP(TEXT($A$3,"0000"),MEM_A!$A$2:$O$500,13,FALSE),"NA") -> 28 | D34: =IFERROR((IF(OR(C34=0,C34="",C34="NA"),"NA",((IF(VLOOKUP($A$3,'ALG-A'!$A$14:$AG$500,3,FALSE)>=C34,"100% ("&VLOOKUP($A$3,'ALG-A'!$A$14:$AG$500,3,FALSE)&")",(ROUND((VLOOKUP($A$3,'ALG-A'!$A$14:$AG$500,3,FALSE)/C34*100),0))&"% ("&IF(VLOOKUP($A$3,'ALG-A'!$A$14:$AG$500,3,FALSE)="",0,VLOOKUP($A$3,'ALG-A'!$A$14:$AG$500,3,FALSE))&")"))))),"0% (0)") -> 29% (8) | E34: =IFERROR((IF($D34="NA","NA",VLOOKUP($A$3,'ALG-A'!$A$14:$AG$500,4,FALSE))),"NA") -> 21.3 | F34: =IFERROR((IF($D34="NA","NA",ROUND(VLOOKUP($A$3,'ALG-A'!$A$14:$AG$500,9,FALSE)*100,0)&"% ("&IF(VLOOKUP($A$3,'ALG-A'!$A$14:$AG$500,7,FALSE)="",0,VLOOKUP($A$3,'ALG-A'!$A$14:$AG$500,7,FALSE))&")")),"NA") -> 2500% (21.3) | G34: =IFERROR((IF($D34="NA","NA",VLOOKUP($A$3,'ALG-A'!$A$14:$AG$500,10,FALSE))),"NA") -> NA | H34: =IFERROR((IF($D34="NA","NA",ROUND(VLOOKUP($A$3,'ALG-A'!$A$14:$AG$500,15,FALSE)*100,0)&"% ("&IF(VLOOKUP($A$3,'ALG-A'!$A$14:$AG$500,13,FALSE)="",0,VLOOKUP($A$3,'ALG-A'!$A$14:$AG$500,13,FALSE))&")")),"NA") -> 0% (NA) | I34: =IFERROR((IF($D34="NA","NA",VLOOKUP($A$3,'ALG-A'!$A$14:$AG$500,16,FALSE))),"NA") -> NA | J34: =IFERROR((IF($D34="NA","NA",ROUND(VLOOKUP($A$3,'ALG-A'!$A$14:$AG$500,21,FALSE)*100,0)&"% ("&IF(VLOOKUP($A$3,'ALG-A'!$A$14:$AG$500,19,FALSE)="",0,VLOOKUP($A$3,'ALG-A'!$A$14:$AG$500,19,FALSE))&")")),"NA") -> 0% (0) | K34: =IFERROR((IF($D34="NA","NA",VLOOKUP($A$3,'ALG-A'!$A$14:$AG$500,22,FALSE))),"NA") -> 0 | L34: =IFERROR((IF($D34="NA","NA",ROUND(VLOOKUP($A$3,'ALG-A'!$A$14:$AG$500,27,FALSE)*100,0)&"% ("&IF(VLOOKUP($A$3,'ALG-A'!$A$14:$AG$500,25,FALSE)="",0,VLOOKUP($A$3,'ALG-A'!$A$14:$AG$500,25,FALSE))&")")),"NA") -> 0% (0)
A35: Am. Indian | B35: =IFERROR(VLOOKUP(TEXT($A$3,"0000"),'AYP11'!$B$3:$AU$431,46,FALSE)," ") -> NA | C35: =IFERROR(VLOOKUP(TEXT($A$3,"0000"),MEM_I!$A$2:$O$500,13,FALSE),"NA") -> 1 | D35: =IFERROR((IF(OR(C35=0,C35="",C35="NA"),"NA",((IF(VLOOKUP($A$3,'ALG-I'!$A$14:$AG$500,3,FALSE)>=C35,"100% ("&VLOOKUP($A$3,'ALG-I'!$A$14:$AG$500,3,FALSE)&")",(ROUND((VLOOKUP($A$3,'ALG-I'!$A$14:$AG$500,3,FALSE)/C35*100),0))&"% ("&IF(VLOOKUP($A$3,'ALG-I'!$A$14:$AG$500,3,FALSE)="",0,VLOOKUP($A$3,'ALG-I'!$A$14:$AG$500,3,FALSE))&")"))))),"0% (0)") -> 0% (0) | E35: =IFERROR((IF($D35="NA","NA",VLOOKUP($A$3,'ALG-I'!$A$14:$AG$500,4,FALSE))),"NA") -> NA | F35: =IFERROR((IF($D35="NA","NA",ROUND(VLOOKUP($A$3,'ALG-I'!$A$14:$AG$500,9,FALSE)*100,0)&"% ("&IF(VLOOKUP($A$3,'ALG-I'!$A$14:$AG$500,7,FALSE)="",0,VLOOKUP($A$3,'ALG-I'!$A$14:$AG$500,7,FALSE))&")")),"NA") -> NA | G35: =IFERROR((IF($D35="NA","NA",VLOOKUP($A$3,'ALG-I'!$A$14:$AG$500,10,FALSE))),"NA") -> NA | H35: =IFERROR((IF($D35="NA","NA",ROUND(VLOOKUP($A$3,'ALG-I'!$A$14:$AG$500,15,FALSE)*100,0)&"% ("&IF(VLOOKUP($A$3,'ALG-I'!$A$14:$AG$500,13,FALSE)="",0,VLOOKUP($A$3,'ALG-I'!$A$14:$AG$500,13,FALSE))&")")),"NA") -> NA | I35: =IFERROR((IF($D35="NA","NA",VLOOKUP($A$3,'ALG-I'!$A$14:$AG$500,16,FALSE))),"NA") -> NA | J35: =IFERROR((IF($D35="NA","NA",ROUND(VLOOKUP($A$3,'ALG-I'!$A$14:$AG$500,21,FALSE)*100,0)&"% ("&IF(VLOOKUP($A$3,'ALG-I'!$A$14:$AG$500,19,FALSE)="",0,VLOOKUP($A$3,'ALG-I'!$A$14:$AG$500,19,FALSE))&")")),"NA") -> 0% (0) | K35: =IFERROR((IF($D35="NA","NA",VLOOKUP($A$3,'ALG-I'!$A$14:$AG$500,22,FALSE))),"NA") -> 0 | L35: =IFERROR((IF($D35="NA","NA",ROUND(VLOOKUP($A$3,'ALG-I'!$A$14:$AG$500,27,FALSE)*100,0)&"% ("&IF(VLOOKUP($A$3,'ALG-I'!$A$14:$AG$500,25,FALSE)="",0,VLOOKUP($A$3,'ALG-I'!$A$14:$AG$500,25,FALSE))&")")),"NA") -> 0% (0)
A36: ED | B36: =IFERROR(VLOOKUP(TEXT($A$3,"0000"),'AYP11'!$B$1290:$AU$1718,46,FALSE)," ") -> Yes-AB | C36: =IFERROR(VLOOKUP(TEXT($A$3,"0000"),MEM_ED!$A$2:$O$500,13,FALSE),"NA") -> 654 | D36: =IFERROR((IF(OR(C36=0,C36="",C36="NA"),"NA",((IF(VLOOKUP($A$3,'ALG-ED'!$A$14:$AG$500,3,FALSE)>=C36,"100% ("&VLOOKUP($A$3,'ALG-ED'!$A$14:$AG$500,3,FALSE)&")",(ROUND((VLOOKUP($A$3,'ALG-ED'!$A$14:$AG$500,3,FALSE)/C36*100),0))&"% ("&IF(VLOOKUP($A$3,'ALG-ED'!$A$14:$AG$500,3,FALSE)="",0,VLOOKUP($A$3,'ALG-ED'!$A$14:$AG$500,3,FALSE))&")"))))),"0% (0)") -> 72% (472) | E36: =IFERROR((IF($D36="NA","NA",VLOOKUP($A$3,'ALG-ED'!$A$14:$AG$500,4,FALSE))),"NA") -> 14.2 | F36: =IFERROR((IF($D36="NA","NA",ROUND(VLOOKUP($A$3,'ALG-ED'!$A$14:$AG$500,9,FALSE)*100,0)&"% ("&IF(VLOOKUP($A$3,'ALG-ED'!$A$14:$AG$500,7,FALSE)="",0,VLOOKUP($A$3,'ALG-ED'!$A$14:$AG$500,7,FALSE))&")")),"NA") -> 200% (14.2) | G36: =IFERROR((IF($D36="NA","NA",VLOOKUP($A$3,'ALG-ED'!$A$14:$AG$500,10,FALSE))),"NA") -> NA | H36: =IFERROR((IF($D36="NA","NA",ROUND(VLOOKUP($A$3,'ALG-ED'!$A$14:$AG$500,15,FALSE)*100,0)&"% ("&IF(VLOOKUP($A$3,'ALG-ED'!$A$14:$AG$500,13,FALSE)="",0,VLOOKUP($A$3,'ALG-ED'!$A$14:$AG$500,13,FALSE))&")")),"NA") -> 0% (NA) | I36: =IFERROR((IF($D36="NA","NA",VLOOKUP($A$3,'ALG-ED'!$A$14:$AG$500,16,FALSE))),"NA") -> NA | J36: =IFERROR((IF($D36="NA","NA",ROUND(VLOOKUP($A$3,'ALG-ED'!$A$14:$AG$500,21,FALSE)*100,0)&"% ("&IF(VLOOKUP($A$3,'ALG-ED'!$A$14:$AG$500,19,FALSE)="",0,VLOOKUP($A$3,'ALG-ED'!$A$14:$AG$500,19,FALSE))&")")),"NA") -> 0% (0) | K36: =IFERROR((IF($D36="NA","NA",VLOOKUP($A$3,'ALG-ED'!$A$14:$AG$500,22,FALSE))),"NA") -> 0 | L36: =IFERROR((IF($D36="NA","NA",ROUND(VLOOKUP($A$3,'ALG-ED'!$A$14:$AG$500,27,FALSE)*100,0)&"% ("&IF(VLOOKUP($A$3,'ALG-ED'!$A$14:$AG$500,25,FALSE)="",0,VLOOKUP($A$3,'ALG-ED'!$A$14:$AG$500,25,FALSE))&")")),"NA") -> 0% (0)
A37: ELL | B37: =IFERROR(VLOOKUP(TEXT($A$3,"0000"),'AYP11'!$B$1719:$AU$2147,46,FALSE)," ") -> NA | C37: =IFERROR(VLOOKUP(TEXT($A$3,"0000"),MEM_ELL!$A$2:$O$500,13,FALSE),"NA") -> 98 | D37: =IFERROR((IF(OR(C37=0,C37="",C37="NA"),"NA",((IF(VLOOKUP($A$3,'ALG-ELL'!$A$14:$AG$500,3,FALSE)>=C37,"100% ("&VLOOKUP($A$3,'ALG-ELL'!$A$14:$AG$500,3,FALSE)&")",(ROUND((VLOOKUP($A$3,'ALG-ELL'!$A$14:$AG$500,3,FALSE)/C37*100),0))&"% ("&IF(VLOOKUP($A$3,'ALG-ELL'!$A$14:$AG$500,3,FALSE)="",0,VLOOKUP($A$3,'ALG-ELL'!$A$14:$AG$500,3,FALSE))&")"))))),"0% (0)") -> 96% (94) | E37: =IFERROR((IF($D37="NA","NA",VLOOKUP($A$3,'ALG-ELL'!$A$14:$AG$500,4,FALSE))),"NA") -> 12.91489362 | F37: =IFERROR((IF($D37="NA","NA",ROUND(VLOOKUP($A$3,'ALG-ELL'!$A$14:$AG$500,9,FALSE)*100,0)&"% ("&IF(VLOOKUP($A$3,'ALG-ELL'!$A$14:$AG$500,7,FALSE)="",0,VLOOKUP($A$3,'ALG-ELL'!$A$14:$AG$500,7,FALSE))&")")),"NA") -> 200% (12.9148936170213) | G37: =IFERROR((IF($D37="NA","NA",VLOOKUP($A$3,'ALG-ELL'!$A$14:$AG$500,10,FALSE))),"NA") -> 0 | H37: =IFERROR((IF($D37="NA","NA",ROUND(VLOOKUP($A$3,'ALG-ELL'!$A$14:$AG$500,15,FALSE)*100,0)&"% ("&IF(VLOOKUP($A$3,'ALG-ELL'!$A$14:$AG$500,13,FALSE)="",0,VLOOKUP($A$3,'ALG-ELL'!$A$14:$AG$500,13,FALSE))&")")),"NA") -> 0% (0) | I37: =IFERROR((IF($D37="NA","NA",VLOOKUP($A$3,'ALG-ELL'!$A$14:$AG$500,16,FALSE))),"NA") -> 0 | J37: =IFERROR((IF($D37="NA","NA",ROUND(VLOOKUP($A$3,'ALG-ELL'!$A$14:$AG$500,21,FALSE)*100,0)&"% ("&IF(VLOOKUP($A$3,'ALG-ELL'!$A$14:$AG$500,19,FALSE)="",0,VLOOKUP($A$3,'ALG-ELL'!$A$14:$AG$500,19,FALSE))&")")),"NA") -> 0% (0) | K37: =IFERROR((IF($D37="NA","NA",VLOOKUP($A$3,'ALG-ELL'!$A$14:$AG$500,22,FALSE))),"NA") -> 0 | L37: =IFERROR((IF($D37="NA","NA",ROUND(VLOOKUP($A$3,'ALG-ELL'!$A$14:$AG$500,27,FALSE)*100,0)&"% ("&IF(VLOOKUP($A$3,'ALG-ELL'!$A$14:$AG$500,25,FALSE)="",0,VLOOKUP($A$3,'ALG-ELL'!$A$14:$AG$500,25,FALSE))&")")),"NA") -> 0% (0)
A38: SWD | B38: =IFERROR(VLOOKUP(TEXT($A$3,"0000"),'AYP11'!$B$2577:$AU$3005,46,FALSE)," ") -> NA | C38: =IFERROR(VLOOKUP(TEXT($A$3,"0000"),MEM_SWD!$A$2:$O$500,13,FALSE),"NA") -> 117 | D38: =IFERROR((IF(OR(C38=0,C38="",C38="NA"),"NA",((IF(VLOOKUP($A$3,'ALG-SWD'!$A$14:$AG$500,3,FALSE)>=C38,"100% ("&VLOOKUP($A$3,'ALG-SWD'!$A$14:$AG$500,3,FALSE)&")",(ROUND((VLOOKUP($A$3,'ALG-SWD'!$A$14:$AG$500,3,FALSE)/C38*100),0))&"% ("&IF(VLOOKUP($A$3,'ALG-SWD'!$A$14:$AG$500,3,FALSE)="",0,VLOOKUP($A$3,'ALG-SWD'!$A$14:$AG$500,3,FALSE))&")"))))),"0% (0)") -> 99% (116) | E38: =IFERROR((IF($D38="NA","NA",VLOOKUP($A$3,'ALG-SWD'!$A$14:$AG$500,4,FALSE))),"NA") -> 11.4 | F38: =IFERROR((IF($D38="NA","NA",ROUND(VLOOKUP($A$3,'ALG-SWD'!$A$14:$AG$500,9,FALSE)*100,0)&"% ("&IF(VLOOKUP($A$3,'ALG-SWD'!$A$14:$AG$500,7,FALSE)="",0,VLOOKUP($A$3,'ALG-SWD'!$A$14:$AG$500,7,FALSE))&")")),"NA") -> 0% (11.4) | G38: =IFERROR((IF($D38="NA","NA",VLOOKUP($A$3,'ALG-SWD'!$A$14:$AG$500,10,FALSE))),"NA") -> NA | H38: =IFERROR((IF($D38="NA","NA",ROUND(VLOOKUP($A$3,'ALG-SWD'!$A$14:$AG$500,15,FALSE)*100,0)&"% ("&IF(VLOOKUP($A$3,'ALG-SWD'!$A$14:$AG$500,13,FALSE)="",0,VLOOKUP($A$3,'ALG-SWD'!$A$14:$AG$500,13,FALSE))&")")),"NA") -> 0% (NA) | I38: =IFERROR((IF($D38="NA","NA",VLOOKUP($A$3,'ALG-SWD'!$A$14:$AG$500,16,FALSE))),"NA") -> NA | J38: =IFERROR((IF($D38="NA","NA",ROUND(VLOOKUP($A$3,'ALG-SWD'!$A$14:$AG$500,21,FALSE)*100,0)&"% ("&IF(VLOOKUP($A$3,'ALG-SWD'!$A$14:$AG$500,19,FALSE)="",0,VLOOKUP($A$3,'ALG-SWD'!$A$14:$AG$500,19,FALSE))&")")),"NA") -> 0% (0) | K38: =IFERROR((IF($D38="NA","NA",VLOOKUP($A$3,'ALG-SWD'!$A$14:$AG$500,22,FALSE))),"NA") -> 0 | L38: =IFERROR((IF($D38="NA","NA",ROUND(VLOOKUP($A$3,'ALG-SWD'!$A$14:$AG$500,27,FALSE)*100,0)&"% ("&IF(VLOOKUP($A$3,'ALG-SWD'!$A$14:$AG$500,25,FALSE)="",0,VLOOKUP($A$3,'ALG-SWD'!$A$14:$AG$500,25,FALSE))&")")),"NA") -> 0% (0)

Sheet Reading
A2: Click here to return to the school and sheet selection interface
A3: ='Select School'!B3 -> 7121
A4: =TEXT(A3,"0000")&"-"&VLOOKUP(A3,SchList!$A$2:$B$504,2,FALSE) -> 7121-JOHN A FERGUSON SENIOR HIGH
A5: Reading - Grade 9 | R5: READING
A6: Level of Proficiency at 70% or above | B6: 2011 AYP Met** | C6: Total # of Students | D6: % of Students Tested | E6: Overall [50] | G6: Vocabulary [12] | I6: Reading Application [19] | K6: Literary Analysis Fiction/Nonfiction [10] | M6: Informational Text/ Research Process [9] | R6: Grade 9 Test | T6: Overall | W6: Number Sense | Z6: Measurement | AC6: Geometry | AF6: Algrebraic Thinking | AI6: Data Analysis
E7: Average Score | F7: % Proficient | G7: Average Score | H7: % Proficient | I7: Average Score | J7: % Proficient | K7: Average Score | L7: % Proficient | M7: Average Score | N7: % Proficient | R7: Number Tested | T7: AVG Combined | U7: % Prof Combined | V7: Number Prof Combined | W7: AVG Combined | X7: % Prof Combined | Y7: Number Prof Combined | Z7: AVG Combined | AA7: % Prof Combined | AB7: Number Prof Combined | AC7: AVG Combined | AD7: % Prof Combined | AE7: Number Prof Combined | AF7: AVG Combined | AG7: % Prof Combined | AH7: Number Prof Combined | AI7: AVG Combined | AJ7: % Prof Combined | AK7: Number Prof Combined
A8: All students | B8: =IFERROR(VLOOKUP(TEXT($A$3,"0000"),'AYP11'!$B$2957:$AU$3378,36,FALSE),"NA") -> NO | C8: =IFERROR(VLOOKUP(TEXT($A$3,"0000"),Mem_All!$A$2:$S$500,13,FALSE),0) -> 1087 | D8: =IFERROR((IF(OR(C8=0,C8="",C8="NA"),"NA",((IF(VLOOKUP($A$3,'G9-RALL'!$A$6:$AM$500,3,FALSE)>=C8,"100% ("&VLOOKUP($A$3,'G9-RALL'!$A$6:$AM$500,3,FALSE)&")",(ROUND((VLOOKUP($A$3,'G9-RALL'!$A$6:$AM$500,3,FALSE)/C8*100),0))&"% ("&IF(VLOOKUP($A$3,'G9-RALL'!$A$6:$AM$500,3,FALSE)="",0,VLOOKUP($A$3,'G9-RALL'!$A$6:$AM$500,3,FALSE))&")"))))),"0% (0)") -> 92% (1003) | E8: =IFERROR((IF($D8="NA","NA",VLOOKUP($A$3,'G9-RALL'!$A$6:$AM$500,4,FALSE))),"NA") -> 31.8 | F8: =IFERROR((IF($D8="NA","NA",ROUND(VLOOKUP($A$3,'G9-RALL'!$A$6:$AM$500,6,FALSE),0)&"% ("&IF(VLOOKUP($A$3,'G9-RALL'!$A$6:$AM$500,5,FALSE)="",0,VLOOKUP($A$3,'G9-RALL'!$A$6:$AM$500,5,FALSE))&")")),"NA") -> 48% (485) | G8: =IFERROR((IF($D8="NA","NA",VLOOKUP($A$3,'G9-RALL'!$A$6:$AM$500,7,FALSE))),"NA") -> 8.3 | H8: =IFERROR((IF($D8="NA","NA",ROUND(VLOOKUP($A$3,'G9-RALL'!$A$6:$AM$500,9,FALSE),0)&"% ("&IF(VLOOKUP($A$3,'G9-RALL'!$A$6:$AM$500,8,FALSE)="",0,VLOOKUP($A$3,'G9-RALL'!$A$6:$AM$500,8,FALSE))&")")),"NA") -> 54% (537) | I8: =IFERROR((IF($D8="NA","NA",VLOOKUP($A$3,'G9-RALL'!$A$6:$AM$500,10,FALSE))),"NA") -> 13.3 | J8: =IFERROR((IF($D8="NA","NA",ROUND(VLOOKUP($A$3,'G9-RALL'!$A$6:$AM$500,12,FALSE),0)&"% ("&IF(VLOOKUP($A$3,'G9-RALL'!$A$6:$AM$500,11,FALSE)="",0,VLOOKUP($A$3,'G9-RALL'!$A$6:$AM$500,11,FALSE))&")")),"NA") -> 57% (573) | K8: =IFERROR((IF($D8="NA","NA",VLOOKUP($A$3,'G9-RALL'!$A$6:$AM$500,13,FALSE))),"NA") -> 5.9 | L8: =IFERROR((IF($D8="NA","NA",ROUND(VLOOKUP($A$3,'G9-RALL'!$A$6:$AM$500,15,FALSE),0)&"% ("&IF(VLOOKUP($A$3,'G9-RALL'!$A$6:$AM$500,14,FALSE)="",0,VLOOKUP($A$3,'G9-RALL'!$A$6:$AM$500,14,FALSE))&")")),"NA") -> 45% (454) | M8: =IFERROR((IF($D8="NA","NA",VLOOKUP($A$3,'G9-RALL'!$A$6:$AM$500,16,FALSE))),"NA") -> 4.4 | N8: =IFERROR((IF($D8="NA","NA",ROUND(VLOOKUP($A$3,'G9-RALL'!$A$6:$AM$500,18,FALSE),0)&"% ("&IF(VLOOKUP($A$3,'G9-RALL'!$A$6:$AM$500,17,FALSE)="",0,VLOOKUP($A$3,'G9-RALL'!$A$6:$AM$500,17,FALSE))&")")),"NA") -> 11% (111) | R8: =IFERROR(VLOOKUP($A$3,'G9-RALL'!$A$6:$BX$500,3,FALSE),"not tested") -> 1003 | T8: =SUM(VLOOKUP($A$3,'GEO-ALL'!$A$14:$AA$500,4,FALSE)*$R8,VLOOKUP($A$3,'GEO-ALL'!$A$14:$AA$500,41,FALSE)*$S8)/SUM($R8,$S8) ->  | U8: =SUM(VLOOKUP($A$3,'GEO-ALL'!$A$14:$AA$500,7,FALSE),VLOOKUP($A$3,'GEO-ALL'!$A$14:$AA$500,44,FALSE))/SUM($R8:$S8)*100 ->  | V8: =SUM(VLOOKUP($A$3,'GEO-ALL'!$A$14:$AA$500,7,FALSE),VLOOKUP($A$3,'GEO-ALL'!$A$14:$AA$500,44,FALSE)) ->  | W8: =SUM(VLOOKUP($A$3,'GEO-ALL'!$A$14:$AA$500,10,FALSE)*$R8,VLOOKUP($A$3,'GEO-ALL'!$A$14:$AA$500,47,FALSE)*$S8)/SUM($R8,$S8) ->  | X8: =SUM(VLOOKUP($A$3,'GEO-ALL'!$A$14:$AA$500,8,FALSE),VLOOKUP($A$3,'GEO-ALL'!$A$14:$AA$500,50,FALSE))/SUM($R8:$S8)*100 ->  | Y8: =SUM(VLOOKUP($A$3,'GEO-ALL'!$A$14:$AA$500,8,FALSE),VLOOKUP($A$3,'GEO-ALL'!$A$14:$AA$500,50,FALSE)) ->  | Z8: =SUM(VLOOKUP($A$3,'GEO-ALL'!$A$14:$AA$500,16,FALSE)*$R8,VLOOKUP($A$3,'GEO-ALL'!$A$14:$AA$500,53,FALSE)*$S8)/SUM($R8,$S8) ->  | AA8: =SUM(VLOOKUP($A$3,'GEO-ALL'!$A$14:$AA$500,19,FALSE),VLOOKUP($A$3,'GEO-ALL'!$A$14:$AA$500,56,FALSE))/SUM($R8:$S8)*100 ->  | AB8: =SUM(VLOOKUP($A$3,'GEO-ALL'!$A$14:$AA$500,19,FALSE),VLOOKUP($A$3,'GEO-ALL'!$A$14:$AA$500,56,FALSE)) ->  | AC8: =SUM(VLOOKUP($A$3,'GEO-ALL'!$A$14:$AA$500,22,FALSE)*$R8,VLOOKUP($A$3,'GEO-ALL'!$A$14:$AA$500,59,FALSE)*$S8)/SUM($R8,$S8) ->  | AD8: =SUM(VLOOKUP($A$3,'GEO-ALL'!$A$14:$AA$500,25,FALSE),VLOOKUP($A$3,'GEO-ALL'!$A$14:$AA$500,62,FALSE))/SUM($R8:$S8)*100 ->  | AE8: =SUM(VLOOKUP($A$3,'GEO-ALL'!$A$14:$AA$500,25,FALSE),VLOOKUP($A$3,'GEO-ALL'!$A$14:$AA$500,62,FALSE)) ->  | AF8: =SUM(VLOOKUP($A$3,'GEO-ALL'!$A$14:$AA$500,28,FALSE)*$R8,VLOOKUP($A$3,'GEO-ALL'!$A$14:$AA$500,65,FALSE)*$S8)/SUM($R8,$S8) ->  | AG8: =SUM(VLOOKUP($A$3,'GEO-ALL'!$A$14:$AA$500,31,FALSE),VLOOKUP($A$3,'GEO-ALL'!$A$14:$AA$500,68,FALSE))/SUM($R8:$S8)*100 ->  | AH8: =SUM(VLOOKUP($A$3,'GEO-ALL'!$A$14:$AA$500,31,FALSE),VLOOKUP($A$3,'GEO-ALL'!$A$14:$AA$500,68,FALSE)) ->  | AI8: =SUM(VLOOKUP($A$3,'GEO-ALL'!$A$14:$AA$500,34,FALSE)*$R8,VLOOKUP($A$3,'GEO-ALL'!$A$14:$AA$500,71,FALSE)*$S8)/SUM($R8,$S8) ->  | AJ8: =SUM(VLOOKUP($A$3,'GEO-ALL'!$A$14:$AA$500,37,FALSE),VLOOKUP($A$3,'GEO-ALL'!$A$14:$AA$500,74,FALSE))/SUM($R8:$S8)*100 ->  | AK8: =SUM(VLOOKUP($A$3,'GEO-ALL'!$A$14:$AA$500,37,FALSE),VLOOKUP($A$3,'GEO-ALL'!$A$14:$AA$500,74,FALSE)) -> 
A9: FCAT Level 1 | C9: =IFERROR(VLOOKUP(TEXT($A$3,"0000"),MEM_RL1!$A$2:$S$500,10,FALSE),0) -> 124 | D9: =IFERROR((IF(OR(C9=0,C9="",C9="NA"),"NA",((IF(VLOOKUP($A$3,'G9-RL1'!$A$6:$AM$506,3,FALSE)>=C9,"100% ("&VLOOKUP($A$3,'G9-RL1'!$A$6:$AM$506,3,FALSE)&")",(ROUND((VLOOKUP($A$3,'G9-RL1'!$A$6:$AM$506,3,FALSE)/C9*100),0))&"% ("&IF(VLOOKUP($A$3,'G9-RL1'!$A$6:$AM$506,3,FALSE)="",0,VLOOKUP($A$3,'G9-RL1'!$A$6:$AM$506,3,FALSE))&")"))))),"0% (0)") -> 84% (104) | E9: =IFERROR((IF($D9="NA","NA",VLOOKUP($A$3,'G9-RL1'!$A$6:$AM$506,4,FALSE))),"NA") -> 20.7 | F9: =IFERROR((IF($D9="NA","NA",ROUND(VLOOKUP($A$3,'G9-RL1'!$A$6:$AM$506,6,FALSE),0)&"% ("&IF(VLOOKUP($A$3,'G9-RL1'!$A$6:$AM$506,5,FALSE)="",0,VLOOKUP($A$3,'G9-RL1'!$A$6:$AM$506,5,FALSE))&")")),"NA") -> 7% (7) | G9: =IFERROR((IF($D9="NA","NA",VLOOKUP($A$3,'G9-RL1'!$A$6:$AM$506,7,FALSE))),"NA") -> 5.5 | H9: =IFERROR((IF($D9="NA","NA",ROUND(VLOOKUP($A$3,'G9-RL1'!$A$6:$AM$506,9,FALSE),0)&"% ("&IF(VLOOKUP($A$3,'G9-RL1'!$A$6:$AM$506,8,FALSE)="",0,VLOOKUP($A$3,'G9-RL1'!$A$6:$AM$506,8,FALSE))&")")),"NA") -> 16% (17) | I9: =IFERROR((IF($D9="NA","NA",VLOOKUP($A$3,'G9-RL1'!$A$6:$AM$506,10,FALSE))),"NA") -> 8.6 | J9: =IFERROR((IF($D9="NA","NA",ROUND(VLOOKUP($A$3,'G9-RL1'!$A$6:$AM$506,12,FALSE),0)&"% ("&IF(VLOOKUP($A$3,'G9-RL1'!$A$6:$AM$506,11,FALSE)="",0,VLOOKUP($A$3,'G9-RL1'!$A$6:$AM$506,11,FALSE))&")")),"NA") -> 12% (12) | K9: =IFERROR((IF($D9="NA","NA",VLOOKUP($A$3,'G9-RL1'!$A$6:$AM$506,13,FALSE))),"NA") -> 3.5 | L9: =IFERROR((IF($D9="NA","NA",ROUND(VLOOKUP($A$3,'G9-RL1'!$A$6:$AM$506,15,FALSE),0)&"% ("&IF(VLOOKUP($A$3,'G9-RL1'!$A$6:$AM$506,14,FALSE)="",0,VLOOKUP($A$3,'G9-RL1'!$A$6:$AM$506,14,FALSE))&")")),"NA") -> 6% (6) | M9: =IFERROR((IF($D9="NA","NA",VLOOKUP($A$3,'G9-RL1'!$A$6:$AM$506,16,FALSE))),"NA") -> 3.1 | N9: =IFERROR((IF($D9="NA","NA",ROUND(VLOOKUP($A$3,'G9-RL1'!$A$6:$AM$506,18,FALSE),0)&"% ("&IF(VLOOKUP($A$3,'G9-RL1'!$A$6:$AM$506,17,FALSE)="",0,VLOOKUP($A$3,'G9-RL1'!$A$6:$AM$506,17,FALSE))&")")),"NA") -> 3% (3) | R9: =IFERROR(VLOOKUP($A$3,'G9-RL1'!$A$6:$BX$506,3,FALSE),"not tested") -> 104 | T9: =SUM(VLOOKUP($A$3,'GEO-L1'!$A$14:$BX$500,4,FALSE)*$R9,VLOOKUP($A$3,'GEO-L1'!$A$14:$BX$500,41,FALSE)*$S9)/SUM($R9,$S9) -> 13.69999981 | U9: =SUM(VLOOKUP($A$3,'GEO-L1'!$A$14:$BX$500,7,FALSE),VLOOKUP($A$3,'GEO-L1'!$A$14:$BX$500,44,FALSE))/SUM($R9:$S9)*100 -> 0.9615384615 | V9: =SUM(VLOOKUP($A$3,'GEO-L1'!$A$14:$BX$500,7,FALSE),VLOOKUP($A$3,'GEO-L1'!$A$14:$BX$500,44,FALSE)) -> 1 | W9: =SUM(VLOOKUP($A$3,'GEO-L1'!$A$14:$BX$500,10,FALSE)*$R9,VLOOKUP($A$3,'GEO-L1'!$A$14:$BX$500,47,FALSE)*$S9)/SUM($R9,$S9) -> 13.69999981 | X9: =SUM(VLOOKUP($A$3,'GEO-L1'!$A$14:$BX$500,8,FALSE),VLOOKUP($A$3,'GEO-L1'!$A$14:$BX$500,50,FALSE))/SUM($R9:$S9)*100 -> 0.94375 | Y9: =SUM(VLOOKUP($A$3,'GEO-L1'!$A$14:$BX$500,8,FALSE),VLOOKUP($A$3,'GEO-L1'!$A$14:$BX$500,50,FALSE)) -> 0.9815 | Z9: =SUM(VLOOKUP($A$3,'GEO-L1'!$A$14:$BX$500,16,FALSE)*$R9,VLOOKUP($A$3,'GEO-L1'!$A$14:$BX$500,53,FALSE)*$S9)/SUM($R9,$S9) -> 0 | AA9: =SUM(VLOOKUP($A$3,'GEO-L1'!$A$14:$BX$500,19,FALSE),VLOOKUP($A$3,'GEO-L1'!$A$14:$BX$500,56,FALSE))/SUM($R9:$S9)*100 -> 0 | AB9: =SUM(VLOOKUP($A$3,'GEO-L1'!$A$14:$BX$500,19,FALSE),VLOOKUP($A$3,'GEO-L1'!$A$14:$BX$500,56,FALSE)) -> 0 | AC9: =SUM(VLOOKUP($A$3,'GEO-L1'!$A$14:$BX$500,22,FALSE)*$R9,VLOOKUP($A$3,'GEO-L1'!$A$14:$BX$500,59,FALSE)*$S9)/SUM($R9,$S9) -> 0 | AD9: =SUM(VLOOKUP($A$3,'GEO-L1'!$A$14:$BX$500,25,FALSE),VLOOKUP($A$3,'GEO-L1'!$A$14:$BX$500,62,FALSE))/SUM($R9:$S9)*100 -> 0 | AE9: =SUM(VLOOKUP($A$3,'GEO-L1'!$A$14:$BX$500,25,FALSE),VLOOKUP($A$3,'GEO-L1'!$A$14:$BX$500,62,FALSE)) -> 0 | AF9: =SUM(VLOOKUP($A$3,'GEO-L1'!$A$14:$BX$500,28,FALSE)*$R9,VLOOKUP($A$3,'GEO-L1'!$A$14:$BX$500,65,FALSE)*$S9)/SUM($R9,$S9) -> 0 | AG9: =SUM(VLOOKUP($A$3,'GEO-L1'!$A$14:$BX$500,31,FALSE),VLOOKUP($A$3,'GEO-L1'!$A$14:$BX$500,68,FALSE))/SUM($R9:$S9)*100 -> 0 | AH9: =SUM(VLOOKUP($A$3,'GEO-L1'!$A$14:$BX$500,31,FALSE),VLOOKUP($A$3,'GEO-L1'!$A$14:$BX$500,68,FALSE)) -> 0 | AI9: =SUM(VLOOKUP($A$3,'GEO-L1'!$A$14:$BX$500,34,FALSE)*$R9,VLOOKUP($A$3,'GEO-L1'!$A$14:$BX$500,71,FALSE)*$S9)/SUM($R9,$S9) -> 0 | AJ9: =SUM(VLOOKUP($A$3,'GEO-L1'!$A$14:$BX$500,37,FALSE),VLOOKUP($A$3,'GEO-L1'!$A$14:$BX$500,74,FALSE))/SUM($R9:$S9)*100 -> 0 | AK9: =SUM(VLOOKUP($A$3,'GEO-L1'!$A$14:$BX$500,37,FALSE),VLOOKUP($A$3,'GEO-L1'!$A$14:$BX$500,74,FALSE)) -> 0
A10: FCAT Level 2 | C10: =IFERROR(VLOOKUP(TEXT($A$3,"0000"),MEM_RL2!$A$2:$S$500,10,FALSE),0) -> 226 | D10: =IFERROR((IF(OR(C10=0,C10="",C10="NA"),"NA",((IF(VLOOKUP($A$3,'G9-RL2'!$A$6:$AM$500,3,FALSE)>=C10,"100% ("&VLOOKUP($A$3,'G9-RL2'!$A$6:$AM$500,3,FALSE)&")",(ROUND((VLOOKUP($A$3,'G9-RL2'!$A$6:$AM$500,3,FALSE)/C10*100),0))&"% ("&IF(VLOOKUP($A$3,'G9-RL2'!$A$6:$AM$500,3,FALSE)="",0,VLOOKUP($A$3,'G9-RL2'!$A$6:$AM$500,3,FALSE))&")"))))),"0% (0)") -> 93% (211) | E10: =IFERROR((IF($D10="NA","NA",VLOOKUP($A$3,'G9-RL2'!$A$6:$AM$500,4,FALSE))),"NA") -> 25.3 | F10: =IFERROR((IF($D10="NA","NA",ROUND(VLOOKUP($A$3,'G9-RL2'!$A$6:$AM$500,6,FALSE),0)&"% ("&IF(VLOOKUP($A$3,'G9-RL2'!$A$6:$AM$500,5,FALSE)="",0,VLOOKUP($A$3,'G9-RL2'!$A$6:$AM$500,5,FALSE))&")")),"NA") -> 13% (28) | G10: =IFERROR((IF($D10="NA","NA",VLOOKUP($A$3,'G9-RL2'!$A$6:$AM$500,7,FALSE))),"NA") -> 6.6 | H10: =IFERROR((IF($D10="NA","NA",ROUND(VLOOKUP($A$3,'G9-RL2'!$A$6:$AM$500,9,FALSE),0)&"% ("&IF(VLOOKUP($A$3,'G9-RL2'!$A$6:$AM$500,8,FALSE)="",0,VLOOKUP($A$3,'G9-RL2'!$A$6:$AM$500,8,FALSE))&")")),"NA") -> 24% (51) | I10: =IFERROR((IF($D10="NA","NA",VLOOKUP($A$3,'G9-RL2'!$A$6:$AM$500,10,FALSE))),"NA") -> 10.7 | J10: =IFERROR((IF($D10="NA","NA",ROUND(VLOOKUP($A$3,'G9-RL2'!$A$6:$AM$500,12,FALSE),0)&"% ("&IF(VLOOKUP($A$3,'G9-RL2'!$A$6:$AM$500,11,FALSE)="",0,VLOOKUP($A$3,'G9-RL2'!$A$6:$AM$500,11,FALSE))&")")),"NA") -> 27% (57) | K10: =IFERROR((IF($D10="NA","NA",VLOOKUP($A$3,'G9-RL2'!$A$6:$AM$500,13,FALSE))),"NA") -> 4.3 | L10: =IFERROR((IF($D10="NA","NA",ROUND(VLOOKUP($A$3,'G9-RL2'!$A$6:$AM$500,15,FALSE),0)&"% ("&IF(VLOOKUP($A$3,'G9-RL2'!$A$6:$AM$500,14,FALSE)="",0,VLOOKUP($A$3,'G9-RL2'!$A$6:$AM$500,14,FALSE))&")")),"NA") -> 18% (38) | M10: =IFERROR((IF($D10="NA","NA",VLOOKUP($A$3,'G9-RL2'!$A$6:$AM$500,16,FALSE))),"NA") -> 3.6 | N10: =IFERROR((IF($D10="NA","NA",ROUND(VLOOKUP($A$3,'G9-RL2'!$A$6:$AM$500,18,FALSE),0)&"% ("&IF(VLOOKUP($A$3,'G9-RL2'!$A$6:$AM$500,17,FALSE)="",0,VLOOKUP($A$3,'G9-RL2'!$A$6:$AM$500,17,FALSE))&")")),"NA") -> 2% (4) | R10: =IFERROR(VLOOKUP($A$3,'G9-RL2'!$A$6:$BX$500,3,FALSE),"not tested") -> 211 | T10: =SUM(VLOOKUP($A$3,'GEO-L2'!$A$14:$BX$500,4,FALSE)*$R10,VLOOKUP($A$3,'GEO-L2'!$A$14:$BX$500,41,FALSE)*$S10)/SUM($R10,$S10) -> 17.5 | U10: =SUM(VLOOKUP($A$3,'GEO-L2'!$A$14:$BX$500,7,FALSE),VLOOKUP($A$3,'GEO-L2'!$A$14:$BX$500,44,FALSE))/SUM($R10:$S10)*100 -> 2.843601896 | V10: =SUM(VLOOKUP($A$3,'GEO-L2'!$A$14:$BX$500,7,FALSE),VLOOKUP($A$3,'GEO-L2'!$A$14:$BX$500,44,FALSE)) -> 6 | W10: =SUM(VLOOKUP($A$3,'GEO-L2'!$A$14:$BX$500,10,FALSE)*$R10,VLOOKUP($A$3,'GEO-L2'!$A$14:$BX$500,47,FALSE)*$S10)/SUM($R10,$S10) -> 17.5 | X10: =SUM(VLOOKUP($A$3,'GEO-L2'!$A$14:$BX$500,8,FALSE),VLOOKUP($A$3,'GEO-L2'!$A$14:$BX$500,50,FALSE))/SUM($R10:$S10)*100 -> 0.4533175355 | Y10: =SUM(VLOOKUP($A$3,'GEO-L2'!$A$14:$BX$500,8,FALSE),VLOOKUP($A$3,'GEO-L2'!$A$14:$BX$500,50,FALSE)) -> 0.9565 | Z10: =SUM(VLOOKUP($A$3,'GEO-L2'!$A$14:$BX$500,16,FALSE)*$R10,VLOOKUP($A$3,'GEO-L2'!$A$14:$BX$500,53,FALSE)*$S10)/SUM($R10,$S10) -> 0 | AA10: =SUM(VLOOKUP($A$3,'GEO-L2'!$A$14:$BX$500,19,FALSE),VLOOKUP($A$3,'GEO-L2'!$A$14:$BX$500,56,FALSE))/SUM($R10:$S10)*100 -> 0 | AB10: =SUM(VLOOKUP($A$3,'GEO-L2'!$A$14:$BX$500,19,FALSE),VLOOKUP($A$3,'GEO-L2'!$A$14:$BX$500,56,FALSE)) -> 0 | AC10: =SUM(VLOOKUP($A$3,'GEO-L2'!$A$14:$BX$500,22,FALSE)*$R10,VLOOKUP($A$3,'GEO-L2'!$A$14:$BX$500,59,FALSE)*$S10)/SUM($R10,$S10) -> 0 | AD10: =SUM(VLOOKUP($A$3,'GEO-L2'!$A$14:$BX$500,25,FALSE),VLOOKUP($A$3,'GEO-L2'!$A$14:$BX$500,62,FALSE))/SUM($R10:$S10)*100 -> 0 | AE10: =SUM(VLOOKUP($A$3,'GEO-L2'!$A$14:$BX$500,25,FALSE),VLOOKUP($A$3,'GEO-L2'!$A$14:$BX$500,62,FALSE)) -> 0 | AF10: =SUM(VLOOKUP($A$3,'GEO-L2'!$A$14:$BX$500,28,FALSE)*$R10,VLOOKUP($A$3,'GEO-L2'!$A$14:$BX$500,65,FALSE)*$S10)/SUM($R10,$S10) -> 0 | AG10: =SUM(VLOOKUP($A$3,'GEO-L2'!$A$14:$BX$500,31,FALSE),VLOOKUP($A$3,'GEO-L2'!$A$14:$BX$500,68,FALSE))/SUM($R10:$S10)*100 -> 0 | AH10: =SUM(VLOOKUP($A$3,'GEO-L2'!$A$14:$BX$500,31,FALSE),VLOOKUP($A$3,'GEO-L2'!$A$14:$BX$500,68,FALSE)) -> 0 | AI10: =SUM(VLOOKUP($A$3,'GEO-L2'!$A$14:$BX$500,34,FALSE)*$R10,VLOOKUP($A$3,'GEO-L2'!$A$14:$BX$500,71,FALSE)*$S10)/SUM($R10,$S10) -> 0 | AJ10: =SUM(VLOOKUP($A$3,'GEO-L2'!$A$14:$BX$500,37,FALSE),VLOOKUP($A$3,'GEO-L2'!$A$14:$BX$500,74,FALSE))/SUM($R10:$S10)*100 -> 0 | AK10: =SUM(VLOOKUP($A$3,'GEO-L2'!$A$14:$BX$500,37,FALSE),VLOOKUP($A$3,'GEO-L2'!$A$14:$BX$500,74,FALSE)) -> 0
A11: FCAT Level 3 | C11: =IFERROR(VLOOKUP(TEXT($A$3,"0000"),MEM_RL3!$A$2:$S$500,10,FALSE),0) -> 376 | D11: =IFERROR((IF(OR(C11=0,C11="",C11="NA"),"NA",((IF(VLOOKUP($A$3,'G9-RL3'!$A$6:$AM$500,3,FALSE)>=C11,"100% ("&VLOOKUP($A$3,'G9-RL3'!$A$6:$AM$500,3,FALSE)&")",(ROUND((VLOOKUP($A$3,'G9-RL3'!$A$6:$AM$500,3,FALSE)/C11*100),0))&"% ("&IF(VLOOKUP($A$3,'G9-RL3'!$A$6:$AM$500,3,FALSE)="",0,VLOOKUP($A$3,'G9-RL3'!$A$6:$AM$500,3,FALSE))&")"))))),"0% (0)") -> 94% (355) | E11: =IFERROR((IF($D11="NA","NA",VLOOKUP($A$3,'G9-RL3'!$A$6:$AM$500,4,FALSE))),"NA") -> 32.7 | F11: =IFERROR((IF($D11="NA","NA",ROUND(VLOOKUP($A$3,'G9-RL3'!$A$6:$AM$500,6,FALSE),0)&"% ("&IF(VLOOKUP($A$3,'G9-RL3'!$A$6:$AM$500,5,FALSE)="",0,VLOOKUP($A$3,'G9-RL3'!$A$6:$AM$500,5,FALSE))&")")),"NA") -> 49% (174) | G11: =IFERROR((IF($D11="NA","NA",VLOOKUP($A$3,'G9-RL3'!$A$6:$AM$500,7,FALSE))),"NA") -> 8.5 | H11: =IFERROR((IF($D11="NA","NA",ROUND(VLOOKUP($A$3,'G9-RL3'!$A$6:$AM$500,9,FALSE),0)&"% ("&IF(VLOOKUP($A$3,'G9-RL3'!$A$6:$AM$500,8,FALSE)="",0,VLOOKUP($A$3,'G9-RL3'!$A$6:$AM$500,8,FALSE))&")")),"NA") -> 54% (190) | I11: =IFERROR((IF($D11="NA","NA",VLOOKUP($A$3,'G9-RL3'!$A$6:$AM$500,10,FALSE))),"NA") -> 13.8 | J11: =IFERROR((IF($D11="NA","NA",ROUND(VLOOKUP($A$3,'G9-RL3'!$A$6:$AM$500,12,FALSE),0)&"% ("&IF(VLOOKUP($A$3,'G9-RL3'!$A$6:$AM$500,11,FALSE)="",0,VLOOKUP($A$3,'G9-RL3'!$A$6:$AM$500,11,FALSE))&")")),"NA") -> 60% (212) | K11: =IFERROR((IF($D11="NA","NA",VLOOKUP($A$3,'G9-RL3'!$A$6:$AM$500,13,FALSE))),"NA") -> 6 | L11: =IFERROR((IF($D11="NA","NA",ROUND(VLOOKUP($A$3,'G9-RL3'!$A$6:$AM$500,15,FALSE),0)&"% ("&IF(VLOOKUP($A$3,'G9-RL3'!$A$6:$AM$500,14,FALSE)="",0,VLOOKUP($A$3,'G9-RL3'!$A$6:$AM$500,14,FALSE))&")")),"NA") -> 47% (167) | M11: =IFERROR((IF($D11="NA","NA",VLOOKUP($A$3,'G9-RL3'!$A$6:$AM$500,16,FALSE))),"NA") -> 4.4 | N11: =IFERROR((IF($D11="NA","NA",ROUND(VLOOKUP($A$3,'G9-RL3'!$A$6:$AM$500,18,FALSE),0)&"% ("&IF(VLOOKUP($A$3,'G9-RL3'!$A$6:$AM$500,17,FALSE)="",0,VLOOKUP($A$3,'G9-RL3'!$A$6:$AM$500,17,FALSE))&")")),"NA") -> 10% (35) | R11: =IFERROR(VLOOKUP($A$3,'G9-RL3'!$A$6:$BX$500,3,FALSE),"not tested") -> 355 | T11: =SUM(VLOOKUP($A$3,'GEO-L3'!$A$14:$BX$500,4,FALSE)*$R11,VLOOKUP($A$3,'GEO-L3'!$A$14:$BX$500,41,FALSE)*$S11)/SUM($R11,$S11) -> 21.70000076 | U11: =SUM(VLOOKUP($A$3,'GEO-L3'!$A$14:$BX$500,7,FALSE),VLOOKUP($A$3,'GEO-L3'!$A$14:$BX$500,44,FALSE))/SUM($R11:$S11)*100 -> 14.36619718 | V11: =SUM(VLOOKUP($A$3,'GEO-L3'!$A$14:$BX$500,7,FALSE),VLOOKUP($A$3,'GEO-L3'!$A$14:$BX$500,44,FALSE)) -> 51 | W11: =SUM(VLOOKUP($A$3,'GEO-L3'!$A$14:$BX$500,10,FALSE)*$R11,VLOOKUP($A$3,'GEO-L3'!$A$14:$BX$500,47,FALSE)*$S11)/SUM($R11,$S11) -> 21.70000076 | X11: =SUM(VLOOKUP($A$3,'GEO-L3'!$A$14:$BX$500,8,FALSE),VLOOKUP($A$3,'GEO-L3'!$A$14:$BX$500,50,FALSE))/SUM($R11:$S11)*100 -> 0.2473239437 | Y11: =SUM(VLOOKUP($A$3,'GEO-L3'!$A$14:$BX$500,8,FALSE),VLOOKUP($A$3,'GEO-L3'!$A$14:$BX$500,50,FALSE)) -> 0.878 | Z11: =SUM(VLOOKUP($A$3,'GEO-L3'!$A$14:$BX$500,16,FALSE)*$R11,VLOOKUP($A$3,'GEO-L3'!$A$14:$BX$500,53,FALSE)*$S11)/SUM($R11,$S11) -> 0 | AA11: =SUM(VLOOKUP($A$3,'GEO-L3'!$A$14:$BX$500,19,FALSE),VLOOKUP($A$3,'GEO-L3'!$A$14:$BX$500,56,FALSE))/SUM($R11:$S11)*100 -> 0 | AB11: =SUM(VLOOKUP($A$3,'GEO-L3'!$A$14:$BX$500,19,FALSE),VLOOKUP($A$3,'GEO-L3'!$A$14:$BX$500,56,FALSE)) -> 0 | AC11: =SUM(VLOOKUP($A$3,'GEO-L3'!$A$14:$BX$500,22,FALSE)*$R11,VLOOKUP($A$3,'GEO-L3'!$A$14:$BX$500,59,FALSE)*$S11)/SUM($R11,$S11) -> 0 | AD11: =SUM(VLOOKUP($A$3,'GEO-L3'!$A$14:$BX$500,25,FALSE),VLOOKUP($A$3,'GEO-L3'!$A$14:$BX$500,62,FALSE))/SUM($R11:$S11)*100 -> 0 | AE11: =SUM(VLOOKUP($A$3,'GEO-L3'!$A$14:$BX$500,25,FALSE),VLOOKUP($A$3,'GEO-L3'!$A$14:$BX$500,62,FALSE)) -> 0 | AF11: =SUM(VLOOKUP($A$3,'GEO-L3'!$A$14:$BX$500,28,FALSE)*$R11,VLOOKUP($A$3,'GEO-L3'!$A$14:$BX$500,65,FALSE)*$S11)/SUM($R11,$S11) -> 0 | AG11: =SUM(VLOOKUP($A$3,'GEO-L3'!$A$14:$BX$500,31,FALSE),VLOOKUP($A$3,'GEO-L3'!$A$14:$BX$500,68,FALSE))/SUM($R11:$S11)*100 -> 0 | AH11: =SUM(VLOOKUP($A$3,'GEO-L3'!$A$14:$BX$500,31,FALSE),VLOOKUP($A$3,'GEO-L3'!$A$14:$BX$500,68,FALSE)) -> 0 | AI11: =SUM(VLOOKUP($A$3,'GEO-L3'!$A$14:$BX$500,34,FALSE)*$R11,VLOOKUP($A$3,'GEO-L3'!$A$14:$BX$500,71,FALSE)*$S11)/SUM($R11,$S11) -> 0 | AJ11: =SUM(VLOOKUP($A$3,'GEO-L3'!$A$14:$BX$500,37,FALSE),VLOOKUP($A$3,'GEO-L3'!$A$14:$BX$500,74,FALSE))/SUM($R11:$S11)*100 -> 0 | AK11: =SUM(VLOOKUP($A$3,'GEO-L3'!$A$14:$BX$500,37,FALSE),VLOOKUP($A$3,'GEO-L3'!$A$14:$BX$500,74,FALSE)) -> 0
A12: FCAT Level 4 | C12: =IFERROR(VLOOKUP(TEXT($A$3,"0000"),MEM_RL4!$A$2:$S$500,10,FALSE),0) -> 260 | D12: =IFERROR((IF(OR(C12=0,C12="",C12="NA"),"NA",((IF(VLOOKUP($A$3,'G9-RL4'!$A$6:$AM$500,3,FALSE)>=C12,"100% ("&VLOOKUP($A$3,'G9-RL4'!$A$6:$AM$500,3,FALSE)&")",(ROUND((VLOOKUP($A$3,'G9-RL4'!$A$6:$AM$500,3,FALSE)/C12*100),0))&"% ("&IF(VLOOKUP($A$3,'G9-RL4'!$A$6:$AM$500,3,FALSE)="",0,VLOOKUP($A$3,'G9-RL4'!$A$6:$AM$500,3,FALSE))&")"))))),"0% (0)") -> 97% (252) | E12: =IFERROR((IF($D12="NA","NA",VLOOKUP($A$3,'G9-RL4'!$A$6:$AM$500,4,FALSE))),"NA") -> 38.5 | F12: =IFERROR((IF($D12="NA","NA",ROUND(VLOOKUP($A$3,'G9-RL4'!$A$6:$AM$500,6,FALSE),0)&"% ("&IF(VLOOKUP($A$3,'G9-RL4'!$A$6:$AM$500,5,FALSE)="",0,VLOOKUP($A$3,'G9-RL4'!$A$6:$AM$500,5,FALSE))&")")),"NA") -> 84% (212) | G12: =IFERROR((IF($D12="NA","NA",VLOOKUP($A$3,'G9-RL4'!$A$6:$AM$500,7,FALSE))),"NA") -> 10 | H12: =IFERROR((IF($D12="NA","NA",ROUND(VLOOKUP($A$3,'G9-RL4'!$A$6:$AM$500,9,FALSE),0)&"% ("&IF(VLOOKUP($A$3,'G9-RL4'!$A$6:$AM$500,8,FALSE)="",0,VLOOKUP($A$3,'G9-RL4'!$A$6:$AM$500,8,FALSE))&")")),"NA") -> 85% (213) | I12: =IFERROR((IF($D12="NA","NA",VLOOKUP($A$3,'G9-RL4'!$A$6:$AM$500,10,FALSE))),"NA") -> 15.9 | J12: =IFERROR((IF($D12="NA","NA",ROUND(VLOOKUP($A$3,'G9-RL4'!$A$6:$AM$500,12,FALSE),0)&"% ("&IF(VLOOKUP($A$3,'G9-RL4'!$A$6:$AM$500,11,FALSE)="",0,VLOOKUP($A$3,'G9-RL4'!$A$6:$AM$500,11,FALSE))&")")),"NA") -> 89% (224) | K12: =IFERROR((IF($D12="NA","NA",VLOOKUP($A$3,'G9-RL4'!$A$6:$AM$500,13,FALSE))),"NA") -> 7.4 | L12: =IFERROR((IF($D12="NA","NA",ROUND(VLOOKUP($A$3,'G9-RL4'!$A$6:$AM$500,15,FALSE),0)&"% ("&IF(VLOOKUP($A$3,'G9-RL4'!$A$6:$AM$500,14,FALSE)="",0,VLOOKUP($A$3,'G9-RL4'!$A$6:$AM$500,14,FALSE))&")")),"NA") -> 75% (188) | M12: =IFERROR((IF($D12="NA","NA",VLOOKUP($A$3,'G9-RL4'!$A$6:$AM$500,16,FALSE))),"NA") -> 5.2 | N12: =IFERROR((IF($D12="NA","NA",ROUND(VLOOKUP($A$3,'G9-RL4'!$A$6:$AM$500,18,FALSE),0)&"% ("&IF(VLOOKUP($A$3,'G9-RL4'!$A$6:$AM$500,17,FALSE)="",0,VLOOKUP($A$3,'G9-RL4'!$A$6:$AM$500,17,FALSE))&")")),"NA") -> 17% (44) | R12: =IFERROR(VLOOKUP($A$3,'G9-RL4'!$A$6:$BX$500,3,FALSE),"not tested") -> 252 | T12: =SUM(VLOOKUP($A$3,'GEO-L4'!$A$14:$BX$500,4,FALSE)*$R12,VLOOKUP($A$3,'GEO-L4'!$A$14:$BX$500,41,FALSE)*$S12)/SUM($R12,$S12) -> 26.89999962 | U12: =SUM(VLOOKUP($A$3,'GEO-L4'!$A$14:$BX$500,7,FALSE),VLOOKUP($A$3,'GEO-L4'!$A$14:$BX$500,44,FALSE))/SUM($R12:$S12)*100 -> 32.14285714 | V12: =SUM(VLOOKUP($A$3,'GEO-L4'!$A$14:$BX$500,7,FALSE),VLOOKUP($A$3,'GEO-L4'!$A$14:$BX$500,44,FALSE)) -> 81 | W12: =SUM(VLOOKUP($A$3,'GEO-L4'!$A$14:$BX$500,10,FALSE)*$R12,VLOOKUP($A$3,'GEO-L4'!$A$14:$BX$500,47,FALSE)*$S12)/SUM($R12,$S12) -> 26.89999962 | X12: =SUM(VLOOKUP($A$3,'GEO-L4'!$A$14:$BX$500,8,FALSE),VLOOKUP($A$3,'GEO-L4'!$A$14:$BX$500,50,FALSE))/SUM($R12:$S12)*100 -> 0.2836507937 | Y12: =SUM(VLOOKUP($A$3,'GEO-L4'!$A$14:$BX$500,8,FALSE),VLOOKUP($A$3,'GEO-L4'!$A$14:$BX$500,50,FALSE)) -> 0.7148 | Z12: =SUM(VLOOKUP($A$3,'GEO-L4'!$A$14:$BX$500,16,FALSE)*$R12,VLOOKUP($A$3,'GEO-L4'!$A$14:$BX$500,53,FALSE)*$S12)/SUM($R12,$S12) -> 0 | AA12: =SUM(VLOOKUP($A$3,'GEO-L4'!$A$14:$BX$500,19,FALSE),VLOOKUP($A$3,'GEO-L4'!$A$14:$BX$500,56,FALSE))/SUM($R12:$S12)*100 -> 0 | AB12: =SUM(VLOOKUP($A$3,'GEO-L4'!$A$14:$BX$500,19,FALSE),VLOOKUP($A$3,'GEO-L4'!$A$14:$BX$500,56,FALSE)) -> 0 | AC12: =SUM(VLOOKUP($A$3,'GEO-L4'!$A$14:$BX$500,22,FALSE)*$R12,VLOOKUP($A$3,'GEO-L4'!$A$14:$BX$500,59,FALSE)*$S12)/SUM($R12,$S12) -> 0 | AD12: =SUM(VLOOKUP($A$3,'GEO-L4'!$A$14:$BX$500,25,FALSE),VLOOKUP($A$3,'GEO-L4'!$A$14:$BX$500,62,FALSE))/SUM($R12:$S12)*100 -> 0 | AE12: =SUM(VLOOKUP($A$3,'GEO-L4'!$A$14:$BX$500,25,FALSE),VLOOKUP($A$3,'GEO-L4'!$A$14:$BX$500,62,FALSE)) -> 0 | AF12: =SUM(VLOOKUP($A$3,'GEO-L4'!$A$14:$BX$500,28,FALSE)*$R12,VLOOKUP($A$3,'GEO-L4'!$A$14:$BX$500,65,FALSE)*$S12)/SUM($R12,$S12) -> 0 | AG12: =SUM(VLOOKUP($A$3,'GEO-L4'!$A$14:$BX$500,31,FALSE),VLOOKUP($A$3,'GEO-L4'!$A$14:$BX$500,68,FALSE))/SUM($R12:$S12)*100 -> 0 | AH12: =SUM(VLOOKUP($A$3,'GEO-L4'!$A$14:$BX$500,31,FALSE),VLOOKUP($A$3,'GEO-L4'!$A$14:$BX$500,68,FALSE)) -> 0 | AI12: =SUM(VLOOKUP($A$3,'GEO-L4'!$A$14:$BX$500,34,FALSE)*$R12,VLOOKUP($A$3,'GEO-L4'!$A$14:$BX$500,71,FALSE)*$S12)/SUM($R12,$S12) -> 0 | AJ12: =SUM(VLOOKUP($A$3,'GEO-L4'!$A$14:$BX$500,37,FALSE),VLOOKUP($A$3,'GEO-L4'!$A$14:$BX$500,74,FALSE))/SUM($R12:$S12)*100 -> 0 | AK12: =SUM(VLOOKUP($A$3,'GEO-L4'!$A$14:$BX$500,37,FALSE),VLOOKUP($A$3,'GEO-L4'!$A$14:$BX$500,74,FALSE)) -> 0
A13: FCAT Level 5 | C13: =IFERROR(VLOOKUP(TEXT($A$3,"0000"),MEM_RL5!$A$2:$S$500,9,FALSE),0) -> 56 | D13: =IFERROR((IF(OR(C13=0,C13="",C13="NA"),"NA",((IF(VLOOKUP($A$3,'G9-RL5'!$A$6:$AM$500,3,FALSE)>=C13,"100% ("&VLOOKUP($A$3,'G9-RL5'!$A$6:$AM$500,3,FALSE)&")",(ROUND((VLOOKUP($A$3,'G9-RL5'!$A$6:$AM$500,3,FALSE)/C13*100),0))&"% ("&IF(VLOOKUP($A$3,'G9-RL5'!$A$6:$AM$500,3,FALSE)="",0,VLOOKUP($A$3,'G9-RL5'!$A$6:$AM$500,3,FALSE))&")"))))),"0% (0)") -> 100% (57) | E13: =IFERROR((IF($D13="NA","NA",VLOOKUP($A$3,'G9-RL5'!$A$6:$AM$500,4,FALSE))),"NA") -> 41.3 | F13: =IFERROR((IF($D13="NA","NA",ROUND(VLOOKUP($A$3,'G9-RL5'!$A$6:$AM$500,6,FALSE),0)&"% ("&IF(VLOOKUP($A$3,'G9-RL5'!$A$6:$AM$500,5,FALSE)="",0,VLOOKUP($A$3,'G9-RL5'!$A$6:$AM$500,5,FALSE))&")")),"NA") -> 98% (56) | G13: =IFERROR((IF($D13="NA","NA",VLOOKUP($A$3,'G9-RL5'!$A$6:$AM$500,7,FALSE))),"NA") -> 10.6 | H13: =IFERROR((IF($D13="NA","NA",ROUND(VLOOKUP($A$3,'G9-RL5'!$A$6:$AM$500,9,FALSE),0)&"% ("&IF(VLOOKUP($A$3,'G9-RL5'!$A$6:$AM$500,8,FALSE)="",0,VLOOKUP($A$3,'G9-RL5'!$A$6:$AM$500,8,FALSE))&")")),"NA") -> 95% (54) | I13: =IFERROR((IF($D13="NA","NA",VLOOKUP($A$3,'G9-RL5'!$A$6:$AM$500,10,FALSE))),"NA") -> 16.8 | J13: =IFERROR((IF($D13="NA","NA",ROUND(VLOOKUP($A$3,'G9-RL5'!$A$6:$AM$500,12,FALSE),0)&"% ("&IF(VLOOKUP($A$3,'G9-RL5'!$A$6:$AM$500,11,FALSE)="",0,VLOOKUP($A$3,'G9-RL5'!$A$6:$AM$500,11,FALSE))&")")),"NA") -> 100% (57) | K13: =IFERROR((IF($D13="NA","NA",VLOOKUP($A$3,'G9-RL5'!$A$6:$AM$500,13,FALSE))),"NA") -> 8 | L13: =IFERROR((IF($D13="NA","NA",ROUND(VLOOKUP($A$3,'G9-RL5'!$A$6:$AM$500,15,FALSE),0)&"% ("&IF(VLOOKUP($A$3,'G9-RL5'!$A$6:$AM$500,14,FALSE)="",0,VLOOKUP($A$3,'G9-RL5'!$A$6:$AM$500,14,FALSE))&")")),"NA") -> 82% (47) | M13: =IFERROR((IF($D13="NA","NA",VLOOKUP($A$3,'G9-RL5'!$A$6:$AM$500,16,FALSE))),"NA") -> 5.8 | N13: =IFERROR((IF($D13="NA","NA",ROUND(VLOOKUP($A$3,'G9-RL5'!$A$6:$AM$500,18,FALSE),0)&"% ("&IF(VLOOKUP($A$3,'G9-RL5'!$A$6:$AM$500,17,FALSE)="",0,VLOOKUP($A$3,'G9-RL5'!$A$6:$AM$500,17,FALSE))&")")),"NA") -> 40% (23) | R13: =IFERROR(VLOOKUP($A$3,'G9-RL5'!$A$6:$BX$500,3,FALSE),"not tested") -> 57 | T13: =SUM(VLOOKUP($A$3,'GEO-L5'!$A$14:$BX$500,4,FALSE)*$R13,VLOOKUP($A$3,'GEO-L5'!$A$14:$BX$500,41,FALSE)*$S13)/SUM($R13,$S13) -> 30.5 | U13: =SUM(VLOOKUP($A$3,'GEO-L5'!$A$14:$BX$500,7,FALSE),VLOOKUP($A$3,'GEO-L5'!$A$14:$BX$500,44,FALSE))/SUM($R13:$S13)*100 -> 138.5964912 | V13: =SUM(VLOOKUP($A$3,'GEO-L5'!$A$14:$BX$500,7,FALSE),VLOOKUP($A$3,'GEO-L5'!$A$14:$BX$500,44,FALSE)) -> 79 | W13: =SUM(VLOOKUP($A$3,'GEO-L5'!$A$14:$BX$500,10,FALSE)*$R13,VLOOKUP($A$3,'GEO-L5'!$A$14:$BX$500,47,FALSE)*$S13)/SUM($R13,$S13) -> 30.5 | X13: =SUM(VLOOKUP($A$3,'GEO-L5'!$A$14:$BX$500,8,FALSE),VLOOKUP($A$3,'GEO-L5'!$A$14:$BX$500,50,FALSE))/SUM($R13:$S13)*100 -> 0.8050877193 | Y13: =SUM(VLOOKUP($A$3,'GEO-L5'!$A$14:$BX$500,8,FALSE),VLOOKUP($A$3,'GEO-L5'!$A$14:$BX$500,50,FALSE)) -> 0.4589 | Z13: =SUM(VLOOKUP($A$3,'GEO-L5'!$A$14:$BX$500,16,FALSE)*$R13,VLOOKUP($A$3,'GEO-L5'!$A$14:$BX$500,53,FALSE)*$S13)/SUM($R13,$S13) -> 0 | AA13: =SUM(VLOOKUP($A$3,'GEO-L5'!$A$14:$BX$500,19,FALSE),VLOOKUP($A$3,'GEO-L5'!$A$14:$BX$500,56,FALSE))/SUM($R13:$S13)*100 -> 0 | AB13: =SUM(VLOOKUP($A$3,'GEO-L5'!$A$14:$BX$500,19,FALSE),VLOOKUP($A$3,'GEO-L5'!$A$14:$BX$500,56,FALSE)) -> 0 | AC13: =SUM(VLOOKUP($A$3,'GEO-L5'!$A$14:$BX$500,22,FALSE)*$R13,VLOOKUP($A$3,'GEO-L5'!$A$14:$BX$500,59,FALSE)*$S13)/SUM($R13,$S13) -> 0 | AD13: =SUM(VLOOKUP($A$3,'GEO-L5'!$A$14:$BX$500,25,FALSE),VLOOKUP($A$3,'GEO-L5'!$A$14:$BX$500,62,FALSE))/SUM($R13:$S13)*100 -> 0 | AE13: =SUM(VLOOKUP($A$3,'GEO-L5'!$A$14:$BX$500,25,FALSE),VLOOKUP($A$3,'GEO-L5'!$A$14:$BX$500,62,FALSE)) -> 0 | AF13: =SUM(VLOOKUP($A$3,'GEO-L5'!$A$14:$BX$500,28,FALSE)*$R13,VLOOKUP($A$3,'GEO-L5'!$A$14:$BX$500,65,FALSE)*$S13)/SUM($R13,$S13) -> 0 | AG13: =SUM(VLOOKUP($A$3,'GEO-L5'!$A$14:$BX$500,31,FALSE),VLOOKUP($A$3,'GEO-L5'!$A$14:$BX$500,68,FALSE))/SUM($R13:$S13)*100 -> 0 | AH13: =SUM(VLOOKUP($A$3,'GEO-L5'!$A$14:$BX$500,31,FALSE),VLOOKUP($A$3,'GEO-L5'!$A$14:$BX$500,68,FALSE)) -> 0 | AI13: =SUM(VLOOKUP($A$3,'GEO-L5'!$A$14:$BX$500,34,FALSE)*$R13,VLOOKUP($A$3,'GEO-L5'!$A$14:$BX$500,71,FALSE)*$S13)/SUM($R13,$S13) -> 0 | AJ13: =SUM(VLOOKUP($A$3,'GEO-L5'!$A$14:$BX$500,37,FALSE),VLOOKUP($A$3,'GEO-L5'!$A$14:$BX$500,74,FALSE))/SUM($R13:$S13)*100 -> 0 | AK13: =SUM(VLOOKUP($A$3,'GEO-L5'!$A$14:$BX$500,37,FALSE),VLOOKUP($A$3,'GEO-L5'!$A$14:$BX$500,74,FALSE)) -> 0
A14: White | B14: =IFERROR(VLOOKUP(TEXT($A$3,"0000"),'AYP11'!$B$3379:$AU$3800,36,FALSE)," ") -> Yes-SH | C14: =IFERROR(VLOOKUP(TEXT($A$3,"0000"),MEM_W!$A$2:$S$500,13,FALSE),0) -> 75 | D14: =IFERROR((IF(OR(C14=0,C14="",C14="NA"),"NA",((IF(VLOOKUP($A$3,'G9-RW'!$A$6:$AM$500,3,FALSE)>=C14,"100% ("&VLOOKUP($A$3,'G9-RW'!$A$6:$AM$500,3,FALSE)&")",(ROUND((VLOOKUP($A$3,'G9-RW'!$A$6:$AM$500,3,FALSE)/C14*100),0))&"% ("&IF(VLOOKUP($A$3,'G9-RW'!$A$6:$AM$500,3,FALSE)="",0,VLOOKUP($A$3,'G9-RW'!$A$6:$AM$500,3,FALSE))&")"))))),"0% (0)") -> 93% (70) | E14: =IFERROR((IF($D14="NA","NA",VLOOKUP($A$3,'G9-RW'!$A$6:$AM$500,4,FALSE))),"NA") -> 31.5 | F14: =IFERROR((IF($D14="NA","NA",ROUND(VLOOKUP($A$3,'G9-RW'!$A$6:$AM$500,6,FALSE),0)&"% ("&IF(VLOOKUP($A$3,'G9-RW'!$A$6:$AM$500,5,FALSE)="",0,VLOOKUP($A$3,'G9-RW'!$A$6:$AM$500,5,FALSE))&")")),"NA") -> 47% (33) | G14: =IFERROR((IF($D14="NA","NA",VLOOKUP($A$3,'G9-RW'!$A$6:$AM$500,7,FALSE))),"NA") -> 8 | H14: =IFERROR((IF($D14="NA","NA",ROUND(VLOOKUP($A$3,'G9-RW'!$A$6:$AM$500,9,FALSE),0)&"% ("&IF(VLOOKUP($A$3,'G9-RW'!$A$6:$AM$500,8,FALSE)="",0,VLOOKUP($A$3,'G9-RW'!$A$6:$AM$500,8,FALSE))&")")),"NA") -> 50% (35) | I14: =IFERROR((IF($D14="NA","NA",VLOOKUP($A$3,'G9-RW'!$A$6:$AM$500,10,FALSE))),"NA") -> 12.9 | J14: =IFERROR((IF($D14="NA","NA",ROUND(VLOOKUP($A$3,'G9-RW'!$A$6:$AM$500,12,FALSE),0)&"% ("&IF(VLOOKUP($A$3,'G9-RW'!$A$6:$AM$500,11,FALSE)="",0,VLOOKUP($A$3,'G9-RW'!$A$6:$AM$500,11,FALSE))&")")),"NA") -> 51% (36) | K14: =IFERROR((IF($D14="NA","NA",VLOOKUP($A$3,'G9-RW'!$A$6:$AM$500,13,FALSE))),"NA") -> 6 | L14: =IFERROR((IF($D14="NA","NA",ROUND(VLOOKUP($A$3,'G9-RW'!$A$6:$AM$500,15,FALSE),0)&"% ("&IF(VLOOKUP($A$3,'G9-RW'!$A$6:$AM$500,14,FALSE)="",0,VLOOKUP($A$3,'G9-RW'!$A$6:$AM$500,14,FALSE))&")")),"NA") -> 44% (31) | M14: =IFERROR((IF($D14="NA","NA",VLOOKUP($A$3,'G9-RW'!$A$6:$AM$500,16,FALSE))),"NA") -> 4.6 | N14: =IFERROR((IF($D14="NA","NA",ROUND(VLOOKUP($A$3,'G9-RW'!$A$6:$AM$500,18,FALSE),0)&"% ("&IF(VLOOKUP($A$3,'G9-RW'!$A$6:$AM$500,17,FALSE)="",0,VLOOKUP($A$3,'G9-RW'!$A$6:$AM$500,17,FALSE))&")")),"NA") -> 17% (12) | R14: =IFERROR(VLOOKUP($A$3,'G9-RW'!$A$6:$BX$500,3,FALSE),"not tested") -> 70 | T14: =SUM(VLOOKUP($A$3,'GEO-W'!$A$14:$BX$500,4,FALSE)*$R14,VLOOKUP($A$3,'GEO-W'!$A$14:$BX$500,41,FALSE)*$S14)/SUM($R14,$S14) -> 24 | U14: =SUM(VLOOKUP($A$3,'GEO-W'!$A$14:$BX$500,7,FALSE),VLOOKUP($A$3,'GEO-W'!$A$14:$BX$500,44,FALSE))/SUM($R14:$S14)*100 -> 27.14285714 | V14: =SUM(VLOOKUP($A$3,'GEO-W'!$A$14:$BX$500,7,FALSE),VLOOKUP($A$3,'GEO-W'!$A$14:$BX$500,44,FALSE)) -> 19 | W14: =SUM(VLOOKUP($A$3,'GEO-W'!$A$14:$BX$500,10,FALSE)*$R14,VLOOKUP($A$3,'GEO-W'!$A$14:$BX$500,47,FALSE)*$S14)/SUM($R14,$S14) -> 24 | X14: =SUM(VLOOKUP($A$3,'GEO-W'!$A$14:$BX$500,8,FALSE),VLOOKUP($A$3,'GEO-W'!$A$14:$BX$500,50,FALSE))/SUM($R14:$S14)*100 -> 1.071428571 | Y14: =SUM(VLOOKUP($A$3,'GEO-W'!$A$14:$BX$500,8,FALSE),VLOOKUP($A$3,'GEO-W'!$A$14:$BX$500,50,FALSE)) -> 0.75 | Z14: =SUM(VLOOKUP($A$3,'GEO-W'!$A$14:$BX$500,16,FALSE)*$R14,VLOOKUP($A$3,'GEO-W'!$A$14:$BX$500,53,FALSE)*$S14)/SUM($R14,$S14) -> 0 | AA14: =SUM(VLOOKUP($A$3,'GEO-W'!$A$14:$BX$500,19,FALSE),VLOOKUP($A$3,'GEO-W'!$A$14:$BX$500,56,FALSE))/SUM($R14:$S14)*100 -> 0 | AB14: =SUM(VLOOKUP($A$3,'GEO-W'!$A$14:$BX$500,19,FALSE),VLOOKUP($A$3,'GEO-W'!$A$14:$BX$500,56,FALSE)) -> 0 | AC14: =SUM(VLOOKUP($A$3,'GEO-W'!$A$14:$BX$500,22,FALSE)*$R14,VLOOKUP($A$3,'GEO-W'!$A$14:$BX$500,59,FALSE)*$S14)/SUM($R14,$S14) -> 0 | AD14: =SUM(VLOOKUP($A$3,'GEO-W'!$A$14:$BX$500,25,FALSE),VLOOKUP($A$3,'GEO-W'!$A$14:$BX$500,62,FALSE))/SUM($R14:$S14)*100 -> 0 | AE14: =SUM(VLOOKUP($A$3,'GEO-W'!$A$14:$BX$500,25,FALSE),VLOOKUP($A$3,'GEO-W'!$A$14:$BX$500,62,FALSE)) -> 0 | AF14: =SUM(VLOOKUP($A$3,'GEO-W'!$A$14:$BX$500,28,FALSE)*$R14,VLOOKUP($A$3,'GEO-W'!$A$14:$BX$500,65,FALSE)*$S14)/SUM($R14,$S14) -> 0 | AG14: =SUM(VLOOKUP($A$3,'GEO-W'!$A$14:$BX$500,31,FALSE),VLOOKUP($A$3,'GEO-W'!$A$14:$BX$500,68,FALSE))/SUM($R14:$S14)*100 -> 0 | AH14: =SUM(VLOOKUP($A$3,'GEO-W'!$A$14:$BX$500,31,FALSE),VLOOKUP($A$3,'GEO-W'!$A$14:$BX$500,68,FALSE)) -> 0 | AI14: =SUM(VLOOKUP($A$3,'GEO-W'!$A$14:$BX$500,34,FALSE)*$R14,VLOOKUP($A$3,'GEO-W'!$A$14:$BX$500,71,FALSE)*$S14)/SUM($R14,$S14) -> 0 | AJ14: =SUM(VLOOKUP($A$3,'GEO-W'!$A$14:$BX$500,37,FALSE),VLOOKUP($A$3,'GEO-W'!$A$14:$BX$500,74,FALSE))/SUM($R14:$S14)*100 -> 0 | AK14: =SUM(VLOOKUP($A$3,'GEO-W'!$A$14:$BX$500,37,FALSE),VLOOKUP($A$3,'GEO-W'!$A$14:$BX$500,74,FALSE)) -> 0
A15: Black | B15: =IFERROR(VLOOKUP(TEXT($A$3,"0000"),'AYP11'!$B$847:$AU$1268,36,FALSE)," ") -> NA | C15: =IFERROR(VLOOKUP(TEXT($A$3,"0000"),MEM_B!$A$2:$S$500,13,FALSE),0) -> 26 | D15: =IFERROR((IF(OR(C15=0,C15="",C15="NA"),"NA",((IF(VLOOKUP($A$3,'G9-RB'!$A$6:$AM$500,3,FALSE)>=C15,"100% ("&VLOOKUP($A$3,'G9-RB'!$A$6:$AM$500,3,FALSE)&")",(ROUND((VLOOKUP($A$3,'G9-RB'!$A$6:$AM$500,3,FALSE)/C15*100),0))&"% ("&IF(VLOOKUP($A$3,'G9-RB'!$A$6:$AM$500,3,FALSE)="",0,VLOOKUP($A$3,'G9-RB'!$A$6:$AM$500,3,FALSE))&")"))))),"0% (0)") -> 100% (26) | E15: =IFERROR((IF($D15="NA","NA",VLOOKUP($A$3,'G9-RB'!$A$6:$AG$500,4,FALSE))),"NA") -> 35.3 | F15: =IFERROR((IF($D15="NA","NA",ROUND(VLOOKUP($A$3,'G9-RB'!$A$6:$AG$500,6,FALSE),0)&"% ("&IF(VLOOKUP($A$3,'G9-RB'!$A$6:$AG$500,5,FALSE)="",0,VLOOKUP($A$3,'G9-RB'!$A$6:$AG$500,5,FALSE))&")")),"NA") -> 65% (17) | G15: =IFERROR((IF($D15="NA","NA",VLOOKUP($A$3,'G9-RB'!$A$6:$AG$500,7,FALSE))),"NA") -> 9 | H15: =IFERROR((IF($D15="NA","NA",ROUND(VLOOKUP($A$3,'G9-RB'!$A$6:$AG$500,9,FALSE),0)&"% ("&IF(VLOOKUP($A$3,'G9-RB'!$A$6:$AG$500,8,FALSE)="",0,VLOOKUP($A$3,'G9-RB'!$A$6:$AG$500,8,FALSE))&")")),"NA") -> 73% (19) | I15: =IFERROR((IF($D15="NA","NA",VLOOKUP($A$3,'G9-RB'!$A$6:$AG$500,10,FALSE))),"NA") -> 14.4 | J15: =IFERROR((IF($D15="NA","NA",ROUND(VLOOKUP($A$3,'G9-RB'!$A$6:$AG$500,12,FALSE),0)&"% ("&IF(VLOOKUP($A$3,'G9-RB'!$A$6:$AG$500,11,FALSE)="",0,VLOOKUP($A$3,'G9-RB'!$A$6:$AG$500,11,FALSE))&")")),"NA") -> 69% (18) | K15: =IFERROR((IF($D15="NA","NA",VLOOKUP($A$3,'G9-RB'!$A$6:$AG$500,13,FALSE))),"NA") -> 6.7 | L15: =IFERROR((IF($D15="NA","NA",ROUND(VLOOKUP($A$3,'G9-RB'!$A$6:$AG$500,15,FALSE),0)&"% ("&IF(VLOOKUP($A$3,'G9-RB'!$A$6:$AG$500,14,FALSE)="",0,VLOOKUP($A$3,'G9-RB'!$A$6:$AG$500,14,FALSE))&")")),"NA") -> 65% (17) | M15: =IFERROR((IF($D15="NA","NA",VLOOKUP($A$3,'G9-RB'!$A$6:$AG$500,16,FALSE))),"NA") -> 5.2 | N15: =IFERROR((IF($D15="NA","NA",ROUND(VLOOKUP($A$3,'G9-RB'!$A$6:$AG$500,18,FALSE),0)&"% ("&IF(VLOOKUP($A$3,'G9-RB'!$A$6:$AG$500,17,FALSE)="",0,VLOOKUP($A$3,'G9-RB'!$A$6:$AG$500,17,FALSE))&")")),"NA") -> 27% (7) | R15: =IFERROR(VLOOKUP($A$3,'G9-RB'!$A$6:$BX$500,3,FALSE),"not tested") -> 26 | T15: =SUM(VLOOKUP($A$3,'GEO-B'!$A$14:$BX$500,4,FALSE)*$R15,VLOOKUP($A$3,'GEO-B'!$A$14:$BX$500,41,FALSE)*$S15)/SUM($R15,$S15) -> 21.5 | U15: =SUM(VLOOKUP($A$3,'GEO-B'!$A$14:$BX$500,7,FALSE),VLOOKUP($A$3,'GEO-B'!$A$14:$BX$500,44,FALSE))/SUM($R15:$S15)*100 -> 19.23076923 | V15: =SUM(VLOOKUP($A$3,'GEO-B'!$A$14:$BX$500,7,FALSE),VLOOKUP($A$3,'GEO-B'!$A$14:$BX$500,44,FALSE)) -> 5 | W15: =SUM(VLOOKUP($A$3,'GEO-B'!$A$14:$BX$500,10,FALSE)*$R15,VLOOKUP($A$3,'GEO-B'!$A$14:$BX$500,47,FALSE)*$S15)/SUM($R15,$S15) -> 21.5 | X15: =SUM(VLOOKUP($A$3,'GEO-B'!$A$14:$BX$500,8,FALSE),VLOOKUP($A$3,'GEO-B'!$A$14:$BX$500,50,FALSE))/SUM($R15:$S15)*100 -> 3.245384615 | Y15: =SUM(VLOOKUP($A$3,'GEO-B'!$A$14:$BX$500,8,FALSE),VLOOKUP($A$3,'GEO-B'!$A$14:$BX$500,50,FALSE)) -> 0.8438 | Z15: =SUM(VLOOKUP($A$3,'GEO-B'!$A$14:$BX$500,16,FALSE)*$R15,VLOOKUP($A$3,'GEO-B'!$A$14:$BX$500,53,FALSE)*$S15)/SUM($R15,$S15) -> 0 | AA15: =SUM(VLOOKUP($A$3,'GEO-B'!$A$14:$BX$500,19,FALSE),VLOOKUP($A$3,'GEO-B'!$A$14:$BX$500,56,FALSE))/SUM($R15:$S15)*100 -> 0 | AB15: =SUM(VLOOKUP($A$3,'GEO-B'!$A$14:$BX$500,19,FALSE),VLOOKUP($A$3,'GEO-B'!$A$14:$BX$500,56,FALSE)) -> 0 | AC15: =SUM(VLOOKUP($A$3,'GEO-B'!$A$14:$BX$500,22,FALSE)*$R15,VLOOKUP($A$3,'GEO-B'!$A$14:$BX$500,59,FALSE)*$S15)/SUM($R15,$S15) -> 0 | AD15: =SUM(VLOOKUP($A$3,'GEO-B'!$A$14:$BX$500,25,FALSE),VLOOKUP($A$3,'GEO-B'!$A$14:$BX$500,62,FALSE))/SUM($R15:$S15)*100 -> 0 | AE15: =SUM(VLOOKUP($A$3,'GEO-B'!$A$14:$BX$500,25,FALSE),VLOOKUP($A$3,'GEO-B'!$A$14:$BX$500,62,FALSE)) -> 0 | AF15: =SUM(VLOOKUP($A$3,'GEO-B'!$A$14:$BX$500,28,FALSE)*$R15,VLOOKUP($A$3,'GEO-B'!$A$14:$BX$500,65,FALSE)*$S15)/SUM($R15,$S15) -> 0 | AG15: =SUM(VLOOKUP($A$3,'GEO-B'!$A$14:$BX$500,31,FALSE),VLOOKUP($A$3,'GEO-B'!$A$14:$BX$500,68,FALSE))/SUM($R15:$S15)*100 -> 0 | AH15: =SUM(VLOOKUP($A$3,'GEO-B'!$A$14:$BX$500,31,FALSE),VLOOKUP($A$3,'GEO-B'!$A$14:$BX$500,68,FALSE)) -> 0 | AI15: =SUM(VLOOKUP($A$3,'GEO-B'!$A$14:$BX$500,34,FALSE)*$R15,VLOOKUP($A$3,'GEO-B'!$A$14:$BX$500,71,FALSE)*$S15)/SUM($R15,$S15) -> 0 | AJ15: =SUM(VLOOKUP($A$3,'GEO-B'!$A$14:$BX$500,37,FALSE),VLOOKUP($A$3,'GEO-B'!$A$14:$BX$500,74,FALSE))/SUM($R15:$S15)*100 -> 0 | AK15: =SUM(VLOOKUP($A$3,'GEO-B'!$A$14:$BX$500,37,FALSE),VLOOKUP($A$3,'GEO-B'!$A$14:$BX$500,74,FALSE)) -> 0
A16: Hispanic | B16: =IFERROR(VLOOKUP(TEXT($A$3,"0000"),'AYP11'!$B$2113:$AU$2534,36,FALSE)," ") -> NO | C16: =IFERROR(VLOOKUP(TEXT($A$3,"0000"),MEM_H!$A$2:$S$500,13,FALSE),0) -> 957 | D16: =IFERROR((IF(OR(C16=0,C16="",C16="NA"),"NA",((IF(VLOOKUP($A$3,'G9-RH'!$A$6:$AM$500,3,FALSE)>=C16,"100% ("&VLOOKUP($A$3,'G9-RH'!$A$6:$AM$500,3,FALSE)&")",(ROUND((VLOOKUP($A$3,'G9-RH'!$A$6:$AM$500,3,FALSE)/C16*100),0))&"% ("&IF(VLOOKUP($A$3,'G9-RH'!$A$6:$AM$500,3,FALSE)="",0,VLOOKUP($A$3,'G9-RH'!$A$6:$AM$500,3,FALSE))&")"))))),"0% (0)") -> 92% (879) | E16: =IFERROR((IF($D16="NA","NA",VLOOKUP($A$3,'G9-RH'!$A$6:$AM$500,4,FALSE))),"NA") -> 31.5 | F16: =IFERROR((IF($D16="NA","NA",ROUND(VLOOKUP($A$3,'G9-RH'!$A$6:$AM$500,6,FALSE),0)&"% ("&IF(VLOOKUP($A$3,'G9-RH'!$A$6:$AM$500,5,FALSE)="",0,VLOOKUP($A$3,'G9-RH'!$A$6:$AM$500,5,FALSE))&")")),"NA") -> 47% (413) | G16: =IFERROR((IF($D16="NA","NA",VLOOKUP($A$3,'G9-RH'!$A$6:$AM$500,7,FALSE))),"NA") -> 8.2 | H16: =IFERROR((IF($D16="NA","NA",ROUND(VLOOKUP($A$3,'G9-RH'!$A$6:$AM$500,9,FALSE),0)&"% ("&IF(VLOOKUP($A$3,'G9-RH'!$A$6:$AM$500,8,FALSE)="",0,VLOOKUP($A$3,'G9-RH'!$A$6:$AM$500,8,FALSE))&")")),"NA") -> 53% (462) | I16: =IFERROR((IF($D16="NA","NA",VLOOKUP($A$3,'G9-RH'!$A$6:$AM$500,10,FALSE))),"NA") -> 13.2 | J16: =IFERROR((IF($D16="NA","NA",ROUND(VLOOKUP($A$3,'G9-RH'!$A$6:$AM$500,12,FALSE),0)&"% ("&IF(VLOOKUP($A$3,'G9-RH'!$A$6:$AM$500,11,FALSE)="",0,VLOOKUP($A$3,'G9-RH'!$A$6:$AM$500,11,FALSE))&")")),"NA") -> 57% (497) | K16: =IFERROR((IF($D16="NA","NA",VLOOKUP($A$3,'G9-RH'!$A$6:$AM$500,13,FALSE))),"NA") -> 5.8 | L16: =IFERROR((IF($D16="NA","NA",ROUND(VLOOKUP($A$3,'G9-RH'!$A$6:$AM$500,15,FALSE),0)&"% ("&IF(VLOOKUP($A$3,'G9-RH'!$A$6:$AM$500,14,FALSE)="",0,VLOOKUP($A$3,'G9-RH'!$A$6:$AM$500,14,FALSE))&")")),"NA") -> 44% (384) | M16: =IFERROR((IF($D16="NA","NA",VLOOKUP($A$3,'G9-RH'!$A$6:$AM$500,16,FALSE))),"NA") -> 4.3 | N16: =IFERROR((IF($D16="NA","NA",ROUND(VLOOKUP($A$3,'G9-RH'!$A$6:$AM$500,18,FALSE),0)&"% ("&IF(VLOOKUP($A$3,'G9-RH'!$A$6:$AM$500,17,FALSE)="",0,VLOOKUP($A$3,'G9-RH'!$A$6:$AM$500,17,FALSE))&")")),"NA") -> 10% (87) | R16: =IFERROR(VLOOKUP($A$3,'G9-RH'!$A$6:$BX$500,3,FALSE),"not tested") -> 879 | T16: =SUM(VLOOKUP($A$3,'GEO-H'!$A$14:$BX$500,4,FALSE)*$R16,VLOOKUP($A$3,'GEO-H'!$A$14:$BX$500,41,FALSE)*$S16)/SUM($R16,$S16) -> 23.20000076 | U16: =SUM(VLOOKUP($A$3,'GEO-H'!$A$14:$BX$500,7,FALSE),VLOOKUP($A$3,'GEO-H'!$A$14:$BX$500,44,FALSE))/SUM($R16:$S16)*100 -> 22.52559727 | V16: =SUM(VLOOKUP($A$3,'GEO-H'!$A$14:$BX$500,7,FALSE),VLOOKUP($A$3,'GEO-H'!$A$14:$BX$500,44,FALSE)) -> 198 | W16: =SUM(VLOOKUP($A$3,'GEO-H'!$A$14:$BX$500,10,FALSE)*$R16,VLOOKUP($A$3,'GEO-H'!$A$14:$BX$500,47,FALSE)*$S16)/SUM($R16,$S16) -> 23.20000076 | X16: =SUM(VLOOKUP($A$3,'GEO-H'!$A$14:$BX$500,8,FALSE),VLOOKUP($A$3,'GEO-H'!$A$14:$BX$500,50,FALSE))/SUM($R16:$S16)*100 -> 0.09094425484 | Y16: =SUM(VLOOKUP($A$3,'GEO-H'!$A$14:$BX$500,8,FALSE),VLOOKUP($A$3,'GEO-H'!$A$14:$BX$500,50,FALSE)) -> 0.7994 | Z16: =SUM(VLOOKUP($A$3,'GEO-H'!$A$14:$BX$500,16,FALSE)*$R16,VLOOKUP($A$3,'GEO-H'!$A$14:$BX$500,53,FALSE)*$S16)/SUM($R16,$S16) -> 0 | AA16: =SUM(VLOOKUP($A$3,'GEO-H'!$A$14:$BX$500,19,FALSE),VLOOKUP($A$3,'GEO-H'!$A$14:$BX$500,56,FALSE))/SUM($R16:$S16)*100 -> 0 | AB16: =SUM(VLOOKUP($A$3,'GEO-H'!$A$14:$BX$500,19,FALSE),VLOOKUP($A$3,'GEO-H'!$A$14:$BX$500,56,FALSE)) -> 0 | AC16: =SUM(VLOOKUP($A$3,'GEO-H'!$A$14:$BX$500,22,FALSE)*$R16,VLOOKUP($A$3,'GEO-H'!$A$14:$BX$500,59,FALSE)*$S16)/SUM($R16,$S16) -> 0 | AD16: =SUM(VLOOKUP($A$3,'GEO-H'!$A$14:$BX$500,25,FALSE),VLOOKUP($A$3,'GEO-H'!$A$14:$BX$500,62,FALSE))/SUM($R16:$S16)*100 -> 0 | AE16: =SUM(VLOOKUP($A$3,'GEO-H'!$A$14:$BX$500,25,FALSE),VLOOKUP($A$3,'GEO-H'!$A$14:$BX$500,62,FALSE)) -> 0 | AF16: =SUM(VLOOKUP($A$3,'GEO-H'!$A$14:$BX$500,28,FALSE)*$R16,VLOOKUP($A$3,'GEO-H'!$A$14:$BX$500,65,FALSE)*$S16)/SUM($R16,$S16) -> 0 | AG16: =SUM(VLOOKUP($A$3,'GEO-H'!$A$14:$BX$500,31,FALSE),VLOOKUP($A$3,'GEO-H'!$A$14:$BX$500,68,FALSE))/SUM($R16:$S16)*100 -> 0 | AH16: =SUM(VLOOKUP($A$3,'GEO-H'!$A$14:$BX$500,31,FALSE),VLOOKUP($A$3,'GEO-H'!$A$14:$BX$500,68,FALSE)) -> 0 | AI16: =SUM(VLOOKUP($A$3,'GEO-H'!$A$14:$BX$500,34,FALSE)*$R16,VLOOKUP($A$3,'GEO-H'!$A$14:$BX$500,71,FALSE)*$S16)/SUM($R16,$S16) -> 0 | AJ16: =SUM(VLOOKUP($A$3,'GEO-H'!$A$14:$BX$500,37,FALSE),VLOOKUP($A$3,'GEO-H'!$A$14:$BX$500,74,FALSE))/SUM($R16:$S16)*100 -> 0 | AK16: =SUM(VLOOKUP($A$3,'GEO-H'!$A$14:$BX$500,37,FALSE),VLOOKUP($A$3,'GEO-H'!$A$14:$BX$500,74,FALSE)) -> 0
A17: Asian | B17: =IFERROR(VLOOKUP(TEXT($A$3,"0000"),'AYP11'!$B$425:$AU$846,36,FALSE)," ") -> NA | C17: =IFERROR(VLOOKUP(TEXT($A$3,"0000"),MEM_A!$A$2:$S$500,13,FALSE),0) -> 28 | D17: =IFERROR((IF(OR(C17=0,C17="",C17="NA"),"NA",((IF(VLOOKUP($A$3,'G9-RA'!$A$6:$AM$500,3,FALSE)>=C17,"100% ("&VLOOKUP($A$3,'G9-RA'!$A$6:$AM$500,3,FALSE)&")",(ROUND((VLOOKUP($A$3,'G9-RA'!$A$6:$AM$500,3,FALSE)/C17*100),0))&"% ("&IF(VLOOKUP($A$3,'G9-RA'!$A$6:$AM$500,3,FALSE)="",0,VLOOKUP($A$3,'G9-RA'!$A$6:$AM$500,3,FALSE))&")"))))),"0% (0)") -> 96% (27) | E17: =IFERROR((IF($D17="NA","NA",VLOOKUP($A$3,'G9-RA'!$A$6:$AM$500,4,FALSE))),"NA") -> 38.1 | F17: =IFERROR((IF($D17="NA","NA",ROUND(VLOOKUP($A$3,'G9-RA'!$A$6:$AM$500,6,FALSE),0)&"% ("&IF(VLOOKUP($A$3,'G9-RA'!$A$6:$AM$500,5,FALSE)="",0,VLOOKUP($A$3,'G9-RA'!$A$6:$AM$500,5,FALSE))&")")),"NA") -> 78% (21) | G17: =IFERROR((IF($D17="NA","NA",VLOOKUP($A$3,'G9-RA'!$A$6:$AM$500,7,FALSE))),"NA") -> 9.7 | H17: =IFERROR((IF($D17="NA","NA",ROUND(VLOOKUP($A$3,'G9-RA'!$A$6:$AM$500,9,FALSE),0)&"% ("&IF(VLOOKUP($A$3,'G9-RA'!$A$6:$AM$500,8,FALSE)="",0,VLOOKUP($A$3,'G9-RA'!$A$6:$AM$500,8,FALSE))&")")),"NA") -> 74% (20) | I17: =IFERROR((IF($D17="NA","NA",VLOOKUP($A$3,'G9-RA'!$A$6:$AM$500,10,FALSE))),"NA") -> 15.4 | J17: =IFERROR((IF($D17="NA","NA",ROUND(VLOOKUP($A$3,'G9-RA'!$A$6:$AM$500,12,FALSE),0)&"% ("&IF(VLOOKUP($A$3,'G9-RA'!$A$6:$AM$500,11,FALSE)="",0,VLOOKUP($A$3,'G9-RA'!$A$6:$AM$500,11,FALSE))&")")),"NA") -> 78% (21) | K17: =IFERROR((IF($D17="NA","NA",VLOOKUP($A$3,'G9-RA'!$A$6:$AM$500,13,FALSE))),"NA") -> 7.7 | L17: =IFERROR((IF($D17="NA","NA",ROUND(VLOOKUP($A$3,'G9-RA'!$A$6:$AM$500,15,FALSE),0)&"% ("&IF(VLOOKUP($A$3,'G9-RA'!$A$6:$AM$500,14,FALSE)="",0,VLOOKUP($A$3,'G9-RA'!$A$6:$AM$500,14,FALSE))&")")),"NA") -> 78% (21) | M17: =IFERROR((IF($D17="NA","NA",VLOOKUP($A$3,'G9-RA'!$A$6:$AM$500,16,FALSE))),"NA") -> 5.3 | N17: =IFERROR((IF($D17="NA","NA",ROUND(VLOOKUP($A$3,'G9-RA'!$A$6:$AM$500,18,FALSE),0)&"% ("&IF(VLOOKUP($A$3,'G9-RA'!$A$6:$AM$500,17,FALSE)="",0,VLOOKUP($A$3,'G9-RA'!$A$6:$AM$500,17,FALSE))&")")),"NA") -> 19% (5) | R17: =IFERROR(VLOOKUP($A$3,'G9-RA'!$A$6:$BX$500,3,FALSE),"not tested") -> 27 | T17: =SUM(VLOOKUP($A$3,'GEO-A'!$A$14:$BX$500,4,FALSE)*$R17,VLOOKUP($A$3,'GEO-A'!$A$14:$BX$500,41,FALSE)*$S17)/SUM($R17,$S17) -> 30.70000076 | U17: =SUM(VLOOKUP($A$3,'GEO-A'!$A$14:$BX$500,7,FALSE),VLOOKUP($A$3,'GEO-A'!$A$14:$BX$500,44,FALSE))/SUM($R17:$S17)*100 -> 37.03703704 | V17: =SUM(VLOOKUP($A$3,'GEO-A'!$A$14:$BX$500,7,FALSE),VLOOKUP($A$3,'GEO-A'!$A$14:$BX$500,44,FALSE)) -> 10 | W17: =SUM(VLOOKUP($A$3,'GEO-A'!$A$14:$BX$500,10,FALSE)*$R17,VLOOKUP($A$3,'GEO-A'!$A$14:$BX$500,47,FALSE)*$S17)/SUM($R17,$S17) -> 30.70000076 | X17: =SUM(VLOOKUP($A$3,'GEO-A'!$A$14:$BX$500,8,FALSE),VLOOKUP($A$3,'GEO-A'!$A$14:$BX$500,50,FALSE))/SUM($R17:$S17)*100 -> 1.645925926 | Y17: =SUM(VLOOKUP($A$3,'GEO-A'!$A$14:$BX$500,8,FALSE),VLOOKUP($A$3,'GEO-A'!$A$14:$BX$500,50,FALSE)) -> 0.4444 | Z17: =SUM(VLOOKUP($A$3,'GEO-A'!$A$14:$BX$500,16,FALSE)*$R17,VLOOKUP($A$3,'GEO-A'!$A$14:$BX$500,53,FALSE)*$S17)/SUM($R17,$S17) -> 0 | AA17: =SUM(VLOOKUP($A$3,'GEO-A'!$A$14:$BX$500,19,FALSE),VLOOKUP($A$3,'GEO-A'!$A$14:$BX$500,56,FALSE))/SUM($R17:$S17)*100 -> 0 | AB17: =SUM(VLOOKUP($A$3,'GEO-A'!$A$14:$BX$500,19,FALSE),VLOOKUP($A$3,'GEO-A'!$A$14:$BX$500,56,FALSE)) -> 0 | AC17: =SUM(VLOOKUP($A$3,'GEO-A'!$A$14:$BX$500,22,FALSE)*$R17,VLOOKUP($A$3,'GEO-A'!$A$14:$BX$500,59,FALSE)*$S17)/SUM($R17,$S17) -> 0 | AD17: =SUM(VLOOKUP($A$3,'GEO-A'!$A$14:$BX$500,25,FALSE),VLOOKUP($A$3,'GEO-A'!$A$14:$BX$500,62,FALSE))/SUM($R17:$S17)*100 -> 0 | AE17: =SUM(VLOOKUP($A$3,'GEO-A'!$A$14:$BX$500,25,FALSE),VLOOKUP($A$3,'GEO-A'!$A$14:$BX$500,62,FALSE)) -> 0 | AF17: =SUM(VLOOKUP($A$3,'GEO-A'!$A$14:$BX$500,28,FALSE)*$R17,VLOOKUP($A$3,'GEO-A'!$A$14:$BX$500,65,FALSE)*$S17)/SUM($R17,$S17) -> 0 | AG17: =SUM(VLOOKUP($A$3,'GEO-A'!$A$14:$BX$500,31,FALSE),VLOOKUP($A$3,'GEO-A'!$A$14:$BX$500,68,FALSE))/SUM($R17:$S17)*100 -> 0 | AH17: =SUM(VLOOKUP($A$3,'GEO-A'!$A$14:$BX$500,31,FALSE),VLOOKUP($A$3,'GEO-A'!$A$14:$BX$500,68,FALSE)) -> 0 | AI17: =SUM(VLOOKUP($A$3,'GEO-A'!$A$14:$BX$500,34,FALSE)*$R17,VLOOKUP($A$3,'GEO-A'!$A$14:$BX$500,71,FALSE)*$S17)/SUM($R17,$S17) -> 0 | AJ17: =SUM(VLOOKUP($A$3,'GEO-A'!$A$14:$BX$500,37,FALSE),VLOOKUP($A$3,'GEO-A'!$A$14:$BX$500,74,FALSE))/SUM($R17:$S17)*100 -> 0 | AK17: =SUM(VLOOKUP($A$3,'GEO-A'!$A$14:$BX$500,37,FALSE),VLOOKUP($A$3,'GEO-A'!$A$14:$BX$500,74,FALSE)) -> 0
A18: Am. Indian | B18: =IFERROR(VLOOKUP(TEXT($A$3,"0000"),'AYP11'!$B$3:$AU$424,36,FALSE)," ") -> NA | C18: =IFERROR(VLOOKUP(TEXT($A$3,"0000"),MEM_I!$A$2:$S$500,13,FALSE),0) -> 1 | D18: =IFERROR((IF(OR(C18=0,C18="",C18="NA"),"NA",((IF(VLOOKUP($A$3,'G9-RI'!$A$6:$AM$500,3,FALSE)>=C18,"100% ("&VLOOKUP($A$3,'G9-RI'!$A$6:$AM$500,3,FALSE)&")",(ROUND((VLOOKUP($A$3,'G9-RI'!$A$6:$AM$500,3,FALSE)/C18*100),0))&"% ("&IF(VLOOKUP($A$3,'G9-RI'!$A$6:$AM$500,3,FALSE)="",0,VLOOKUP($A$3,'G9-RI'!$A$6:$AM$500,3,FALSE))&")"))))),"0% (0)") -> 100% (1) | E18: =IFERROR((IF($D18="NA","NA",VLOOKUP($A$3,'G9-RI'!$A$6:$AM$500,4,FALSE))),"NA") -> 43 | F18: =IFERROR((IF($D18="NA","NA",ROUND(VLOOKUP($A$3,'G9-RI'!$A$6:$AM$500,6,FALSE),0)&"% ("&IF(VLOOKUP($A$3,'G9-RI'!$A$6:$AM$500,5,FALSE)="",0,VLOOKUP($A$3,'G9-RI'!$A$6:$AM$500,5,FALSE))&")")),"NA") -> 100% (1) | G18: =IFERROR((IF($D18="NA","NA",VLOOKUP($A$3,'G9-RI'!$A$6:$AM$500,7,FALSE))),"NA") -> 10 | H18: =IFERROR((IF($D18="NA","NA",ROUND(VLOOKUP($A$3,'G9-RI'!$A$6:$AM$500,9,FALSE),0)&"% ("&IF(VLOOKUP($A$3,'G9-RI'!$A$6:$AM$500,8,FALSE)="",0,VLOOKUP($A$3,'G9-RI'!$A$6:$AM$500,8,FALSE))&")")),"NA") -> 100% (1) | I18: =IFERROR((IF($D18="NA","NA",VLOOKUP($A$3,'G9-RI'!$A$6:$AM$500,10,FALSE))),"NA") -> 17 | J18: =IFERROR((IF($D18="NA","NA",ROUND(VLOOKUP($A$3,'G9-RI'!$A$6:$AM$500,12,FALSE),0)&"% ("&IF(VLOOKUP($A$3,'G9-RI'!$A$6:$AM$500,11,FALSE)="",0,VLOOKUP($A$3,'G9-RI'!$A$6:$AM$500,11,FALSE))&")")),"NA") -> 100% (1) | K18: =IFERROR((IF($D18="NA","NA",VLOOKUP($A$3,'G9-RI'!$A$6:$AM$500,13,FALSE))),"NA") -> 10 | L18: =IFERROR((IF($D18="NA","NA",ROUND(VLOOKUP($A$3,'G9-RI'!$A$6:$AM$500,15,FALSE),0)&"% ("&IF(VLOOKUP($A$3,'G9-RI'!$A$6:$AM$500,14,FALSE)="",0,VLOOKUP($A$3,'G9-RI'!$A$6:$AM$500,14,FALSE))&")")),"NA") -> 100% (1) | M18: =IFERROR((IF($D18="NA","NA",VLOOKUP($A$3,'G9-RI'!$A$6:$AM$500,16,FALSE))),"NA") -> 6 | N18: =IFERROR((IF($D18="NA","NA",ROUND(VLOOKUP($A$3,'G9-RI'!$A$6:$AM$500,18,FALSE),0)&"% ("&IF(VLOOKUP($A$3,'G9-RI'!$A$6:$AM$500,17,FALSE)="",0,VLOOKUP($A$3,'G9-RI'!$A$6:$AM$500,17,FALSE))&")")),"NA") -> 0% (0) | R18: =IFERROR(VLOOKUP($A$3,'G9-RI'!$A$6:$BX$500,3,FALSE),"not tested") -> 1 | T18: =SUM(VLOOKUP($A$3,'GEO-I'!$A$14:$BX$500,4,FALSE)*$R18,VLOOKUP($A$3,'GEO-I'!$A$14:$BX$500,41,FALSE)*$S18)/SUM($R18,$S18) -> 31 | U18: =SUM(VLOOKUP($A$3,'GEO-I'!$A$14:$BX$500,7,FALSE),VLOOKUP($A$3,'GEO-I'!$A$14:$BX$500,44,FALSE))/SUM($R18:$S18)*100 -> 100 | V18: =SUM(VLOOKUP($A$3,'GEO-I'!$A$14:$BX$500,7,FALSE),VLOOKUP($A$3,'GEO-I'!$A$14:$BX$500,44,FALSE)) -> 1 | W18: =SUM(VLOOKUP($A$3,'GEO-I'!$A$14:$BX$500,10,FALSE)*$R18,VLOOKUP($A$3,'GEO-I'!$A$14:$BX$500,47,FALSE)*$S18)/SUM($R18,$S18) -> 31 | X18: =SUM(VLOOKUP($A$3,'GEO-I'!$A$14:$BX$500,8,FALSE),VLOOKUP($A$3,'GEO-I'!$A$14:$BX$500,50,FALSE))/SUM($R18:$S18)*100 -> 0 | Y18: =SUM(VLOOKUP($A$3,'GEO-I'!$A$14:$BX$500,8,FALSE),VLOOKUP($A$3,'GEO-I'!$A$14:$BX$500,50,FALSE)) -> 0 | Z18: =SUM(VLOOKUP($A$3,'GEO-I'!$A$14:$BX$500,16,FALSE)*$R18,VLOOKUP($A$3,'GEO-I'!$A$14:$BX$500,53,FALSE)*$S18)/SUM($R18,$S18) -> 0 | AA18: =SUM(VLOOKUP($A$3,'GEO-I'!$A$14:$BX$500,19,FALSE),VLOOKUP($A$3,'GEO-I'!$A$14:$BX$500,56,FALSE))/SUM($R18:$S18)*100 -> 0 | AB18: =SUM(VLOOKUP($A$3,'GEO-I'!$A$14:$BX$500,19,FALSE),VLOOKUP($A$3,'GEO-I'!$A$14:$BX$500,56,FALSE)) -> 0 | AC18: =SUM(VLOOKUP($A$3,'GEO-I'!$A$14:$BX$500,22,FALSE)*$R18,VLOOKUP($A$3,'GEO-I'!$A$14:$BX$500,59,FALSE)*$S18)/SUM($R18,$S18) -> 0 | AD18: =SUM(VLOOKUP($A$3,'GEO-I'!$A$14:$BX$500,25,FALSE),VLOOKUP($A$3,'GEO-I'!$A$14:$BX$500,62,FALSE))/SUM($R18:$S18)*100 -> 0 | AE18: =SUM(VLOOKUP($A$3,'GEO-I'!$A$14:$BX$500,25,FALSE),VLOOKUP($A$3,'GEO-I'!$A$14:$BX$500,62,FALSE)) -> 0 | AF18: =SUM(VLOOKUP($A$3,'GEO-I'!$A$14:$BX$500,28,FALSE)*$R18,VLOOKUP($A$3,'GEO-I'!$A$14:$BX$500,65,FALSE)*$S18)/SUM($R18,$S18) -> 0 | AG18: =SUM(VLOOKUP($A$3,'GEO-I'!$A$14:$BX$500,31,FALSE),VLOOKUP($A$3,'GEO-I'!$A$14:$BX$500,68,FALSE))/SUM($R18:$S18)*100 -> 0 | AH18: =SUM(VLOOKUP($A$3,'GEO-I'!$A$14:$BX$500,31,FALSE),VLOOKUP($A$3,'GEO-I'!$A$14:$BX$500,68,FALSE)) -> 0 | AI18: =SUM(VLOOKUP($A$3,'GEO-I'!$A$14:$BX$500,34,FALSE)*$R18,VLOOKUP($A$3,'GEO-I'!$A$14:$BX$500,71,FALSE)*$S18)/SUM($R18,$S18) -> 0 | AJ18: =SUM(VLOOKUP($A$3,'GEO-I'!$A$14:$BX$500,37,FALSE),VLOOKUP($A$3,'GEO-I'!$A$14:$BX$500,74,FALSE))/SUM($R18:$S18)*100 -> 0 | AK18: =SUM(VLOOKUP($A$3,'GEO-I'!$A$14:$BX$500,37,FALSE),VLOOKUP($A$3,'GEO-I'!$A$14:$BX$500,74,FALSE)) -> 0
A19: ED | B19: =IFERROR(VLOOKUP(TEXT($A$3,"0000"),'AYP11'!$B$1269:$AU$1690,36,FALSE)," ") -> NO | C19: =IFERROR(VLOOKUP(TEXT($A$3,"0000"),MEM_ED!$A$2:$S$500,13,FALSE),0) -> 654 | D19: =IFERROR((IF(OR(C19=0,C19="",C19="NA"),"NA",((IF(VLOOKUP($A$3,'G9-RED'!$A$6:$AM$500,3,FALSE)>=C19,"100% ("&VLOOKUP($A$3,'G9-RED'!$A$6:$AM$500,3,FALSE)&")",(ROUND((VLOOKUP($A$3,'G9-RED'!$A$6:$AM$500,3,FALSE)/C19*100),0))&"% ("&IF(VLOOKUP($A$3,'G9-RED'!$A$6:$AM$500,3,FALSE)="",0,VLOOKUP($A$3,'G9-RED'!$A$6:$AM$500,3,FALSE))&")"))))),"0% (0)") -> 91% (598) | E19: =IFERROR((IF($D19="NA","NA",VLOOKUP($A$3,'G9-RED'!$A$6:$AM$500,4,FALSE))),"NA") -> 30.9 | F19: =IFERROR((IF($D19="NA","NA",ROUND(VLOOKUP($A$3,'G9-RED'!$A$6:$AM$500,6,FALSE),0)&"% ("&IF(VLOOKUP($A$3,'G9-RED'!$A$6:$AM$500,5,FALSE)="",0,VLOOKUP($A$3,'G9-RED'!$A$6:$AM$500,5,FALSE))&")")),"NA") -> 44% (264) | G19: =IFERROR((IF($D19="NA","NA",VLOOKUP($A$3,'G9-RED'!$A$6:$AM$500,7,FALSE))),"NA") -> 8 | H19: =IFERROR((IF($D19="NA","NA",ROUND(VLOOKUP($A$3,'G9-RED'!$A$6:$AM$500,9,FALSE),0)&"% ("&IF(VLOOKUP($A$3,'G9-RED'!$A$6:$AM$500,8,FALSE)="",0,VLOOKUP($A$3,'G9-RED'!$A$6:$AM$500,8,FALSE))&")")),"NA") -> 49% (296) | I19: =IFERROR((IF($D19="NA","NA",VLOOKUP($A$3,'G9-RED'!$A$6:$AM$500,10,FALSE))),"NA") -> 13 | J19: =IFERROR((IF($D19="NA","NA",ROUND(VLOOKUP($A$3,'G9-RED'!$A$6:$AM$500,12,FALSE),0)&"% ("&IF(VLOOKUP($A$3,'G9-RED'!$A$6:$AM$500,11,FALSE)="",0,VLOOKUP($A$3,'G9-RED'!$A$6:$AM$500,11,FALSE))&")")),"NA") -> 53% (318) | K19: =IFERROR((IF($D19="NA","NA",VLOOKUP($A$3,'G9-RED'!$A$6:$AM$500,13,FALSE))),"NA") -> 5.7 | L19: =IFERROR((IF($D19="NA","NA",ROUND(VLOOKUP($A$3,'G9-RED'!$A$6:$AM$500,15,FALSE),0)&"% ("&IF(VLOOKUP($A$3,'G9-RED'!$A$6:$AM$500,14,FALSE)="",0,VLOOKUP($A$3,'G9-RED'!$A$6:$AM$500,14,FALSE))&")")),"NA") -> 41% (245) | M19: =IFERROR((IF($D19="NA","NA",VLOOKUP($A$3,'G9-RED'!$A$6:$AM$500,16,FALSE))),"NA") -> 4.2 | N19: =IFERROR((IF($D19="NA","NA",ROUND(VLOOKUP($A$3,'G9-RED'!$A$6:$AM$500,18,FALSE),0)&"% ("&IF(VLOOKUP($A$3,'G9-RED'!$A$6:$AM$500,17,FALSE)="",0,VLOOKUP($A$3,'G9-RED'!$A$6:$AM$500,17,FALSE))&")")),"NA") -> 8% (48) | R19: =IFERROR(VLOOKUP($A$3,'G9-RED'!$A$6:$BX$500,3,FALSE),"not tested") -> 598 | T19: =SUM(VLOOKUP($A$3,'GEO-ED'!$A$14:$BX$500,4,FALSE)*$R19,VLOOKUP($A$3,'GEO-ED'!$A$14:$BX$500,41,FALSE)*$S19)/SUM($R19,$S19) -> 22.79999924 | U19: =SUM(VLOOKUP($A$3,'GEO-ED'!$A$14:$BX$500,7,FALSE),VLOOKUP($A$3,'GEO-ED'!$A$14:$BX$500,44,FALSE))/SUM($R19:$S19)*100 -> 20.90301003 | V19: =SUM(VLOOKUP($A$3,'GEO-ED'!$A$14:$BX$500,7,FALSE),VLOOKUP($A$3,'GEO-ED'!$A$14:$BX$500,44,FALSE)) -> 125 | W19: =SUM(VLOOKUP($A$3,'GEO-ED'!$A$14:$BX$500,10,FALSE)*$R19,VLOOKUP($A$3,'GEO-ED'!$A$14:$BX$500,47,FALSE)*$S19)/SUM($R19,$S19) -> 22.79999924 | X19: =SUM(VLOOKUP($A$3,'GEO-ED'!$A$14:$BX$500,8,FALSE),VLOOKUP($A$3,'GEO-ED'!$A$14:$BX$500,50,FALSE))/SUM($R19:$S19)*100 -> 0.1358361204 | Y19: =SUM(VLOOKUP($A$3,'GEO-ED'!$A$14:$BX$500,8,FALSE),VLOOKUP($A$3,'GEO-ED'!$A$14:$BX$500,50,FALSE)) -> 0.8123 | Z19: =SUM(VLOOKUP($A$3,'GEO-ED'!$A$14:$BX$500,16,FALSE)*$R19,VLOOKUP($A$3,'GEO-ED'!$A$14:$BX$500,53,FALSE)*$S19)/SUM($R19,$S19) -> 0 | AA19: =SUM(VLOOKUP($A$3,'GEO-ED'!$A$14:$BX$500,19,FALSE),VLOOKUP($A$3,'GEO-ED'!$A$14:$BX$500,56,FALSE))/SUM($R19:$S19)*100 -> 0 | AB19: =SUM(VLOOKUP($A$3,'GEO-ED'!$A$14:$BX$500,19,FALSE),VLOOKUP($A$3,'GEO-ED'!$A$14:$BX$500,56,FALSE)) -> 0 | AC19: =SUM(VLOOKUP($A$3,'GEO-ED'!$A$14:$BX$500,22,FALSE)*$R19,VLOOKUP($A$3,'GEO-ED'!$A$14:$BX$500,59,FALSE)*$S19)/SUM($R19,$S19) -> 0 | AD19: =SUM(VLOOKUP($A$3,'GEO-ED'!$A$14:$BX$500,25,FALSE),VLOOKUP($A$3,'GEO-ED'!$A$14:$BX$500,62,FALSE))/SUM($R19:$S19)*100 -> 0 | AE19: =SUM(VLOOKUP($A$3,'GEO-ED'!$A$14:$BX$500,25,FALSE),VLOOKUP($A$3,'GEO-ED'!$A$14:$BX$500,62,FALSE)) -> 0 | AF19: =SUM(VLOOKUP($A$3,'GEO-ED'!$A$14:$BX$500,28,FALSE)*$R19,VLOOKUP($A$3,'GEO-ED'!$A$14:$BX$500,65,FALSE)*$S19)/SUM($R19,$S19) -> 0 | AG19: =SUM(VLOOKUP($A$3,'GEO-ED'!$A$14:$BX$500,31,FALSE),VLOOKUP($A$3,'GEO-ED'!$A$14:$BX$500,68,FALSE))/SUM($R19:$S19)*100 -> 0 | AH19: =SUM(VLOOKUP($A$3,'GEO-ED'!$A$14:$BX$500,31,FALSE),VLOOKUP($A$3,'GEO-ED'!$A$14:$BX$500,68,FALSE)) -> 0 | AI19: =SUM(VLOOKUP($A$3,'GEO-ED'!$A$14:$BX$500,34,FALSE)*$R19,VLOOKUP($A$3,'GEO-ED'!$A$14:$BX$500,71,FALSE)*$S19)/SUM($R19,$S19) -> 0 | AJ19: =SUM(VLOOKUP($A$3,'GEO-ED'!$A$14:$BX$500,37,FALSE),VLOOKUP($A$3,'GEO-ED'!$A$14:$BX$500,74,FALSE))/SUM($R19:$S19)*100 -> 0 | AK19: =SUM(VLOOKUP($A$3,'GEO-ED'!$A$14:$BX$500,37,FALSE),VLOOKUP($A$3,'GEO-ED'!$A$14:$BX$500,74,FALSE)) -> 0
A20: ELL | B20: =IFERROR(VLOOKUP(TEXT($A$3,"0000"),'AYP11'!$B$1691:$AU$2112,36,FALSE)," ") -> NO | C20: =IFERROR(VLOOKUP(TEXT($A$3,"0000"),MEM_ELL!$A$2:$S$500,13,FALSE),0) -> 98 | D20: =IFERROR((IF(OR(C20=0,C20="",C20="NA"),"NA",((IF(VLOOKUP($A$3,'G9-RELL'!$A$6:$AM$500,3,FALSE)>=C20,"100% ("&VLOOKUP($A$3,'G9-RELL'!$A$6:$AM$500,3,FALSE)&")",(ROUND((VLOOKUP($A$3,'G9-RELL'!$A$6:$AM$500,3,FALSE)/C20*100),0))&"% ("&IF(VLOOKUP($A$3,'G9-RELL'!$A$6:$AM$500,3,FALSE)="",0,VLOOKUP($A$3,'G9-RELL'!$A$6:$AM$500,3,FALSE))&")"))))),"0% (0)") -> 94% (92) | E20: =IFERROR((IF($D20="NA","NA",VLOOKUP($A$3,'G9-RELL'!$A$6:$AM$500,4,FALSE))),"NA") -> 28.68478261 | F20: =IFERROR((IF($D20="NA","NA",ROUND(VLOOKUP($A$3,'G9-RELL'!$A$6:$AM$500,6,FALSE),0)&"% ("&IF(VLOOKUP($A$3,'G9-RELL'!$A$6:$AM$500,5,FALSE)="",0,VLOOKUP($A$3,'G9-RELL'!$A$6:$AM$500,5,FALSE))&")")),"NA") -> 29% (27) | G20: =IFERROR((IF($D20="NA","NA",VLOOKUP($A$3,'G9-RELL'!$A$6:$AM$500,7,FALSE))),"NA") -> 7.554347826 | H20: =IFERROR((IF($D20="NA","NA",ROUND(VLOOKUP($A$3,'G9-RELL'!$A$6:$AM$500,9,FALSE),0)&"% ("&IF(VLOOKUP($A$3,'G9-RELL'!$A$6:$AM$500,8,FALSE)="",0,VLOOKUP($A$3,'G9-RELL'!$A$6:$AM$500,8,FALSE))&")")),"NA") -> 38% (35) | I20: =IFERROR((IF($D20="NA","NA",VLOOKUP($A$3,'G9-RELL'!$A$6:$AM$500,10,FALSE))),"NA") -> 12.06521739 | J20: =IFERROR((IF($D20="NA","NA",ROUND(VLOOKUP($A$3,'G9-RELL'!$A$6:$AM$500,12,FALSE),0)&"% ("&IF(VLOOKUP($A$3,'G9-RELL'!$A$6:$AM$500,11,FALSE)="",0,VLOOKUP($A$3,'G9-RELL'!$A$6:$AM$500,11,FALSE))&")")),"NA") -> 37% (34) | K20: =IFERROR((IF($D20="NA","NA",VLOOKUP($A$3,'G9-RELL'!$A$6:$AM$500,13,FALSE))),"NA") -> 4.97826087 | L20: =IFERROR((IF($D20="NA","NA",ROUND(VLOOKUP($A$3,'G9-RELL'!$A$6:$AM$500,15,FALSE),0)&"% ("&IF(VLOOKUP($A$3,'G9-RELL'!$A$6:$AM$500,14,FALSE)="",0,VLOOKUP($A$3,'G9-RELL'!$A$6:$AM$500,14,FALSE))&")")),"NA") -> 26% (24) | M20: =IFERROR((IF($D20="NA","NA",VLOOKUP($A$3,'G9-RELL'!$A$6:$AM$500,16,FALSE))),"NA") -> 4.086956522 | N20: =IFERROR((IF($D20="NA","NA",ROUND(VLOOKUP($A$3,'G9-RELL'!$A$6:$AM$500,18,FALSE),0)&"% ("&IF(VLOOKUP($A$3,'G9-RELL'!$A$6:$AM$500,17,FALSE)="",0,VLOOKUP($A$3,'G9-RELL'!$A$6:$AM$500,17,FALSE))&")")),"NA") -> 4% (4) | R20: =IFERROR(VLOOKUP($A$3,'G9-RELL'!$A$6:$BX$500,3,FALSE),"not tested") -> 92 | T20: =SUM(VLOOKUP($A$3,'GEO-ELL'!$A$14:$BX$500,4,FALSE)*$R20,VLOOKUP($A$3,'GEO-ELL'!$A$14:$BX$500,41,FALSE)*$S20)/SUM($R20,$S20) -> 21.20000076 | U20: =SUM(VLOOKUP($A$3,'GEO-ELL'!$A$14:$BX$500,7,FALSE),VLOOKUP($A$3,'GEO-ELL'!$A$14:$BX$500,44,FALSE))/SUM($R20:$S20)*100 -> 14.13043478 | V20: =SUM(VLOOKUP($A$3,'GEO-ELL'!$A$14:$BX$500,7,FALSE),VLOOKUP($A$3,'GEO-ELL'!$A$14:$BX$500,44,FALSE)) -> 13 | W20: =SUM(VLOOKUP($A$3,'GEO-ELL'!$A$14:$BX$500,10,FALSE)*$R20,VLOOKUP($A$3,'GEO-ELL'!$A$14:$BX$500,47,FALSE)*$S20)/SUM($R20,$S20) -> 21.20000076 | X20: =SUM(VLOOKUP($A$3,'GEO-ELL'!$A$14:$BX$500,8,FALSE),VLOOKUP($A$3,'GEO-ELL'!$A$14:$BX$500,50,FALSE))/SUM($R20:$S20)*100 -> 0.935 | Y20: =SUM(VLOOKUP($A$3,'GEO-ELL'!$A$14:$BX$500,8,FALSE),VLOOKUP($A$3,'GEO-ELL'!$A$14:$BX$500,50,FALSE)) -> 0.8602 | Z20: =SUM(VLOOKUP($A$3,'GEO-ELL'!$A$14:$BX$500,16,FALSE)*$R20,VLOOKUP($A$3,'GEO-ELL'!$A$14:$BX$500,53,FALSE)*$S20)/SUM($R20,$S20) -> 0 | AA20: =SUM(VLOOKUP($A$3,'GEO-ELL'!$A$14:$BX$500,19,FALSE),VLOOKUP($A$3,'GEO-ELL'!$A$14:$BX$500,56,FALSE))/SUM($R20:$S20)*100 -> 0 | AB20: =SUM(VLOOKUP($A$3,'GEO-ELL'!$A$14:$BX$500,19,FALSE),VLOOKUP($A$3,'GEO-ELL'!$A$14:$BX$500,56,FALSE)) -> 0 | AC20: =SUM(VLOOKUP($A$3,'GEO-ELL'!$A$14:$BX$500,22,FALSE)*$R20,VLOOKUP($A$3,'GEO-ELL'!$A$14:$BX$500,59,FALSE)*$S20)/SUM($R20,$S20) -> 0 | AD20: =SUM(VLOOKUP($A$3,'GEO-ELL'!$A$14:$BX$500,25,FALSE),VLOOKUP($A$3,'GEO-ELL'!$A$14:$BX$500,62,FALSE))/SUM($R20:$S20)*100 -> 0 | AE20: =SUM(VLOOKUP($A$3,'GEO-ELL'!$A$14:$BX$500,25,FALSE),VLOOKUP($A$3,'GEO-ELL'!$A$14:$BX$500,62,FALSE)) -> 0 | AF20: =SUM(VLOOKUP($A$3,'GEO-ELL'!$A$14:$BX$500,28,FALSE)*$R20,VLOOKUP($A$3,'GEO-ELL'!$A$14:$BX$500,65,FALSE)*$S20)/SUM($R20,$S20) -> 0 | AG20: =SUM(VLOOKUP($A$3,'GEO-ELL'!$A$14:$BX$500,31,FALSE),VLOOKUP($A$3,'GEO-ELL'!$A$14:$BX$500,68,FALSE))/SUM($R20:$S20)*100 -> 0 | AH20: =SUM(VLOOKUP($A$3,'GEO-ELL'!$A$14:$BX$500,31,FALSE),VLOOKUP($A$3,'GEO-ELL'!$A$14:$BX$500,68,FALSE)) -> 0 | AI20: =SUM(VLOOKUP($A$3,'GEO-ELL'!$A$14:$BX$500,34,FALSE)*$R20,VLOOKUP($A$3,'GEO-ELL'!$A$14:$BX$500,71,FALSE)*$S20)/SUM($R20,$S20) -> 0 | AJ20: =SUM(VLOOKUP($A$3,'GEO-ELL'!$A$14:$BX$500,37,FALSE),VLOOKUP($A$3,'GEO-ELL'!$A$14:$BX$500,74,FALSE))/SUM($R20:$S20)*100 -> 0 | AK20: =SUM(VLOOKUP($A$3,'GEO-ELL'!$A$14:$BX$500,37,FALSE),VLOOKUP($A$3,'GEO-ELL'!$A$14:$BX$500,74,FALSE)) -> 0
A21: SWD | B21: =IFERROR(VLOOKUP(TEXT($A$3,"0000"),'AYP11'!$B$2535:$AU$2956,36,FALSE)," ") -> NO | C21: =IFERROR(VLOOKUP(TEXT($A$3,"0000"),MEM_SWD!$A$2:$S$500,13,FALSE),0) -> 117 | D21: =IFERROR((IF(OR(C21=0,C21="",C21="NA"),"NA",((IF(VLOOKUP($A$3,'G9-RSWD'!$A$6:$AM$500,3,FALSE)>=C21,"100% ("&VLOOKUP($A$3,'G9-RSWD'!$A$6:$AM$500,3,FALSE)&")",(ROUND((VLOOKUP($A$3,'G9-RSWD'!$A$6:$AM$500,3,FALSE)/C21*100),0))&"% ("&IF(VLOOKUP($A$3,'G9-RSWD'!$A$6:$AM$500,3,FALSE)="",0,VLOOKUP($A$3,'G9-RSWD'!$A$6:$AM$500,3,FALSE))&")"))))),"0% (0)") -> 85% (100) | E21: =IFERROR((IF($D21="NA","NA",VLOOKUP($A$3,'G9-RSWD'!$A$6:$AM$500,4,FALSE))),"NA") -> 21.6 | F21: =IFERROR((IF($D21="NA","NA",ROUND(VLOOKUP($A$3,'G9-RSWD'!$A$6:$AM$500,6,FALSE),0)&"% ("&IF(VLOOKUP($A$3,'G9-RSWD'!$A$6:$AM$500,5,FALSE)="",0,VLOOKUP($A$3,'G9-RSWD'!$A$6:$AM$500,5,FALSE))&")")),"NA") -> 14% (14) | G21: =IFERROR((IF($D21="NA","NA",VLOOKUP($A$3,'G9-RSWD'!$A$6:$AM$500,7,FALSE))),"NA") -> 5.5 | H21: =IFERROR((IF($D21="NA","NA",ROUND(VLOOKUP($A$3,'G9-RSWD'!$A$6:$AM$500,9,FALSE),0)&"% ("&IF(VLOOKUP($A$3,'G9-RSWD'!$A$6:$AM$500,8,FALSE)="",0,VLOOKUP($A$3,'G9-RSWD'!$A$6:$AM$500,8,FALSE))&")")),"NA") -> 18% (18) | I21: =IFERROR((IF($D21="NA","NA",VLOOKUP($A$3,'G9-RSWD'!$A$6:$AM$500,10,FALSE))),"NA") -> 8.9 | J21: =IFERROR((IF($D21="NA","NA",ROUND(VLOOKUP($A$3,'G9-RSWD'!$A$6:$AM$500,12,FALSE),0)&"% ("&IF(VLOOKUP($A$3,'G9-RSWD'!$A$6:$AM$500,11,FALSE)="",0,VLOOKUP($A$3,'G9-RSWD'!$A$6:$AM$500,11,FALSE))&")")),"NA") -> 16% (16) | K21: =IFERROR((IF($D21="NA","NA",VLOOKUP($A$3,'G9-RSWD'!$A$6:$AM$500,13,FALSE))),"NA") -> 3.8 | L21: =IFERROR((IF($D21="NA","NA",ROUND(VLOOKUP($A$3,'G9-RSWD'!$A$6:$AM$500,15,FALSE),0)&"% ("&IF(VLOOKUP($A$3,'G9-RSWD'!$A$6:$AM$500,14,FALSE)="",0,VLOOKUP($A$3,'G9-RSWD'!$A$6:$AM$500,14,FALSE))&")")),"NA") -> 17% (17) | M21: =IFERROR((IF($D21="NA","NA",VLOOKUP($A$3,'G9-RSWD'!$A$6:$AM$500,16,FALSE))),"NA") -> 3.4 | N21: =IFERROR((IF($D21="NA","NA",ROUND(VLOOKUP($A$3,'G9-RSWD'!$A$6:$AM$500,18,FALSE),0)&"% ("&IF(VLOOKUP($A$3,'G9-RSWD'!$A$6:$AM$500,17,FALSE)="",0,VLOOKUP($A$3,'G9-RSWD'!$A$6:$AM$500,17,FALSE))&")")),"NA") -> 8% (8) | R21: =IFERROR(VLOOKUP($A$3,'G9-RSWD'!$A$6:$BX$500,3,FALSE),"not tested") -> 100 | T21: =SUM(VLOOKUP($A$3,'GEO-SWD'!$A$14:$BX$500,4,FALSE)*$R21,VLOOKUP($A$3,'GEO-SWD'!$A$14:$BX$500,41,FALSE)*$S21)/SUM($R21,$S21) -> 17 | U21: =SUM(VLOOKUP($A$3,'GEO-SWD'!$A$14:$BX$500,7,FALSE),VLOOKUP($A$3,'GEO-SWD'!$A$14:$BX$500,44,FALSE))/SUM($R21:$S21)*100 -> 2 | V21: =SUM(VLOOKUP($A$3,'GEO-SWD'!$A$14:$BX$500,7,FALSE),VLOOKUP($A$3,'GEO-SWD'!$A$14:$BX$500,44,FALSE)) -> 2 | W21: =SUM(VLOOKUP($A$3,'GEO-SWD'!$A$14:$BX$500,10,FALSE)*$R21,VLOOKUP($A$3,'GEO-SWD'!$A$14:$BX$500,47,FALSE)*$S21)/SUM($R21,$S21) -> 17 | X21: =SUM(VLOOKUP($A$3,'GEO-SWD'!$A$14:$BX$500,8,FALSE),VLOOKUP($A$3,'GEO-SWD'!$A$14:$BX$500,50,FALSE))/SUM($R21:$S21)*100 -> 0.9773 | Y21: =SUM(VLOOKUP($A$3,'GEO-SWD'!$A$14:$BX$500,8,FALSE),VLOOKUP($A$3,'GEO-SWD'!$A$14:$BX$500,50,FALSE)) -> 0.9773 | Z21: =SUM(VLOOKUP($A$3,'GEO-SWD'!$A$14:$BX$500,16,FALSE)*$R21,VLOOKUP($A$3,'GEO-SWD'!$A$14:$BX$500,53,FALSE)*$S21)/SUM($R21,$S21) -> 0 | AA21: =SUM(VLOOKUP($A$3,'GEO-SWD'!$A$14:$BX$500,19,FALSE),VLOOKUP($A$3,'GEO-SWD'!$A$14:$BX$500,56,FALSE))/SUM($R21:$S21)*100 -> 0 | AB21: =SUM(VLOOKUP($A$3,'GEO-SWD'!$A$14:$BX$500,19,FALSE),VLOOKUP($A$3,'GEO-SWD'!$A$14:$BX$500,56,FALSE)) -> 0 | AC21: =SUM(VLOOKUP($A$3,'GEO-SWD'!$A$14:$BX$500,22,FALSE)*$R21,VLOOKUP($A$3,'GEO-SWD'!$A$14:$BX$500,59,FALSE)*$S21)/SUM($R21,$S21) -> 0 | AD21: =SUM(VLOOKUP($A$3,'GEO-SWD'!$A$14:$BX$500,25,FALSE),VLOOKUP($A$3,'GEO-SWD'!$A$14:$BX$500,62,FALSE))/SUM($R21:$S21)*100 -> 0 | AE21: =SUM(VLOOKUP($A$3,'GEO-SWD'!$A$14:$BX$500,25,FALSE),VLOOKUP($A$3,'GEO-SWD'!$A$14:$BX$500,62,FALSE)) -> 0 | AF21: =SUM(VLOOKUP($A$3,'GEO-SWD'!$A$14:$BX$500,28,FALSE)*$R21,VLOOKUP($A$3,'GEO-SWD'!$A$14:$BX$500,65,FALSE)*$S21)/SUM($R21,$S21) -> 0 | AG21: =SUM(VLOOKUP($A$3,'GEO-SWD'!$A$14:$BX$500,31,FALSE),VLOOKUP($A$3,'GEO-SWD'!$A$14:$BX$500,68,FALSE))/SUM($R21:$S21)*100 -> 0 | AH21: =SUM(VLOOKUP($A$3,'GEO-SWD'!$A$14:$BX$500,31,FALSE),VLOOKUP($A$3,'GEO-SWD'!$A$14:$BX$500,68,FALSE)) -> 0 | AI21: =SUM(VLOOKUP($A$3,'GEO-SWD'!$A$14:$BX$500,34,FALSE)*$R21,VLOOKUP($A$3,'GEO-SWD'!$A$14:$BX$500,71,FALSE)*$S21)/SUM($R21,$S21) -> 0 | AJ21: =SUM(VLOOKUP($A$3,'GEO-SWD'!$A$14:$BX$500,37,FALSE),VLOOKUP($A$3,'GEO-SWD'!$A$14:$BX$500,74,FALSE))/SUM($R21:$S21)*100 -> 0 | AK21: =SUM(VLOOKUP($A$3,'GEO-SWD'!$A$14:$BX$500,37,FALSE),VLOOKUP($A$3,'GEO-SWD'!$A$14:$BX$500,74,FALSE)) -> 0
A22: Reading - Grade 10 | R22: READING
A23: Level of Proficiency at 70% or above | B23: 2011 AYP Met** | C23: Total # of Students | D23: % of Students Tested | E23: Overall [49] | G23: Vocabulary [12] | I23: Reading Application [20] | K23: Literary Analysis Fiction/Nonfiction [9] | M23: Informational Text/ Research Process [8] | R23: Grade 10 Test | S23: RETAKER-NGSSS | AL23: RETAKER-SSS
E24: Average Score | F24: % Proficient | G24: Average Score | H24: % Proficient | I24: Average Score | J24: % Proficient | K24: Average Score | L24: % Proficient | M24: Average Score | N24: % Proficient | R24: Number Tested | S24: Number Tested | AL24: Number Tested
A25: All students | B25: =IFERROR(VLOOKUP(TEXT($A$3,"0000"),'AYP11'!$B$2957:$AU$3378,36,FALSE),"NA") -> NO | C25: =IFERROR(VLOOKUP(TEXT($A$3,"0000"),Mem_All!$A$2:$S$500,18,FALSE)-S25-AL25,0) -> 1094 | D25: =IFERROR((IF(OR(C25=0,C25="",C25="NA"),"NA",((IF(VLOOKUP($A$3,'G10-RALL'!$A$6:$AM$500,3,FALSE)>=C25,"100% ("&VLOOKUP($A$3,'G10-RALL'!$A$6:$AM$500,3,FALSE)&")",(ROUND((VLOOKUP($A$3,'G10-RALL'!$A$6:$AM$500,3,FALSE)/C25*100),0))&"% ("&IF(VLOOKUP($A$3,'G10-RALL'!$A$6:$AM$500,3,FALSE)="",0,VLOOKUP($A$3,'G10-RALL'!$A$6:$AM$500,3,FALSE))&")"))))),"0% (0)") -> 93% (1021) | E25: =IFERROR((IF($D25="NA","NA",VLOOKUP($A$3,'G10-RALL'!$A$6:$AM$500,4,FALSE))),"NA") -> 32.3 | F25: =IFERROR((IF($D25="NA","NA",ROUND(VLOOKUP($A$3,'G10-RALL'!$A$6:$AM$500,6,FALSE),0)&"% ("&IF(VLOOKUP($A$3,'G10-RALL'!$A$6:$AM$500,5,FALSE)="",0,VLOOKUP($A$3,'G10-RALL'!$A$6:$AM$500,5,FALSE))&")")),"NA") -> 52% (526) | G25: =IFERROR((IF($D25="NA","NA",VLOOKUP($A$3,'G10-RALL'!$A$6:$AM$500,7,FALSE))),"NA") -> 8.4 | H25: =IFERROR((IF($D25="NA","NA",ROUND(VLOOKUP($A$3,'G10-RALL'!$A$6:$AM$500,9,FALSE),0)&"% ("&IF(VLOOKUP($A$3,'G10-RALL'!$A$6:$AM$500,8,FALSE)="",0,VLOOKUP($A$3,'G10-RALL'!$A$6:$AM$500,8,FALSE))&")")),"NA") -> 56% (574) | I25: =IFERROR((IF($D25="NA","NA",VLOOKUP($A$3,'G10-RALL'!$A$6:$AM$500,10,FALSE))),"NA") -> 13.4 | J25: =IFERROR((IF($D25="NA","NA",ROUND(VLOOKUP($A$3,'G10-RALL'!$A$6:$AM$500,12,FALSE),0)&"% ("&IF(VLOOKUP($A$3,'G10-RALL'!$A$6:$AM$500,11,FALSE)="",0,VLOOKUP($A$3,'G10-RALL'!$A$6:$AM$500,11,FALSE))&")")),"NA") -> 57% (577) | K25: =IFERROR((IF($D25="NA","NA",VLOOKUP($A$3,'G10-RALL'!$A$6:$AM$500,13,FALSE))),"NA") -> 5.5 | L25: =IFERROR((IF($D25="NA","NA",ROUND(VLOOKUP($A$3,'G10-RALL'!$A$6:$AM$500,15,FALSE),0)&"% ("&IF(VLOOKUP($A$3,'G10-RALL'!$A$6:$AM$500,14,FALSE)="",0,VLOOKUP($A$3,'G10-RALL'!$A$6:$AM$500,14,FALSE))&")")),"NA") -> 34% (350) | M25: =IFERROR((IF($D25="NA","NA",VLOOKUP($A$3,'G10-RALL'!$A$6:$AM$500,16,FALSE))),"NA") -> 5.1 | N25: =IFERROR((IF($D25="NA","NA",ROUND(VLOOKUP($A$3,'G10-RALL'!$A$6:$AM$500,18,FALSE),0)&"% ("&IF(VLOOKUP($A$3,'G10-RALL'!$A$6:$AM$500,17,FALSE)="",0,VLOOKUP($A$3,'G10-RALL'!$A$6:$AM$500,17,FALSE))&")")),"NA") -> 48% (485) | O25: =IFERROR(IF($D25="NA","NA",IF($S25=0,VLOOKUP($A$3,'GEO-ALL'!$A$14:$AA$500,34,FALSE),IF($R25=0,VLOOKUP($A$3,'GEO-ALL'!$A$14:$AA$500,71,FALSE),AI25))),"NA") -> 0 | P25: =IF($D25="NA","NA",IF($S25=0,ROUND(VLOOKUP($A$3,'GEO-ALL'!$A$14:$AA$500,39,FALSE)*100,0)&"% ("&VLOOKUP($A$3,'GEO-ALL'!$A$14:$AA$500,37,FALSE)&")",IF($R25=0,ROUND(VLOOKUP($A$3,'GEO-ALL'!$A$14:$AA$500,76,FALSE)*100,0)&"% ("&VLOOKUP($A$3,'GEO-ALL'!$A$14:$AA$500,74,FALSE)&")",ROUND(AJ25,0)&"% ("&AK25&")"))) -> 0% () | R25: =IFERROR(VLOOKUP($A$3,'G10-RALL'!$A$6:$BX$500,3,FALSE),"not tested") -> 1021 | S25: =IFERROR(VLOOKUP($A$3,'G10-RALL'!$A$6:$CQ$500,19,FALSE),"not tested") -> 27
A26: FCAT Level 1 | C26: =IFERROR(VLOOKUP(TEXT($A$3,"0000"),MEM_RL1!$A$2:$S$500,11,FALSE)-S26-AL26,0) -> 97 | D26: =IFERROR((IF(OR(C26=0,C26="",C26="NA"),"NA",((IF(VLOOKUP($A$3,'G10-RL1'!$A$6:$AM$500,3,FALSE)>=C26,"100% ("&VLOOKUP($A$3,'G10-RL1'!$A$6:$AM$500,3,FALSE)&")",(ROUND((VLOOKUP($A$3,'G10-RL1'!$A$6:$AM$500,3,FALSE)/C26*100),0))&"% ("&IF(VLOOKUP($A$3,'G10-RL1'!$A$6:$AM$500,3,FALSE)="",0,VLOOKUP($A$3,'G10-RL1'!$A$6:$AM$500,3,FALSE))&")"))))),"0% (0)") -> 100% (118) | E26: =IFERROR((IF($D26="NA","NA",VLOOKUP($A$3,'G10-RL1'!$A$6:$AM$500,4,FALSE))),"NA") -> 22 | F26: =IFERROR((IF($D26="NA","NA",ROUND(VLOOKUP($A$3,'G10-RL1'!$A$6:$AM$500,6,FALSE),0)&"% ("&IF(VLOOKUP($A$3,'G10-RL1'!$A$6:$AM$500,5,FALSE)="",0,VLOOKUP($A$3,'G10-RL1'!$A$6:$AM$500,5,FALSE))&")")),"NA") -> 10% (12) | G26: =IFERROR((IF($D26="NA","NA",VLOOKUP($A$3,'G10-RL1'!$A$6:$AM$500,7,FALSE))),"NA") -> 5.4 | H26: =IFERROR((IF($D26="NA","NA",ROUND(VLOOKUP($A$3,'G10-RL1'!$A$6:$AM$500,9,FALSE),0)&"% ("&IF(VLOOKUP($A$3,'G10-RL1'!$A$6:$AM$500,8,FALSE)="",0,VLOOKUP($A$3,'G10-RL1'!$A$6:$AM$500,8,FALSE))&")")),"NA") -> 16% (19) | I26: =IFERROR((IF($D26="NA","NA",VLOOKUP($A$3,'G10-RL1'!$A$6:$AM$500,10,FALSE))),"NA") -> 9.1 | J26: =IFERROR((IF($D26="NA","NA",ROUND(VLOOKUP($A$3,'G10-RL1'!$A$6:$AM$500,12,FALSE),0)&"% ("&IF(VLOOKUP($A$3,'G10-RL1'!$A$6:$AM$500,11,FALSE)="",0,VLOOKUP($A$3,'G10-RL1'!$A$6:$AM$500,11,FALSE))&")")),"NA") -> 15% (18) | K26: =IFERROR((IF($D26="NA","NA",VLOOKUP($A$3,'G10-RL1'!$A$6:$AM$500,13,FALSE))),"NA") -> 3.9 | L26: =IFERROR((IF($D26="NA","NA",ROUND(VLOOKUP($A$3,'G10-RL1'!$A$6:$AM$500,15,FALSE),0)&"% ("&IF(VLOOKUP($A$3,'G10-RL1'!$A$6:$AM$500,14,FALSE)="",0,VLOOKUP($A$3,'G10-RL1'!$A$6:$AM$500,14,FALSE))&")")),"NA") -> 8% (10) | M26: =IFERROR((IF($D26="NA","NA",VLOOKUP($A$3,'G10-RL1'!$A$6:$AM$500,16,FALSE))),"NA") -> 3.5 | N26: =IFERROR((IF($D26="NA","NA",ROUND(VLOOKUP($A$3,'G10-RL1'!$A$6:$AM$500,18,FALSE),0)&"% ("&IF(VLOOKUP($A$3,'G10-RL1'!$A$6:$AM$500,17,FALSE)="",0,VLOOKUP($A$3,'G10-RL1'!$A$6:$AM$500,17,FALSE))&")")),"NA") -> 19% (22) | O26: =IFERROR(IF($D26="NA","NA",IF($S26=0,VLOOKUP($A$3,'GEO-L1'!$A$14:$BX$500,34,FALSE),IF($R26=0,VLOOKUP($A$3,'GEO-L1'!$A$14:$BX$500,71,FALSE),AI26))),"NA") -> 0 | P26: =IF($D26="NA","NA",IF($S26=0,ROUND(VLOOKUP($A$3,'GEO-L1'!$A$14:$BX$500,39,FALSE)*100,0)&"% ("&VLOOKUP($A$3,'GEO-L1'!$A$14:$BX$500,37,FALSE)&")",IF($R26=0,ROUND(VLOOKUP($A$3,'GEO-L1'!$A$14:$BX$500,76,FALSE)*100,0)&"% ("&VLOOKUP($A$3,'GEO-L1'!$A$14:$BX$500,74,FALSE)&")",ROUND(AJ26,0)&"% ("&AK26&")"))) -> 0% () | R26: =IFERROR(VLOOKUP($A$3,'G10-RL1'!$A$6:$BX$500,3,FALSE),"not tested") -> 118 | S26: =IFERROR(VLOOKUP($A$3,'G10-RL1'!$A$6:$CQ$500,19,FALSE),"not tested") -> 18
A27: FCAT Level 2 | C27: =IFERROR(VLOOKUP(TEXT($A$3,"0000"),MEM_RL2!$A$2:$S$500,18,FALSE)-S27-AL27,0) -> 256 | D27: =IFERROR((IF(OR(C27=0,C27="",C27="NA"),"NA",((IF(VLOOKUP($A$3,'G10-RL2'!$A$6:$AM$500,3,FALSE)>=C27,"100% ("&VLOOKUP($A$3,'G10-RL2'!$A$6:$AM$500,3,FALSE)&")",(ROUND((VLOOKUP($A$3,'G10-RL2'!$A$6:$AM$500,3,FALSE)/C27*100),0))&"% ("&IF(VLOOKUP($A$3,'G10-RL2'!$A$6:$AM$500,3,FALSE)="",0,VLOOKUP($A$3,'G10-RL2'!$A$6:$AM$500,3,FALSE))&")"))))),"0% (0)") -> 96% (247) | E27: =IFERROR((IF($D27="NA","NA",VLOOKUP($A$3,'G10-RL2'!$A$6:$AM$500,4,FALSE))),"NA") -> 28.7 | F27: =IFERROR((IF($D27="NA","NA",ROUND(VLOOKUP($A$3,'G10-RL2'!$A$6:$AM$500,6,FALSE),0)&"% ("&IF(VLOOKUP($A$3,'G10-RL2'!$A$6:$AM$500,5,FALSE)="",0,VLOOKUP($A$3,'G10-RL2'!$A$6:$AM$500,5,FALSE))&")")),"NA") -> 27% (66) | G27: =IFERROR((IF($D27="NA","NA",VLOOKUP($A$3,'G10-RL2'!$A$6:$AM$500,7,FALSE))),"NA") -> 7.4 | H27: =IFERROR((IF($D27="NA","NA",ROUND(VLOOKUP($A$3,'G10-RL2'!$A$6:$AM$500,9,FALSE),0)&"% ("&IF(VLOOKUP($A$3,'G10-RL2'!$A$6:$AM$500,8,FALSE)="",0,VLOOKUP($A$3,'G10-RL2'!$A$6:$AM$500,8,FALSE))&")")),"NA") -> 36% (89) | I27: =IFERROR((IF($D27="NA","NA",VLOOKUP($A$3,'G10-RL2'!$A$6:$AM$500,10,FALSE))),"NA") -> 11.8 | J27: =IFERROR((IF($D27="NA","NA",ROUND(VLOOKUP($A$3,'G10-RL2'!$A$6:$AM$500,12,FALSE),0)&"% ("&IF(VLOOKUP($A$3,'G10-RL2'!$A$6:$AM$500,11,FALSE)="",0,VLOOKUP($A$3,'G10-RL2'!$A$6:$AM$500,11,FALSE))&")")),"NA") -> 32% (79) | K27: =IFERROR((IF($D27="NA","NA",VLOOKUP($A$3,'G10-RL2'!$A$6:$AM$500,13,FALSE))),"NA") -> 4.9 | L27: =IFERROR((IF($D27="NA","NA",ROUND(VLOOKUP($A$3,'G10-RL2'!$A$6:$AM$500,15,FALSE),0)&"% ("&IF(VLOOKUP($A$3,'G10-RL2'!$A$6:$AM$500,14,FALSE)="",0,VLOOKUP($A$3,'G10-RL2'!$A$6:$AM$500,14,FALSE))&")")),"NA") -> 22% (54) | M27: =IFERROR((IF($D27="NA","NA",VLOOKUP($A$3,'G10-RL2'!$A$6:$AM$500,16,FALSE))),"NA") -> 4.6 | N27: =IFERROR((IF($D27="NA","NA",ROUND(VLOOKUP($A$3,'G10-RL2'!$A$6:$AM$500,18,FALSE),0)&"% ("&IF(VLOOKUP($A$3,'G10-RL2'!$A$6:$AM$500,17,FALSE)="",0,VLOOKUP($A$3,'G10-RL2'!$A$6:$AM$500,17,FALSE))&")")),"NA") -> 36% (89) | O27: =IFERROR(IF($D27="NA","NA",IF($S27=0,VLOOKUP($A$3,'GEO-L2'!$A$14:$BX$500,34,FALSE),IF($R27=0,VLOOKUP($A$3,'GEO-L2'!$A$14:$BX$500,71,FALSE),AI27))),"NA") -> 0 | P27: =IF($D27="NA","NA",IF($S27=0,ROUND(VLOOKUP($A$3,'GEO-L2'!$A$14:$BX$500,39,FALSE)*100,0)&"% ("&VLOOKUP($A$3,'GEO-L2'!$A$14:$BX$500,37,FALSE)&")",IF($R27=0,ROUND(VLOOKUP($A$3,'GEO-L2'!$A$14:$BX$500,76,FALSE)*100,0)&"% ("&VLOOKUP($A$3,'GEO-L2'!$A$14:$BX$500,74,FALSE)&")",ROUND(AJ27,0)&"% ("&AK27&")"))) -> 0% () | R27: =IFERROR(VLOOKUP($A$3,'G10-RL2'!$A$6:$BX$500,3,FALSE),"not tested") -> 247 | S27: =IFERROR(VLOOKUP($A$3,'G10-RL2'!$A$6:$CQ$500,19,FALSE),"not tested") -> 8
A28: FCAT Level 3 | C28: =IFERROR(VLOOKUP(TEXT($A$3,"0000"),MEM_RL3!$A$2:$S$500,18,FALSE)-S28-AL28,0) -> 392 | D28: =IFERROR((IF(OR(C28=0,C28="",C28="NA"),"NA",((IF(VLOOKUP($A$3,'G10-RL3'!$A$6:$AM$500,3,FALSE)>=C28,"100% ("&VLOOKUP($A$3,'G10-RL3'!$A$6:$AM$500,3,FALSE)&")",(ROUND((VLOOKUP($A$3,'G10-RL3'!$A$6:$AM$500,3,FALSE)/C28*100),0))&"% ("&IF(VLOOKUP($A$3,'G10-RL3'!$A$6:$AM$500,3,FALSE)="",0,VLOOKUP($A$3,'G10-RL3'!$A$6:$AM$500,3,FALSE))&")"))))),"0% (0)") -> 97% (381) | E28: =IFERROR((IF($D28="NA","NA",VLOOKUP($A$3,'G10-RL3'!$A$6:$AM$500,4,FALSE))),"NA") -> 34 | F28: =IFERROR((IF($D28="NA","NA",ROUND(VLOOKUP($A$3,'G10-RL3'!$A$6:$AM$500,6,FALSE),0)&"% ("&IF(VLOOKUP($A$3,'G10-RL3'!$A$6:$AM$500,5,FALSE)="",0,VLOOKUP($A$3,'G10-RL3'!$A$6:$AM$500,5,FALSE))&")")),"NA") -> 61% (231) | G28: =IFERROR((IF($D28="NA","NA",VLOOKUP($A$3,'G10-RL3'!$A$6:$AM$500,7,FALSE))),"NA") -> 8.8 | H28: =IFERROR((IF($D28="NA","NA",ROUND(VLOOKUP($A$3,'G10-RL3'!$A$6:$AM$500,9,FALSE),0)&"% ("&IF(VLOOKUP($A$3,'G10-RL3'!$A$6:$AM$500,8,FALSE)="",0,VLOOKUP($A$3,'G10-RL3'!$A$6:$AM$500,8,FALSE))&")")),"NA") -> 63% (239) | I28: =IFERROR((IF($D28="NA","NA",VLOOKUP($A$3,'G10-RL3'!$A$6:$AM$500,10,FALSE))),"NA") -> 14.1 | J28: =IFERROR((IF($D28="NA","NA",ROUND(VLOOKUP($A$3,'G10-RL3'!$A$6:$AM$500,12,FALSE),0)&"% ("&IF(VLOOKUP($A$3,'G10-RL3'!$A$6:$AM$500,11,FALSE)="",0,VLOOKUP($A$3,'G10-RL3'!$A$6:$AM$500,11,FALSE))&")")),"NA") -> 67% (256) | K28: =IFERROR((IF($D28="NA","NA",VLOOKUP($A$3,'G10-RL3'!$A$6:$AM$500,13,FALSE))),"NA") -> 5.7 | L28: =IFERROR((IF($D28="NA","NA",ROUND(VLOOKUP($A$3,'G10-RL3'!$A$6:$AM$500,15,FALSE),0)&"% ("&IF(VLOOKUP($A$3,'G10-RL3'!$A$6:$AM$500,14,FALSE)="",0,VLOOKUP($A$3,'G10-RL3'!$A$6:$AM$500,14,FALSE))&")")),"NA") -> 37% (142) | M28: =IFERROR((IF($D28="NA","NA",VLOOKUP($A$3,'G10-RL3'!$A$6:$AM$500,16,FALSE))),"NA") -> 5.3 | N28: =IFERROR((IF($D28="NA","NA",ROUND(VLOOKUP($A$3,'G10-RL3'!$A$6:$AM$500,18,FALSE),0)&"% ("&IF(VLOOKUP($A$3,'G10-RL3'!$A$6:$AM$500,17,FALSE)="",0,VLOOKUP($A$3,'G10-RL3'!$A$6:$AM$500,17,FALSE))&")")),"NA") -> 49% (188) | O28: =IFERROR(IF($D28="NA","NA",IF($S28=0,VLOOKUP($A$3,'GEO-L3'!$A$14:$BX$500,34,FALSE),IF($R28=0,VLOOKUP($A$3,'GEO-L3'!$A$14:$BX$500,71,FALSE),AI28))),"NA") -> 0 | P28: =IF($D28="NA","NA",IF($S28=0,ROUND(VLOOKUP($A$3,'GEO-L3'!$A$14:$BX$500,39,FALSE)*100,0)&"% ("&VLOOKUP($A$3,'GEO-L3'!$A$14:$BX$500,37,FALSE)&")",IF($R28=0,ROUND(VLOOKUP($A$3,'GEO-L3'!$A$14:$BX$500,76,FALSE)*100,0)&"% ("&VLOOKUP($A$3,'GEO-L3'!$A$14:$BX$500,74,FALSE)&")",ROUND(AJ28,0)&"% ("&AK28&")"))) -> 0% () | R28: =IFERROR(VLOOKUP($A$3,'G10-RL3'!$A$6:$BX$500,3,FALSE),"not tested") -> 381 | S28: =IFERROR(VLOOKUP($A$3,'G10-RL3'!$A$6:$CQ$500,19,FALSE),"not tested") -> 0
A29: FCAT Level 4 | C29: =IFERROR(VLOOKUP(TEXT($A$3,"0000"),MEM_RL4!$A$2:$S$500,18,FALSE)-S29-AL29,0) -> 164 | D29: =IFERROR((IF(OR(C29=0,C29="",C29="NA"),"NA",((IF(VLOOKUP($A$3,'G10-RL4'!$A$6:$AM$500,3,FALSE)>=C29,"100% ("&VLOOKUP($A$3,'G10-RL4'!$A$6:$AM$500,3,FALSE)&")",(ROUND((VLOOKUP($A$3,'G10-RL4'!$A$6:$AM$500,3,FALSE)/C29*100),0))&"% ("&IF(VLOOKUP($A$3,'G10-RL4'!$A$6:$AM$500,3,FALSE)="",0,VLOOKUP($A$3,'G10-RL4'!$A$6:$AM$500,3,FALSE))&")"))))),"0% (0)") -> 100% (164) | E29: =IFERROR((IF($D29="NA","NA",VLOOKUP($A$3,'G10-RL4'!$A$6:$AM$500,4,FALSE))),"NA") -> 38.1 | F29: =IFERROR((IF($D29="NA","NA",ROUND(VLOOKUP($A$3,'G10-RL4'!$A$6:$AM$500,6,FALSE),0)&"% ("&IF(VLOOKUP($A$3,'G10-RL4'!$A$6:$AM$500,5,FALSE)="",0,VLOOKUP($A$3,'G10-RL4'!$A$6:$AM$500,5,FALSE))&")")),"NA") -> 80% (131) | G29: =IFERROR((IF($D29="NA","NA",VLOOKUP($A$3,'G10-RL4'!$A$6:$AM$500,7,FALSE))),"NA") -> 10 | H29: =IFERROR((IF($D29="NA","NA",ROUND(VLOOKUP($A$3,'G10-RL4'!$A$6:$AM$500,9,FALSE),0)&"% ("&IF(VLOOKUP($A$3,'G10-RL4'!$A$6:$AM$500,8,FALSE)="",0,VLOOKUP($A$3,'G10-RL4'!$A$6:$AM$500,8,FALSE))&")")),"NA") -> 85% (140) | I29: =IFERROR((IF($D29="NA","NA",VLOOKUP($A$3,'G10-RL4'!$A$6:$AM$500,10,FALSE))),"NA") -> 15.6 | J29: =IFERROR((IF($D29="NA","NA",ROUND(VLOOKUP($A$3,'G10-RL4'!$A$6:$AM$500,12,FALSE),0)&"% ("&IF(VLOOKUP($A$3,'G10-RL4'!$A$6:$AM$500,11,FALSE)="",0,VLOOKUP($A$3,'G10-RL4'!$A$6:$AM$500,11,FALSE))&")")),"NA") -> 82% (134) | K29: =IFERROR((IF($D29="NA","NA",VLOOKUP($A$3,'G10-RL4'!$A$6:$AM$500,13,FALSE))),"NA") -> 6.5 | L29: =IFERROR((IF($D29="NA","NA",ROUND(VLOOKUP($A$3,'G10-RL4'!$A$6:$AM$500,15,FALSE),0)&"% ("&IF(VLOOKUP($A$3,'G10-RL4'!$A$6:$AM$500,14,FALSE)="",0,VLOOKUP($A$3,'G10-RL4'!$A$6:$AM$500,14,FALSE))&")")),"NA") -> 60% (99) | M29: =IFERROR((IF($D29="NA","NA",VLOOKUP($A$3,'G10-RL4'!$A$6:$AM$500,16,FALSE))),"NA") -> 6 | N29: =IFERROR((IF($D29="NA","NA",ROUND(VLOOKUP($A$3,'G10-RL4'!$A$6:$AM$500,18,FALSE),0)&"% ("&IF(VLOOKUP($A$3,'G10-RL4'!$A$6:$AM$500,17,FALSE)="",0,VLOOKUP($A$3,'G10-RL4'!$A$6:$AM$500,17,FALSE))&")")),"NA") -> 69% (113) | O29: =IFERROR(IF($D29="NA","NA",IF($S29=0,VLOOKUP($A$3,'GEO-L4'!$A$14:$BX$500,34,FALSE),IF($R29=0,VLOOKUP($A$3,'GEO-L4'!$A$14:$BX$500,71,FALSE),AI29))),"NA") -> 0 | P29: =IF($D29="NA","NA",IF($S29=0,ROUND(VLOOKUP($A$3,'GEO-L4'!$A$14:$BX$500,39,FALSE)*100,0)&"% ("&VLOOKUP($A$3,'GEO-L4'!$A$14:$BX$500,37,FALSE)&")",IF($R29=0,ROUND(VLOOKUP($A$3,'GEO-L4'!$A$14:$BX$500,76,FALSE)*100,0)&"% ("&VLOOKUP($A$3,'GEO-L4'!$A$14:$BX$500,74,FALSE)&")",ROUND(AJ29,0)&"% ("&AK29&")"))) -> 0% () | R29: =IFERROR(VLOOKUP($A$3,'G10-RL4'!$A$6:$BX$500,3,FALSE),"not tested") -> 164 | S29: =IFERROR(VLOOKUP($A$3,'G10-RL4'!$A$6:$CQ$500,19,FALSE),"not tested") -> 0
A30: FCAT Level 5 | C30: =IFERROR(VLOOKUP(TEXT($A$3,"0000"),MEM_RL5!$A$2:$S$500,18,FALSE)-S30-AL30,0) -> 88 | D30: =IFERROR((IF(OR(C30=0,C30="",C30="NA"),"NA",((IF(VLOOKUP($A$3,'G10-RL5'!$A$6:$AM$500,3,FALSE)>=C30,"100% ("&VLOOKUP($A$3,'G10-RL5'!$A$6:$AM$500,3,FALSE)&")",(ROUND((VLOOKUP($A$3,'G10-RL5'!$A$6:$AM$500,3,FALSE)/C30*100),0))&"% ("&IF(VLOOKUP($A$3,'G10-RL5'!$A$6:$AM$500,3,FALSE)="",0,VLOOKUP($A$3,'G10-RL5'!$A$6:$AM$500,3,FALSE))&")"))))),"0% (0)") -> 98% (86) | E30: =IFERROR((IF($D30="NA","NA",VLOOKUP($A$3,'G10-RL5'!$A$6:$AM$500,4,FALSE))),"NA") -> 41 | F30: =IFERROR((IF($D30="NA","NA",ROUND(VLOOKUP($A$3,'G10-RL5'!$A$6:$AM$500,6,FALSE),0)&"% ("&IF(VLOOKUP($A$3,'G10-RL5'!$A$6:$AM$500,5,FALSE)="",0,VLOOKUP($A$3,'G10-RL5'!$A$6:$AM$500,5,FALSE))&")")),"NA") -> 97% (83) | G30: =IFERROR((IF($D30="NA","NA",VLOOKUP($A$3,'G10-RL5'!$A$6:$AM$500,7,FALSE))),"NA") -> 10.8 | H30: =IFERROR((IF($D30="NA","NA",ROUND(VLOOKUP($A$3,'G10-RL5'!$A$6:$AM$500,9,FALSE),0)&"% ("&IF(VLOOKUP($A$3,'G10-RL5'!$A$6:$AM$500,8,FALSE)="",0,VLOOKUP($A$3,'G10-RL5'!$A$6:$AM$500,8,FALSE))&")")),"NA") -> 97% (83) | I30: =IFERROR((IF($D30="NA","NA",VLOOKUP($A$3,'G10-RL5'!$A$6:$AM$500,10,FALSE))),"NA") -> 17.2 | J30: =IFERROR((IF($D30="NA","NA",ROUND(VLOOKUP($A$3,'G10-RL5'!$A$6:$AM$500,12,FALSE),0)&"% ("&IF(VLOOKUP($A$3,'G10-RL5'!$A$6:$AM$500,11,FALSE)="",0,VLOOKUP($A$3,'G10-RL5'!$A$6:$AM$500,11,FALSE))&")")),"NA") -> 99% (85) | K30: =IFERROR((IF($D30="NA","NA",VLOOKUP($A$3,'G10-RL5'!$A$6:$AM$500,13,FALSE))),"NA") -> 6.7 | L30: =IFERROR((IF($D30="NA","NA",ROUND(VLOOKUP($A$3,'G10-RL5'!$A$6:$AM$500,15,FALSE),0)&"% ("&IF(VLOOKUP($A$3,'G10-RL5'!$A$6:$AM$500,14,FALSE)="",0,VLOOKUP($A$3,'G10-RL5'!$A$6:$AM$500,14,FALSE))&")")),"NA") -> 51% (44) | M30: =IFERROR((IF($D30="NA","NA",VLOOKUP($A$3,'G10-RL5'!$A$6:$AM$500,16,FALSE))),"NA") -> 6.3 | N30: =IFERROR((IF($D30="NA","NA",ROUND(VLOOKUP($A$3,'G10-RL5'!$A$6:$AM$500,18,FALSE),0)&"% ("&IF(VLOOKUP($A$3,'G10-RL5'!$A$6:$AM$500,17,FALSE)="",0,VLOOKUP($A$3,'G10-RL5'!$A$6:$AM$500,17,FALSE))&")")),"NA") -> 79% (68) | O30: =IFERROR(IF($D30="NA","NA",IF($S30=0,VLOOKUP($A$3,'GEO-L5'!$A$14:$BX$500,34,FALSE),IF($R30=0,VLOOKUP($A$3,'GEO-L5'!$A$14:$BX$500,71,FALSE),AI30))),"NA") -> 0 | P30: =IF($D30="NA","NA",IF($S30=0,ROUND(VLOOKUP($A$3,'GEO-L5'!$A$14:$BX$500,39,FALSE)*100,0)&"% ("&VLOOKUP($A$3,'GEO-L5'!$A$14:$BX$500,37,FALSE)&")",IF($R30=0,ROUND(VLOOKUP($A$3,'GEO-L5'!$A$14:$BX$500,76,FALSE)*100,0)&"% ("&VLOOKUP($A$3,'GEO-L5'!$A$14:$BX$500,74,FALSE)&")",ROUND(AJ30,0)&"% ("&AK30&")"))) -> 0% () | R30: =IFERROR(VLOOKUP($A$3,'G10-RL5'!$A$6:$BX$500,3,FALSE),"not tested") -> 86 | S30: =IFERROR(VLOOKUP($A$3,'G10-RL5'!$A$6:$CQ$500,19,FALSE),"not tested") -> 0
A31: White | B31: =IFERROR(VLOOKUP(TEXT($A$3,"0000"),'AYP11'!$B$3379:$AU$3800,36,FALSE)," ") -> Yes-SH | C31: =IFERROR(VLOOKUP(TEXT($A$3,"0000"),MEM_W!$A$2:$S$500,18,FALSE)-S31-AL31,0) -> 89 | D31: =IFERROR((IF(OR(C31=0,C31="",C31="NA"),"NA",((IF(VLOOKUP($A$3,'G10-RW'!$A$6:$AM$500,3,FALSE)>=C31,"100% ("&VLOOKUP($A$3,'G10-RW'!$A$6:$AM$500,3,FALSE)&")",(ROUND((VLOOKUP($A$3,'G10-RW'!$A$6:$AM$500,3,FALSE)/C31*100),0))&"% ("&IF(VLOOKUP($A$3,'G10-RW'!$A$6:$AM$500,3,FALSE)="",0,VLOOKUP($A$3,'G10-RW'!$A$6:$AM$500,3,FALSE))&")"))))),"0% (0)") -> 94% (84) | E31: =IFERROR((IF($D31="NA","NA",VLOOKUP($A$3,'G10-RW'!$A$6:$AM$500,4,FALSE))),"NA") -> 35 | F31: =IFERROR((IF($D31="NA","NA",ROUND(VLOOKUP($A$3,'G10-RW'!$A$6:$AM$500,6,FALSE),0)&"% ("&IF(VLOOKUP($A$3,'G10-RW'!$A$6:$AM$500,5,FALSE)="",0,VLOOKUP($A$3,'G10-RW'!$A$6:$AM$500,5,FALSE))&")")),"NA") -> 68% (57) | G31: =IFERROR((IF($D31="NA","NA",VLOOKUP($A$3,'G10-RW'!$A$6:$AM$500,7,FALSE))),"NA") -> 9 | H31: =IFERROR((IF($D31="NA","NA",ROUND(VLOOKUP($A$3,'G10-RW'!$A$6:$AM$500,9,FALSE),0)&"% ("&IF(VLOOKUP($A$3,'G10-RW'!$A$6:$AM$500,8,FALSE)="",0,VLOOKUP($A$3,'G10-RW'!$A$6:$AM$500,8,FALSE))&")")),"NA") -> 65% (55) | I31: =IFERROR((IF($D31="NA","NA",VLOOKUP($A$3,'G10-RW'!$A$6:$AM$500,10,FALSE))),"NA") -> 14.6 | J31: =IFERROR((IF($D31="NA","NA",ROUND(VLOOKUP($A$3,'G10-RW'!$A$6:$AM$500,12,FALSE),0)&"% ("&IF(VLOOKUP($A$3,'G10-RW'!$A$6:$AM$500,11,FALSE)="",0,VLOOKUP($A$3,'G10-RW'!$A$6:$AM$500,11,FALSE))&")")),"NA") -> 69% (58) | K31: =IFERROR((IF($D31="NA","NA",VLOOKUP($A$3,'G10-RW'!$A$6:$AM$500,13,FALSE))),"NA") -> 6 | L31: =IFERROR((IF($D31="NA","NA",ROUND(VLOOKUP($A$3,'G10-RW'!$A$6:$AM$500,15,FALSE),0)&"% ("&IF(VLOOKUP($A$3,'G10-RW'!$A$6:$AM$500,14,FALSE)="",0,VLOOKUP($A$3,'G10-RW'!$A$6:$AM$500,14,FALSE))&")")),"NA") -> 43% (36) | M31: =IFERROR((IF($D31="NA","NA",VLOOKUP($A$3,'G10-RW'!$A$6:$AM$500,16,FALSE))),"NA") -> 5.5 | N31: =IFERROR((IF($D31="NA","NA",ROUND(VLOOKUP($A$3,'G10-RW'!$A$6:$AM$500,18,FALSE),0)&"% ("&IF(VLOOKUP($A$3,'G10-RW'!$A$6:$AM$500,17,FALSE)="",0,VLOOKUP($A$3,'G10-RW'!$A$6:$AM$500,17,FALSE))&")")),"NA") -> 52% (44) | O31: =IFERROR(IF($D31="NA","NA",IF($S31=0,VLOOKUP($A$3,'GEO-W'!$A$14:$BX$500,34,FALSE),IF($R31=0,VLOOKUP($A$3,'GEO-W'!$A$14:$BX$500,71,FALSE),AI31))),"NA") -> 0 | P31: =IF($D31="NA","NA",IF($S31=0,ROUND(VLOOKUP($A$3,'GEO-W'!$A$14:$BX$500,39,FALSE)*100,0)&"% ("&VLOOKUP($A$3,'GEO-W'!$A$14:$BX$500,37,FALSE)&")",IF($R31=0,ROUND(VLOOKUP($A$3,'GEO-W'!$A$14:$BX$500,76,FALSE)*100,0)&"% ("&VLOOKUP($A$3,'GEO-W'!$A$14:$BX$500,74,FALSE)&")",ROUND(AJ31,0)&"% ("&AK31&")"))) -> 0% () | R31: =IFERROR(VLOOKUP($A$3,'G10-RW'!$A$6:$BX$500,3,FALSE),"not tested") -> 84 | S31: =IFERROR(VLOOKUP($A$3,'G10-RW'!$A$6:$CQ$500,19,FALSE),"not tested") -> 1
A32: Black | B32: =IFERROR(VLOOKUP(TEXT($A$3,"0000"),'AYP11'!$B$847:$AU$1268,36,FALSE)," ") -> NA | C32: =IFERROR(VLOOKUP(TEXT($A$3,"0000"),MEM_B!$A$2:$S$500,18,FALSE)-S32,-AL320) -> 27 | D32: =IFERROR((IF(OR(C32=0,C32="",C32="NA"),"NA",((IF(VLOOKUP($A$3,'G10-RB'!$A$6:$AM$500,3,FALSE)>=C32,"100% ("&VLOOKUP($A$3,'G10-RB'!$A$6:$AM$500,3,FALSE)&")",(ROUND((VLOOKUP($A$3,'G10-RB'!$A$6:$AM$500,3,FALSE)/C32*100),0))&"% ("&IF(VLOOKUP($A$3,'G10-RB'!$A$6:$AM$500,3,FALSE)="",0,VLOOKUP($A$3,'G10-RB'!$A$6:$AM$500,3,FALSE))&")"))))),"0% (0)") -> 93% (25) | E32: =IFERROR((IF($D32="NA","NA",VLOOKUP($A$3,'G10-RB'!$A$6:$AM$500,4,FALSE))),"NA") -> 32.3 | F32: =IFERROR((IF($D32="NA","NA",ROUND(VLOOKUP($A$3,'G10-RB'!$A$6:$AM$500,6,FALSE),0)&"% ("&IF(VLOOKUP($A$3,'G10-RB'!$A$6:$AM$500,5,FALSE)="",0,VLOOKUP($A$3,'G10-RB'!$A$6:$AM$500,5,FALSE))&")")),"NA") -> 48% (12) | G32: =IFERROR((IF($D32="NA","NA",VLOOKUP($A$3,'G10-RB'!$A$6:$AM$500,7,FALSE))),"NA") -> 8.4 | H32: =IFERROR((IF($D32="NA","NA",ROUND(VLOOKUP($A$3,'G10-RB'!$A$6:$AM$500,9,FALSE),0)&"% ("&IF(VLOOKUP($A$3,'G10-RB'!$A$6:$AM$500,8,FALSE)="",0,VLOOKUP($A$3,'G10-RB'!$A$6:$AM$500,8,FALSE))&")")),"NA") -> 52% (13) | I32: =IFERROR((IF($D32="NA","NA",VLOOKUP($A$3,'G10-RB'!$A$6:$AM$500,10,FALSE))),"NA") -> 13.4 | J32: =IFERROR((IF($D32="NA","NA",ROUND(VLOOKUP($A$3,'G10-RB'!$A$6:$AM$500,12,FALSE),0)&"% ("&IF(VLOOKUP($A$3,'G10-RB'!$A$6:$AM$500,11,FALSE)="",0,VLOOKUP($A$3,'G10-RB'!$A$6:$AM$500,11,FALSE))&")")),"NA") -> 48% (12) | K32: =IFERROR((IF($D32="NA","NA",VLOOKUP($A$3,'G10-RB'!$A$6:$AM$500,13,FALSE))),"NA") -> 5.3 | L32: =IFERROR((IF($D32="NA","NA",ROUND(VLOOKUP($A$3,'G10-RB'!$A$6:$AM$500,15,FALSE),0)&"% ("&IF(VLOOKUP($A$3,'G10-RB'!$A$6:$AM$500,14,FALSE)="",0,VLOOKUP($A$3,'G10-RB'!$A$6:$AM$500,14,FALSE))&")")),"NA") -> 40% (10) | M32: =IFERROR((IF($D32="NA","NA",VLOOKUP($A$3,'G10-RB'!$A$6:$AM$500,16,FALSE))),"NA") -> 5.2 | N32: =IFERROR((IF($D32="NA","NA",ROUND(VLOOKUP($A$3,'G10-RB'!$A$6:$AM$500,18,FALSE),0)&"% ("&IF(VLOOKUP($A$3,'G10-RB'!$A$6:$AM$500,17,FALSE)="",0,VLOOKUP($A$3,'G10-RB'!$A$6:$AM$500,17,FALSE))&")")),"NA") -> 52% (13) | O32: =IFERROR(IF($D32="NA","NA",IF($S32=0,VLOOKUP($A$3,'GEO-B'!$A$14:$BX$500,34,FALSE),IF($R32=0,VLOOKUP($A$3,'GEO-B'!$A$14:$BX$500,71,FALSE),AI32))),"NA") -> 0 | P32: =IF($D32="NA","NA",IF($S32=0,ROUND(VLOOKUP($A$3,'GEO-B'!$A$14:$BX$500,39,FALSE)*100,0)&"% ("&VLOOKUP($A$3,'GEO-B'!$A$14:$BX$500,37,FALSE)&")",IF($R32=0,ROUND(VLOOKUP($A$3,'GEO-B'!$A$14:$BX$500,76,FALSE)*100,0)&"% ("&VLOOKUP($A$3,'GEO-B'!$A$14:$BX$500,74,FALSE)&")",ROUND(AJ32,0)&"% ("&AK32&")"))) -> 0% () | R32: =IFERROR(VLOOKUP($A$3,'G10-RB'!$A$6:$BX$500,3,FALSE),"not tested") -> 25 | S32: =IFERROR(VLOOKUP($A$3,'G10-RB'!$A$6:$CQ$500,19,FALSE),"not tested") -> 0
A33: Hispanic | B33: =IFERROR(VLOOKUP(TEXT($A$3,"0000"),'AYP11'!$B$2113:$AU$2534,36,FALSE)," ") -> NO | C33: =IFERROR(VLOOKUP(TEXT($A$3,"0000"),MEM_H!$A$2:$S$500,18,FALSE)-S33-AL33,0) -> 957 | D33: =IFERROR((IF(OR(C33=0,C33="",C33="NA"),"NA",((IF(VLOOKUP($A$3,'G10-RH'!$A$6:$AM$500,3,FALSE)>=C33,"100% ("&VLOOKUP($A$3,'G10-RH'!$A$6:$AM$500,3,FALSE)&")",(ROUND((VLOOKUP($A$3,'G10-RH'!$A$6:$AM$500,3,FALSE)/C33*100),0))&"% ("&IF(VLOOKUP($A$3,'G10-RH'!$A$6:$AM$500,3,FALSE)="",0,VLOOKUP($A$3,'G10-RH'!$A$6:$AM$500,3,FALSE))&")"))))),"0% (0)") -> 93% (891) | E33: =IFERROR((IF($D33="NA","NA",VLOOKUP($A$3,'G10-RH'!$A$6:$AM$500,4,FALSE))),"NA") -> 31.9 | F33: =IFERROR((IF($D33="NA","NA",ROUND(VLOOKUP($A$3,'G10-RH'!$A$6:$AM$500,6,FALSE),0)&"% ("&IF(VLOOKUP($A$3,'G10-RH'!$A$6:$AM$500,5,FALSE)="",0,VLOOKUP($A$3,'G10-RH'!$A$6:$AM$500,5,FALSE))&")")),"NA") -> 49% (440) | G33: =IFERROR((IF($D33="NA","NA",VLOOKUP($A$3,'G10-RH'!$A$6:$AM$500,7,FALSE))),"NA") -> 8.3 | H33: =IFERROR((IF($D33="NA","NA",ROUND(VLOOKUP($A$3,'G10-RH'!$A$6:$AM$500,9,FALSE),0)&"% ("&IF(VLOOKUP($A$3,'G10-RH'!$A$6:$AM$500,8,FALSE)="",0,VLOOKUP($A$3,'G10-RH'!$A$6:$AM$500,8,FALSE))&")")),"NA") -> 55% (489) | I33: =IFERROR((IF($D33="NA","NA",VLOOKUP($A$3,'G10-RH'!$A$6:$AM$500,10,FALSE))),"NA") -> 13.2 | J33: =IFERROR((IF($D33="NA","NA",ROUND(VLOOKUP($A$3,'G10-RH'!$A$6:$AM$500,12,FALSE),0)&"% ("&IF(VLOOKUP($A$3,'G10-RH'!$A$6:$AM$500,11,FALSE)="",0,VLOOKUP($A$3,'G10-RH'!$A$6:$AM$500,11,FALSE))&")")),"NA") -> 55% (488) | K33: =IFERROR((IF($D33="NA","NA",VLOOKUP($A$3,'G10-RH'!$A$6:$AM$500,13,FALSE))),"NA") -> 5.4 | L33: =IFERROR((IF($D33="NA","NA",ROUND(VLOOKUP($A$3,'G10-RH'!$A$6:$AM$500,15,FALSE),0)&"% ("&IF(VLOOKUP($A$3,'G10-RH'!$A$6:$AM$500,14,FALSE)="",0,VLOOKUP($A$3,'G10-RH'!$A$6:$AM$500,14,FALSE))&")")),"NA") -> 33% (293) | M33: =IFERROR((IF($D33="NA","NA",VLOOKUP($A$3,'G10-RH'!$A$6:$AM$500,16,FALSE))),"NA") -> 5 | N33: =IFERROR((IF($D33="NA","NA",ROUND(VLOOKUP($A$3,'G10-RH'!$A$6:$AM$500,18,FALSE),0)&"% ("&IF(VLOOKUP($A$3,'G10-RH'!$A$6:$AM$500,17,FALSE)="",0,VLOOKUP($A$3,'G10-RH'!$A$6:$AM$500,17,FALSE))&")")),"NA") -> 46% (414) | O33: =IFERROR(IF($D33="NA","NA",IF($S33=0,VLOOKUP($A$3,'GEO-H'!$A$14:$BX$500,34,FALSE),IF($R33=0,VLOOKUP($A$3,'GEO-H'!$A$14:$BX$500,71,FALSE),AI33))),"NA") -> 0 | P33: =IF($D33="NA","NA",IF($S33=0,ROUND(VLOOKUP($A$3,'GEO-H'!$A$14:$BX$500,39,FALSE)*100,0)&"% ("&VLOOKUP($A$3,'GEO-H'!$A$14:$BX$500,37,FALSE)&")",IF($R33=0,ROUND(VLOOKUP($A$3,'GEO-H'!$A$14:$BX$500,76,FALSE)*100,0)&"% ("&VLOOKUP($A$3,'GEO-H'!$A$14:$BX$500,74,FALSE)&")",ROUND(AJ33,0)&"% ("&AK33&")"))) -> 0% () | R33: =IFERROR(VLOOKUP($A$3,'G10-RH'!$A$6:$BX$500,3,FALSE),"not tested") -> 891 | S33: =IFERROR(VLOOKUP($A$3,'G10-RH'!$A$6:$CQ$500,19,FALSE),"not tested") -> 26
A34: Asian | B34: =IFERROR(VLOOKUP(TEXT($A$3,"0000"),'AYP11'!$B$425:$AU$846,36,FALSE)," ") -> NA | C34: =IFERROR(VLOOKUP(TEXT($A$3,"0000"),MEM_A!$A$2:$S$500,18,FALSE)-S34-AL34,0) -> 18 | D34: =IFERROR((IF(OR(C34=0,C34="",C34="NA"),"NA",((IF(VLOOKUP($A$3,'G10-RA'!$A$6:$AM$500,3,FALSE)>=C34,"100% ("&VLOOKUP($A$3,'G10-RA'!$A$6:$AM$500,3,FALSE)&")",(ROUND((VLOOKUP($A$3,'G10-RA'!$A$6:$AM$500,3,FALSE)/C34*100),0))&"% ("&IF(VLOOKUP($A$3,'G10-RA'!$A$6:$AM$500,3,FALSE)="",0,VLOOKUP($A$3,'G10-RA'!$A$6:$AM$500,3,FALSE))&")"))))),"0% (0)") -> 100% (18) | E34: =IFERROR((IF($D34="NA","NA",VLOOKUP($A$3,'G10-RA'!$A$6:$AM$500,4,FALSE))),"NA") -> 38.6 | F34: =IFERROR((IF($D34="NA","NA",ROUND(VLOOKUP($A$3,'G10-RA'!$A$6:$AM$500,6,FALSE),0)&"% ("&IF(VLOOKUP($A$3,'G10-RA'!$A$6:$AM$500,5,FALSE)="",0,VLOOKUP($A$3,'G10-RA'!$A$6:$AM$500,5,FALSE))&")")),"NA") -> 78% (14) | G34: =IFERROR((IF($D34="NA","NA",VLOOKUP($A$3,'G10-RA'!$A$6:$AM$500,7,FALSE))),"NA") -> 9.8 | H34: =IFERROR((IF($D34="NA","NA",ROUND(VLOOKUP($A$3,'G10-RA'!$A$6:$AM$500,9,FALSE),0)&"% ("&IF(VLOOKUP($A$3,'G10-RA'!$A$6:$AM$500,8,FALSE)="",0,VLOOKUP($A$3,'G10-RA'!$A$6:$AM$500,8,FALSE))&")")),"NA") -> 78% (14) | I34: =IFERROR((IF($D34="NA","NA",VLOOKUP($A$3,'G10-RA'!$A$6:$AM$500,10,FALSE))),"NA") -> 15.9 | J34: =IFERROR((IF($D34="NA","NA",ROUND(VLOOKUP($A$3,'G10-RA'!$A$6:$AM$500,12,FALSE),0)&"% ("&IF(VLOOKUP($A$3,'G10-RA'!$A$6:$AM$500,11,FALSE)="",0,VLOOKUP($A$3,'G10-RA'!$A$6:$AM$500,11,FALSE))&")")),"NA") -> 94% (17) | K34: =IFERROR((IF($D34="NA","NA",VLOOKUP($A$3,'G10-RA'!$A$6:$AM$500,13,FALSE))),"NA") -> 6.7 | L34: =IFERROR((IF($D34="NA","NA",ROUND(VLOOKUP($A$3,'G10-RA'!$A$6:$AM$500,15,FALSE),0)&"% ("&IF(VLOOKUP($A$3,'G10-RA'!$A$6:$AM$500,14,FALSE)="",0,VLOOKUP($A$3,'G10-RA'!$A$6:$AM$500,14,FALSE))&")")),"NA") -> 56% (10) | M34: =IFERROR((IF($D34="NA","NA",VLOOKUP($A$3,'G10-RA'!$A$6:$AM$500,16,FALSE))),"NA") -> 6.2 | N34: =IFERROR((IF($D34="NA","NA",ROUND(VLOOKUP($A$3,'G10-RA'!$A$6:$AM$500,18,FALSE),0)&"% ("&IF(VLOOKUP($A$3,'G10-RA'!$A$6:$AM$500,17,FALSE)="",0,VLOOKUP($A$3,'G10-RA'!$A$6:$AM$500,17,FALSE))&")")),"NA") -> 67% (12) | O34: =IFERROR(IF($D34="NA","NA",IF($S34=0,VLOOKUP($A$3,'GEO-A'!$A$14:$BX$500,34,FALSE),IF($R34=0,VLOOKUP($A$3,'GEO-A'!$A$14:$BX$500,71,FALSE),AI34))),"NA") -> 0 | P34: =IF($D34="NA","NA",IF($S34=0,ROUND(VLOOKUP($A$3,'GEO-A'!$A$14:$BX$500,39,FALSE)*100,0)&"% ("&VLOOKUP($A$3,'GEO-A'!$A$14:$BX$500,37,FALSE)&")",IF($R34=0,ROUND(VLOOKUP($A$3,'GEO-A'!$A$14:$BX$500,76,FALSE)*100,0)&"% ("&VLOOKUP($A$3,'GEO-A'!$A$14:$BX$500,74,FALSE)&")",ROUND(AJ34,0)&"% ("&AK34&")"))) -> 0% () | R34: =IFERROR(VLOOKUP($A$3,'G10-RA'!$A$6:$BX$500,3,FALSE),"not tested") -> 18 | S34: =IFERROR(VLOOKUP($A$3,'G10-RA'!$A$6:$CQ$500,19,FALSE),"not tested") -> 0
A35: Am. Indian | B35: =IFERROR(VLOOKUP(TEXT($A$3,"0000"),'AYP11'!$B$3:$AU$424,36,FALSE)," ") -> NA | C35: =IFERROR(VLOOKUP(TEXT($A$3,"0000"),MEM_I!$A$2:$S$500,18,FALSE)-S35-AL35,0) -> 2 | D35: =IFERROR((IF(OR(C35=0,C35="",C35="NA"),"NA",((IF(VLOOKUP($A$3,'G10-RI'!$A$6:$AM$500,3,FALSE)>=C35,"100% ("&VLOOKUP($A$3,'G10-RI'!$A$6:$AM$500,3,FALSE)&")",(ROUND((VLOOKUP($A$3,'G10-RI'!$A$6:$AM$500,3,FALSE)/C35*100),0))&"% ("&IF(VLOOKUP($A$3,'G10-RI'!$A$6:$AM$500,3,FALSE)="",0,VLOOKUP($A$3,'G10-RI'!$A$6:$AM$500,3,FALSE))&")"))))),"0% (0)") -> 100% (2) | E35: =IFERROR((IF($D35="NA","NA",VLOOKUP($A$3,'G10-RI'!$A$6:$AM$500,4,FALSE))),"NA") -> 39 | F35: =IFERROR((IF($D35="NA","NA",ROUND(VLOOKUP($A$3,'G10-RI'!$A$6:$AM$500,6,FALSE),0)&"% ("&IF(VLOOKUP($A$3,'G10-RI'!$A$6:$AM$500,5,FALSE)="",0,VLOOKUP($A$3,'G10-RI'!$A$6:$AM$500,5,FALSE))&")")),"NA") -> 100% (2) | G35: =IFERROR((IF($D35="NA","NA",VLOOKUP($A$3,'G10-RI'!$A$6:$AM$500,7,FALSE))),"NA") -> 10.5 | H35: =IFERROR((IF($D35="NA","NA",ROUND(VLOOKUP($A$3,'G10-RI'!$A$6:$AM$500,9,FALSE),0)&"% ("&IF(VLOOKUP($A$3,'G10-RI'!$A$6:$AM$500,8,FALSE)="",0,VLOOKUP($A$3,'G10-RI'!$A$6:$AM$500,8,FALSE))&")")),"NA") -> 100% (2) | I35: =IFERROR((IF($D35="NA","NA",VLOOKUP($A$3,'G10-RI'!$A$6:$AM$500,10,FALSE))),"NA") -> 14.5 | J35: =IFERROR((IF($D35="NA","NA",ROUND(VLOOKUP($A$3,'G10-RI'!$A$6:$AM$500,12,FALSE),0)&"% ("&IF(VLOOKUP($A$3,'G10-RI'!$A$6:$AM$500,11,FALSE)="",0,VLOOKUP($A$3,'G10-RI'!$A$6:$AM$500,11,FALSE))&")")),"NA") -> 50% (1) | K35: =IFERROR((IF($D35="NA","NA",VLOOKUP($A$3,'G10-RI'!$A$6:$AM$500,13,FALSE))),"NA") -> 7 | L35: =IFERROR((IF($D35="NA","NA",ROUND(VLOOKUP($A$3,'G10-RI'!$A$6:$AM$500,15,FALSE),0)&"% ("&IF(VLOOKUP($A$3,'G10-RI'!$A$6:$AM$500,14,FALSE)="",0,VLOOKUP($A$3,'G10-RI'!$A$6:$AM$500,14,FALSE))&")")),"NA") -> 50% (1) | M35: =IFERROR((IF($D35="NA","NA",VLOOKUP($A$3,'G10-RI'!$A$6:$AM$500,16,FALSE))),"NA") -> 7 | N35: =IFERROR((IF($D35="NA","NA",ROUND(VLOOKUP($A$3,'G10-RI'!$A$6:$AM$500,18,FALSE),0)&"% ("&IF(VLOOKUP($A$3,'G10-RI'!$A$6:$AM$500,17,FALSE)="",0,VLOOKUP($A$3,'G10-RI'!$A$6:$AM$500,17,FALSE))&")")),"NA") -> 100% (2) | O35: =IFERROR(IF($D35="NA","NA",IF($S35=0,VLOOKUP($A$3,'GEO-I'!$A$14:$BX$500,34,FALSE),IF($R35=0,VLOOKUP($A$3,'GEO-I'!$A$14:$BX$500,71,FALSE),AI35))),"NA") -> 0 | P35: =IF($D35="NA","NA",IF($S35=0,ROUND(VLOOKUP($A$3,'GEO-I'!$A$14:$BX$500,39,FALSE)*100,0)&"% ("&VLOOKUP($A$3,'GEO-I'!$A$14:$BX$500,37,FALSE)&")",IF($R35=0,ROUND(VLOOKUP($A$3,'GEO-I'!$A$14:$BX$500,76,FALSE)*100,0)&"% ("&VLOOKUP($A$3,'GEO-I'!$A$14:$BX$500,74,FALSE)&")",ROUND(AJ35,0)&"% ("&AK35&")"))) -> 0% () | R35: =IFERROR(VLOOKUP($A$3,'G10-RI'!$A$6:$BX$500,3,FALSE),"not tested") -> 2 | S35: =IFERROR(VLOOKUP($A$3,'G10-RI'!$A$6:$CQ$500,19,FALSE),"not tested") -> 0
A36: ED | B36: =IFERROR(VLOOKUP(TEXT($A$3,"0000"),'AYP11'!$B$1269:$AU$1690,36,FALSE)," ") -> NO | C36: =IFERROR(VLOOKUP(TEXT($A$3,"0000"),MEM_ED!$A$2:$S$500,18,FALSE)-S36-AL36,0) -> 645 | D36: =IFERROR((IF(OR(C36=0,C36="",C36="NA"),"NA",((IF(VLOOKUP($A$3,'G10-RED'!$A$6:$AM$500,3,FALSE)>=C36,"100% ("&VLOOKUP($A$3,'G10-RED'!$A$6:$AM$500,3,FALSE)&")",(ROUND((VLOOKUP($A$3,'G10-RED'!$A$6:$AM$500,3,FALSE)/C36*100),0))&"% ("&IF(VLOOKUP($A$3,'G10-RED'!$A$6:$AM$500,3,FALSE)="",0,VLOOKUP($A$3,'G10-RED'!$A$6:$AM$500,3,FALSE))&")"))))),"0% (0)") -> 93% (602) | E36: =IFERROR((IF($D36="NA","NA",VLOOKUP($A$3,'G10-RED'!$A$6:$AM$500,4,FALSE))),"NA") -> 31 | F36: =IFERROR((IF($D36="NA","NA",ROUND(VLOOKUP($A$3,'G10-RED'!$A$6:$AM$500,6,FALSE),0)&"% ("&IF(VLOOKUP($A$3,'G10-RED'!$A$6:$AM$500,5,FALSE)="",0,VLOOKUP($A$3,'G10-RED'!$A$6:$AM$500,5,FALSE))&")")),"NA") -> 46% (274) | G36: =IFERROR((IF($D36="NA","NA",VLOOKUP($A$3,'G10-RED'!$A$6:$AM$500,7,FALSE))),"NA") -> 8 | H36: =IFERROR((IF($D36="NA","NA",ROUND(VLOOKUP($A$3,'G10-RED'!$A$6:$AM$500,9,FALSE),0)&"% ("&IF(VLOOKUP($A$3,'G10-RED'!$A$6:$AM$500,8,FALSE)="",0,VLOOKUP($A$3,'G10-RED'!$A$6:$AM$500,8,FALSE))&")")),"NA") -> 53% (317) | I36: =IFERROR((IF($D36="NA","NA",VLOOKUP($A$3,'G10-RED'!$A$6:$AM$500,10,FALSE))),"NA") -> 12.8 | J36: =IFERROR((IF($D36="NA","NA",ROUND(VLOOKUP($A$3,'G10-RED'!$A$6:$AM$500,12,FALSE),0)&"% ("&IF(VLOOKUP($A$3,'G10-RED'!$A$6:$AM$500,11,FALSE)="",0,VLOOKUP($A$3,'G10-RED'!$A$6:$AM$500,11,FALSE))&")")),"NA") -> 51% (305) | K36: =IFERROR((IF($D36="NA","NA",VLOOKUP($A$3,'G10-RED'!$A$6:$AM$500,13,FALSE))),"NA") -> 5.3 | L36: =IFERROR((IF($D36="NA","NA",ROUND(VLOOKUP($A$3,'G10-RED'!$A$6:$AM$500,15,FALSE),0)&"% ("&IF(VLOOKUP($A$3,'G10-RED'!$A$6:$AM$500,14,FALSE)="",0,VLOOKUP($A$3,'G10-RED'!$A$6:$AM$500,14,FALSE))&")")),"NA") -> 30% (180) | M36: =IFERROR((IF($D36="NA","NA",VLOOKUP($A$3,'G10-RED'!$A$6:$AM$500,16,FALSE))),"NA") -> 4.9 | N36: =IFERROR((IF($D36="NA","NA",ROUND(VLOOKUP($A$3,'G10-RED'!$A$6:$AM$500,18,FALSE),0)&"% ("&IF(VLOOKUP($A$3,'G10-RED'!$A$6:$AM$500,17,FALSE)="",0,VLOOKUP($A$3,'G10-RED'!$A$6:$AM$500,17,FALSE))&")")),"NA") -> 43% (260) | O36: =IFERROR(IF($D36="NA","NA",IF($S36=0,VLOOKUP($A$3,'GEO-ED'!$A$14:$BX$500,34,FALSE),IF($R36=0,VLOOKUP($A$3,'GEO-ED'!$A$14:$BX$500,71,FALSE),AI36))),"NA") -> 0 | P36: =IF($D36="NA","NA",IF($S36=0,ROUND(VLOOKUP($A$3,'GEO-ED'!$A$14:$BX$500,39,FALSE)*100,0)&"% ("&VLOOKUP($A$3,'GEO-ED'!$A$14:$BX$500,37,FALSE)&")",IF($R36=0,ROUND(VLOOKUP($A$3,'GEO-ED'!$A$14:$BX$500,76,FALSE)*100,0)&"% ("&VLOOKUP($A$3,'GEO-ED'!$A$14:$BX$500,74,FALSE)&")",ROUND(AJ36,0)&"% ("&AK36&")"))) -> 0% () | R36: =IFERROR(VLOOKUP($A$3,'G10-RED'!$A$6:$BX$500,3,FALSE),"not tested") -> 602 | S36: =IFERROR(VLOOKUP($A$3,'G10-RED'!$A$6:$CQ$500,19,FALSE),"not tested") -> 21
A37: ELL | B37: =IFERROR(VLOOKUP(TEXT($A$3,"0000"),'AYP11'!$B$1691:$AU$2112,36,FALSE)," ") -> NO | C37: =IFERROR(VLOOKUP(TEXT($A$3,"0000"),MEM_ELL!$A$2:$S$500,18,FALSE)-S37-AL37,0) -> 89 | D37: =IFERROR((IF(OR(C37=0,C37="",C37="NA"),"NA",((IF(VLOOKUP($A$3,'G10-RELL'!$A$6:$AM$500,3,FALSE)>=C37,"100% ("&VLOOKUP($A$3,'G10-RELL'!$A$6:$AM$500,3,FALSE)&")",(ROUND((VLOOKUP($A$3,'G10-RELL'!$A$6:$AM$500,3,FALSE)/C37*100),0))&"% ("&IF(VLOOKUP($A$3,'G10-RELL'!$A$6:$AM$500,3,FALSE)="",0,VLOOKUP($A$3,'G10-RELL'!$A$6:$AM$500,3,FALSE))&")"))))),"0% (0)") -> 93% (83) | E37: =IFERROR((IF($D37="NA","NA",VLOOKUP($A$3,'G10-RELL'!$A$6:$AM$500,4,FALSE))),"NA") -> 24.08433735 | F37: =IFERROR((IF($D37="NA","NA",ROUND(VLOOKUP($A$3,'G10-RELL'!$A$6:$AM$500,6,FALSE),0)&"% ("&IF(VLOOKUP($A$3,'G10-RELL'!$A$6:$AM$500,5,FALSE)="",0,VLOOKUP($A$3,'G10-RELL'!$A$6:$AM$500,5,FALSE))&")")),"NA") -> 16% (13) | G37: =IFERROR((IF($D37="NA","NA",VLOOKUP($A$3,'G10-RELL'!$A$6:$AM$500,7,FALSE))),"NA") -> 5.86746988 | H37: =IFERROR((IF($D37="NA","NA",ROUND(VLOOKUP($A$3,'G10-RELL'!$A$6:$AM$500,9,FALSE),0)&"% ("&IF(VLOOKUP($A$3,'G10-RELL'!$A$6:$AM$500,8,FALSE)="",0,VLOOKUP($A$3,'G10-RELL'!$A$6:$AM$500,8,FALSE))&")")),"NA") -> 18% (15) | I37: =IFERROR((IF($D37="NA","NA",VLOOKUP($A$3,'G10-RELL'!$A$6:$AM$500,10,FALSE))),"NA") -> 10.01204819 | J37: =IFERROR((IF($D37="NA","NA",ROUND(VLOOKUP($A$3,'G10-RELL'!$A$6:$AM$500,12,FALSE),0)&"% ("&IF(VLOOKUP($A$3,'G10-RELL'!$A$6:$AM$500,11,FALSE)="",0,VLOOKUP($A$3,'G10-RELL'!$A$6:$AM$500,11,FALSE))&")")),"NA") -> 27% (22) | K37: =IFERROR((IF($D37="NA","NA",VLOOKUP($A$3,'G10-RELL'!$A$6:$AM$500,13,FALSE))),"NA") -> 4.228915663 | L37: =IFERROR((IF($D37="NA","NA",ROUND(VLOOKUP($A$3,'G10-RELL'!$A$6:$AM$500,15,FALSE),0)&"% ("&IF(VLOOKUP($A$3,'G10-RELL'!$A$6:$AM$500,14,FALSE)="",0,VLOOKUP($A$3,'G10-RELL'!$A$6:$AM$500,14,FALSE))&")")),"NA") -> 12% (10) | M37: =IFERROR((IF($D37="NA","NA",VLOOKUP($A$3,'G10-RELL'!$A$6:$AM$500,16,FALSE))),"NA") -> 3.975903614 | N37: =IFERROR((IF($D37="NA","NA",ROUND(VLOOKUP($A$3,'G10-RELL'!$A$6:$AM$500,18,FALSE),0)&"% ("&IF(VLOOKUP($A$3,'G10-RELL'!$A$6:$AM$500,17,FALSE)="",0,VLOOKUP($A$3,'G10-RELL'!$A$6:$AM$500,17,FALSE))&")")),"NA") -> 27% (22) | O37: =IFERROR(IF($D37="NA","NA",IF($S37=0,VLOOKUP($A$3,'GEO-ELL'!$A$14:$BX$500,34,FALSE),IF($R37=0,VLOOKUP($A$3,'GEO-ELL'!$A$14:$BX$500,71,FALSE),AI37))),"NA") -> 0 | P37: =IF($D37="NA","NA",IF($S37=0,ROUND(VLOOKUP($A$3,'GEO-ELL'!$A$14:$BX$500,39,FALSE)*100,0)&"% ("&VLOOKUP($A$3,'GEO-ELL'!$A$14:$BX$500,37,FALSE)&")",IF($R37=0,ROUND(VLOOKUP($A$3,'GEO-ELL'!$A$14:$BX$500,76,FALSE)*100,0)&"% ("&VLOOKUP($A$3,'GEO-ELL'!$A$14:$BX$500,74,FALSE)&")",ROUND(AJ37,0)&"% ("&AK37&")"))) -> 0% () | R37: =IFERROR(VLOOKUP($A$3,'G10-RELL'!$A$6:$BX$500,3,FALSE),"not tested") -> 83 | S37: =IFERROR(VLOOKUP($A$3,'G10-RELL'!$A$6:$CQ$500,19,FALSE),"not tested") -> 3
A38: SWD | B38: =IFERROR(VLOOKUP(TEXT($A$3,"0000"),'AYP11'!$B$2535:$AU$2956,36,FALSE)," ") -> NO | C38: =IFERROR(VLOOKUP(TEXT($A$3,"0000"),MEM_SWD!$A$2:$S$500,18,FALSE)-S38-AL38,0) -> 92 | D38: =IFERROR((IF(OR(C38=0,C38="",C38="NA"),"NA",((IF(VLOOKUP($A$3,'G10-RSWD'!$A$6:$AM$500,3,FALSE)>=C38,"100% ("&VLOOKUP($A$3,'G10-RSWD'!$A$6:$AM$500,3,FALSE)&")",(ROUND((VLOOKUP($A$3,'G10-RSWD'!$A$6:$AM$500,3,FALSE)/C38*100),0))&"% ("&IF(VLOOKUP($A$3,'G10-RSWD'!$A$6:$AM$500,3,FALSE)="",0,VLOOKUP($A$3,'G10-RSWD'!$A$6:$AM$500,3,FALSE))&")"))))),"0% (0)") -> 93% (86) | E38: =IFERROR((IF($D38="NA","NA",VLOOKUP($A$3,'G10-RSWD'!$A$6:$AM$500,4,FALSE))),"NA") -> 23.7 | F38: =IFERROR((IF($D38="NA","NA",ROUND(VLOOKUP($A$3,'G10-RSWD'!$A$6:$AM$500,6,FALSE),0)&"% ("&IF(VLOOKUP($A$3,'G10-RSWD'!$A$6:$AM$500,5,FALSE)="",0,VLOOKUP($A$3,'G10-RSWD'!$A$6:$AM$500,5,FALSE))&")")),"NA") -> 17% (15) | G38: =IFERROR((IF($D38="NA","NA",VLOOKUP($A$3,'G10-RSWD'!$A$6:$AM$500,7,FALSE))),"NA") -> 6.2 | H38: =IFERROR((IF($D38="NA","NA",ROUND(VLOOKUP($A$3,'G10-RSWD'!$A$6:$AM$500,9,FALSE),0)&"% ("&IF(VLOOKUP($A$3,'G10-RSWD'!$A$6:$AM$500,8,FALSE)="",0,VLOOKUP($A$3,'G10-RSWD'!$A$6:$AM$500,8,FALSE))&")")),"NA") -> 28% (24) | I38: =IFERROR((IF($D38="NA","NA",VLOOKUP($A$3,'G10-RSWD'!$A$6:$AM$500,10,FALSE))),"NA") -> 9.9 | J38: =IFERROR((IF($D38="NA","NA",ROUND(VLOOKUP($A$3,'G10-RSWD'!$A$6:$AM$500,12,FALSE),0)&"% ("&IF(VLOOKUP($A$3,'G10-RSWD'!$A$6:$AM$500,11,FALSE)="",0,VLOOKUP($A$3,'G10-RSWD'!$A$6:$AM$500,11,FALSE))&")")),"NA") -> 20% (17) | K38: =IFERROR((IF($D38="NA","NA",VLOOKUP($A$3,'G10-RSWD'!$A$6:$AM$500,13,FALSE))),"NA") -> 4 | L38: =IFERROR((IF($D38="NA","NA",ROUND(VLOOKUP($A$3,'G10-RSWD'!$A$6:$AM$500,15,FALSE),0)&"% ("&IF(VLOOKUP($A$3,'G10-RSWD'!$A$6:$AM$500,14,FALSE)="",0,VLOOKUP($A$3,'G10-RSWD'!$A$6:$AM$500,14,FALSE))&")")),"NA") -> 17% (15) | M38: =IFERROR((IF($D38="NA","NA",VLOOKUP($A$3,'G10-RSWD'!$A$6:$AM$500,16,FALSE))),"NA") -> 3.6 | N38: =IFERROR((IF($D38="NA","NA",ROUND(VLOOKUP($A$3,'G10-RSWD'!$A$6:$AM$500,18,FALSE),0)&"% ("&IF(VLOOKUP($A$3,'G10-RSWD'!$A$6:$AM$500,17,FALSE)="",0,VLOOKUP($A$3,'G10-RSWD'!$A$6:$AM$500,17,FALSE))&")")),"NA") -> 19% (16) | O38: =IFERROR(IF($D38="NA","NA",IF($S38=0,VLOOKUP($A$3,'GEO-SWD'!$A$14:$BX$500,34,FALSE),IF($R38=0,VLOOKUP($A$3,'GEO-SWD'!$A$14:$BX$500,71,FALSE),AI38))),"NA") -> 0 | P38: =IF($D38="NA","NA",IF($S38=0,ROUND(VLOOKUP($A$3,'GEO-SWD'!$A$14:$BX$500,39,FALSE)*100,0)&"% ("&VLOOKUP($A$3,'GEO-SWD'!$A$14:$BX$500,37,FALSE)&")",IF($R38=0,ROUND(VLOOKUP($A$3,'GEO-SWD'!$A$14:$BX$500,76,FALSE)*100,0)&"% ("&VLOOKUP($A$3,'GEO-SWD'!$A$14:$BX$500,74,FALSE)&")",ROUND(AJ38,0)&"% ("&AK38&")"))) -> 0% () | R38: =IFERROR(VLOOKUP($A$3,'G10-RSWD'!$A$6:$BX$500,3,FALSE),"not tested") -> 86 | S38: =IFERROR(VLOOKUP($A$3,'G10-RSWD'!$A$6:$CQ$500,19,FALSE),"not tested") -> 8
A39: ="District Writing Mid-Year, Grade 10 (DA Type: "&IFERROR(VLOOKUP(TEXT($A$3,"0000"),'2011DA'!C3:AB301,13,FALSE),"None")&")" -> District Writing Mid-Year, Grade 10 (DA Type: CORRECT I) | R39: Writing Grade 10
A40: Level of Proficiency at 3 or above | B40: 2011 AYP Met | C40: Total # of Students | D40: % of Students Tested (Weighted)* | E40: Combined Prompts (Weighted Values) | I40: Expository | K40: Persuasive | R40: =I40 -> Expository | S40: =K40 -> Persuasive
E41: Average Score | F41: % at 3.0 | G41: % at or above 4.0 | I41: Average Score | J41: % Proficient | K41: Average Score | L41: % Proficient | R41: Number Tested | S41: Number Tested
A42: All students | B42: =IFERROR(VLOOKUP(TEXT($A$3,"0000"),'AYP11'!$B$2957:$AU$3378,13,FALSE),"NA") -> YES | C42: =IFERROR(VLOOKUP(TEXT($A$3,"0000"),Mem_All!$A$2:$S$500,14,FALSE),0) -> 1137 | D42: =IF(OR(C42=0,C42="",C42="NA"),"NA",IFERROR(IF(OR(VLOOKUP($A$3,'G10-WALL'!$A$14:$AH$500,3,FALSE)>C42,VLOOKUP($A$3,'G10-WALL'!$A$14:$AH$500,12,FALSE)>C42,VLOOKUP($A$3,'G10-WALL'!$A$14:$AH$500,21,FALSE)>2*C42),100&"%",IF(OR(VLOOKUP($A$3,'G10-WALL'!$A$14:$AH$500,3,FALSE)=0,VLOOKUP($A$3,'G10-WALL'!$A$14:$AH$500,12,FALSE)=0),ROUND((VLOOKUP($A$3,'G10-WALL'!$A$14:$AH$500,21,FALSE)/C42*100),0)&"%",ROUND((VLOOKUP($A$3,'G10-WALL'!$A$14:$AH$500,21,FALSE)/(2*C42)*100),0)&"%")),"0%")) -> 77% | E42: =IFERROR((IF($D42="NA","NA",VLOOKUP($A$3,'G10-WALL'!$A$14:$AH$500,22,FALSE))),"NA") -> 3.699258342 | F42: =IFERROR((IF($D42="NA","NA",ROUND(VLOOKUP($A$3,'G10-WALL'!$A$14:$AH$500,25,FALSE),0)&"%")),"NA") -> 22% | G42: =IFERROR((IF($D42="NA","NA",ROUND(VLOOKUP($A$3,'G10-WALL'!$A$14:$AH$500,26,FALSE),0)&"%")),"NA") -> 62% | I42: =IFERROR(IF(VLOOKUP($A$3,'G10-WALL'!$A$14:$AH$500,3,FALSE)="","Not Test",VLOOKUP($A$3,'G10-WALL'!$A$14:$AH$500,32,FALSE)),"NA") -> 3.599999905 | J42: =IFERROR(IF(VLOOKUP($A$3,'G10-WALL'!$A$14:$AH$500,3,FALSE)="","Not Test",VLOOKUP($A$3,'G10-WALL'!$A$14:$AH$500,28,FALSE)&"% ("&VLOOKUP($A$3,'G10-WALL'!$A$14:$AH$500,27,FALSE)&")"),"NA") -> 81% (712) | K42: =IFERROR(IF(VLOOKUP($A$3,'G10-WALL'!$A$14:$AH$500,12,FALSE)="","Not Test",VLOOKUP($A$3,'G10-WALL'!$A$14:$AH$500,34,FALSE)),"NA") -> 3.799999952 | L42: =IFERROR(IF(VLOOKUP($A$3,'G10-WALL'!$A$14:$AH$500,12,FALSE)="","Not Test",VLOOKUP($A$3,'G10-WALL'!$A$14:$AH$500,30,FALSE)&"% ("&VLOOKUP($A$3,'G10-WALL'!$A$14:$AH$500,29,FALSE)&")"),"NA") -> 88% (766) | R42: =IFERROR(IF(VLOOKUP($A$3,'G10-WALL'!$A$14:$AN$34,3,FALSE)="","0",VLOOKUP($A$3,'G10-WALL'!$A$14:$AN$34,3,FALSE)),"Not Test") -> Not Test | S42: =IFERROR(IF(VLOOKUP($A$3,'G10-WALL'!$A$14:$AN$34,12,FALSE)="","0",VLOOKUP($A$3,'G10-WALL'!$A$14:$AN$34,12,FALSE)),"Not Test") -> Not Test
A43: White | B43: =IFERROR(VLOOKUP(TEXT($A$3,"0000"),'AYP11'!$B$3379:$AU$3800,13,FALSE)," ") -> YES | C43: =IFERROR(VLOOKUP(TEXT($A$3,"0000"),MEM_W!$A$2:$S$500,14,FALSE),0) -> 91 | D43: =IF(OR(C43=0,C43="",C43="NA"),"NA",IFERROR(IF(OR(VLOOKUP($A$3,'G10-WW'!$A$14:$AM$500,3,FALSE)>C43,VLOOKUP($A$3,'G10-WW'!$A$14:$AM$500,12,FALSE)>C43,VLOOKUP($A$3,'G10-WW'!$A$14:$AM$500,21,FALSE)>2*C43),100&"%",IF(OR(VLOOKUP($A$3,'G10-WW'!$A$14:$AM$500,3,FALSE)=0,VLOOKUP($A$3,'G10-WW'!$A$14:$AM$500,12,FALSE)=0),ROUND((VLOOKUP($A$3,'G10-WW'!$A$14:$AM$500,21,FALSE)/C43*100),0)&"%",ROUND((VLOOKUP($A$3,'G10-WW'!$A$14:$AM$500,21,FALSE)/(2*C43)*100),0)&"%")),"0%")) -> 75% | E43: =IFERROR((IF($D43="NA","NA",VLOOKUP($A$3,'G10-WW'!$A$14:$AM$500,22,FALSE))),"NA") -> 3.998540027 | F43: =IFERROR((IF($D43="NA","NA",ROUND(VLOOKUP($A$3,'G10-WW'!$A$14:$AM$500,25,FALSE),0)&"%")),"NA") -> 16% | G43: =IFERROR((IF($D43="NA","NA",ROUND(VLOOKUP($A$3,'G10-WW'!$A$14:$AM$500,26,FALSE),0)&"%")),"NA") -> 70% | I43: =IFERROR(IF(VLOOKUP($A$3,'G10-WW'!$A$14:$AM$500,3,FALSE)="","Not Test",VLOOKUP($A$3,'G10-WW'!$A$14:$AM$500,32,FALSE)),"NA") -> 3.799999952 | J43: =IFERROR(IF(VLOOKUP($A$3,'G10-WW'!$A$14:$AM$500,3,FALSE)="","Not Test",VLOOKUP($A$3,'G10-WW'!$A$14:$AM$500,28,FALSE)&"% ("&VLOOKUP($A$3,'G10-WW'!$A$14:$AM$500,27,FALSE)&")"),"NA") -> 81% (56) | K43: =IFERROR(IF(VLOOKUP($A$3,'G10-WW'!$A$14:$AM$500,12,FALSE)="","Not Test",VLOOKUP($A$3,'G10-WW'!$A$14:$AM$500,34,FALSE)),"NA") -> 4.199999809 | L43: =IFERROR(IF(VLOOKUP($A$3,'G10-WW'!$A$14:$AM$500,12,FALSE)="","Not Test",VLOOKUP($A$3,'G10-WW'!$A$14:$AM$500,30,FALSE)&"% ("&VLOOKUP($A$3,'G10-WW'!$A$14:$AM$500,29,FALSE)&")"),"NA") -> 91% (62) | R43: =IFERROR(IF(VLOOKUP($A$3,'G10-WW'!$A$14:$AM$500,3,FALSE)="","0",VLOOKUP($A$3,'G10-WW'!$A$14:$AM$500,3,FALSE)),"Not Test") -> 69 | S43: =IFERROR(IF(VLOOKUP($A$3,'G10-WW'!$A$14:$AM$500,12,FALSE)="","0",VLOOKUP($A$3,'G10-WW'!$A$14:$AM$500,12,FALSE)),"Not Test") -> 68
A44: Black | B44: =IFERROR(VLOOKUP(TEXT($A$3,"0000"),'AYP11'!$B$847:$AU$1268,13,FALSE)," ") -> YES | C44: =IFERROR(VLOOKUP(TEXT($A$3,"0000"),MEM_B!$A$2:$S$500,14,FALSE),0) -> 27 | D44: =IF(OR(C44=0,C44="",C44="NA"),"NA",IFERROR(IF(OR(VLOOKUP($A$3,'G10-WB'!$A$14:$AM$500,3,FALSE)>C44,VLOOKUP($A$3,'G10-WB'!$A$14:$AM$500,12,FALSE)>C44,VLOOKUP($A$3,'G10-WB'!$A$14:$AM$500,21,FALSE)>2*C44),100&"%",IF(OR(VLOOKUP($A$3,'G10-WB'!$A$14:$AM$500,3,FALSE)=0,VLOOKUP($A$3,'G10-WB'!$A$14:$AM$500,12,FALSE)=0),ROUND((VLOOKUP($A$3,'G10-WB'!$A$14:$AM$500,21,FALSE)/C44*100),0)&"%",ROUND((VLOOKUP($A$3,'G10-WB'!$A$14:$AM$500,21,FALSE)/(2*C44)*100),0)&"%")),"0%")) -> 87% | E44: =IFERROR((IF($D44="NA","NA",VLOOKUP($A$3,'G10-WB'!$A$14:$AM$500,22,FALSE))),"NA") -> 3.844680756 | F44: =IFERROR((IF($D44="NA","NA",ROUND(VLOOKUP($A$3,'G10-WB'!$A$14:$AM$500,25,FALSE),0)&"%")),"NA") -> 32% | G44: =IFERROR((IF($D44="NA","NA",ROUND(VLOOKUP($A$3,'G10-WB'!$A$14:$AM$500,26,FALSE),0)&"%")),"NA") -> 57% | I44: =IFERROR(IF(VLOOKUP($A$3,'G10-WB'!$A$14:$AM$500,3,FALSE)="","Not Test",VLOOKUP($A$3,'G10-WB'!$A$14:$AM$500,32,FALSE)),"NA") -> 3.599999905 | J44: =IFERROR(IF(VLOOKUP($A$3,'G10-WB'!$A$14:$AM$500,3,FALSE)="","Not Test",VLOOKUP($A$3,'G10-WB'!$A$14:$AM$500,28,FALSE)&"% ("&VLOOKUP($A$3,'G10-WB'!$A$14:$AM$500,27,FALSE)&")"),"NA") -> 79% (19) | K44: =IFERROR(IF(VLOOKUP($A$3,'G10-WB'!$A$14:$AM$500,12,FALSE)="","Not Test",VLOOKUP($A$3,'G10-WB'!$A$14:$AM$500,34,FALSE)),"NA") -> 4.099999905 | L44: =IFERROR(IF(VLOOKUP($A$3,'G10-WB'!$A$14:$AM$500,12,FALSE)="","Not Test",VLOOKUP($A$3,'G10-WB'!$A$14:$AM$500,30,FALSE)&"% ("&VLOOKUP($A$3,'G10-WB'!$A$14:$AM$500,29,FALSE)&")"),"NA") -> 100% (23) | R44: =IFERROR(IF(VLOOKUP($A$3,'G10-WB'!$A$14:$AM$500,3,FALSE)="","0",VLOOKUP($A$3,'G10-WB'!$A$14:$AM$500,3,FALSE)),"Not Test") -> 24 | S44: =IFERROR(IF(VLOOKUP($A$3,'G10-WB'!$A$14:$AM$500,12,FALSE)="","0",VLOOKUP($A$3,'G10-WB'!$A$14:$AM$500,12,FALSE)),"Not Test") -> 23
A45: Hispanic | B45: =IFERROR(VLOOKUP(TEXT($A$3,"0000"),'AYP11'!$B$2113:$AU$2534,13,FALSE)," ") -> YES | C45: =IFERROR(VLOOKUP(TEXT($A$3,"0000"),MEM_H!$A$2:$S$500,14,FALSE),0) -> 998 | D45: =IF(OR(C45=0,C45="",C45="NA"),"NA",IFERROR(IF(OR(VLOOKUP($A$3,'G10-WH'!$A$14:$AM$500,3,FALSE)>C45,VLOOKUP($A$3,'G10-WH'!$A$14:$AM$500,12,FALSE)>C45,VLOOKUP($A$3,'G10-WH'!$A$14:$AM$500,21,FALSE)>2*C45),100&"%",IF(OR(VLOOKUP($A$3,'G10-WH'!$A$14:$AM$500,3,FALSE)=0,VLOOKUP($A$3,'G10-WH'!$A$14:$AM$500,12,FALSE)=0),ROUND((VLOOKUP($A$3,'G10-WH'!$A$14:$AM$500,21,FALSE)/C45*100),0)&"%",ROUND((VLOOKUP($A$3,'G10-WH'!$A$14:$AM$500,21,FALSE)/(2*C45)*100),0)&"%")),"0%")) -> 77% | E45: =IFERROR((IF($D45="NA","NA",VLOOKUP($A$3,'G10-WH'!$A$14:$AM$500,22,FALSE))),"NA") -> 3.649673605 | F45: =IFERROR((IF($D45="NA","NA",ROUND(VLOOKUP($A$3,'G10-WH'!$A$14:$AM$500,25,FALSE),0)&"%")),"NA") -> 23% | G45: =IFERROR((IF($D45="NA","NA",ROUND(VLOOKUP($A$3,'G10-WH'!$A$14:$AM$500,26,FALSE),0)&"%")),"NA") -> 61% | I45: =IFERROR(IF(VLOOKUP($A$3,'G10-WH'!$A$14:$AM$500,3,FALSE)="","Not Test",VLOOKUP($A$3,'G10-WH'!$A$14:$AM$500,32,FALSE)),"NA") -> 3.599999905 | J45: =IFERROR(IF(VLOOKUP($A$3,'G10-WH'!$A$14:$AM$500,3,FALSE)="","Not Test",VLOOKUP($A$3,'G10-WH'!$A$14:$AM$500,28,FALSE)&"% ("&VLOOKUP($A$3,'G10-WH'!$A$14:$AM$500,27,FALSE)&")"),"NA") -> 80% (620) | K45: =IFERROR(IF(VLOOKUP($A$3,'G10-WH'!$A$14:$AM$500,12,FALSE)="","Not Test",VLOOKUP($A$3,'G10-WH'!$A$14:$AM$500,34,FALSE)),"NA") -> 3.700000048 | L45: =IFERROR(IF(VLOOKUP($A$3,'G10-WH'!$A$14:$AM$500,12,FALSE)="","Not Test",VLOOKUP($A$3,'G10-WH'!$A$14:$AM$500,30,FALSE)&"% ("&VLOOKUP($A$3,'G10-WH'!$A$14:$AM$500,29,FALSE)&")"),"NA") -> 87% (663) | R45: =IFERROR(IF(VLOOKUP($A$3,'G10-WH'!$A$14:$AM$500,3,FALSE)="","0",VLOOKUP($A$3,'G10-WH'!$A$14:$AM$500,3,FALSE)),"Not Test") -> 771 | S45: =IFERROR(IF(VLOOKUP($A$3,'G10-WH'!$A$14:$AM$500,12,FALSE)="","0",VLOOKUP($A$3,'G10-WH'!$A$14:$AM$500,12,FALSE)),"Not Test") -> 761
A46: Asian | B46: =IFERROR(VLOOKUP(TEXT($A$3,"0000"),'AYP11'!$B$425:$AU$846,13,FALSE)," ") -> NA | C46: =IFERROR(VLOOKUP(TEXT($A$3,"0000"),MEM_A!$A$2:$S$500,14,FALSE),0) -> 18 | D46: =IF(OR(C46=0,C46="",C46="NA"),"NA",IFERROR(IF(OR(VLOOKUP($A$3,'G10-WA'!$A$14:$AM$500,3,FALSE)>C46,VLOOKUP($A$3,'G10-WA'!$A$14:$AM$500,12,FALSE)>C46,VLOOKUP($A$3,'G10-WA'!$A$14:$AM$500,21,FALSE)>2*C46),100&"%",IF(OR(VLOOKUP($A$3,'G10-WA'!$A$14:$AM$500,3,FALSE)=0,VLOOKUP($A$3,'G10-WA'!$A$14:$AM$500,12,FALSE)=0),ROUND((VLOOKUP($A$3,'G10-WA'!$A$14:$AM$500,21,FALSE)/C46*100),0)&"%",ROUND((VLOOKUP($A$3,'G10-WA'!$A$14:$AM$500,21,FALSE)/(2*C46)*100),0)&"%")),"0%")) -> 92% | E46: =IFERROR((IF($D46="NA","NA",VLOOKUP($A$3,'G10-WA'!$A$14:$AM$500,22,FALSE))),"NA") -> 4.793939345 | F46: =IFERROR((IF($D46="NA","NA",ROUND(VLOOKUP($A$3,'G10-WA'!$A$14:$AM$500,25,FALSE),0)&"%")),"NA") -> 9% | G46: =IFERROR((IF($D46="NA","NA",ROUND(VLOOKUP($A$3,'G10-WA'!$A$14:$AM$500,26,FALSE),0)&"%")),"NA") -> 88% | I46: =IFERROR(IF(VLOOKUP($A$3,'G10-WA'!$A$14:$AM$500,3,FALSE)="","Not Test",VLOOKUP($A$3,'G10-WA'!$A$14:$AM$500,32,FALSE)),"NA") -> 4.599999905 | J46: =IFERROR(IF(VLOOKUP($A$3,'G10-WA'!$A$14:$AM$500,3,FALSE)="","Not Test",VLOOKUP($A$3,'G10-WA'!$A$14:$AM$500,28,FALSE)&"% ("&VLOOKUP($A$3,'G10-WA'!$A$14:$AM$500,27,FALSE)&")"),"NA") -> 94% (16) | K46: =IFERROR(IF(VLOOKUP($A$3,'G10-WA'!$A$14:$AM$500,12,FALSE)="","Not Test",VLOOKUP($A$3,'G10-WA'!$A$14:$AM$500,34,FALSE)),"NA") -> 5 | L46: =IFERROR(IF(VLOOKUP($A$3,'G10-WA'!$A$14:$AM$500,12,FALSE)="","Not Test",VLOOKUP($A$3,'G10-WA'!$A$14:$AM$500,30,FALSE)&"% ("&VLOOKUP($A$3,'G10-WA'!$A$14:$AM$500,29,FALSE)&")"),"NA") -> 100% (16) | R46: =IFERROR(IF(VLOOKUP($A$3,'G10-WA'!$A$14:$AM$500,3,FALSE)="","0",VLOOKUP($A$3,'G10-WA'!$A$14:$AM$500,3,FALSE)),"Not Test") -> 17 | S46: =IFERROR(IF(VLOOKUP($A$3,'G10-WA'!$A$14:$AM$500,12,FALSE)="","0",VLOOKUP($A$3,'G10-WA'!$A$14:$AM$500,12,FALSE)),"Not Test") -> 16
A47: Am. Indian | B47: =IFERROR(VLOOKUP(TEXT($A$3,"0000"),'AYP11'!$B$3:$AU$424,13,FALSE)," ") -> NA | C47: =IFERROR(VLOOKUP(TEXT($A$3,"0000"),MEM_I!$A$2:$S$500,14,FALSE),0) -> 2 | D47: =IF(OR(C47=0,C47="",C47="NA"),"NA",IFERROR(IF(OR(VLOOKUP($A$3,'G10-WI'!$A$14:$AM$500,3,FALSE)>C47,VLOOKUP($A$3,'G10-WI'!$A$14:$AM$500,12,FALSE)>C47,VLOOKUP($A$3,'G10-WI'!$A$14:$AM$500,21,FALSE)>2*C47),100&"%",IF(OR(VLOOKUP($A$3,'G10-WI'!$A$14:$AM$500,3,FALSE)=0,VLOOKUP($A$3,'G10-WI'!$A$14:$AM$500,12,FALSE)=0),ROUND((VLOOKUP($A$3,'G10-WI'!$A$14:$AM$500,21,FALSE)/C47*100),0)&"%",ROUND((VLOOKUP($A$3,'G10-WI'!$A$14:$AM$500,21,FALSE)/(2*C47)*100),0)&"%")),"0%")) -> 50% | E47: =IFERROR((IF($D47="NA","NA",VLOOKUP($A$3,'G10-WI'!$A$14:$AM$500,22,FALSE))),"NA") -> 2.5 | F47: =IFERROR((IF($D47="NA","NA",ROUND(VLOOKUP($A$3,'G10-WI'!$A$14:$AM$500,25,FALSE),0)&"%")),"NA") -> 0% | G47: =IFERROR((IF($D47="NA","NA",ROUND(VLOOKUP($A$3,'G10-WI'!$A$14:$AM$500,26,FALSE),0)&"%")),"NA") -> 50% | I47: =IFERROR(IF(VLOOKUP($A$3,'G10-WI'!$A$14:$AM$500,3,FALSE)="","Not Test",VLOOKUP($A$3,'G10-WI'!$A$14:$AM$500,32,FALSE)),"NA") -> 1 | J47: =IFERROR(IF(VLOOKUP($A$3,'G10-WI'!$A$14:$AM$500,3,FALSE)="","Not Test",VLOOKUP($A$3,'G10-WI'!$A$14:$AM$500,28,FALSE)&"% ("&VLOOKUP($A$3,'G10-WI'!$A$14:$AM$500,27,FALSE)&")"),"NA") -> 0% (0) | K47: =IFERROR(IF(VLOOKUP($A$3,'G10-WI'!$A$14:$AM$500,12,FALSE)="","Not Test",VLOOKUP($A$3,'G10-WI'!$A$14:$AM$500,34,FALSE)),"NA") -> 4 | L47: =IFERROR(IF(VLOOKUP($A$3,'G10-WI'!$A$14:$AM$500,12,FALSE)="","Not Test",VLOOKUP($A$3,'G10-WI'!$A$14:$AM$500,30,FALSE)&"% ("&VLOOKUP($A$3,'G10-WI'!$A$14:$AM$500,29,FALSE)&")"),"NA") -> 100% (1) | R47: =IFERROR(IF(VLOOKUP($A$3,'G10-WI'!$A$14:$AM$500,3,FALSE)="","0",VLOOKUP($A$3,'G10-WI'!$A$14:$AM$500,3,FALSE)),"Not Test") -> 1 | S47: =IFERROR(IF(VLOOKUP($A$3,'G10-WI'!$A$14:$AM$500,12,FALSE)="","0",VLOOKUP($A$3,'G10-WI'!$A$14:$AM$500,12,FALSE)),"Not Test") -> 1
A48: ED | B48: =IFERROR(VLOOKUP(TEXT($A$3,"0000"),'AYP11'!$B$1269:$AU$1690,13,FALSE)," ") -> YES | C48: =IFERROR(VLOOKUP(TEXT($A$3,"0000"),MEM_ED!$A$2:$S$500,14,FALSE),0) -> 676 | D48: =IF(OR(C48=0,C48="",C48="NA"),"NA",IFERROR(IF(OR(VLOOKUP($A$3,'G10-WED'!$A$14:$AM$500,3,FALSE)>C48,VLOOKUP($A$3,'G10-WED'!$A$14:$AM$500,12,FALSE)>C48,VLOOKUP($A$3,'G10-WED'!$A$14:$AM$500,21,FALSE)>2*C48),100&"%",IF(OR(VLOOKUP($A$3,'G10-WED'!$A$14:$AM$500,3,FALSE)=0,VLOOKUP($A$3,'G10-WED'!$A$14:$AM$500,12,FALSE)=0),ROUND((VLOOKUP($A$3,'G10-WED'!$A$14:$AM$500,21,FALSE)/C48*100),0)&"%",ROUND((VLOOKUP($A$3,'G10-WED'!$A$14:$AM$500,21,FALSE)/(2*C48)*100),0)&"%")),"0%")) -> 75% | E48: =IFERROR((IF($D48="NA","NA",VLOOKUP($A$3,'G10-WED'!$A$14:$AM$500,22,FALSE))),"NA") -> 3.549558343 | F48: =IFERROR((IF($D48="NA","NA",ROUND(VLOOKUP($A$3,'G10-WED'!$A$14:$AM$500,25,FALSE),0)&"%")),"NA") -> 24% | G48: =IFERROR((IF($D48="NA","NA",ROUND(VLOOKUP($A$3,'G10-WED'!$A$14:$AM$500,26,FALSE),0)&"%")),"NA") -> 58% | I48: =IFERROR(IF(VLOOKUP($A$3,'G10-WED'!$A$14:$AM$500,3,FALSE)="","Not Test",VLOOKUP($A$3,'G10-WED'!$A$14:$AM$500,32,FALSE)),"NA") -> 3.5 | J48: =IFERROR(IF(VLOOKUP($A$3,'G10-WED'!$A$14:$AM$500,3,FALSE)="","Not Test",VLOOKUP($A$3,'G10-WED'!$A$14:$AM$500,28,FALSE)&"% ("&VLOOKUP($A$3,'G10-WED'!$A$14:$AM$500,27,FALSE)&")"),"NA") -> 79% (407) | K48: =IFERROR(IF(VLOOKUP($A$3,'G10-WED'!$A$14:$AM$500,12,FALSE)="","Not Test",VLOOKUP($A$3,'G10-WED'!$A$14:$AM$500,34,FALSE)),"NA") -> 3.599999905 | L48: =IFERROR(IF(VLOOKUP($A$3,'G10-WED'!$A$14:$AM$500,12,FALSE)="","Not Test",VLOOKUP($A$3,'G10-WED'!$A$14:$AM$500,30,FALSE)&"% ("&VLOOKUP($A$3,'G10-WED'!$A$14:$AM$500,29,FALSE)&")"),"NA") -> 84% (425) | R48: =IFERROR(IF(VLOOKUP($A$3,'G10-WED'!$A$14:$AM$500,3,FALSE)="","0",VLOOKUP($A$3,'G10-WED'!$A$14:$AM$500,3,FALSE)),"Not Test") -> 514 | S48: =IFERROR(IF(VLOOKUP($A$3,'G10-WED'!$A$14:$AM$500,12,FALSE)="","0",VLOOKUP($A$3,'G10-WED'!$A$14:$AM$500,12,FALSE)),"Not Test") -> 505
A49: ELL | B49: =IFERROR(VLOOKUP(TEXT($A$3,"0000"),'AYP11'!$B$1691:$AU$2112,13,FALSE)," ") -> NO | C49: =IFERROR(VLOOKUP(TEXT($A$3,"0000"),MEM_ELL!$A$2:$S$500,14,FALSE),0) -> 92 | D49: =IF(OR(C49=0,C49="",C49="NA"),"NA",IFERROR(IF(OR(VLOOKUP($A$3,'G10-WELL'!$A$14:$AM$500,3,FALSE)>C49,VLOOKUP($A$3,'G10-WELL'!$A$14:$AM$500,12,FALSE)>C49,VLOOKUP($A$3,'G10-WELL'!$A$14:$AM$500,21,FALSE)>2*C49),100&"%",IF(OR(VLOOKUP($A$3,'G10-WELL'!$A$14:$AM$500,3,FALSE)=0,VLOOKUP($A$3,'G10-WELL'!$A$14:$AM$500,12,FALSE)=0),ROUND((VLOOKUP($A$3,'G10-WELL'!$A$14:$AM$500,21,FALSE)/C49*100),0)&"%",ROUND((VLOOKUP($A$3,'G10-WELL'!$A$14:$AM$500,21,FALSE)/(2*C49)*100),0)&"%")),"0%")) -> 83% | E49: =IFERROR((IF($D49="NA","NA",VLOOKUP($A$3,'G10-WELL'!$A$14:$AM$500,22,FALSE))),"NA") -> 2.649019583 | F49: =IFERROR((IF($D49="NA","NA",ROUND(VLOOKUP($A$3,'G10-WELL'!$A$14:$AM$500,25,FALSE),0)&"%")),"NA") -> 26% | G49: =IFERROR((IF($D49="NA","NA",ROUND(VLOOKUP($A$3,'G10-WELL'!$A$14:$AM$500,26,FALSE),0)&"%")),"NA") -> 33% | I49: =IFERROR(IF(VLOOKUP($A$3,'G10-WELL'!$A$14:$AM$500,3,FALSE)="","Not Test",VLOOKUP($A$3,'G10-WELL'!$A$14:$AM$500,32,FALSE)),"NA") -> 2.599999905 | J49: =IFERROR(IF(VLOOKUP($A$3,'G10-WELL'!$A$14:$AM$500,3,FALSE)="","Not Test",VLOOKUP($A$3,'G10-WELL'!$A$14:$AM$500,28,FALSE)&"% ("&VLOOKUP($A$3,'G10-WELL'!$A$14:$AM$500,27,FALSE)&")"),"NA") -> 56% (44) | K49: =IFERROR(IF(VLOOKUP($A$3,'G10-WELL'!$A$14:$AM$500,12,FALSE)="","Not Test",VLOOKUP($A$3,'G10-WELL'!$A$14:$AM$500,34,FALSE)),"NA") -> 2.700000048 | L49: =IFERROR(IF(VLOOKUP($A$3,'G10-WELL'!$A$14:$AM$500,12,FALSE)="","Not Test",VLOOKUP($A$3,'G10-WELL'!$A$14:$AM$500,30,FALSE)&"% ("&VLOOKUP($A$3,'G10-WELL'!$A$14:$AM$500,29,FALSE)&")"),"NA") -> 61% (46) | R49: =IFERROR(IF(VLOOKUP($A$3,'G10-WELL'!$A$14:$AM$500,3,FALSE)="","0",VLOOKUP($A$3,'G10-WELL'!$A$14:$AM$500,3,FALSE)),"Not Test") -> 78 | S49: =IFERROR(IF(VLOOKUP($A$3,'G10-WELL'!$A$14:$AM$500,12,FALSE)="","0",VLOOKUP($A$3,'G10-WELL'!$A$14:$AM$500,12,FALSE)),"Not Test") -> 75
A50: SWD | B50: =IFERROR(VLOOKUP(TEXT($A$3,"0000"),'AYP11'!$B$2535:$AU$2956,13,FALSE)," ") -> NO | C50: =IFERROR(VLOOKUP(TEXT($A$3,"0000"),MEM_SWD!$A$2:$S$500,14,FALSE),0) -> 102 | D50: =IF(OR(C50=0,C50="",C50="NA"),"NA",IFERROR(IF(OR(VLOOKUP($A$3,'G10-WSWD'!$A$14:$AM$500,3,FALSE)>C50,VLOOKUP($A$3,'G10-WSWD'!$A$14:$AM$500,12,FALSE)>C50,VLOOKUP($A$3,'G10-WSWD'!$A$14:$AM$500,21,FALSE)>2*C50),100&"%",IF(OR(VLOOKUP($A$3,'G10-WSWD'!$A$14:$AM$500,3,FALSE)=0,VLOOKUP($A$3,'G10-WSWD'!$A$14:$AM$500,12,FALSE)=0),ROUND((VLOOKUP($A$3,'G10-WSWD'!$A$14:$AM$500,21,FALSE)/C50*100),0)&"%",ROUND((VLOOKUP($A$3,'G10-WSWD'!$A$14:$AM$500,21,FALSE)/(2*C50)*100),0)&"%")),"0%")) -> 81% | E50: =IFERROR((IF($D50="NA","NA",VLOOKUP($A$3,'G10-WSWD'!$A$14:$AM$500,22,FALSE))),"NA") -> 2.900000095 | F50: =IFERROR((IF($D50="NA","NA",ROUND(VLOOKUP($A$3,'G10-WSWD'!$A$14:$AM$500,25,FALSE),0)&"%")),"NA") -> 29% | G50: =IFERROR((IF($D50="NA","NA",ROUND(VLOOKUP($A$3,'G10-WSWD'!$A$14:$AM$500,26,FALSE),0)&"%")),"NA") -> 39% | I50: =IFERROR(IF(VLOOKUP($A$3,'G10-WSWD'!$A$14:$AM$500,3,FALSE)="","Not Test",VLOOKUP($A$3,'G10-WSWD'!$A$14:$AM$500,32,FALSE)),"NA") -> 2.900000095 | J50: =IFERROR(IF(VLOOKUP($A$3,'G10-WSWD'!$A$14:$AM$500,3,FALSE)="","Not Test",VLOOKUP($A$3,'G10-WSWD'!$A$14:$AM$500,28,FALSE)&"% ("&VLOOKUP($A$3,'G10-WSWD'!$A$14:$AM$500,27,FALSE)&")"),"NA") -> 64% (55) | K50: =IFERROR(IF(VLOOKUP($A$3,'G10-WSWD'!$A$14:$AM$500,12,FALSE)="","Not Test",VLOOKUP($A$3,'G10-WSWD'!$A$14:$AM$500,34,FALSE)),"NA") -> 2.900000095 | L50: =IFERROR(IF(VLOOKUP($A$3,'G10-WSWD'!$A$14:$AM$500,12,FALSE)="","Not Test",VLOOKUP($A$3,'G10-WSWD'!$A$14:$AM$500,30,FALSE)&"% ("&VLOOKUP($A$3,'G10-WSWD'!$A$14:$AM$500,29,FALSE)&")"),"NA") -> 73% (58) | R50: =IFERROR(IF(VLOOKUP($A$3,'G10-WSWD'!$A$14:$AM$500,3,FALSE)="","0",VLOOKUP($A$3,'G10-WSWD'!$A$14:$AM$500,3,FALSE)),"Not Test") -> 86 | S50: =IFERROR(IF(VLOOKUP($A$3,'G10-WSWD'!$A$14:$AM$500,12,FALSE)="","0",VLOOKUP($A$3,'G10-WSWD'!$A$14:$AM$500,12,FALSE)),"Not Test") -> 79

Sheet EOC Reports
A2: Click here to return to the school and sheet selection interface
A3: ='Select School'!B3 -> 7121
A4: =TEXT(A3,"0000")&"-"&VLOOKUP(A3,SchList!$A$2:$B$504,2,FALSE) -> 7121-JOHN A FERGUSON SENIOR HIGH
A5: Algebra I | R5: Algebra I
A6: Level of Proficiency at 70% or above | B6: 2011 AYP Met** | C6: Course Enrollment | D6: % and/or Number of Tested (If Available) | E6: Overall [40] | G6: Functions, Linear Equations, & Inequalities [40] | I6: Polynomials [0] | K6: Rationals, Radicals, Quadratics, & Discrete Mathematics [0] | R6: Number Tested
E7: Average Score | F7: % Proficient | G7: Average Score | H7: % Proficient | I7: Average Score | J7: % Proficient | K7: Average Score | L7: % Proficient
A8: All students | B8: =IFERROR(VLOOKUP(TEXT($A$3,"0000"),'AYP11'!$B$2957:$AU$3378,37,FALSE),"NA") -> Yes-AB | C8: =IFERROR(VLOOKUP(TEXT($A$3,"0000"),'Alg Enrollment'!$A$2:$Q$500,3,FALSE),0) -> 759 | D8: =IFERROR((IF(OR(C8=0,C8="",C8="NA"),"NA",((IF(VLOOKUP($A$3,'ALG-ALL'!$A$6:$AG$500,3,FALSE)>=C8,"100% ("&VLOOKUP($A$3,'ALG-ALL'!$A$6:$AG$500,3,FALSE)&")",(ROUND((VLOOKUP($A$3,'ALG-ALL'!$A$6:$AG$500,3,FALSE)/C8*100),0))&"% ("&IF(VLOOKUP($A$3,'ALG-ALL'!$A$6:$AG$500,3,FALSE)="",0,VLOOKUP($A$3,'ALG-ALL'!$A$6:$AG$500,3,FALSE))&")"))))),"0% (0)") -> 96% (728) | E8: =IFERROR((IF($D8="NA","NA",VLOOKUP($A$3,'ALG-ALL'!$A$6:$AG$500,4,FALSE))),"NA") -> 14.3 | F8: =IFERROR((IF($D8="NA","NA",ROUND(VLOOKUP($A$3,'ALG-ALL'!$A$6:$AG$500,6,FALSE),0)&"% ("&IF(VLOOKUP($A$3,'ALG-ALL'!$A$6:$AG$500,5,FALSE)="",0,VLOOKUP($A$3,'ALG-ALL'!$A$6:$AG$500,5,FALSE))&")")),"NA") -> 2% (14) | G8: =IFERROR((IF($D8="NA","NA",VLOOKUP($A$3,'ALG-ALL'!$A$6:$AG$500,7,FALSE))),"NA") -> 14.3 | H8: =IFERROR((IF($D8="NA","NA",ROUND(VLOOKUP($A$3,'ALG-ALL'!$A$6:$AG$500,9,FALSE),0)&"% ("&IF(VLOOKUP($A$3,'ALG-ALL'!$A$6:$AG$500,8,FALSE)="",0,VLOOKUP($A$3,'ALG-ALL'!$A$6:$AG$500,8,FALSE))&")")),"NA") -> 2% (14) | R8: =IFERROR(VLOOKUP($A$3,'ALG-ALL'!$A$6:$AA$500,3,FALSE),"not tested") -> 728
A9: FCAT Level 1 | C9: =IFERROR(VLOOKUP(TEXT($A$3,"0000"),'Alg Enrollment'!$A$2:$Q$500,4,FALSE),0) -> 71 | D9: =IFERROR((IF(OR(C9=0,C9="",C9="NA"),"NA",((IF(VLOOKUP($A$3,'ALG-L1'!$A$6:$AG$500,3,FALSE)>=C9,"100% ("&VLOOKUP($A$3,'ALG-L1'!$A$6:$AG$500,3,FALSE)&")",(ROUND((VLOOKUP($A$3,'ALG-L1'!$A$6:$AG$500,3,FALSE)/C9*100),0))&"% ("&IF(VLOOKUP($A$3,'ALG-L1'!$A$6:$AG$500,3,FALSE)="",0,VLOOKUP($A$3,'ALG-L1'!$A$6:$AG$500,3,FALSE))&")"))))),"0% (0)") -> 100% (88) | E9: =IFERROR((IF($D9="NA","NA",VLOOKUP($A$3,'ALG-L1'!$A$6:$AG$500,4,FALSE))),"NA") -> 10.1 | F9: =IFERROR((IF($D9="NA","NA",ROUND(VLOOKUP($A$3,'ALG-L1'!$A$6:$AG$500,6,FALSE),0)&"% ("&IF(VLOOKUP($A$3,'ALG-L1'!$A$6:$AG$500,5,FALSE)="",0,VLOOKUP($A$3,'ALG-L1'!$A$6:$AG$500,5,FALSE))&")")),"NA") -> 0% (0) | G9: =IFERROR((IF($D9="NA","NA",VLOOKUP($A$3,'ALG-L1'!$A$6:$AG$500,7,FALSE))),"NA") -> 10.1 | H9: =IFERROR((IF($D9="NA","NA",ROUND(VLOOKUP($A$3,'ALG-L1'!$A$6:$AG$500,9,FALSE),0)&"% ("&IF(VLOOKUP($A$3,'ALG-L1'!$A$6:$AG$500,8,FALSE)="",0,VLOOKUP($A$3,'ALG-L1'!$A$6:$AG$500,8,FALSE))&")")),"NA") -> 0% (0) | R9: =IFERROR(VLOOKUP($A$3,'ALG-L1'!$A$6:$BX$500,3,FALSE),"not tested") -> 88
A10: FCAT Level 2 | C10: =IFERROR(VLOOKUP(TEXT($A$3,"0000"),'Alg Enrollment'!$A$2:$Q$500,5,FALSE),0) -> 156 | D10: =IFERROR((IF(OR(C10=0,C10="",C10="NA"),"NA",((IF(VLOOKUP($A$3,'ALG-L2'!$A$6:$AG$500,3,FALSE)>=C10,"100% ("&VLOOKUP($A$3,'ALG-L2'!$A$6:$AG$500,3,FALSE)&")",(ROUND((VLOOKUP($A$3,'ALG-L2'!$A$6:$AG$500,3,FALSE)/C10*100),0))&"% ("&IF(VLOOKUP($A$3,'ALG-L2'!$A$6:$AG$500,3,FALSE)="",0,VLOOKUP($A$3,'ALG-L2'!$A$6:$AG$500,3,FALSE))&")"))))),"0% (0)") -> 100% (174) | E10: =IFERROR((IF($D10="NA","NA",VLOOKUP($A$3,'ALG-L2'!$A$6:$AG$500,4,FALSE))),"NA") -> 11.7 | F10: =IFERROR((IF($D10="NA","NA",ROUND(VLOOKUP($A$3,'ALG-L2'!$A$6:$AG$500,6,FALSE),0)&"% ("&IF(VLOOKUP($A$3,'ALG-L2'!$A$6:$AG$500,5,FALSE)="",0,VLOOKUP($A$3,'ALG-L2'!$A$6:$AG$500,5,FALSE))&")")),"NA") -> 0% (0) | G10: =IFERROR((IF($D10="NA","NA",VLOOKUP($A$3,'ALG-L2'!$A$6:$AG$500,7,FALSE))),"NA") -> 11.7 | H10: =IFERROR((IF($D10="NA","NA",ROUND(VLOOKUP($A$3,'ALG-L2'!$A$6:$AG$500,9,FALSE),0)&"% ("&IF(VLOOKUP($A$3,'ALG-L2'!$A$6:$AG$500,8,FALSE)="",0,VLOOKUP($A$3,'ALG-L2'!$A$6:$AG$500,8,FALSE))&")")),"NA") -> 0% (0) | R10: =IFERROR(VLOOKUP($A$3,'ALG-L2'!$A$6:$BX$500,3,FALSE),"not tested") -> 174
A11: FCAT Level 3 | C11: =IFERROR(VLOOKUP(TEXT($A$3,"0000"),'Alg Enrollment'!$A$2:$Q$500,6,FALSE),0) -> 290 | D11: =IFERROR((IF(OR(C11=0,C11="",C11="NA"),"NA",((IF(VLOOKUP($A$3,'ALG-L3'!$A$6:$AG$500,3,FALSE)>=C11,"100% ("&VLOOKUP($A$3,'ALG-L3'!$A$6:$AG$500,3,FALSE)&")",(ROUND((VLOOKUP($A$3,'ALG-L3'!$A$6:$AG$500,3,FALSE)/C11*100),0))&"% ("&IF(VLOOKUP($A$3,'ALG-L3'!$A$6:$AG$500,3,FALSE)="",0,VLOOKUP($A$3,'ALG-L3'!$A$6:$AG$500,3,FALSE))&")"))))),"0% (0)") -> 100% (309) | E11: =IFERROR((IF($D11="NA","NA",VLOOKUP($A$3,'ALG-L3'!$A$6:$AG$500,4,FALSE))),"NA") -> 14.7 | F11: =IFERROR((IF($D11="NA","NA",ROUND(VLOOKUP($A$3,'ALG-L3'!$A$6:$AG$500,6,FALSE),0)&"% ("&IF(VLOOKUP($A$3,'ALG-L3'!$A$6:$AG$500,5,FALSE)="",0,VLOOKUP($A$3,'ALG-L3'!$A$6:$AG$500,5,FALSE))&")")),"NA") -> 1% (2) | G11: =IFERROR((IF($D11="NA","NA",VLOOKUP($A$3,'ALG-L3'!$A$6:$AG$500,7,FALSE))),"NA") -> 14.7 | H11: =IFERROR((IF($D11="NA","NA",ROUND(VLOOKUP($A$3,'ALG-L3'!$A$6:$AG$500,9,FALSE),0)&"% ("&IF(VLOOKUP($A$3,'ALG-L3'!$A$6:$AG$500,8,FALSE)="",0,VLOOKUP($A$3,'ALG-L3'!$A$6:$AG$500,8,FALSE))&")")),"NA") -> 1% (2) | R11: =IFERROR(VLOOKUP($A$3,'ALG-L3'!$A$6:$BX$500,3,FALSE),"not tested") -> 309
A12: FCAT Level 4 | C12: =IFERROR(VLOOKUP(TEXT($A$3,"0000"),'Alg Enrollment'!$A$2:$Q$500,7,FALSE),0) -> 102 | D12: =IFERROR((IF(OR(C12=0,C12="",C12="NA"),"NA",((IF(VLOOKUP($A$3,'ALG-L4'!$A$6:$AG$500,3,FALSE)>=C12,"100% ("&VLOOKUP($A$3,'ALG-L4'!$A$6:$AG$500,3,FALSE)&")",(ROUND((VLOOKUP($A$3,'ALG-L4'!$A$6:$AG$500,3,FALSE)/C12*100),0))&"% ("&IF(VLOOKUP($A$3,'ALG-L4'!$A$6:$AG$500,3,FALSE)="",0,VLOOKUP($A$3,'ALG-L4'!$A$6:$AG$500,3,FALSE))&")"))))),"0% (0)") -> 100% (108) | E12: =IFERROR((IF($D12="NA","NA",VLOOKUP($A$3,'ALG-L4'!$A$6:$AG$500,4,FALSE))),"NA") -> 18.9 | F12: =IFERROR((IF($D12="NA","NA",ROUND(VLOOKUP($A$3,'ALG-L4'!$A$6:$AG$500,6,FALSE),0)&"% ("&IF(VLOOKUP($A$3,'ALG-L4'!$A$6:$AG$500,5,FALSE)="",0,VLOOKUP($A$3,'ALG-L4'!$A$6:$AG$500,5,FALSE))&")")),"NA") -> 6% (6) | G12: =IFERROR((IF($D12="NA","NA",VLOOKUP($A$3,'ALG-L4'!$A$6:$AG$500,7,FALSE))),"NA") -> 18.9 | H12: =IFERROR((IF($D12="NA","NA",ROUND(VLOOKUP($A$3,'ALG-L4'!$A$6:$AG$500,9,FALSE),0)&"% ("&IF(VLOOKUP($A$3,'ALG-L4'!$A$6:$AG$500,8,FALSE)="",0,VLOOKUP($A$3,'ALG-L4'!$A$6:$AG$500,8,FALSE))&")")),"NA") -> 6% (6) | R12: =IFERROR(VLOOKUP($A$3,'ALG-L4'!$A$6:$BX$500,3,FALSE),"not tested") -> 108
A13: FCAT Level 5 | C13: =IFERROR(VLOOKUP(TEXT($A$3,"0000"),'Alg Enrollment'!$A$2:$Q$500,8,FALSE),0) -> 27 | D13: =IFERROR((IF(OR(C13=0,C13="",C13="NA"),"NA",((IF(VLOOKUP($A$3,'ALG-L5'!$A$6:$AG$500,3,FALSE)>=C13,"100% ("&VLOOKUP($A$3,'ALG-L5'!$A$6:$AG$500,3,FALSE)&")",(ROUND((VLOOKUP($A$3,'ALG-L5'!$A$6:$AG$500,3,FALSE)/C13*100),0))&"% ("&IF(VLOOKUP($A$3,'ALG-L5'!$A$6:$AG$500,3,FALSE)="",0,VLOOKUP($A$3,'ALG-L5'!$A$6:$AG$500,3,FALSE))&")"))))),"0% (0)") -> 100% (27) | E13: =IFERROR((IF($D13="NA","NA",VLOOKUP($A$3,'ALG-L5'!$A$6:$AG$500,4,FALSE))),"NA") -> 22.9 | F13: =IFERROR((IF($D13="NA","NA",ROUND(VLOOKUP($A$3,'ALG-L5'!$A$6:$AG$500,6,FALSE),0)&"% ("&IF(VLOOKUP($A$3,'ALG-L5'!$A$6:$AG$500,5,FALSE)="",0,VLOOKUP($A$3,'ALG-L5'!$A$6:$AG$500,5,FALSE))&")")),"NA") -> 22% (6) | G13: =IFERROR((IF($D13="NA","NA",VLOOKUP($A$3,'ALG-L5'!$A$6:$AG$500,7,FALSE))),"NA") -> 22.9 | H13: =IFERROR((IF($D13="NA","NA",ROUND(VLOOKUP($A$3,'ALG-L5'!$A$6:$AG$500,9,FALSE),0)&"% ("&IF(VLOOKUP($A$3,'ALG-L5'!$A$6:$AG$500,8,FALSE)="",0,VLOOKUP($A$3,'ALG-L5'!$A$6:$AG$500,8,FALSE))&")")),"NA") -> 22% (6) | R13: =IFERROR(VLOOKUP($A$3,'ALG-L5'!$A$6:$BX$500,3,FALSE),"not tested") -> 27
A14: White | B14: =IFERROR(VLOOKUP(TEXT($A$3,"0000"),'AYP11'!$B$3379:$AU$3800,37,FALSE)," ") -> NA | C14: =IFERROR(VLOOKUP(TEXT($A$3,"0000"),'Alg Enrollment'!$A$2:$Q$500,10,FALSE),0) -> 55 | D14: =IFERROR((IF(OR(C14=0,C14="",C14="NA"),"NA",((IF(VLOOKUP($A$3,'ALG-W'!$A$6:$AG$500,3,FALSE)>=C14,"100% ("&VLOOKUP($A$3,'ALG-W'!$A$6:$AG$500,3,FALSE)&")",(ROUND((VLOOKUP($A$3,'ALG-W'!$A$6:$AG$500,3,FALSE)/C14*100),0))&"% ("&IF(VLOOKUP($A$3,'ALG-W'!$A$6:$AG$500,3,FALSE)="",0,VLOOKUP($A$3,'ALG-W'!$A$6:$AG$500,3,FALSE))&")"))))),"0% (0)") -> 95% (52) | E14: =IFERROR((IF($D14="NA","NA",VLOOKUP($A$3,'ALG-W'!$A$6:$AG$500,4,FALSE))),"NA") -> 13.6 | F14: =IFERROR((IF($D14="NA","NA",ROUND(VLOOKUP($A$3,'ALG-W'!$A$6:$AG$500,6,FALSE),0)&"% ("&IF(VLOOKUP($A$3,'ALG-W'!$A$6:$AG$500,5,FALSE)="",0,VLOOKUP($A$3,'ALG-W'!$A$6:$AG$500,5,FALSE))&")")),"NA") -> 0% (0) | G14: =IFERROR((IF($D14="NA","NA",VLOOKUP($A$3,'ALG-W'!$A$6:$AG$500,7,FALSE))),"NA") -> 13.6 | H14: =IFERROR((IF($D14="NA","NA",ROUND(VLOOKUP($A$3,'ALG-W'!$A$6:$AG$500,9,FALSE),0)&"% ("&IF(VLOOKUP($A$3,'ALG-W'!$A$6:$AG$500,8,FALSE)="",0,VLOOKUP($A$3,'ALG-W'!$A$6:$AG$500,8,FALSE))&")")),"NA") -> 0% (0) | R14: =IFERROR(VLOOKUP($A$3,'ALG-W'!$A$6:$BX$500,3,FALSE),"not tested") -> 52
A15: Black | B15: =IFERROR(VLOOKUP(TEXT($A$3,"0000"),'AYP11'!$B$847:$AU$1268,37,FALSE)," ") -> NA | C15: =IFERROR(VLOOKUP(TEXT($A$3,"0000"),'Alg Enrollment'!$A$2:$Q$500,11,FALSE),0) -> 11 | D15: =IFERROR((IF(OR(C15=0,C15="",C15="NA"),"NA",((IF(VLOOKUP($A$3,'ALG-B'!$A$6:$AG$500,3,FALSE)>=C15,"100% ("&VLOOKUP($A$3,'ALG-B'!$A$6:$AG$500,3,FALSE)&")",(ROUND((VLOOKUP($A$3,'ALG-B'!$A$6:$AG$500,3,FALSE)/C15*100),0))&"% ("&IF(VLOOKUP($A$3,'ALG-B'!$A$6:$AG$500,3,FALSE)="",0,VLOOKUP($A$3,'ALG-B'!$A$6:$AG$500,3,FALSE))&")"))))),"0% (0)") -> 100% (11) | E15: =IFERROR((IF($D15="NA","NA",VLOOKUP($A$3,'ALG-B'!$A$6:$AG$500,4,FALSE))),"NA") -> 15.5 | F15: =IFERROR((IF($D15="NA","NA",ROUND(VLOOKUP($A$3,'ALG-B'!$A$6:$AG$500,6,FALSE),0)&"% ("&IF(VLOOKUP($A$3,'ALG-B'!$A$6:$AG$500,5,FALSE)="",0,VLOOKUP($A$3,'ALG-B'!$A$6:$AG$500,5,FALSE))&")")),"NA") -> 9% (1) | G15: =IFERROR((IF($D15="NA","NA",VLOOKUP($A$3,'ALG-B'!$A$6:$AG$500,7,FALSE))),"NA") -> 15.5 | H15: =IFERROR((IF($D15="NA","NA",ROUND(VLOOKUP($A$3,'ALG-B'!$A$6:$AG$500,9,FALSE),0)&"% ("&IF(VLOOKUP($A$3,'ALG-B'!$A$6:$AG$500,8,FALSE)="",0,VLOOKUP($A$3,'ALG-B'!$A$6:$AG$500,8,FALSE))&")")),"NA") -> 9% (1) | R15: =IFERROR(VLOOKUP($A$3,'ALG-B'!$A$6:$BX$500,3,FALSE),"not tested") -> 11
A16: Hispanic | B16: =IFERROR(VLOOKUP(TEXT($A$3,"0000"),'AYP11'!$B$2113:$AU$2534,37,FALSE)," ") -> Yes-AB | C16: =IFERROR(VLOOKUP(TEXT($A$3,"0000"),'Alg Enrollment'!$A$2:$Q$500,12,FALSE),0) -> 685 | D16: =IFERROR((IF(OR(C16=0,C16="",C16="NA"),"NA",((IF(VLOOKUP($A$3,'ALG-H'!$A$6:$AG$500,3,FALSE)>=C16,"100% ("&VLOOKUP($A$3,'ALG-H'!$A$6:$AG$500,3,FALSE)&")",(ROUND((VLOOKUP($A$3,'ALG-H'!$A$6:$AG$500,3,FALSE)/C16*100),0))&"% ("&IF(VLOOKUP($A$3,'ALG-H'!$A$6:$AG$500,3,FALSE)="",0,VLOOKUP($A$3,'ALG-H'!$A$6:$AG$500,3,FALSE))&")"))))),"0% (0)") -> 96% (657) | E16: =IFERROR((IF($D16="NA","NA",VLOOKUP($A$3,'ALG-H'!$A$6:$AG$500,4,FALSE))),"NA") -> 14.2 | F16: =IFERROR((IF($D16="NA","NA",ROUND(VLOOKUP($A$3,'ALG-H'!$A$6:$AG$500,6,FALSE),0)&"% ("&IF(VLOOKUP($A$3,'ALG-H'!$A$6:$AG$500,5,FALSE)="",0,VLOOKUP($A$3,'ALG-H'!$A$6:$AG$500,5,FALSE))&")")),"NA") -> 2% (11) | G16: =IFERROR((IF($D16="NA","NA",VLOOKUP($A$3,'ALG-H'!$A$6:$AG$500,7,FALSE))),"NA") -> 14.2 | H16: =IFERROR((IF($D16="NA","NA",ROUND(VLOOKUP($A$3,'ALG-H'!$A$6:$AG$500,9,FALSE),0)&"% ("&IF(VLOOKUP($A$3,'ALG-H'!$A$6:$AG$500,8,FALSE)="",0,VLOOKUP($A$3,'ALG-H'!$A$6:$AG$500,8,FALSE))&")")),"NA") -> 2% (11) | R16: =IFERROR(VLOOKUP($A$3,'ALG-H'!$A$6:$BX$500,3,FALSE),"not tested") -> 657
A17: Asian | B17: =IFERROR(VLOOKUP(TEXT($A$3,"0000"),'AYP11'!$B$425:$AU$846,37,FALSE)," ") -> NA | C17: =IFERROR(VLOOKUP(TEXT($A$3,"0000"),'Alg Enrollment'!$A$2:$Q$500,13,FALSE),0) -> 8 | D17: =IFERROR((IF(OR(C17=0,C17="",C17="NA"),"NA",((IF(VLOOKUP($A$3,'ALG-A'!$A$6:$AG$500,3,FALSE)>=C17,"100% ("&VLOOKUP($A$3,'ALG-A'!$A$6:$AG$500,3,FALSE)&")",(ROUND((VLOOKUP($A$3,'ALG-A'!$A$6:$AG$500,3,FALSE)/C17*100),0))&"% ("&IF(VLOOKUP($A$3,'ALG-A'!$A$6:$AG$500,3,FALSE)="",0,VLOOKUP($A$3,'ALG-A'!$A$6:$AG$500,3,FALSE))&")"))))),"0% (0)") -> 100% (8) | E17: =IFERROR((IF($D17="NA","NA",VLOOKUP($A$3,'ALG-A'!$A$6:$AG$500,4,FALSE))),"NA") -> 21.3 | F17: =IFERROR((IF($D17="NA","NA",ROUND(VLOOKUP($A$3,'ALG-A'!$A$6:$AG$500,6,FALSE),0)&"% ("&IF(VLOOKUP($A$3,'ALG-A'!$A$6:$AG$500,5,FALSE)="",0,VLOOKUP($A$3,'ALG-A'!$A$6:$AG$500,5,FALSE))&")")),"NA") -> 25% (2) | G17: =IFERROR((IF($D17="NA","NA",VLOOKUP($A$3,'ALG-A'!$A$6:$AG$500,7,FALSE))),"NA") -> 21.3 | H17: =IFERROR((IF($D17="NA","NA",ROUND(VLOOKUP($A$3,'ALG-A'!$A$6:$AG$500,9,FALSE),0)&"% ("&IF(VLOOKUP($A$3,'ALG-A'!$A$6:$AG$500,8,FALSE)="",0,VLOOKUP($A$3,'ALG-A'!$A$6:$AG$500,8,FALSE))&")")),"NA") -> 25% (2) | R17: =IFERROR(VLOOKUP($A$3,'ALG-A'!$A$6:$BX$500,3,FALSE),"not tested") -> 8
A18: Am. Indian | B18: =IFERROR(VLOOKUP(TEXT($A$3,"0000"),'AYP11'!$B$3:$AU$424,37,FALSE)," ") -> NA | C18: =IFERROR(VLOOKUP(TEXT($A$3,"0000"),'Alg Enrollment'!$A$2:$Q$500,14,FALSE),0) -> 0 | D18: =IFERROR((IF(OR(C18=0,C18="",C18="NA"),"NA",((IF(VLOOKUP($A$3,'ALG-I'!$A$6:$AG$500,3,FALSE)>=C18,"100% ("&VLOOKUP($A$3,'ALG-I'!$A$6:$AG$500,3,FALSE)&")",(ROUND((VLOOKUP($A$3,'ALG-I'!$A$6:$AG$500,3,FALSE)/C18*100),0))&"% ("&IF(VLOOKUP($A$3,'ALG-I'!$A$6:$AG$500,3,FALSE)="",0,VLOOKUP($A$3,'ALG-I'!$A$6:$AG$500,3,FALSE))&")"))))),"0% (0)") -> NA | E18: =IFERROR((IF($D18="NA","NA",VLOOKUP($A$3,'ALG-I'!$A$6:$AG$500,4,FALSE))),"NA") -> NA | F18: =IFERROR((IF($D18="NA","NA",ROUND(VLOOKUP($A$3,'ALG-I'!$A$6:$AG$500,6,FALSE),0)&"% ("&IF(VLOOKUP($A$3,'ALG-I'!$A$6:$AG$500,5,FALSE)="",0,VLOOKUP($A$3,'ALG-I'!$A$6:$AG$500,5,FALSE))&")")),"NA") -> NA | G18: =IFERROR((IF($D18="NA","NA",VLOOKUP($A$3,'ALG-I'!$A$6:$AG$500,7,FALSE))),"NA") -> NA | H18: =IFERROR((IF($D18="NA","NA",ROUND(VLOOKUP($A$3,'ALG-I'!$A$6:$AG$500,9,FALSE),0)&"% ("&IF(VLOOKUP($A$3,'ALG-I'!$A$6:$AG$500,8,FALSE)="",0,VLOOKUP($A$3,'ALG-I'!$A$6:$AG$500,8,FALSE))&")")),"NA") -> NA | R18: =IFERROR(VLOOKUP($A$3,'ALG-I'!$A$6:$BX$500,3,FALSE),"not tested") -> 0
A19: ED | B19: =IFERROR(VLOOKUP(TEXT($A$3,"0000"),'AYP11'!$B$1269:$AU$1690,37,FALSE)," ") -> Yes-AB | C19: =IFERROR(VLOOKUP(TEXT($A$3,"0000"),'Alg Enrollment'!$A$2:$Q$500,15,FALSE),0) -> 488 | D19: =IFERROR((IF(OR(C19=0,C19="",C19="NA"),"NA",((IF(VLOOKUP($A$3,'ALG-ED'!$A$6:$AG$500,3,FALSE)>=C19,"100% ("&VLOOKUP($A$3,'ALG-ED'!$A$6:$AG$500,3,FALSE)&")",(ROUND((VLOOKUP($A$3,'ALG-ED'!$A$6:$AG$500,3,FALSE)/C19*100),0))&"% ("&IF(VLOOKUP($A$3,'ALG-ED'!$A$6:$AG$500,3,FALSE)="",0,VLOOKUP($A$3,'ALG-ED'!$A$6:$AG$500,3,FALSE))&")"))))),"0% (0)") -> 97% (472) | E19: =IFERROR((IF($D19="NA","NA",VLOOKUP($A$3,'ALG-ED'!$A$6:$AG$500,4,FALSE))),"NA") -> 14.2 | F19: =IFERROR((IF($D19="NA","NA",ROUND(VLOOKUP($A$3,'ALG-ED'!$A$6:$AG$500,6,FALSE),0)&"% ("&IF(VLOOKUP($A$3,'ALG-ED'!$A$6:$AG$500,5,FALSE)="",0,VLOOKUP($A$3,'ALG-ED'!$A$6:$AG$500,5,FALSE))&")")),"NA") -> 2% (8) | G19: =IFERROR((IF($D19="NA","NA",VLOOKUP($A$3,'ALG-ED'!$A$6:$AG$500,7,FALSE))),"NA") -> 14.2 | H19: =IFERROR((IF($D19="NA","NA",ROUND(VLOOKUP($A$3,'ALG-ED'!$A$6:$AG$500,9,FALSE),0)&"% ("&IF(VLOOKUP($A$3,'ALG-ED'!$A$6:$AG$500,8,FALSE)="",0,VLOOKUP($A$3,'ALG-ED'!$A$6:$AG$500,8,FALSE))&")")),"NA") -> 2% (8) | R19: =IFERROR(VLOOKUP($A$3,'ALG-ED'!$A$6:$BX$500,3,FALSE),"not tested") -> 472
A20: ELL | B20: =IFERROR(VLOOKUP(TEXT($A$3,"0000"),'AYP11'!$B$1691:$AU$2112,37,FALSE)," ") -> NA | C20: =IFERROR(VLOOKUP(TEXT($A$3,"0000"),'Alg Enrollment'!$A$2:$Q$500,16,FALSE),0) -> 95 | D20: =IFERROR((IF(OR(C20=0,C20="",C20="NA"),"NA",((IF(VLOOKUP($A$3,'ALG-ELL'!$A$6:$AG$500,3,FALSE)>=C20,"100% ("&VLOOKUP($A$3,'ALG-ELL'!$A$6:$AG$500,3,FALSE)&")",(ROUND((VLOOKUP($A$3,'ALG-ELL'!$A$6:$AG$500,3,FALSE)/C20*100),0))&"% ("&IF(VLOOKUP($A$3,'ALG-ELL'!$A$6:$AG$500,3,FALSE)="",0,VLOOKUP($A$3,'ALG-ELL'!$A$6:$AG$500,3,FALSE))&")"))))),"0% (0)") -> 99% (94) | E20: =IFERROR((IF($D20="NA","NA",VLOOKUP($A$3,'ALG-ELL'!$A$6:$AG$500,4,FALSE))),"NA") -> 12.91489362 | F20: =IFERROR((IF($D20="NA","NA",ROUND(VLOOKUP($A$3,'ALG-ELL'!$A$6:$AG$500,6,FALSE),0)&"% ("&IF(VLOOKUP($A$3,'ALG-ELL'!$A$6:$AG$500,5,FALSE)="",0,VLOOKUP($A$3,'ALG-ELL'!$A$6:$AG$500,5,FALSE))&")")),"NA") -> 2% (2) | G20: =IFERROR((IF($D20="NA","NA",VLOOKUP($A$3,'ALG-ELL'!$A$6:$AG$500,7,FALSE))),"NA") -> 12.91489362 | H20: =IFERROR((IF($D20="NA","NA",ROUND(VLOOKUP($A$3,'ALG-ELL'!$A$6:$AG$500,9,FALSE),0)&"% ("&IF(VLOOKUP($A$3,'ALG-ELL'!$A$6:$AG$500,8,FALSE)="",0,VLOOKUP($A$3,'ALG-ELL'!$A$6:$AG$500,8,FALSE))&")")),"NA") -> 2% (2) | R20: =IFERROR(VLOOKUP($A$3,'ALG-ELL'!$A$6:$BX$500,3,FALSE),"not tested") -> 94
A21: SWD | B21: =IFERROR(VLOOKUP(TEXT($A$3,"0000"),'AYP11'!$B$2535:$AU$2956,37,FALSE)," ") -> NA | C21: =IFERROR(VLOOKUP(TEXT($A$3,"0000"),'Alg Enrollment'!$A$2:$Q$500,17,FALSE),0) -> 122 | D21: =IFERROR((IF(OR(C21=0,C21="",C21="NA"),"NA",((IF(VLOOKUP($A$3,'ALG-SWD'!$A$6:$AG$500,3,FALSE)>=C21,"100% ("&VLOOKUP($A$3,'ALG-SWD'!$A$6:$AG$500,3,FALSE)&")",(ROUND((VLOOKUP($A$3,'ALG-SWD'!$A$6:$AG$500,3,FALSE)/C21*100),0))&"% ("&IF(VLOOKUP($A$3,'ALG-SWD'!$A$6:$AG$500,3,FALSE)="",0,VLOOKUP($A$3,'ALG-SWD'!$A$6:$AG$500,3,FALSE))&")"))))),"0% (0)") -> 95% (116) | E21: =IFERROR((IF($D21="NA","NA",VLOOKUP($A$3,'ALG-SWD'!$A$6:$AG$500,4,FALSE))),"NA") -> 11.4 | F21: =IFERROR((IF($D21="NA","NA",ROUND(VLOOKUP($A$3,'ALG-SWD'!$A$6:$AG$500,6,FALSE),0)&"% ("&IF(VLOOKUP($A$3,'ALG-SWD'!$A$6:$AG$500,5,FALSE)="",0,VLOOKUP($A$3,'ALG-SWD'!$A$6:$AG$500,5,FALSE))&")")),"NA") -> 0% (0) | G21: =IFERROR((IF($D21="NA","NA",VLOOKUP($A$3,'ALG-SWD'!$A$6:$AG$500,7,FALSE))),"NA") -> 11.4 | H21: =IFERROR((IF($D21="NA","NA",ROUND(VLOOKUP($A$3,'ALG-SWD'!$A$6:$AG$500,9,FALSE),0)&"% ("&IF(VLOOKUP($A$3,'ALG-SWD'!$A$6:$AG$500,8,FALSE)="",0,VLOOKUP($A$3,'ALG-SWD'!$A$6:$AG$500,8,FALSE))&")")),"NA") -> 0% (0) | R21: =IFERROR(VLOOKUP($A$3,'ALG-SWD'!$A$6:$BX$500,3,FALSE),"not tested") -> 116
A22: Geometry | R22: Geometry
A23: Level of Proficiency at 70% or above | B23: 2011 AYP Met** | C23: Course Enrollment | D23: % and/or Number of Tested (If Available) | E23: Overall [43] | G23: Two-Dimensional Geometry [43] | I23: Three-Dimensional Geometry [0] | K23: Trigonometry & Discrete Mathematics [0] | R23: Number Tested
E24: Average Score | F24: % Proficient | G24: Average Score | H24: % Proficient | I24: Average Score | J24: % Proficient | K24: Average Score | L24: % Proficient
A25: All students | B25: =IFERROR(VLOOKUP(TEXT($A$3,"0000"),'AYP11'!$B$2957:$AU$3378,37,FALSE),"NA") -> Yes-AB | C25: =IFERROR(VLOOKUP(TEXT($A$3,"0000"),'Geo Enrollment'!$A$3:$Q$500,3,FALSE),0) -> 1156 | D25: =IFERROR((IF(OR(C25=0,C25="",C25="NA"),"NA",((IF(VLOOKUP($A$3,'GEO-ALL'!$A$14:$AM$500,3,FALSE)>=C25,"100% ("&VLOOKUP($A$3,'GEO-ALL'!$A$14:$AM$500,3,FALSE)&")",(ROUND((VLOOKUP($A$3,'GEO-ALL'!$A$14:$AM$500,3,FALSE)/C25*100),0))&"% ("&IF(VLOOKUP($A$3,'GEO-ALL'!$A$14:$AM$500,3,FALSE)="",0,VLOOKUP($A$3,'GEO-ALL'!$A$14:$AM$500,3,FALSE))&")"))))),"0% (0)") -> 96% (1115) | E25: =IFERROR((IF($D25="NA","NA",VLOOKUP($A$3,'GEO-ALL'!$A$14:$AM$500,4,FALSE))),"NA") -> 23.39999962 | F25: =IFERROR((IF($D25="NA","NA",ROUND(VLOOKUP($A$3,'GEO-ALL'!$A$14:$AM$500,9,FALSE)*100,0)&"% ("&IF(VLOOKUP($A$3,'GEO-ALL'!$A$14:$AM$500,7,FALSE)="",0,VLOOKUP($A$3,'GEO-ALL'!$A$14:$AM$500,7,FALSE))&")")),"NA") -> 21% (233) | G25: =IFERROR((IF($D25="NA","NA",VLOOKUP($A$3,'GEO-ALL'!$A$14:$AM$500,10,FALSE))),"NA") -> 23.39999962 | H25: =IFERROR((IF($D25="NA","NA",ROUND(VLOOKUP($A$3,'GEO-ALL'!$A$14:$AM$500,15,FALSE)*100,0)&"% ("&IF(VLOOKUP($A$3,'GEO-ALL'!$A$14:$AM$500,13,FALSE)="",0,VLOOKUP($A$3,'GEO-ALL'!$A$14:$AM$500,13,FALSE))&")")),"NA") -> 21% (233) | R25: =IFERROR(VLOOKUP($A$3,'GEO-ALL'!$A$14:$BX$500,3,FALSE),"not tested") -> 1115
A26: FCAT Level 1 | C26: =IFERROR(VLOOKUP(TEXT($A$3,"0000"),'Geo Enrollment'!$A$3:$Q$500,4,FALSE),0) -> 3 | D26: =IF(OR(C26=0,C26="",C26="NA"),"NA",VLOOKUP($A$3,'GEO-L1'!$A$14:$AM$500,3,FALSE)) -> 54 | E26: =IFERROR((IF($D26="NA","NA",VLOOKUP($A$3,'GEO-L1'!$A$14:$AM$500,4,FALSE))),"NA") -> 13.69999981 | F26: =IFERROR((IF($D26="NA","NA",ROUND(VLOOKUP($A$3,'GEO-L1'!$A$14:$AM$500,9,FALSE)*100,0)&"% ("&IF(VLOOKUP($A$3,'GEO-L1'!$A$14:$AM$500,7,FALSE)="",0,VLOOKUP($A$3,'GEO-L1'!$A$14:$AM$500,7,FALSE))&")")),"NA") -> 2% (1) | G26: =IFERROR((IF($D26="NA","NA",VLOOKUP($A$3,'GEO-L1'!$A$14:$AM$500,10,FALSE))),"NA") -> 13.69999981 | H26: =IFERROR((IF($D26="NA","NA",ROUND(VLOOKUP($A$3,'GEO-L1'!$A$14:$AM$500,15,FALSE)*100,0)&"% ("&IF(VLOOKUP($A$3,'GEO-L1'!$A$14:$AM$500,13,FALSE)="",0,VLOOKUP($A$3,'GEO-L1'!$A$14:$AM$500,13,FALSE))&")")),"NA") -> 2% (1) | R26: =IFERROR(VLOOKUP($A$3,'GEO-L1'!$A$14:$BX$500,3,FALSE),"not tested") -> 54
A27: FCAT Level 2 | C27: =IFERROR(VLOOKUP(TEXT($A$3,"0000"),'Geo Enrollment'!$A$3:$Q$500,5,FALSE),0) -> 12 | D27: =IF(OR(C27=0,C27="",C27="NA"),"NA",VLOOKUP($A$3,'GEO-L2'!$A$14:$AM$500,3,FALSE)) -> 138 | E27: =IFERROR((IF($D27="NA","NA",VLOOKUP($A$3,'GEO-L2'!$A$14:$AM$500,4,FALSE))),"NA") -> 17.5 | F27: =IFERROR((IF($D27="NA","NA",ROUND(VLOOKUP($A$3,'GEO-L2'!$A$14:$AM$500,9,FALSE)*100,0)&"% ("&IF(VLOOKUP($A$3,'GEO-L2'!$A$14:$AM$500,7,FALSE)="",0,VLOOKUP($A$3,'GEO-L2'!$A$14:$AM$500,7,FALSE))&")")),"NA") -> 4% (6) | G27: =IFERROR((IF($D27="NA","NA",VLOOKUP($A$3,'GEO-L2'!$A$14:$AM$500,10,FALSE))),"NA") -> 17.5 | H27: =IFERROR((IF($D27="NA","NA",ROUND(VLOOKUP($A$3,'GEO-L2'!$A$14:$AM$500,15,FALSE)*100,0)&"% ("&IF(VLOOKUP($A$3,'GEO-L2'!$A$14:$AM$500,13,FALSE)="",0,VLOOKUP($A$3,'GEO-L2'!$A$14:$AM$500,13,FALSE))&")")),"NA") -> 4% (6) | R27: =IFERROR(VLOOKUP($A$3,'GEO-L2'!$A$14:$BX$500,3,FALSE),"not tested") -> 138
A28: FCAT Level 3 | C28: =IFERROR(VLOOKUP(TEXT($A$3,"0000"),'Geo Enrollment'!$A$3:$Q$500,6,FALSE),0) -> 52 | D28: =IF(OR(C28=0,C28="",C28="NA"),"NA",VLOOKUP($A$3,'GEO-L3'!$A$14:$AM$500,3,FALSE)) -> 418 | E28: =IFERROR((IF($D28="NA","NA",VLOOKUP($A$3,'GEO-L3'!$A$14:$AM$500,4,FALSE))),"NA") -> 21.70000076 | F28: =IFERROR((IF($D28="NA","NA",ROUND(VLOOKUP($A$3,'GEO-L3'!$A$14:$AM$500,9,FALSE)*100,0)&"% ("&IF(VLOOKUP($A$3,'GEO-L3'!$A$14:$AM$500,7,FALSE)="",0,VLOOKUP($A$3,'GEO-L3'!$A$14:$AM$500,7,FALSE))&")")),"NA") -> 12% (51) | G28: =IFERROR((IF($D28="NA","NA",VLOOKUP($A$3,'GEO-L3'!$A$14:$AM$500,10,FALSE))),"NA") -> 21.70000076 | H28: =IFERROR((IF($D28="NA","NA",ROUND(VLOOKUP($A$3,'GEO-L3'!$A$14:$AM$500,15,FALSE)*100,0)&"% ("&IF(VLOOKUP($A$3,'GEO-L3'!$A$14:$AM$500,13,FALSE)="",0,VLOOKUP($A$3,'GEO-L3'!$A$14:$AM$500,13,FALSE))&")")),"NA") -> 12% (51) | R28: =IFERROR(VLOOKUP($A$3,'GEO-L3'!$A$14:$BX$500,3,FALSE),"not tested") -> 418
A29: FCAT Level 4 | C29: =IFERROR(VLOOKUP(TEXT($A$3,"0000"),'Geo Enrollment'!$A$3:$Q$500,7,FALSE),0) -> 83 | D29: =IF(OR(C29=0,C29="",C29="NA"),"NA",VLOOKUP($A$3,'GEO-L4'!$A$14:$AM$500,3,FALSE)) -> 284 | E29: =IFERROR((IF($D29="NA","NA",VLOOKUP($A$3,'GEO-L4'!$A$14:$AM$500,4,FALSE))),"NA") -> 26.89999962 | F29: =IFERROR((IF($D29="NA","NA",ROUND(VLOOKUP($A$3,'GEO-L4'!$A$14:$AM$500,9,FALSE)*100,0)&"% ("&IF(VLOOKUP($A$3,'GEO-L4'!$A$14:$AM$500,7,FALSE)="",0,VLOOKUP($A$3,'GEO-L4'!$A$14:$AM$500,7,FALSE))&")")),"NA") -> 29% (81) | G29: =IFERROR((IF($D29="NA","NA",VLOOKUP($A$3,'GEO-L4'!$A$14:$AM$500,10,FALSE))),"NA") -> 26.89999962 | H29: =IFERROR((IF($D29="NA","NA",ROUND(VLOOKUP($A$3,'GEO-L4'!$A$14:$AM$500,15,FALSE)*100,0)&"% ("&IF(VLOOKUP($A$3,'GEO-L4'!$A$14:$AM$500,13,FALSE)="",0,VLOOKUP($A$3,'GEO-L4'!$A$14:$AM$500,13,FALSE))&")")),"NA") -> 29% (81) | R29: =IFERROR(VLOOKUP($A$3,'GEO-L4'!$A$14:$BX$500,3,FALSE),"not tested") -> 284
A30: FCAT Level 5 | C30: =IFERROR(VLOOKUP(TEXT($A$3,"0000"),'Geo Enrollment'!$A$3:$Q$500,8,FALSE),0) -> 67 | D30: =IF(OR(C30=0,C30="",C30="NA"),"NA",VLOOKUP($A$3,'GEO-L5'!$A$14:$AM$500,3,FALSE)) -> 146 | E30: =IFERROR((IF($D30="NA","NA",VLOOKUP($A$3,'GEO-L5'!$A$14:$AM$500,4,FALSE))),"NA") -> 30.5 | F30: =IFERROR((IF($D30="NA","NA",ROUND(VLOOKUP($A$3,'GEO-L5'!$A$14:$AM$500,9,FALSE)*100,0)&"% ("&IF(VLOOKUP($A$3,'GEO-L5'!$A$14:$AM$500,7,FALSE)="",0,VLOOKUP($A$3,'GEO-L5'!$A$14:$AM$500,7,FALSE))&")")),"NA") -> 54% (79) | G30: =IFERROR((IF($D30="NA","NA",VLOOKUP($A$3,'GEO-L5'!$A$14:$AM$500,10,FALSE))),"NA") -> 30.5 | H30: =IFERROR((IF($D30="NA","NA",ROUND(VLOOKUP($A$3,'GEO-L5'!$A$14:$AM$500,15,FALSE)*100,0)&"% ("&IF(VLOOKUP($A$3,'GEO-L5'!$A$14:$AM$500,13,FALSE)="",0,VLOOKUP($A$3,'GEO-L5'!$A$14:$AM$500,13,FALSE))&")")),"NA") -> 54% (79) | R30: =IFERROR(VLOOKUP($A$3,'GEO-L5'!$A$14:$BX$500,3,FALSE),"not tested") -> 146
A31: White | B31: =IFERROR(VLOOKUP(TEXT($A$3,"0000"),'AYP11'!$B$3379:$AU$3800,37,FALSE)," ") -> NA | C31: =IFERROR(VLOOKUP(TEXT($A$3,"0000"),'Geo Enrollment'!$A$3:$Q$500,10,FALSE),0) -> 77 | D31: =IFERROR((IF(OR(C31=0,C31="",C31="NA"),"NA",((IF(VLOOKUP($A$3,'GEO-W'!$A$14:$AM$500,3,FALSE)>=C31,"100% ("&VLOOKUP($A$3,'GEO-W'!$A$14:$AM$500,3,FALSE)&")",(ROUND((VLOOKUP($A$3,'GEO-W'!$A$14:$AM$500,3,FALSE)/C31*100),0))&"% ("&IF(VLOOKUP($A$3,'GEO-W'!$A$14:$AM$500,3,FALSE)="",0,VLOOKUP($A$3,'GEO-W'!$A$14:$AM$500,3,FALSE))&")"))))),"0% (0)") -> 99% (76) | E31: =IFERROR((IF($D31="NA","NA",VLOOKUP($A$3,'GEO-W'!$A$14:$AM$500,4,FALSE))),"NA") -> 24 | F31: =IFERROR((IF($D31="NA","NA",ROUND(VLOOKUP($A$3,'GEO-W'!$A$14:$AM$500,9,FALSE)*100,0)&"% ("&IF(VLOOKUP($A$3,'GEO-W'!$A$14:$AM$500,7,FALSE)="",0,VLOOKUP($A$3,'GEO-W'!$A$14:$AM$500,7,FALSE))&")")),"NA") -> 25% (19) | G31: =IFERROR((IF($D31="NA","NA",VLOOKUP($A$3,'GEO-W'!$A$14:$AM$500,10,FALSE))),"NA") -> 24 | H31: =IFERROR((IF($D31="NA","NA",ROUND(VLOOKUP($A$3,'GEO-W'!$A$14:$AM$500,15,FALSE)*100,0)&"% ("&IF(VLOOKUP($A$3,'GEO-W'!$A$14:$AM$500,13,FALSE)="",0,VLOOKUP($A$3,'GEO-W'!$A$14:$AM$500,13,FALSE))&")")),"NA") -> 25% (19) | R31: =IFERROR(VLOOKUP($A$3,'GEO-W'!$A$14:$BX$500,3,FALSE),"not tested") -> 76
A32: Black | B32: =IFERROR(VLOOKUP(TEXT($A$3,"0000"),'AYP11'!$B$847:$AU$1268,37,FALSE)," ") -> NA | C32: =IFERROR(VLOOKUP(TEXT($A$3,"0000"),'Geo Enrollment'!$A$3:$Q$500,11,FALSE),0) -> 33 | D32: =IFERROR((IF(OR(C32=0,C32="",C32="NA"),"NA",((IF(VLOOKUP($A$3,'GEO-B'!$A$14:$AM$500,3,FALSE)>=C32,"100% ("&VLOOKUP($A$3,'GEO-B'!$A$14:$AM$500,3,FALSE)&")",(ROUND((VLOOKUP($A$3,'GEO-B'!$A$14:$AM$500,3,FALSE)/C32*100),0))&"% ("&IF(VLOOKUP($A$3,'GEO-B'!$A$14:$AM$500,3,FALSE)="",0,VLOOKUP($A$3,'GEO-B'!$A$14:$AM$500,3,FALSE))&")"))))),"0% (0)") -> 97% (32) | E32: =IFERROR((IF($D32="NA","NA",VLOOKUP($A$3,'GEO-B'!$A$14:$AM$500,4,FALSE))),"NA") -> 21.5 | F32: =IFERROR((IF($D32="NA","NA",ROUND(VLOOKUP($A$3,'GEO-B'!$A$14:$AM$500,9,FALSE)*100,0)&"% ("&IF(VLOOKUP($A$3,'GEO-B'!$A$14:$AM$500,7,FALSE)="",0,VLOOKUP($A$3,'GEO-B'!$A$14:$AM$500,7,FALSE))&")")),"NA") -> 16% (5) | G32: =IFERROR((IF($D32="NA","NA",VLOOKUP($A$3,'GEO-B'!$A$14:$AM$500,10,FALSE))),"NA") -> 21.5 | H32: =IFERROR((IF($D32="NA","NA",ROUND(VLOOKUP($A$3,'GEO-B'!$A$14:$AM$500,15,FALSE)*100,0)&"% ("&IF(VLOOKUP($A$3,'GEO-B'!$A$14:$AM$500,13,FALSE)="",0,VLOOKUP($A$3,'GEO-B'!$A$14:$AM$500,13,FALSE))&")")),"NA") -> 16% (5) | R32: =IFERROR(VLOOKUP($A$3,'GEO-B'!$A$14:$BX$500,3,FALSE),"not tested") -> 32
A33: Hispanic | B33: =IFERROR(VLOOKUP(TEXT($A$3,"0000"),'AYP11'!$B$2113:$AU$2534,37,FALSE)," ") -> Yes-AB | C33: =IFERROR(VLOOKUP(TEXT($A$3,"0000"),'Geo Enrollment'!$A$3:$Q$500,12,FALSE),0) -> 1025 | D33: =IFERROR((IF(OR(C33=0,C33="",C33="NA"),"NA",((IF(VLOOKUP($A$3,'GEO-H'!$A$14:$AM$500,3,FALSE)>=C33,"100% ("&VLOOKUP($A$3,'GEO-H'!$A$14:$AM$500,3,FALSE)&")",(ROUND((VLOOKUP($A$3,'GEO-H'!$A$14:$AM$500,3,FALSE)/C33*100),0))&"% ("&IF(VLOOKUP($A$3,'GEO-H'!$A$14:$AM$500,3,FALSE)="",0,VLOOKUP($A$3,'GEO-H'!$A$14:$AM$500,3,FALSE))&")"))))),"0% (0)") -> 96% (987) | E33: =IFERROR((IF($D33="NA","NA",VLOOKUP($A$3,'GEO-H'!$A$14:$AM$500,4,FALSE))),"NA") -> 23.20000076 | F33: =IFERROR((IF($D33="NA","NA",ROUND(VLOOKUP($A$3,'GEO-H'!$A$14:$AM$500,9,FALSE)*100,0)&"% ("&IF(VLOOKUP($A$3,'GEO-H'!$A$14:$AM$500,7,FALSE)="",0,VLOOKUP($A$3,'GEO-H'!$A$14:$AM$500,7,FALSE))&")")),"NA") -> 20% (198) | G33: =IFERROR((IF($D33="NA","NA",VLOOKUP($A$3,'GEO-H'!$A$14:$AM$500,10,FALSE))),"NA") -> 23.20000076 | H33: =IFERROR((IF($D33="NA","NA",ROUND(VLOOKUP($A$3,'GEO-H'!$A$14:$AM$500,15,FALSE)*100,0)&"% ("&IF(VLOOKUP($A$3,'GEO-H'!$A$14:$AM$500,13,FALSE)="",0,VLOOKUP($A$3,'GEO-H'!$A$14:$AM$500,13,FALSE))&")")),"NA") -> 20% (198) | R33: =IFERROR(VLOOKUP($A$3,'GEO-H'!$A$14:$BX$500,3,FALSE),"not tested") -> 987
A34: Asian | B34: =IFERROR(VLOOKUP(TEXT($A$3,"0000"),'AYP11'!$B$425:$AU$846,37,FALSE)," ") -> NA | C34: =IFERROR(VLOOKUP(TEXT($A$3,"0000"),'Geo Enrollment'!$A$3:$Q$500,13,FALSE),0) -> 19 | D34: =IFERROR((IF(OR(C34=0,C34="",C34="NA"),"NA",((IF(VLOOKUP($A$3,'GEO-A'!$A$14:$AM$500,3,FALSE)>=C34,"100% ("&VLOOKUP($A$3,'GEO-A'!$A$14:$AM$500,3,FALSE)&")",(ROUND((VLOOKUP($A$3,'GEO-A'!$A$14:$AM$500,3,FALSE)/C34*100),0))&"% ("&IF(VLOOKUP($A$3,'GEO-A'!$A$14:$AM$500,3,FALSE)="",0,VLOOKUP($A$3,'GEO-A'!$A$14:$AM$500,3,FALSE))&")"))))),"0% (0)") -> 95% (18) | E34: =IFERROR((IF($D34="NA","NA",VLOOKUP($A$3,'GEO-A'!$A$14:$AM$500,4,FALSE))),"NA") -> 30.70000076 | F34: =IFERROR((IF($D34="NA","NA",ROUND(VLOOKUP($A$3,'GEO-A'!$A$14:$AM$500,9,FALSE)*100,0)&"% ("&IF(VLOOKUP($A$3,'GEO-A'!$A$14:$AM$500,7,FALSE)="",0,VLOOKUP($A$3,'GEO-A'!$A$14:$AM$500,7,FALSE))&")")),"NA") -> 56% (10) | G34: =IFERROR((IF($D34="NA","NA",VLOOKUP($A$3,'GEO-A'!$A$14:$AM$500,10,FALSE))),"NA") -> 30.70000076 | H34: =IFERROR((IF($D34="NA","NA",ROUND(VLOOKUP($A$3,'GEO-A'!$A$14:$AM$500,15,FALSE)*100,0)&"% ("&IF(VLOOKUP($A$3,'GEO-A'!$A$14:$AM$500,13,FALSE)="",0,VLOOKUP($A$3,'GEO-A'!$A$14:$AM$500,13,FALSE))&")")),"NA") -> 56% (10) | R34: =IFERROR(VLOOKUP($A$3,'GEO-A'!$A$14:$BX$500,3,FALSE),"not tested") -> 18
A35: Am. Indian | B35: =IFERROR(VLOOKUP(TEXT($A$3,"0000"),'AYP11'!$B$3:$AU$424,37,FALSE)," ") -> NA | C35: =IFERROR(VLOOKUP(TEXT($A$3,"0000"),'Geo Enrollment'!$A$3:$Q$500,14,FALSE),0) -> 1 | D35: =IFERROR((IF(OR(C35=0,C35="",C35="NA"),"NA",((IF(VLOOKUP($A$3,'GEO-I'!$A$14:$AM$500,3,FALSE)>=C35,"100% ("&VLOOKUP($A$3,'GEO-I'!$A$14:$AM$500,3,FALSE)&")",(ROUND((VLOOKUP($A$3,'GEO-I'!$A$14:$AM$500,3,FALSE)/C35*100),0))&"% ("&IF(VLOOKUP($A$3,'GEO-I'!$A$14:$AM$500,3,FALSE)="",0,VLOOKUP($A$3,'GEO-I'!$A$14:$AM$500,3,FALSE))&")"))))),"0% (0)") -> 100% (1) | E35: =IFERROR((IF($D35="NA","NA",VLOOKUP($A$3,'GEO-I'!$A$14:$AM$500,4,FALSE))),"NA") -> 31 | F35: =IFERROR((IF($D35="NA","NA",ROUND(VLOOKUP($A$3,'GEO-I'!$A$14:$AM$500,9,FALSE)*100,0)&"% ("&IF(VLOOKUP($A$3,'GEO-I'!$A$14:$AM$500,7,FALSE)="",0,VLOOKUP($A$3,'GEO-I'!$A$14:$AM$500,7,FALSE))&")")),"NA") -> 100% (1) | G35: =IFERROR((IF($D35="NA","NA",VLOOKUP($A$3,'GEO-I'!$A$14:$AM$500,10,FALSE))),"NA") -> 31 | H35: =IFERROR((IF($D35="NA","NA",ROUND(VLOOKUP($A$3,'GEO-I'!$A$14:$AM$500,15,FALSE)*100,0)&"% ("&IF(VLOOKUP($A$3,'GEO-I'!$A$14:$AM$500,13,FALSE)="",0,VLOOKUP($A$3,'GEO-I'!$A$14:$AM$500,13,FALSE))&")")),"NA") -> 100% (1) | R35: =IFERROR(VLOOKUP($A$3,'GEO-I'!$A$14:$BX$500,3,FALSE),"not tested") -> 1
A36: ED | B36: =IFERROR(VLOOKUP(TEXT($A$3,"0000"),'AYP11'!$B$1269:$AU$1690,37,FALSE)," ") -> Yes-AB | C36: =IFERROR(VLOOKUP(TEXT($A$3,"0000"),'Geo Enrollment'!$A$3:$Q$500,15,FALSE),0) -> 689 | D36: =IFERROR((IF(OR(C36=0,C36="",C36="NA"),"NA",((IF(VLOOKUP($A$3,'GEO-ED'!$A$14:$AM$500,3,FALSE)>=C36,"100% ("&VLOOKUP($A$3,'GEO-ED'!$A$14:$AM$500,3,FALSE)&")",(ROUND((VLOOKUP($A$3,'GEO-ED'!$A$14:$AM$500,3,FALSE)/C36*100),0))&"% ("&IF(VLOOKUP($A$3,'GEO-ED'!$A$14:$AM$500,3,FALSE)="",0,VLOOKUP($A$3,'GEO-ED'!$A$14:$AM$500,3,FALSE))&")"))))),"0% (0)") -> 97% (666) | E36: =IFERROR((IF($D36="NA","NA",VLOOKUP($A$3,'GEO-ED'!$A$14:$AM$500,4,FALSE))),"NA") -> 22.79999924 | F36: =IFERROR((IF($D36="NA","NA",ROUND(VLOOKUP($A$3,'GEO-ED'!$A$14:$AM$500,9,FALSE)*100,0)&"% ("&IF(VLOOKUP($A$3,'GEO-ED'!$A$14:$AM$500,7,FALSE)="",0,VLOOKUP($A$3,'GEO-ED'!$A$14:$AM$500,7,FALSE))&")")),"NA") -> 19% (125) | G36: =IFERROR((IF($D36="NA","NA",VLOOKUP($A$3,'GEO-ED'!$A$14:$AM$500,10,FALSE))),"NA") -> 22.79999924 | H36: =IFERROR((IF($D36="NA","NA",ROUND(VLOOKUP($A$3,'GEO-ED'!$A$14:$AM$500,15,FALSE)*100,0)&"% ("&IF(VLOOKUP($A$3,'GEO-ED'!$A$14:$AM$500,13,FALSE)="",0,VLOOKUP($A$3,'GEO-ED'!$A$14:$AM$500,13,FALSE))&")")),"NA") -> 19% (125) | R36: =IFERROR(VLOOKUP($A$3,'GEO-ED'!$A$14:$BX$500,3,FALSE),"not tested") -> 666
A37: ELL | B37: =IFERROR(VLOOKUP(TEXT($A$3,"0000"),'AYP11'!$B$1691:$AU$2112,37,FALSE)," ") -> NA | C37: =IFERROR(VLOOKUP(TEXT($A$3,"0000"),'Geo Enrollment'!$A$3:$Q$500,16,FALSE),0) -> 98 | D37: =IFERROR((IF(OR(C37=0,C37="",C37="NA"),"NA",((IF(VLOOKUP($A$3,'GEO-ELL'!$A$14:$AM$500,3,FALSE)>=C37,"100% ("&VLOOKUP($A$3,'GEO-ELL'!$A$14:$AM$500,3,FALSE)&")",(ROUND((VLOOKUP($A$3,'GEO-ELL'!$A$14:$AM$500,3,FALSE)/C37*100),0))&"% ("&IF(VLOOKUP($A$3,'GEO-ELL'!$A$14:$AM$500,3,FALSE)="",0,VLOOKUP($A$3,'GEO-ELL'!$A$14:$AM$500,3,FALSE))&")"))))),"0% (0)") -> 95% (93) | E37: =IFERROR((IF($D37="NA","NA",VLOOKUP($A$3,'GEO-ELL'!$A$14:$AM$500,4,FALSE))),"NA") -> 21.20000076 | F37: =IFERROR((IF($D37="NA","NA",ROUND(VLOOKUP($A$3,'GEO-ELL'!$A$14:$AM$500,9,FALSE)*100,0)&"% ("&IF(VLOOKUP($A$3,'GEO-ELL'!$A$14:$AM$500,7,FALSE)="",0,VLOOKUP($A$3,'GEO-ELL'!$A$14:$AM$500,7,FALSE))&")")),"NA") -> 14% (13) | G37: =IFERROR((IF($D37="NA","NA",VLOOKUP($A$3,'GEO-ELL'!$A$14:$AM$500,10,FALSE))),"NA") -> 21.20000076 | H37: =IFERROR((IF($D37="NA","NA",ROUND(VLOOKUP($A$3,'GEO-ELL'!$A$14:$AM$500,15,FALSE)*100,0)&"% ("&IF(VLOOKUP($A$3,'GEO-ELL'!$A$14:$AM$500,13,FALSE)="",0,VLOOKUP($A$3,'GEO-ELL'!$A$14:$AM$500,13,FALSE))&")")),"NA") -> 14% (13) | R37: =IFERROR(VLOOKUP($A$3,'GEO-ELL'!$A$14:$BX$500,3,FALSE),"not tested") -> 93
A38: SWD | B38: =IFERROR(VLOOKUP(TEXT($A$3,"0000"),'AYP11'!$B$2535:$AU$2956,37,FALSE)," ") -> NA | C38: =IFERROR(VLOOKUP(TEXT($A$3,"0000"),'Geo Enrollment'!$A$3:$Q$500,17,FALSE),0) -> 98 | D38: =IFERROR((IF(OR(C38=0,C38="",C38="NA"),"NA",((IF(VLOOKUP($A$3,'GEO-SWD'!$A$14:$AM$500,3,FALSE)>=C38,"100% ("&VLOOKUP($A$3,'GEO-SWD'!$A$14:$AM$500,3,FALSE)&")",(ROUND((VLOOKUP($A$3,'GEO-SWD'!$A$14:$AM$500,3,FALSE)/C38*100),0))&"% ("&IF(VLOOKUP($A$3,'GEO-SWD'!$A$14:$AM$500,3,FALSE)="",0,VLOOKUP($A$3,'GEO-SWD'!$A$14:$AM$500,3,FALSE))&")"))))),"0% (0)") -> 90% (88) | E38: =IFERROR((IF($D38="NA","NA",VLOOKUP($A$3,'GEO-SWD'!$A$14:$AM$500,4,FALSE))),"NA") -> 17 | F38: =IFERROR((IF($D38="NA","NA",ROUND(VLOOKUP($A$3,'GEO-SWD'!$A$14:$AM$500,9,FALSE)*100,0)&"% ("&IF(VLOOKUP($A$3,'GEO-SWD'!$A$14:$AM$500,7,FALSE)="",0,VLOOKUP($A$3,'GEO-SWD'!$A$14:$AM$500,7,FALSE))&")")),"NA") -> 2% (2) | G38: =IFERROR((IF($D38="NA","NA",VLOOKUP($A$3,'GEO-SWD'!$A$14:$AM$500,10,FALSE))),"NA") -> 17 | H38: =IFERROR((IF($D38="NA","NA",ROUND(VLOOKUP($A$3,'GEO-SWD'!$A$14:$AM$500,15,FALSE)*100,0)&"% ("&IF(VLOOKUP($A$3,'GEO-SWD'!$A$14:$AM$500,13,FALSE)="",0,VLOOKUP($A$3,'GEO-SWD'!$A$14:$AM$500,13,FALSE))&")")),"NA") -> 2% (2) | R38: =IFERROR(VLOOKUP($A$3,'GEO-SWD'!$A$14:$BX$500,3,FALSE),"not tested") -> 88
A39: Biology | R39: Biology
A40: Level of Proficiency at 70% or above | C40: Course Enrollment | D40: % of Students Tested | E40: Overall [70] | G40: Molecular and Cellular Biology [24] | I40: Classification, Heredity, Evolution [20] | K40: Organisms, Populations, & Ecosystems [26] | R40: Number Tested
E41: Average Score | F41: % Proficient | G41: Average Score | H41: % Proficient | I41: Average Score | J41: % Proficient | K41: Average Score | L41: % Proficient
A42: All students | C42: =IFERROR(VLOOKUP(TEXT($A$3,"0000"),'Bio Enrollment'!$A$2:$C$497,3,FALSE),0) -> 1064 | D42: =IFERROR((IF(OR(C42=0,C42="",C42="NA"),"NA",((IF(VLOOKUP($A$3,'Bio-ALL'!$A$14:$AM$500,3,FALSE)>=C42,"100% ("&VLOOKUP($A$3,'Bio-ALL'!$A$14:$AM$500,3,FALSE)&")",(ROUND((VLOOKUP($A$3,'Bio-ALL'!$A$14:$AM$500,3,FALSE)/C42*100),0))&"% ("&VLOOKUP($A$3,'Bio-ALL'!$A$14:$AM$500,3,FALSE)&")"))))),"NA") -> 96% (1017) | E42: =IFERROR((IF($D42="NA","NA",VLOOKUP($A$3,'Bio-ALL'!$A$14:$AM$500,4,FALSE))),"NA") -> 29.60000038 | F42: =IFERROR((IF($D42="NA","NA",ROUND(VLOOKUP($A$3,'Bio-ALL'!$A$14:$AM$500,9,FALSE)*100,0)&"% ("&IF(VLOOKUP($A$3,'Bio-ALL'!$A$14:$AM$500,7,FALSE)="",0,VLOOKUP($A$3,'Bio-ALL'!$A$14:$AM$500,7,FALSE))&")")),"NA") -> 4% (45) | G42: =IFERROR((IF($D42="NA","NA",VLOOKUP($A$3,'Bio-ALL'!$A$14:$AM$500,10,FALSE))),"NA") -> 9.100000381 | H42: =IFERROR((IF($D42="NA","NA",ROUND(VLOOKUP($A$3,'Bio-ALL'!$A$14:$AM$500,15,FALSE)*100,0)&"% ("&IF(VLOOKUP($A$3,'Bio-ALL'!$A$14:$AM$500,13,FALSE)="",0,VLOOKUP($A$3,'Bio-ALL'!$A$14:$AM$500,13,FALSE))&")")),"NA") -> 3% (32) | I42: =IFERROR((IF($D42="NA","NA",VLOOKUP($A$3,'Bio-ALL'!$A$14:$AM$500,16,FALSE))),"NA") -> 8.399999619 | J42: =IFERROR((IF($D42="NA","NA",ROUND(VLOOKUP($A$3,'Bio-ALL'!$A$14:$AM$500,21,FALSE)*100,0)&"% ("&IF(VLOOKUP($A$3,'Bio-ALL'!$A$14:$AM$500,19,FALSE)="",0,VLOOKUP($A$3,'Bio-ALL'!$A$14:$AM$500,19,FALSE))&")")),"NA") -> 8% (82) | K42: =IFERROR((IF($D42="NA","NA",VLOOKUP($A$3,'Bio-ALL'!$A$14:$AM$500,22,FALSE))),"NA") -> 12.10000038 | L42: =IFERROR((IF($D42="NA","NA",ROUND(VLOOKUP($A$3,'Bio-ALL'!$A$14:$AM$500,27,FALSE)*100,0)&"% ("&IF(VLOOKUP($A$3,'Bio-ALL'!$A$14:$AM$500,25,FALSE)="",0,VLOOKUP($A$3,'Bio-ALL'!$A$14:$AM$500,25,FALSE))&")")),"NA") -> 8% (80) | R42: =IFERROR(VLOOKUP($A$3,'Bio-ALL'!$A$14:$BX$500,3,FALSE),"not tested") -> 1017

Sheet Alg Enrollment (hidden)
A1: 1 | B1: 2 | C1: 3 | D1: 4 | E1: 5 | F1: 6 | G1: 7 | H1: 8 | I1: 9 | J1: 10 | K1: 11 | L1: 12 | M1: 13 | N1: 14 | O1: 15 | P1: 16 | Q1: 17
A2: School | B2: SchName | C2: Total | D2: ML1 | E2: ML2 | F2: ML3 | G2: ML4 | H2: ML5 | I2: ML0 | J2: W | K2: B | L2: H | M2: A | N2: I | O2: ED | P2: ELL | Q2: SWD
A3: 0070 | B3: CORAL REEF MONTESSORI ACAD CH | C3: 11 | D3: 0 | E3: 0 | F3: 5 | G3: 2 | H3: 3 | I3: 1 | J3: 3 | K3: 1 | L3: 6 | M3: 1 | N3: 0 | O3: 1 | P3: 0 | Q3: 0
A4: 0071 | B4: EUGENIA B. THOMAS K-8 CENTER | C4: 64 | D4: 0 | E4: 1 | F4: 9 | G4: 31 | H4: 23 | I4: 0 | J4: 9 | K4: 0 | L4: 54 | M4: 1 | N4: 0 | O4: 23 | P4: 5 | Q4: 0
A5: 0073 | B5: MANDARIN LAKES K-8 CENTER | C5: 21 | D5: 0 | E5: 0 | F5: 10 | G5: 7 | H5: 1 | I5: 3 | J5: 2 | K5: 6 | L5: 12 | M5: 1 | N5: 0 | O5: 18 | P5: 0 | Q5: 1
A6: 0091 | B6: BOB GRAHAM EDUCATION CTR | C6: 20 | D6: 0 | E6: 0 | F6: 12 | G6: 8 | H6: 0 | I6: 0 | J6: 4 | K6: 1 | L6: 15 | M6: 0 | N6: 0 | O6: 10 | P6: 0 | Q6: 0
A7: 0092 | B7: NORMAN S. EDELCUP/SUNNY ISLES | C7: 23 | D7: 0 | E7: 0 | F7: 0 | G7: 6 | H7: 16 | I7: 1 | J7: 14 | K7: 0 | L7: 7 | M7: 2 | N7: 0 | O7: 9 | P7: 3 | Q7: 1
A8: 0122 | B8: DR ROLANDO ESPINOSA K-8 | C8: 25 | D8: 0 | E8: 1 | F8: 0 | G8: 11 | H8: 12 | I8: 1 | J8: 3 | K8: 1 | L8: 20 | M8: 1 | N8: 0 | O8: 7 | P8: 3 | Q8: 1
A9: 0231 | B9: AVENTURA WATERWAYS K-8 CENTER | C9: 68 | D9: 0 | E9: 1 | F9: 19 | G9: 23 | H9: 19 | I9: 6 | J9: 28 | K9: 6 | L9: 30 | M9: 4 | N9: 0 | O9: 27 | P9: 7 | Q9: 0
A10: 0241 | B10: RUTH K BROAD/BAY HARBOR K-8 | C10: 41 | D10: 0 | E10: 0 | F10: 4 | G10: 23 | H10: 13 | I10: 1 | J10: 13 | K10: 1 | L10: 27 | M10: 0 | N10: 0 | O10: 15 | P10: 0 | Q10: 1
A11: 0332 | B11: SOMERSET ACADEMY(SILVER PALMS) | C11: 30 | D11: 0 | E11: 0 | F11: 8 | G11: 16 | H11: 6 | I11: 0 | J11: 4 | K11: 2 | L11: 24 | M11: 0 | N11: 0 | O11: 20 | P11: 1 | Q11: 1
A12: 0451 | B12: DOOLIN/ASHE K-8 ACADEMY | C12: 69 | D12: 1 | E12: 5 | F12: 32 | G12: 25 | H12: 5 | I12: 1 | J12: 4 | K12: 0 | L12: 63 | M12: 0 | N12: 2 | O12: 51 | P12: 7 | Q12: 1
A13: 0761 | B13: FIENBERG/FISHER K-8 CENTER | C13: 24 | D13: 0 | E13: 0 | F13: 13 | G13: 11 | H13: 0 | I13: 0 | J13: 3 | K13: 2 | L13: 18 | M13: 1 | N13: 0 | O13: 22 | P13: 0 | Q13: 0
A14: 0950 | B14: AVENTURA CITY OF EXCELLENCE | C14: 37 | D14: 0 | E14: 0 | F14: 0 | G14: 13 | H14: 24 | I14: 0 | J14: 21 | K14: 0 | L14: 15 | M14: 1 | N14: 0 | O14: 4 | P14: 2 | Q14: 0
A15: 0961 | B15: CORAL GABLES PREPARATORY ACAD | C15: 15 | D15: 0 | E15: 0 | F15: 1 | G15: 9 | H15: 5 | I15: 0 | J15: 1 | K15: 0 | L15: 13 | M15: 1 | N15: 0 | O15: 8 | P15: 1 | Q15: 1
A16: 1010 | B16: CHARTER SCHOOL AT WATERSTONE | C16: 47 | D16: 0 | E16: 1 | F16: 18 | G16: 21 | H16: 6 | I16: 1 | J16: 4 | K16: 2 | L16: 40 | M16: 1 | N16: 0 | O16: 33 | P16: 2 | Q16: 1
A17: 1020 | B17: YOUTH CO-OP CHARTER SCHOOL | C17: 39 | D17: 0 | E17: 0 | F17: 6 | G17: 27 | H17: 6 | I17: 0 | J17: 2 | K17: 1 | L17: 35 | M17: 1 | N17: 0 | O17: 31 | P17: 0 | Q17: 1
A18: 1121 | B18: CORAL WAY K-8 CENTER | C18: 44 | D18: 0 | E18: 0 | F18: 10 | G18: 23 | H18: 11 | I18: 0 | J18: 6 | K18: 0 | L18: 36 | M18: 2 | N18: 0 | O18: 27 | P18: 4 | Q18: 1
A19: 1331 | B19: DEVON AIRE K-8 CENTER | C19: 43 | D19: 0 | E19: 0 | F19: 5 | G19: 16 | H19: 21 | I19: 1 | J19: 7 | K19: 3 | L19: 31 | M19: 2 | N19: 0 | O19: 16 | P19: 0 | Q19: 1
A20: 1721 | B20: EVERGLADES K-8 CENTER | C20: 53 | D20: 0 | E20: 4 | F20: 22 | G20: 17 | H20: 10 | I20: 0 | J20: 1 | K20: 0 | L20: 51 | M20: 1 | N20: 0 | O20: 30 | P20: 4 | Q20: 0
A21: 2701 | B21: KENWOOD K-8 CENTER | C21: 44 | D21: 0 | E21: 0 | F21: 8 | G21: 26 | H21: 10 | I21: 0 | J21: 8 | K21: 1 | L21: 34 | M21: 1 | N21: 0 | O21: 13 | P21: 0 | Q21: 0
A22: 2741 | B22: KEY BISCAYNE K-8 CENTER | C22: 55 | D22: 0 | E22: 0 | F22: 11 | G22: 34 | H22: 8 | I22: 2 | J22: 18 | K22: 0 | L22: 37 | M22: 0 | N22: 0 | O22: 4 | P22: 3 | Q22: 1
A23: 2881 | B23: LEEWOOD K-8 CENTER | C23: 39 | D23: 0 | E23: 0 | F23: 13 | G23: 21 | H23: 4 | I23: 1 | J23: 12 | K23: 1 | L23: 23 | M23: 3 | N23: 0 | O23: 4 | P23: 0 | Q23: 2
A24: 2901 | B24: LEISURE CITY K-8 CENTER | C24: 24 | D24: 0 | E24: 1 | F24: 6 | G24: 16 | H24: 1 | I24: 0 | J24: 1 | K24: 3 | L24: 19 | M24: 1 | N24: 0 | O24: 24 | P24: 1 | Q24: 0
A25: 2911 | B25: LINDA LENTIN K-8 CENTER | C25: 42 | D25: 0 | E25: 1 | F25: 17 | G25: 19 | H25: 5 | I25: 0 | J25: 0 | K25: 39 | L25: 3 | M25: 0 | N25: 0 | O25: 42 | P25: 1 | Q25: 0
A26: 3029 | B26: DORAL ACADEMY OF TECHNOLOGY | C26: 71 | D26: 0 | E26: 0 | F26: 9 | G26: 36 | H26: 25 | I26: 1 | J26: 7 | K26: 0 | L26: 61 | M26: 3 | N26: 0 | O26: 27 | P26: 0 | Q26: 0
A27: 3101 | B27: FRANK C. MARTIN K-8 CENTER | C27: 92 | D27: 0 | E27: 2 | F27: 23 | G27: 47 | H27: 19 | I27: 1 | J27: 14 | K27: 36 | L27: 28 | M27: 11 | N27: 1 | O27: 31 | P27: 0 | Q27: 1
A28: 3191 | B28: ADA MERRITT K-8 CENTER | C28: 79 | D28: 0 | E28: 1 | F28: 25 | G28: 36 | H28: 17 | I28: 0 | J28: 20 | K28: 13 | L28: 44 | M28: 0 | N28: 0 | O28: 25 | P28: 0 | Q28: 1
A29: 3281 | B29: MIAMI LAKES K-8 CENTER | C29: 90 | D29: 0 | E29: 1 | F29: 18 | G29: 50 | H29: 20 | I29: 1 | J29: 5 | K29: 1 | L29: 83 | M29: 1 | N29: 0 | O29: 45 | P29: 2 | Q29: 1
A30: 3421 | B30: M.A. MILAM K-8 CENTER | C30: 26 | D30: 0 | E30: 0 | F30: 3 | G30: 18 | H30: 5 | I30: 0 | J30: 0 | K30: 0 | L30: 26 | M30: 0 | N30: 0 | O30: 20 | P30: 3 | Q30: 0
A31: 3610 | B31: KEYS GATE CHARTER SCHOOL | C31: 63 | D31: 0 | E31: 2 | F31: 24 | G31: 25 | H31: 9 | I31: 3 | J31: 22 | K31: 8 | L31: 28 | M31: 3 | N31: 0 | O31: 31 | P31: 0 | Q31: 1
A32: 3621 | B32: COCONUT PALM K-8 ACADEMY | C32: 21 | D32: 0 | E32: 2 | F32: 6 | G32: 11 | H32: 2 | I32: 0 | J32: 2 | K32: 8 | L32: 11 | M32: 0 | N32: 0 | O32: 17 | P32: 1 | Q32: 0
A33: 4691 | B33: JANE ROBERTS K-8 CENTER | C33: 32 | D33: 0 | E33: 0 | F33: 7 | G33: 16 | H33: 9 | I33: 0 | J33: 6 | K33: 0 | L33: 24 | M33: 1 | N33: 0 | O33: 12 | P33: 1 | Q33: 2
A34: 5003 | B34: SOUTH DADE MIDDLE SCHOOL | C34: 110 | D34: 0 | E34: 4 | F34: 39 | G34: 54 | H34: 8 | I34: 5 | J34: 21 | K34: 13 | L34: 72 | M34: 2 | N34: 1 | O34: 83 | P34: 1 | Q34: 4
A35: 5005 | B35: DAVID LAWRENCE JR K-8 CENTER | C35: 18 | D35: 0 | E35: 0 | F35: 0 | G35: 8 | H35: 10 | I35: 0 | J35: 6 | K35: 5 | L35: 6 | M35: 1 | N35: 0 | O35: 8 | P35: 1 | Q35: 0
A36: 5007 | B36: LINCOLN-MARTI CHARTER HIALEAH | C36: 20 | D36: 0 | E36: 4 | F36: 6 | G36: 5 | H36: 5 | I36: 0 | J36: 0 | K36: 0 | L36: 20 | M36: 0 | N36: 0 | O36: 8 | P36: 5 | Q36: 0
A37: 5010 | B37: OXFORD ACADEMY OF MIAMI | C37: 1 | D37: 0 | E37: 0 | F37: 0 | G37: 1 | H37: 0 | I37: 0 | J37: 1 | K37: 0 | L37: 0 | M37: 0 | N37: 0 | O37: 0 | P37: 0 | Q37: 0
A38: 5025 | B38: LINCOLN-MARTI CS LITTLE HAVANA | C38: 14 | D38: 0 | E38: 2 | F38: 8 | G38: 4 | H38: 0 | I38: 0 | J38: 0 | K38: 2 | L38: 12 | M38: 0 | N38: 0 | O38: 6 | P38: 3 | Q38: 0
A39: 5029 | B39: EXCELSIOR LANGUAGE ACADEMY K-8 | C39: 10 | D39: 0 | E39: 0 | F39: 7 | G39: 3 | H39: 0 | I39: 0 | J39: 0 | K39: 0 | L39: 10 | M39: 0 | N39: 0 | O39: 10 | P39: 0 | Q39: 1
A40: 5241 | B40: SOUTH MIAMI K-8 CENTER | C40: 29 | D40: 0 | E40: 0 | F40: 10 | G40: 17 | H40: 2 | I40: 0 | J40: 3 | K40: 5 | L40: 21 | M40: 0 | N40: 0 | O40: 19 | P40: 2 | Q40: 2
A41: 5671 | B41: VINELAND K-8 CENTER | C41: 25 | D41: 0 | E41: 0 | F41: 2 | G41: 14 | H41: 9 | I41: 0 | J41: 7 | K41: 1 | L41: 15 | M41: 1 | N41: 0 | O41: 2 | P41: 0 | Q41: 2
A42: 5961 | B42: WINSTON PARK K-8 CENTER | C42: 72 | D42: 0 | E42: 0 | F42: 22 | G42: 38 | H42: 11 | I42: 1 | J42: 5 | K42: 1 | L42: 63 | M42: 1 | N42: 1 | O42: 36 | P42: 3 | Q42: 4
A43: 6001 | B43: HERBERT A. AMMONS MIDDLE | C43: 224 | D43: 0 | E43: 1 | F43: 39 | G43: 109 | H43: 74 | I43: 1 | J43: 53 | K43: 28 | L43: 128 | M43: 11 | N43: 0 | O43: 92 | P43: 1 | Q43: 2
A44: 6004 | B44: SOMERSET ACADEMY MIDDLE | C44: 31 | D44: 0 | E44: 0 | F44: 3 | G44: 20 | H44: 8 | I44: 0 | J44: 4 | K44: 1 | L44: 26 | M44: 0 | N44: 0 | O44: 13 | P44: 0 | Q44: 0
A45: 6006 | B45: ARCHIMEDEAN CONSERVATORY | C45: 91 | D45: 1 | E45: 5 | F45: 27 | G45: 27 | H45: 31 | I45: 0 | J45: 16 | K45: 1 | L45: 73 | M45: 1 | N45: 0 | O45: 50 | P45: 1 | Q45: 4
A46: 6009 | B46: MATER ACADEMY EAST MIDDLE | C46: 23 | D46: 0 | E46: 2 | F46: 10 | G46: 7 | H46: 4 | I46: 0 | J46: 2 | K46: 2 | L46: 19 | M46: 0 | N46: 0 | O46: 19 | P46: 1 | Q46: 0
A47: 6010 | B47: FLORIDA INTERNATIONAL ACADEMY | C47: 28 | D47: 0 | E47: 1 | F47: 9 | G47: 14 | H47: 4 | I47: 0 | J47: 0 | K47: 26 | L47: 2 | M47: 0 | N47: 0 | O47: 27 | P47: 0 | Q47: 0
A48: 6011 | B48: ALLAPATTAH MIDDLE | C48: 24 | D48: 0 | E48: 0 | F48: 13 | G48: 10 | H48: 1 | I48: 0 | J48: 1 | K48: 14 | L48: 9 | M48: 0 | N48: 0 | O48: 23 | P48: 0 | Q48: 1
A49: 6012 | B49: MATER ACADEMY CHARTER MIDDLE | C49: 208 | D49: 0 | E49: 5 | F49: 77 | G49: 96 | H49: 29 | I49: 1 | J49: 4 | K49: 6 | L49: 198 | M49: 0 | N49: 0 | O49: 152 | P49: 2 | Q49: 3
A50: 6013 | B50: SOMERSET ACADEMY MIDDLE-SOUTH | C50: 20 | D50: 0 | E50: 0 | F50: 10 | G50: 8 | H50: 2 | I50: 0 | J50: 10 | K50: 2 | L50: 8 | M50: 0 | N50: 0 | O50: 12 | P50: 1 | Q50: 0
A51: 6020 | B51: ASPIRA RAUL A. MARTINEZ CHTR | C51: 78 | D51: 1 | E51: 11 | F51: 43 | G51: 17 | H51: 5 | I51: 1 | J51: 1 | K51: 58 | L51: 19 | M51: 0 | N51: 0 | O51: 77 | P51: 3 | Q51: 0
A52: 6021 | B52: ARVIDA MIDDLE SCHOOL | C52: 165 | D52: 0 | E52: 1 | F52: 29 | G52: 80 | H52: 55 | I52: 0 | J52: 46 | K52: 5 | L52: 107 | M52: 6 | N52: 0 | O52: 68 | P52: 0 | Q52: 3
A53: 6022 | B53: PINECREST ACADEMY CHARTER MIDD | C53: 127 | D53: 0 | E53: 7 | F53: 35 | G53: 63 | H53: 20 | I53: 2 | J53: 4 | K53: 0 | L53: 122 | M53: 1 | N53: 0 | O53: 65 | P53: 4 | Q53: 3
A54: 6023 | B54: ANDOVER MIDDLE SCHOOL | C54: 31 | D54: 0 | E54: 2 | F54: 10 | G54: 18 | H54: 1 | I54: 0 | J54: 1 | K54: 28 | L54: 2 | M54: 0 | N54: 0 | O54: 29 | P54: 0 | Q54: 1
A55: 6028 | B55: RENAISSANCE MIDDLE CHARTER | C55: 31 | D55: 0 | E55: 0 | F55: 11 | G55: 16 | H55: 4 | I55: 0 | J55: 7 | K55: 1 | L55: 22 | M55: 0 | N55: 1 | O55: 7 | P55: 0 | Q55: 0
A56: 6030 | B56: DORAL ACADEMY CHARTER MIDDLE | C56: 176 | D56: 0 | E56: 0 | F56: 43 | G56: 91 | H56: 40 | I56: 2 | J56: 12 | K56: 0 | L56: 163 | M56: 1 | N56: 0 | O56: 81 | P56: 5 | Q56: 1
A57: 6033 | B57: MATER ACADEMY LAKES MIDDLE | C57: 83 | D57: 0 | E57: 2 | F57: 28 | G57: 35 | H57: 14 | I57: 4 | J57: 4 | K57: 0 | L57: 79 | M57: 0 | N57: 0 | O57: 62 | P57: 0 | Q57: 1
A58: 6040 | B58: DOCTORS CHARTER/MIAMI SHORES | C58: 78 | D58: 0 | E58: 5 | F58: 35 | G58: 21 | H58: 10 | I58: 7 | J58: 18 | K58: 37 | L58: 20 | M58: 3 | N58: 0 | O58: 12 | P58: 1 | Q58: 2
A59: 6041 | B59: PAUL W. BELL MIDDLE | C59: 39 | D59: 0 | E59: 0 | F59: 8 | G59: 20 | H59: 11 | I59: 0 | J59: 0 | K59: 0 | L59: 39 | M59: 0 | N59: 0 | O59: 31 | P59: 2 | Q59: 1
A60: 6042 | B60: MATER GARDENS ACADEMY MIDDLE | C60: 50 | D60: 0 | E60: 2 | F60: 9 | G60: 31 | H60: 8 | I60: 0 | J60: 2 | K60: 0 | L60: 47 | M60: 1 | N60: 0 | O60: 30 | P60: 0 | Q60: 0
A61: 6045 | B61: INTL. STUDIES CHARTER MIDDLE | C61: 12 | D61: 0 | E61: 0 | F61: 1 | G61: 7 | H61: 3 | I61: 1 | J61: 0 | K61: 0 | L61: 11 | M61: 1 | N61: 0 | O61: 6 | P61: 1 | Q61: 0
A62: 6048 | B62: MIAMI COMMUNITY CHARTER MIDDLE | C62: 74 | D62: 11 | E62: 15 | F62: 24 | G62: 15 | H62: 6 | I62: 3 | J62: 4 | K62: 11 | L62: 59 | M62: 0 | N62: 0 | O62: 33 | P62: 6 | Q62: 5
A63: 6049 | B63: RIVER CITIES COMMUNITY CHARTER | C63: 8 | D63: 1 | E63: 2 | F63: 3 | G63: 1 | H63: 0 | I63: 1 | J63: 0 | K63: 2 | L63: 6 | M63: 0 | N63: 0 | O63: 4 | P63: 1 | Q63: 1
A64: 6051 | B64: CAROL CITY MIDDLE | C64: 15 | D64: 0 | E64: 5 | F64: 3 | G64: 6 | H64: 1 | I64: 0 | J64: 0 | K64: 14 | L64: 1 | M64: 0 | N64: 0 | O64: 15 | P64: 0 | Q64: 0
A65: 6052 | B65: ZELDA GLAZER MIDDLE SCHOOL | C65: 190 | D65: 1 | E65: 3 | F65: 45 | G65: 96 | H65: 43 | I65: 2 | J65: 6 | K65: 1 | L65: 180 | M65: 3 | N65: 0 | O65: 114 | P65: 3 | Q65: 2
A66: 6053 | B66: SOMERSET ACAD MIDDLE (S-MIAMI) | C66: 19 | D66: 0 | E66: 3 | F66: 8 | G66: 8 | H66: 0 | I66: 0 | J66: 4 | K66: 0 | L66: 14 | M66: 0 | N66: 1 | O66: 3 | P66: 0 | Q66: 1
A67: 6060 | B67: ASPIRA SOUTH YOUTH LEADERSHIP | C67: 61 | D67: 0 | E67: 0 | F67: 23 | G67: 29 | H67: 8 | I67: 1 | J67: 2 | K67: 3 | L67: 56 | M67: 0 | N67: 0 | O67: 54 | P67: 4 | Q67: 1
A68: 6061 | B68: CAMPBELL DRIVE MIDDLE | C68: 23 | D68: 0 | E68: 0 | F68: 8 | G68: 11 | H68: 2 | I68: 2 | J68: 2 | K68: 11 | L68: 10 | M68: 0 | N68: 0 | O68: 21 | P68: 2 | Q68: 0
A69: 6070 | B69: ASPIRA EUGENIO MARIA DE HOSTOS | C69: 31 | D69: 2 | E69: 1 | F69: 11 | G69: 15 | H69: 2 | I69: 0 | J69: 0 | K69: 8 | L69: 23 | M69: 0 | N69: 0 | O69: 30 | P69: 2 | Q69: 0
A70: 6071 | B70: GEORGE WASHINGTON CARVER | C70: 318 | D70: 0 | E70: 5 | F70: 53 | G70: 154 | H70: 103 | I70: 3 | J70: 90 | K70: 27 | L70: 192 | M70: 9 | N70: 0 | O70: 107 | P70: 14 | Q70: 7
A71: 6081 | B71: CENTENNIAL MIDDLE | C71: 42 | D71: 0 | E71: 2 | F71: 17 | G71: 20 | H71: 1 | I71: 2 | J71: 6 | K71: 15 | L71: 17 | M71: 2 | N71: 1 | O71: 35 | P71: 4 | Q71: 1
A72: 6091 | B72: CITRUS GROVE MIDDLE SCHOOL | C72: 42 | D72: 1 | E72: 1 | F72: 16 | G72: 21 | H72: 2 | I72: 1 | J72: 0 | K72: 2 | L72: 39 | M72: 1 | N72: 0 | O72: 39 | P72: 2 | Q72: 0
A73: 6111 | B73: CUTLER RIDGE MIDDLE | C73: 86 | D73: 1 | E73: 14 | F73: 50 | G73: 13 | H73: 7 | I73: 1 | J73: 18 | K73: 31 | L73: 34 | M73: 1 | N73: 1 | O73: 76 | P73: 2 | Q73: 6
A74: 6141 | B74: CHARLES R. DREW MIDDLE | C74: 18 | D74: 0 | E74: 1 | F74: 11 | G74: 5 | H74: 1 | I74: 0 | J74: 0 | K74: 18 | L74: 0 | M74: 0 | N74: 0 | O74: 18 | P74: 0 | Q74: 1
A75: 6151 | B75: DORAL MIDDLE SCHOOL | C75: 80 | D75: 1 | E75: 3 | F75: 22 | G75: 37 | H75: 14 | I75: 3 | J75: 11 | K75: 5 | L75: 61 | M75: 3 | N75: 0 | O75: 37 | P75: 2 | Q75: 1
A76: 6161 | B76: LAWTON CHILES MIDDLE SCHOOL | C76: 44 | D76: 0 | E76: 3 | F76: 18 | G76: 20 | H76: 3 | I76: 0 | J76: 4 | K76: 9 | L76: 31 | M76: 0 | N76: 0 | O76: 27 | P76: 0 | Q76: 0
A77: 6171 | B77: HENRY H. FILER MIDDLE | C77: 112 | D77: 0 | E77: 0 | F77: 22 | G77: 74 | H77: 15 | I77: 1 | J77: 2 | K77: 2 | L77: 108 | M77: 0 | N77: 0 | O77: 107 | P77: 8 | Q77: 3
A78: 6211 | B78: GLADES MIDDLE | C78: 90 | D78: 0 | E78: 1 | F78: 11 | G78: 59 | H78: 18 | I78: 1 | J78: 14 | K78: 0 | L78: 70 | M78: 3 | N78: 1 | O78: 52 | P78: 1 | Q78: 1
A79: 6221 | B79: HAMMOCKS MIDDLE | C79: 90 | D79: 0 | E79: 0 | F79: 23 | G79: 46 | H79: 21 | I79: 0 | J79: 12 | K79: 8 | L79: 65 | M79: 5 | N79: 0 | O79: 57 | P79: 6 | Q79: 0
A80: 6231 | B80: HIALEAH MIDDLE | C80: 56 | D80: 0 | E80: 2 | F80: 26 | G80: 25 | H80: 2 | I80: 1 | J80: 1 | K80: 3 | L80: 52 | M80: 0 | N80: 0 | O80: 45 | P80: 1 | Q80: 0
A81: 6241 | B81: HIGHLAND OAKS MIDDLE | C81: 144 | D81: 1 | E81: 1 | F81: 49 | G81: 58 | H81: 33 | I81: 2 | J81: 55 | K81: 45 | L81: 38 | M81: 3 | N81: 0 | O81: 70 | P81: 0 | Q81: 1
A82: 6251 | B82: HOMESTEAD MIDDLE | C82: 21 | D82: 0 | E82: 0 | F82: 7 | G82: 10 | H82: 4 | I82: 0 | J82: 1 | K82: 7 | L82: 13 | M82: 0 | N82: 0 | O82: 18 | P82: 0 | Q82: 0
A83: 6281 | B83: THOMAS JEFFERSON MIDDLE | C83: 27 | D83: 0 | E83: 0 | F83: 14 | G83: 13 | H83: 0 | I83: 0 | J83: 0 | K83: 26 | L83: 1 | M83: 0 | N83: 0 | O83: 23 | P83: 2 | Q83: 0
A84: 6301 | B84: JOHN F. KENNEDY MIDDLE | C84: 185 | D84: 1 | E84: 5 | F84: 59 | G84: 97 | H84: 23 | I84: 0 | J84: 3 | K84: 128 | L84: 45 | M84: 7 | N84: 2 | O84: 153 | P84: 3 | Q84: 0
A85: 6331 | B85: KINLOCH PARK MIDDLE | C85: 44 | D85: 0 | E85: 0 | F85: 5 | G85: 27 | H85: 11 | I85: 1 | J85: 1 | K85: 0 | L85: 42 | M85: 1 | N85: 0 | O85: 39 | P85: 3 | Q85: 2
A86: 6351 | B86: LAKE STEVENS MIDDLE | C86: 23 | D86: 0 | E86: 0 | F86: 3 | G86: 17 | H86: 3 | I86: 0 | J86: 0 | K86: 17 | L86: 6 | M86: 0 | N86: 0 | O86: 20 | P86: 0 | Q86: 1
A87: 6361 | B87: JOSE DE DIEGO MIDDLE SCHOOL | C87: 24 | D87: 0 | E87: 0 | F87: 11 | G87: 11 | H87: 0 | I87: 2 | J87: 1 | K87: 8 | L87: 15 | M87: 0 | N87: 0 | O87: 19 | P87: 1 | Q87: 1
A88: 6391 | B88: MADISON MIDDLE SCHOOL | C88: 22 | D88: 0 | E88: 0 | F88: 14 | G88: 6 | H88: 0 | I88: 2 | J88: 0 | K88: 9 | L88: 13 | M88: 0 | N88: 0 | O88: 20 | P88: 3 | Q88: 0
A89: 6411 | B89: HORACE MANN MIDDLE | C89: 61 | D89: 2 | E89: 0 | F89: 28 | G89: 23 | H89: 7 | I89: 1 | J89: 2 | K89: 47 | L89: 12 | M89: 0 | N89: 0 | O89: 59 | P89: 4 | Q89: 3
A90: 6421 | B90: JOSE MARTI MIDDLE | C90: 25 | D90: 0 | E90: 0 | F90: 5 | G90: 13 | H90: 7 | I90: 0 | J90: 1 | K90: 1 | L90: 22 | M90: 1 | N90: 0 | O90: 24 | P90: 2 | Q90: 0
A91: 6431 | B91: MAYS MIDDLE | C91: 22 | D91: 0 | E91: 0 | F91: 5 | G91: 15 | H91: 1 | I91: 1 | J91: 1 | K91: 11 | L91: 10 | M91: 0 | N91: 0 | O91: 21 | P91: 0 | Q91: 2
A92: 6441 | B92: HOWARD D. MCMILLAN MIDDLE | C92: 94 | D92: 0 | E92: 4 | F92: 27 | G92: 44 | H92: 18 | I92: 1 | J92: 5 | K92: 1 | L92: 85 | M92: 3 | N92: 0 | O92: 73 | P92: 5 | Q92: 2
A93: 6481 | B93: MIAMI EDISON MIDDLE | C93: 21 | D93: 0 | E93: 1 | F93: 7 | G93: 12 | H93: 1 | I93: 0 | J93: 0 | K93: 20 | L93: 1 | M93: 0 | N93: 0 | O93: 20 | P93: 1 | Q93: 1
A94: 6501 | B94: MIAMI LAKES MIDDLE | C94: 105 | D94: 0 | E94: 4 | F94: 25 | G94: 47 | H94: 26 | I94: 3 | J94: 8 | K94: 7 | L94: 87 | M94: 2 | N94: 0 | O94: 77 | P94: 2 | Q94: 0
A95: 6521 | B95: MIAMI SPRINGS MIDDLE | C95: 83 | D95: 1 | E95: 1 | F95: 18 | G95: 44 | H95: 18 | I95: 1 | J95: 7 | K95: 7 | L95: 67 | M95: 1 | N95: 0 | O95: 62 | P95: 3 | Q95: 2
A96: 6541 | B96: NAUTILUS MIDDLE | C96: 91 | D96: 0 | E96: 0 | F96: 17 | G96: 41 | H96: 31 | I96: 2 | J96: 45 | K96: 3 | L96: 41 | M96: 2 | N96: 0 | O96: 33 | P96: 2 | Q96: 2
A97: 6571 | B97: NORLAND MIDDLE | C97: 25 | D97: 0 | E97: 1 | F97: 8 | G97: 14 | H97: 1 | I97: 1 | J97: 0 | K97: 23 | L97: 2 | M97: 0 | N97: 0 | O97: 20 | P97: 0 | Q97: 0
A98: 6591 | B98: NORTH DADE MIDDLE | C98: 29 | D98: 0 | E98: 1 | F98: 12 | G98: 14 | H98: 2 | I98: 0 | J98: 0 | K98: 25 | L98: 4 | M98: 0 | N98: 0 | O98: 25 | P98: 0 | Q98: 0
A99: 6611 | B99: COUNTRY CLUB MIDDLE SCHOOL | C99: 31 | D99: 0 | E99: 0 | F99: 6 | G99: 13 | H99: 12 | I99: 0 | J99: 1 | K99: 6 | L99: 22 | M99: 2 | N99: 0 | O99: 23 | P99: 0 | Q99: 0
A100: 6631 | B100: NORTH MIAMI MIDDLE | C100: 67 | D100: 0 | E100: 3 | F100: 44 | G100: 15 | H100: 4 | I100: 1 | J100: 0 | K100: 55 | L100: 11 | M100: 1 | N100: 0 | O100: 60 | P100: 7 | Q100: 0
A101: 6681 | B101: PALM SPRINGS MIDDLE | C101: 60 | D101: 1 | E101: 2 | F101: 30 | G101: 21 | H101: 2 | I101: 4 | J101: 1 | K101: 1 | L101: 58 | M101: 0 | N101: 0 | O101: 54 | P101: 12 | Q101: 1
A102: 6701 | B102: PALMETTO MIDDLE | C102: 159 | D102: 0 | E102: 0 | F102: 17 | G102: 84 | H102: 53 | I102: 5 | J102: 74 | K102: 4 | L102: 64 | M102: 14 | N102: 0 | O102: 19 | P102: 3 | Q102: 2
A103: 6721 | B103: PARKWAY MIDDLE | C103: 25 | D103: 0 | E103: 4 | F103: 14 | G103: 7 | H103: 0 | I103: 0 | J103: 0 | K103: 24 | L103: 1 | M103: 0 | N103: 0 | O103: 21 | P103: 0 | Q103: 0
A104: 6741 | B104: PONCE DE LEON MIDDLE | C104: 170 | D104: 2 | E104: 6 | F104: 51 | G104: 68 | H104: 38 | I104: 5 | J104: 31 | K104: 12 | L104: 123 | M104: 4 | N104: 0 | O104: 112 | P104: 4 | Q104: 6
A105: 6751 | B105: HIALEAH GARDENS MIDDLE SCHOOL | C105: 308 | D105: 1 | E105: 12 | F105: 84 | G105: 155 | H105: 54 | I105: 2 | J105: 8 | K105: 3 | L105: 294 | M105: 3 | N105: 0 | O105: 247 | P105: 15 | Q105: 2
A106: 6761 | B106: REDLAND MIDDLE | C106: 68 | D106: 0 | E106: 4 | F106: 32 | G106: 25 | H106: 5 | I106: 2 | J106: 10 | K106: 19 | L106: 39 | M106: 0 | N106: 0 | O106: 55 | P106: 2 | Q106: 4
A107: 6771 | B107: JORGE MAS CANOSA MIDDLE | C107: 113 | D107: 0 | E107: 2 | F107: 10 | G107: 57 | H107: 44 | I107: 0 | J107: 17 | K107: 6 | L107: 86 | M107: 3 | N107: 0 | O107: 69 | P107: 1 | Q107: 2
A108: 6781 | B108: RICHMOND HEIGHTS MIDDLE | C108: 54 | D108: 0 | E108: 4 | F108: 16 | G108: 24 | H108: 8 | I108: 2 | J108: 4 | K108: 17 | L108: 29 | M108: 0 | N108: 0 | O108: 37 | P108: 1 | Q108: 3
A109: 6801 | B109: RIVIERA MIDDLE | C109: 140 | D109: 5 | E109: 11 | F109: 65 | G109: 45 | H109: 11 | I109: 3 | J109: 7 | K109: 2 | L109: 128 | M109: 3 | N109: 0 | O109: 109 | P109: 5 | Q109: 5
A110: 6821 | B110: ROCKWAY MIDDLE | C110: 157 | D110: 2 | E110: 1 | F110: 48 | G110: 67 | H110: 38 | I110: 1 | J110: 9 | K110: 5 | L110: 143 | M110: 0 | N110: 0 | O110: 109 | P110: 5 | Q110: 2
A111: 6841 | B111: SHENANDOAH MIDDLE | C111: 104 | D111: 0 | E111: 0 | F111: 12 | G111: 72 | H111: 19 | I111: 1 | J111: 7 | K111: 3 | L111: 94 | M111: 0 | N111: 0 | O111: 82 | P111: 4 | Q111: 1
A112: 6861 | B112: SOUTHWOOD MIDDLE | C112: 146 | D112: 0 | E112: 0 | F112: 10 | G112: 75 | H112: 58 | I112: 3 | J112: 64 | K112: 8 | L112: 61 | M112: 11 | N112: 0 | O112: 31 | P112: 0 | Q112: 3
A113: 6881 | B113: SOUTH MIAMI MIDDLE SCHOOL | C113: 96 | D113: 0 | E113: 1 | F113: 2 | G113: 38 | H113: 55 | I113: 0 | J113: 16 | K113: 5 | L113: 70 | M113: 5 | N113: 0 | O113: 30 | P113: 1 | Q113: 1
A114: 6901 | B114: W. R. THOMAS MIDDLE | C114: 67 | D114: 0 | E114: 0 | F114: 15 | G114: 39 | H114: 13 | I114: 0 | J114: 3 | K114: 0 | L114: 62 | M114: 1 | N114: 1 | O114: 46 | P114: 4 | Q114: 0
A115: 6921 | B115: LAMAR LOUISE CURRY MIDDLE SCH | C115: 94 | D115: 0 | E115: 0 | F115: 18 | G115: 41 | H115: 33 | I115: 2 | J115: 6 | K115: 3 | L115: 82 | M115: 2 | N115: 1 | O115: 56 | P115: 0 | Q115: 1
A116: 6961 | B116: WEST MIAMI MIDDLE | C116: 74 | D116: 0 | E116: 1 | F116: 47 | G116: 23 | H116: 2 | I116: 1 | J116: 4 | K116: 0 | L116: 70 | M116: 0 | N116: 0 | O116: 56 | P116: 5 | Q116: 1
A117: 6981 | B117: WESTVIEW MIDDLE | C117: 19 | D117: 0 | E117: 0 | F117: 7 | G117: 8 | H117: 4 | I117: 0 | J117: 0 | K117: 16 | L117: 3 | M117: 0 | N117: 0 | O117: 16 | P117: 1 | Q117: 0
A118: 7001 | B118: MIAMI-DADE ONLINE ACADEMY | C118: 34 | D118: 4 | E118: 7 | F118: 11 | G118: 4 | H118: 1 | I118: 7 | J118: 4 | K118: 11 | L118: 18 | M118: 1 | N118: 0 | O118: 18 | P118: 0 | Q118: 3
A119: 7007 | B119: INTL. STUDIES CHARTER SENIOR | C119: 63 | D119: 2 | E119: 8 | F119: 27 | G119: 10 | H119: 1 | I119: 15 | J119: 4 | K119: 1 | L119: 58 | M119: 0 | N119: 0 | O119: 46 | P119: 18 | Q119: 1
A120: 7009 | B120: DORAL PERFORMING ARTS ACADEMY | C120: 31 | D120: 0 | E120: 5 | F120: 18 | G120: 6 | H120: 1 | I120: 1 | J120: 5 | K120: 0 | L120: 26 | M120: 0 | N120: 0 | O120: 11 | P120: 2 | Q120: 1
A121: 7011 | B121: AMERICAN SENIOR | C121: 440 | D121: 73 | E121: 124 | F121: 159 | G121: 33 | H121: 4 | I121: 47 | J121: 13 | K121: 116 | L121: 306 | M121: 4 | N121: 0 | O121: 356 | P121: 61 | Q121: 43
A122: 7014 | B122: MATER PERFORMING ARTS ACADEMY | C122: 53 | D122: 0 | E122: 0 | F122: 36 | G122: 16 | H122: 1 | I122: 0 | J122: 1 | K122: 2 | L122: 50 | M122: 0 | N122: 0 | O122: 32 | P122: 0 | Q122: 0
A123: 7015 | B123: LIFE SKILLS CENTER MIAMI-DADE | C123: 110 | D123: 27 | E123: 6 | F123: 7 | G123: 0 | H123: 0 | I123: 70 | J123: 2 | K123: 92 | L123: 16 | M123: 0 | N123: 0 | O123: 54 | P123: 3 | Q123: 26
A124: 7018 | B124: MATER ACADEMY LAKES HIGH SCH | C124: 197 | D124: 15 | E124: 57 | F124: 77 | G124: 22 | H124: 3 | I124: 23 | J124: 15 | K124: 6 | L124: 176 | M124: 0 | N124: 0 | O124: 142 | P124: 26 | Q124: 8
A125: 7020 | B125: DORAL ACADEMY HIGH SCHOOL | C125: 262 | D125: 13 | E125: 59 | F125: 141 | G125: 34 | H125: 3 | I125: 12 | J125: 13 | K125: 5 | L125: 243 | M125: 0 | N125: 1 | O125: 160 | P125: 26 | Q125: 14
A126: 7022 | B126: ACADEMY OF ARTS AND MINDS | C126: 65 | D126: 3 | E126: 12 | F126: 27 | G126: 11 | H126: 1 | I126: 11 | J126: 17 | K126: 4 | L126: 43 | M126: 1 | N126: 0 | O126: 43 | P126: 9 | Q126: 7
A127: 7024 | B127: MATER ACADEMY HIGH-INTL STUDIE | C127: 35 | D127: 0 | E127: 7 | F127: 25 | G127: 3 | H127: 0 | I127: 0 | J127: 2 | K127: 3 | L127: 30 | M127: 0 | N127: 0 | O127: 28 | P127: 1 | Q127: 0
A128: 7025 | B128: MATER BRICKELL PREP ACAD HIGH | C128: 17 | D128: 1 | E128: 4 | F128: 8 | G128: 2 | H128: 1 | I128: 1 | J128: 0 | K128: 6 | L128: 10 | M128: 1 | N128: 0 | O128: 14 | P128: 1 | Q128: 0
A129: 7029 | B129: TERRA ENVIRONMENTAL RESEARCH | C129: 172 | D129: 3 | E129: 19 | F129: 68 | G129: 51 | H129: 3 | I129: 28 | J129: 32 | K129: 5 | L129: 127 | M129: 5 | N129: 0 | O129: 71 | P129: 11 | Q129: 14
A130: 7030 | B130: INTEGRATED ACADEMICS (SIATECH) | C130: 133 | D130: 8 | E130: 4 | F130: 2 | G130: 1 | H130: 0 | I130: 118 | J130: 10 | K130: 93 | L130: 30 | M130: 0 | N130: 0 | O130: 24 | P130: 13 | Q130: 30
A131: 7033 | B131: LAW ENFORCEMENT OFFICERS HS | C131: 67 | D131: 3 | E131: 13 | F131: 35 | G131: 10 | H131: 0 | I131: 6 | J131: 6 | K131: 18 | L131: 43 | M131: 0 | N131: 0 | O131: 50 | P131: 3 | Q131: 4
A132: 7034 | B132: SOMERSET ACAD HIGH SOUTH-HMSTD | C132: 12 | D132: 0 | E132: 5 | F132: 7 | G132: 0 | H132: 0 | I132: 0 | J132: 2 | K132: 1 | L132: 9 | M132: 0 | N132: 0 | O132: 9 | P132: 0 | Q132: 1
A133: 7036 | B133: LAWRENCE ACADEMY SENIOR | C133: 18 | D133: 3 | E133: 5 | F133: 6 | G133: 1 | H133: 0 | I133: 3 | J133: 0 | K133: 5 | L133: 13 | M133: 0 | N133: 0 | O133: 17 | P133: 1 | Q133: 0
A134: 7037 | B134: MATER ACADEMY EAST HIGH SCHOOL | C134: 86 | D134: 6 | E134: 22 | F134: 50 | G134: 5 | H134: 1 | I134: 2 | J134: 3 | K134: 4 | L134: 78 | M134: 1 | N134: 0 | O134: 70 | P134: 15 | Q134: 6
A135: 7042 | B135: SOMERSET ACADEMY CHARTER HIGH | C135: 92 | D135: 9 | E135: 17 | F135: 50 | G135: 10 | H135: 0 | I135: 6 | J135: 3 | K135: 8 | L135: 81 | M135: 0 | N135: 0 | O135: 79 | P135: 14 | Q135: 7
A136: 7048 | B136: ALONZO & TRACY MOURNING SH | C136: 402 | D136: 32 | E136: 74 | F136: 145 | G136: 67 | H136: 38 | I136: 46 | J136: 104 | K136: 90 | L136: 202 | M136: 5 | N136: 0 | O136: 242 | P136: 56 | Q136: 34
A137: 7049 | B137: WESTLAND HIALEAH SENIOR HIGH | C137: 418 | D137: 72 | E137: 97 | F137: 172 | G137: 31 | H137: 3 | I137: 43 | J137: 8 | K137: 3 | L137: 407 | M137: 0 | N137: 0 | O137: 358 | P137: 184 | Q137: 35
A138: 7050 | B138: KEYS GATE CHARTER HIGH SCHL | C138: 245 | D138: 33 | E138: 62 | F138: 94 | G138: 18 | H138: 1 | I138: 37 | J138: 33 | K138: 40 | L138: 171 | M138: 1 | N138: 0 | O138: 185 | P138: 27 | Q138: 22
A139: 7051 | B139: G. HOLMES BRADDOCK SENIOR HIGH | C139: 599 | D139: 80 | E139: 159 | F139: 222 | G139: 50 | H139: 10 | I139: 78 | J139: 33 | K139: 13 | L139: 548 | M139: 2 | N139: 3 | O139: 474 | P139: 91 | Q139: 115
A140: 7053 | B140: PINECREST ACADEMY CHARTER HIGH | C140: 93 | D140: 10 | E140: 20 | F140: 36 | G140: 9 | H140: 0 | I140: 18 | J140: 8 | K140: 0 | L140: 85 | M140: 0 | N140: 0 | O140: 48 | P140: 7 | Q140: 11
A141: 7054 | B141: EXCELSIOR CHARTER HIGH SCHOOL | C141: 42 | D141: 9 | E141: 15 | F141: 12 | G141: 2 | H141: 0 | I141: 4 | J141: 0 | K141: 1 | L141: 41 | M141: 0 | N141: 0 | O141: 39 | P141: 17 | Q141: 2
A142: 7055 | B142: YOUNG WOMEN'S PREPARATORY ACAD | C142: 70 | D142: 1 | E142: 2 | F142: 35 | G142: 23 | H142: 9 | I142: 0 | J142: 7 | K142: 12 | L142: 51 | M142: 0 | N142: 0 | O142: 49 | P142: 3 | Q142: 0
A143: 7056 | B143: YOUNG MENS PREPARATORY ACADEMY | C143: 27 | D143: 2 | E143: 5 | F143: 16 | G143: 2 | H143: 0 | I143: 2 | J143: 1 | K143: 21 | L143: 5 | M143: 0 | N143: 0 | O143: 19 | P143: 0 | Q143: 5
A144: 7058 | B144: MIAMI COMMUNITY CH HIGH SCHOOL | C144: 21 | D144: 5 | E144: 5 | F144: 5 | G144: 1 | H144: 0 | I144: 5 | J144: 1 | K144: 1 | L144: 19 | M144: 0 | N144: 0 | O144: 6 | P144: 6 | Q144: 5
A145: 7059 | B145: MIAMI ARTS CHARTER | C145: 93 | D145: 5 | E145: 17 | F145: 39 | G145: 20 | H145: 7 | I145: 5 | J145: 29 | K145: 15 | L145: 47 | M145: 2 | N145: 0 | O145: 22 | P145: 1 | Q145: 3
A146: 7062 | B146: MAVERICKS HIGH OF NORTH M-DADE | C146: 178 | D146: 21 | E146: 16 | F146: 12 | G146: 1 | H146: 0 | I146: 128 | J146: 4 | K146: 146 | L146: 28 | M146: 0 | N146: 0 | O146: 115 | P146: 6 | Q146: 33
A147: 7065 | B147: MAVERICKS HIGH OF SOUTH M-DADE | C147: 148 | D147: 18 | E147: 14 | F147: 15 | G147: 2 | H147: 0 | I147: 99 | J147: 12 | K147: 62 | L147: 74 | M147: 0 | N147: 0 | O147: 112 | P147: 1 | Q147: 29
A148: 7067 | B148: GREEN SPRINGS HIGH SCHOOL | C148: 33 | D148: 3 | E148: 5 | F148: 4 | G148: 1 | H148: 0 | I148: 20 | J148: 2 | K148: 5 | L148: 26 | M148: 0 | N148: 0 | O148: 19 | P148: 8 | Q148: 2
A149: 7068 | B149: NORTH GARDENS HIGH SCHOOL | C149: 126 | D149: 37 | E149: 13 | F149: 9 | G149: 3 | H149: 0 | I149: 64 | J149: 2 | K149: 98 | L149: 26 | M149: 0 | N149: 0 | O149: 59 | P149: 0 | Q149: 16
A150: 7069 | B150: NORTH PARK HIGH SCHOOL | C150: 20 | D150: 3 | E150: 2 | F150: 1 | G150: 0 | H150: 1 | I150: 13 | J150: 0 | K150: 18 | L150: 2 | M150: 0 | N150: 0 | O150: 14 | P150: 0 | Q150: 7
A151: 7071 | B151: CORAL GABLES SENIOR HIGH | C151: 582 | D151: 96 | E151: 146 | F151: 194 | G151: 40 | H151: 4 | I151: 102 | J151: 41 | K151: 50 | L151: 484 | M151: 5 | N151: 0 | O151: 471 | P151: 149 | Q151: 70
A152: 7081 | B152: DESIGN & ARCHITECTURE SENIOR | C152: 44 | D152: 1 | E152: 4 | F152: 23 | G152: 8 | H152: 6 | I152: 2 | J152: 10 | K152: 9 | L152: 25 | M152: 0 | N152: 0 | O152: 18 | P152: 4 | Q152: 4
A153: 7101 | B153: CORAL REEF SENIOR HIGH | C153: 306 | D153: 19 | E153: 42 | F153: 145 | G153: 72 | H153: 16 | I153: 12 | J153: 54 | K153: 69 | L153: 171 | M153: 6 | N153: 1 | O153: 156 | P153: 7 | Q153: 30
A154: 7111 | B154: HIALEAH SENIOR | C154: 650 | D154: 104 | E154: 170 | F154: 221 | G154: 62 | H154: 10 | I154: 83 | J154: 14 | K154: 33 | L154: 603 | M154: 0 | N154: 0 | O154: 563 | P154: 169 | Q154: 91
A155: 7121 | B155: JOHN A FERGUSON SENIOR HIGH | C155: 759 | D155: 71 | E155: 156 | F155: 290 | G155: 102 | H155: 27 | I155: 113 | J155: 55 | K155: 11 | L155: 685 | M155: 8 | N155: 0 | O155: 488 | P155: 95 | Q155: 122
A156: 7131 | B156: HIALEAH-MIAMI LAKES SENIOR | C156: 389 | D156: 77 | E156: 105 | F156: 124 | G156: 26 | H156: 2 | I156: 55 | J156: 6 | K156: 98 | L156: 280 | M156: 3 | N156: 2 | O156: 324 | P156: 74 | Q156: 64
A157: 7141 | B157: DR MICHAEL M KROP SENIOR HIGH | C157: 647 | D157: 64 | E157: 108 | F157: 233 | G157: 45 | H157: 11 | I157: 186 | J157: 99 | K157: 327 | L157: 209 | M157: 8 | N157: 3 | O157: 398 | P157: 76 | Q157: 51
A158: 7151 | B158: HOMESTEAD SENIOR HIGH | C158: 564 | D158: 123 | E158: 135 | F158: 149 | G158: 17 | H158: 1 | I158: 139 | J158: 24 | K158: 257 | L158: 279 | M158: 3 | N158: 0 | O158: 509 | P158: 56 | Q158: 109
A159: 7160 | B159: MATER ACADEMY CHARTER HIGH | C159: 297 | D159: 14 | E159: 52 | F159: 156 | G159: 52 | H159: 6 | I159: 17 | J159: 10 | K159: 10 | L159: 277 | M159: 0 | N159: 0 | O159: 230 | P159: 42 | Q159: 14
A160: 7191 | B160: HIALEAH GARDENS SENIOR | C160: 598 | D160: 79 | E160: 166 | F160: 226 | G160: 63 | H160: 15 | I160: 49 | J160: 10 | K160: 5 | L160: 578 | M160: 5 | N160: 0 | O160: 501 | P160: 149 | Q160: 59
A161: 7201 | B161: MIAMI BEACH SENIOR HIGH | C161: 494 | D161: 54 | E161: 94 | F161: 211 | G161: 65 | H161: 7 | I161: 63 | J161: 83 | K161: 75 | L161: 330 | M161: 4 | N161: 0 | O161: 398 | P161: 58 | Q161: 68
A162: 7231 | B162: MIAMI CAROL CITY SENIOR HIGH | C162: 550 | D162: 103 | E162: 133 | F162: 176 | G162: 24 | H162: 0 | I162: 114 | J162: 3 | K162: 458 | L162: 88 | M162: 0 | N162: 0 | O162: 457 | P162: 21 | Q162: 78
A163: 7241 | B163: RONALD W REAGAN/DORAL SENIOR | C163: 337 | D163: 34 | E163: 71 | F163: 148 | G163: 38 | H163: 4 | I163: 42 | J163: 18 | K163: 7 | L163: 308 | M163: 4 | N163: 0 | O163: 159 | P163: 113 | Q163: 17
A164: 7251 | B164: MIAMI CENTRAL SENIOR HIGH | C164: 437 | D164: 116 | E164: 134 | F164: 121 | G164: 13 | H164: 1 | I164: 52 | J164: 3 | K164: 348 | L164: 85 | M164: 0 | N164: 0 | O164: 357 | P164: 58 | Q164: 68
A165: 7262 | B165: CITY OF HIALEAH EDUCATION ACAD | C165: 54 | D165: 3 | E165: 15 | F165: 24 | G165: 7 | H165: 1 | I165: 4 | J165: 5 | K165: 0 | L165: 49 | M165: 0 | N165: 0 | O165: 45 | P165: 8 | Q165: 4
A166: 7271 | B166: MIAMI CORAL PARK SENIOR HIGH | C166: 519 | D166: 73 | E166: 132 | F166: 208 | G166: 53 | H166: 14 | I166: 39 | J166: 16 | K166: 6 | L166: 495 | M166: 1 | N166: 1 | O166: 418 | P166: 133 | Q166: 72
A167: 7291 | B167: JOSE MARTI MAST 6-12 ACADEMY | C167: 29 | D167: 0 | E167: 4 | F167: 12 | G167: 8 | H167: 3 | I167: 2 | J167: 2 | K167: 3 | L167: 24 | M167: 0 | N167: 0 | O167: 23 | P167: 9 | Q167: 0
A168: 7301 | B168: MIAMI EDISON SENIOR HIGH | C168: 246 | D168: 54 | E168: 68 | F168: 76 | G168: 18 | H168: 1 | I168: 29 | J168: 1 | K168: 209 | L168: 36 | M168: 0 | N168: 0 | O168: 225 | P168: 49 | Q168: 33
A169: 7341 | B169: MIAMI JACKSON SENIOR HIGH | C169: 343 | D169: 84 | E169: 96 | F169: 98 | G169: 22 | H169: 4 | I169: 39 | J169: 5 | K169: 109 | L169: 229 | M169: 0 | N169: 0 | O169: 328 | P169: 60 | Q169: 47
A170: 7351 | B170: ARTHUR AND POLLY MAYS CONSERVA | C170: 83 | D170: 15 | E170: 28 | F170: 28 | G170: 10 | H170: 0 | I170: 2 | J170: 4 | K170: 34 | L170: 43 | M170: 2 | N170: 0 | O170: 75 | P170: 8 | Q170: 14
A171: 7361 | B171: MIAMI KILLIAN SENIOR HIGH | C171: 526 | D171: 73 | E171: 125 | F171: 204 | G171: 78 | H171: 10 | I171: 36 | J171: 59 | K171: 123 | L171: 331 | M171: 8 | N171: 1 | O171: 367 | P171: 62 | Q171: 106
A172: 7371 | B172: ROBERT MORGAN EDUCATIONAL CTR | C172: 390 | D172: 20 | E172: 85 | F172: 176 | G172: 63 | H172: 8 | I172: 38 | J172: 59 | K172: 86 | L172: 240 | M172: 3 | N172: 0 | O172: 247 | P172: 17 | Q172: 55
A173: 7381 | B173: MIAMI NORLAND SENIOR HIGH | C173: 356 | D173: 67 | E173: 114 | F173: 117 | G173: 19 | H173: 0 | I173: 39 | J173: 2 | K173: 338 | L173: 16 | M173: 0 | N173: 0 | O173: 262 | P173: 19 | Q173: 33
A174: 7391 | B174: MIAMI LAKES EDUCATIONAL CENTER | C174: 162 | D174: 7 | E174: 22 | F174: 101 | G174: 19 | H174: 2 | I174: 11 | J174: 8 | K174: 38 | L174: 115 | M174: 1 | N174: 0 | O174: 124 | P174: 13 | Q174: 13
A175: 7411 | B175: MIAMI NORTHWESTERN SENIOR HIGH | C175: 344 | D175: 104 | E175: 100 | F175: 106 | G175: 6 | H175: 0 | I175: 28 | J175: 2 | K175: 317 | L175: 25 | M175: 0 | N175: 0 | O175: 305 | P175: 14 | Q175: 50
A176: 7431 | B176: MIAMI PALMETTO SENIOR HIGH | C176: 450 | D176: 48 | E176: 75 | F176: 176 | G176: 80 | H176: 15 | I176: 56 | J176: 129 | K176: 107 | L176: 198 | M176: 11 | N176: 2 | O176: 199 | P176: 28 | Q176: 65
A177: 7461 | B177: MIAMI SENIOR HIGH | C177: 632 | D177: 142 | E177: 194 | F177: 177 | G177: 27 | H177: 4 | I177: 88 | J177: 18 | K177: 13 | L177: 599 | M177: 2 | N177: 0 | O177: 564 | P177: 159 | Q177: 75
A178: 7511 | B178: MIAMI SPRINGS SENIOR HIGH | C178: 435 | D178: 76 | E178: 107 | F178: 152 | G178: 47 | H178: 7 | I178: 46 | J178: 19 | K178: 82 | L178: 330 | M178: 4 | N178: 0 | O178: 347 | P178: 89 | Q178: 50
A179: 7531 | B179: MIAMI SUNSET SENIOR HIGH | C179: 438 | D179: 50 | E179: 103 | F179: 179 | G179: 44 | H179: 5 | I179: 57 | J179: 48 | K179: 30 | L179: 351 | M179: 6 | N179: 0 | O179: 319 | P179: 65 | Q179: 87
A180: 7541 | B180: NORTH MIAMI BEACH SENIOR HIGH | C180: 389 | D180: 74 | E180: 105 | F180: 135 | G180: 25 | H180: 3 | I180: 47 | J180: 10 | K180: 283 | L180: 87 | M180: 8 | N180: 0 | O180: 315 | P180: 77 | Q180: 38
A181: 7571 | B181: INTL STUDIES PREP ACADEMY | C181: 21 | D181: 0 | E181: 7 | F181: 7 | G181: 6 | H181: 0 | I181: 1 | J181: 3 | K181: 0 | L181: 18 | M181: 0 | N181: 0 | O181: 15 | P181: 7 | Q181: 0
A182: 7591 | B182: NORTH MIAMI SENIOR HIGH | C182: 535 | D182: 126 | E182: 160 | F182: 148 | G182: 19 | H182: 2 | I182: 80 | J182: 0 | K182: 482 | L182: 50 | M182: 3 | N182: 0 | O182: 446 | P182: 150 | Q182: 48
A183: 7601 | B183: WILLIAM H. TURNER TECHNICAL | C183: 231 | D183: 12 | E183: 55 | F183: 120 | G183: 27 | H183: 4 | I183: 13 | J183: 1 | K183: 189 | L183: 40 | M183: 1 | N183: 0 | O183: 196 | P183: 23 | Q183: 9
A184: 7631 | B184: MIAMI MACARTHUR SOUTH | C184: 41 | D184: 15 | E184: 6 | F184: 3 | G184: 1 | H184: 0 | I184: 16 | J184: 1 | K184: 29 | L184: 11 | M184: 0 | N184: 0 | O184: 37 | P184: 0 | Q184: 13
A185: 7701 | B185: SOUTH DADE SENIOR HIGH | C185: 698 | D185: 117 | E185: 212 | F185: 246 | G185: 37 | H185: 4 | I185: 82 | J185: 57 | K185: 186 | L185: 445 | M185: 6 | N185: 2 | O185: 580 | P185: 85 | Q185: 130
A186: 7721 | B186: SOUTH MIAMI SENIOR HIGH | C186: 487 | D186: 76 | E186: 128 | F186: 183 | G186: 41 | H186: 4 | I186: 55 | J186: 27 | K186: 32 | L186: 427 | M186: 1 | N186: 0 | O186: 391 | P186: 135 | Q186: 81
A187: 7731 | B187: MIAMI SOUTHRIDGE SENIOR HIGH | C187: 458 | D187: 129 | E187: 127 | F187: 132 | G187: 26 | H187: 3 | I187: 41 | J187: 23 | K187: 186 | L187: 238 | M187: 6 | N187: 5 | O187: 381 | P187: 50 | Q187: 95
A188: 7741 | B188: SOUTHWEST MIAMI SENIOR HIGH | C188: 765 | D188: 90 | E188: 169 | F188: 259 | G188: 60 | H188: 9 | I188: 178 | J188: 44 | K188: 11 | L188: 706 | M188: 2 | N188: 1 | O188: 617 | P188: 178 | Q188: 152
A189: 7751 | B189: BARBARA GOLEMAN SENIOR HIGH | C189: 448 | D189: 61 | E189: 101 | F189: 189 | G189: 52 | H189: 8 | I189: 37 | J189: 26 | K189: 92 | L189: 328 | M189: 2 | N189: 0 | O189: 326 | P189: 47 | Q189: 56
A190: 7781 | B190: FELIX VARELA SENIOR HIGH | C190: 658 | D190: 87 | E190: 165 | F190: 287 | G190: 64 | H190: 7 | I190: 48 | J190: 56 | K190: 29 | L190: 564 | M190: 8 | N190: 1 | O190: 473 | P190: 73 | Q190: 71
A191: 7791 | B191: BOOKER T. WASHINGTON SR. HIGH | C191: 214 | D191: 57 | E191: 65 | F191: 57 | G191: 9 | H191: 1 | I191: 25 | J191: 2 | K191: 117 | L191: 94 | M191: 1 | N191: 0 | O191: 187 | P191: 27 | Q191: 39
A192: 7901 | B192: NEW WORLD SCHOOL OF THE ARTS | C192: 55 | D192: 3 | E192: 4 | F192: 22 | G192: 12 | H192: 3 | I192: 11 | J192: 13 | K192: 6 | L192: 34 | M192: 0 | N192: 0 | O192: 20 | P192: 2 | Q192: 6
A193: 8014 | B193: ALTERNATIVE OUTREACH-EXT. YR | C193: 73 | D193: 25 | E193: 9 | F193: 3 | G193: 0 | H193: 0 | I193: 36 | J193: 6 | K193: 50 | L193: 17 | M193: 0 | N193: 0 | O193: 28 | P193: 2 | Q193: 26
A194: 8017 | B194: ALTERNATIVE OUTREACH PROGRAM | C194: 230 | D194: 52 | E194: 22 | F194: 21 | G194: 1 | H194: 1 | I194: 133 | J194: 6 | K194: 92 | L194: 132 | M194: 0 | N194: 0 | O194: 149 | P194: 67 | Q194: 28
A195: 8019 | B195: ACADEMY FOR COMMUNITY ED | C195: 23 | D195: 2 | E195: 8 | F195: 3 | G195: 0 | H195: 0 | I195: 10 | J195: 1 | K195: 19 | L195: 3 | M195: 0 | N195: 0 | O195: 16 | P195: 0 | Q195: 1
A196: 8101 | B196: JAN MANN OPPORTUNITY SCHOOL | C196: 27 | D196: 11 | E196: 13 | F196: 3 | G196: 0 | H196: 0 | I196: 0 | J196: 0 | K196: 18 | L196: 9 | M196: 0 | N196: 0 | O196: 25 | P196: 1 | Q196: 2
A197: 8121 | B197: COPE CENTER NORTH | C197: 29 | D197: 7 | E197: 6 | F197: 4 | G197: 1 | H197: 0 | I197: 11 | J197: 0 | K197: 24 | L197: 5 | M197: 0 | N197: 0 | O197: 25 | P197: 2 | Q197: 2
A198: 8131 | B198: DOROTHY M WALLACE COPE CENTER | C198: 22 | D198: 5 | E198: 0 | F198: 1 | G198: 0 | H198: 0 | I198: 16 | J198: 1 | K198: 14 | L198: 7 | M198: 0 | N198: 0 | O198: 21 | P198: 2 | Q198: 1
A199: 8141 | B199: JUVENILE JUSTICE CENTER | C199: 33 | D199: 14 | E199: 6 | F199: 2 | G199: 0 | H199: 0 | I199: 11 | J199: 0 | K199: 24 | L199: 9 | M199: 0 | N199: 0 | O199: 17 | P199: 4 | Q199: 13
A200: 8151 | B200: ROBERT RENICK EDUCATION CTR | C200: 14 | D200: 10 | E200: 2 | F200: 0 | G200: 0 | H200: 0 | I200: 2 | J200: 1 | K200: 11 | L200: 2 | M200: 0 | N200: 0 | O200: 13 | P200: 0 | Q200: 14
... 3 more rows

Sheet Geo Enrollment (hidden)
A1: 1 | B1: 2 | C1: 3 | D1: 4 | E1: 5 | F1: 6 | G1: 7 | H1: 8 | I1: 9 | J1: 10 | K1: 11 | L1: 12 | M1: 13 | N1: 14 | O1: 15 | P1: 16 | Q1: 17
A2: School | B2: SchName | C2: Total | D2: ML1 | E2: ML2 | F2: ML3 | G2: ML4 | H2: ML5 | I2: ML0 | J2: W | K2: B | L2: H | M2: A | N2: I | O2: ED | P2: ELL | Q2: SWD
A3: 0071 | B3: EUGENIA B. THOMAS K-8 CENTER | C3: 24 | D3: 0 | E3: 0 | F3: 0 | G3: 14 | H3: 10 | I3: 0 | J3: 3 | K3: 0 | L3: 20 | M3: 1 | N3: 0 | O3: 3 | P3: 1 | Q3: 0
A4: 0091 | B4: BOB GRAHAM EDUCATION CTR | C4: 51 | D4: 0 | E4: 0 | F4: 11 | G4: 25 | H4: 15 | I4: 0 | J4: 6 | K4: 0 | L4: 43 | M4: 2 | N4: 0 | O4: 22 | P4: 0 | Q4: 0
A5: 0092 | B5: NORMAN S. EDELCUP/SUNNY ISLES | C5: 12 | D5: 0 | E5: 0 | F5: 0 | G5: 3 | H5: 9 | I5: 0 | J5: 7 | K5: 0 | L5: 5 | M5: 0 | N5: 0 | O5: 5 | P5: 0 | Q5: 0
A6: 0122 | B6: DR ROLANDO ESPINOSA K-8 | C6: 15 | D6: 0 | E6: 0 | F6: 0 | G6: 7 | H6: 8 | I6: 0 | J6: 1 | K6: 1 | L6: 12 | M6: 1 | N6: 0 | O6: 6 | P6: 1 | Q6: 0
A7: 0231 | B7: AVENTURA WATERWAYS K-8 CENTER | C7: 38 | D7: 0 | E7: 0 | F7: 3 | G7: 18 | H7: 16 | I7: 1 | J7: 20 | K7: 0 | L7: 16 | M7: 2 | N7: 0 | O7: 9 | P7: 0 | Q7: 0
A8: 0241 | B8: RUTH K BROAD/BAY HARBOR K-8 | C8: 14 | D8: 0 | E8: 0 | F8: 1 | G8: 2 | H8: 11 | I8: 0 | J8: 7 | K8: 1 | L8: 6 | M8: 0 | N8: 0 | O8: 4 | P8: 0 | Q8: 0
A9: 0332 | B9: SOMERSET ACADEMY(SILVER PALMS) | C9: 1 | D9: 0 | E9: 0 | F9: 0 | G9: 0 | H9: 1 | I9: 0 | J9: 0 | K9: 0 | L9: 1 | M9: 0 | N9: 0 | O9: 1 | P9: 0 | Q9: 0
A10: 0950 | B10: AVENTURA CITY OF EXCELLENCE | C10: 11 | D10: 0 | E10: 0 | F10: 0 | G10: 1 | H10: 10 | I10: 0 | J10: 6 | K10: 0 | L10: 5 | M10: 0 | N10: 0 | O10: 1 | P10: 0 | Q10: 0
A11: 1020 | B11: YOUTH CO-OP CHARTER SCHOOL | C11: 1 | D11: 0 | E11: 0 | F11: 0 | G11: 0 | H11: 1 | I11: 0 | J11: 0 | K11: 0 | L11: 1 | M11: 0 | N11: 0 | O11: 1 | P11: 0 | Q11: 0
A12: 1331 | B12: DEVON AIRE K-8 CENTER | C12: 15 | D12: 0 | E12: 0 | F12: 0 | G12: 2 | H12: 13 | I12: 0 | J12: 3 | K12: 1 | L12: 9 | M12: 1 | N12: 1 | O12: 6 | P12: 0 | Q12: 2
A13: 1721 | B13: EVERGLADES K-8 CENTER | C13: 44 | D13: 0 | E13: 1 | F13: 18 | G13: 17 | H13: 8 | I13: 0 | J13: 1 | K13: 1 | L13: 42 | M13: 0 | N13: 0 | O13: 26 | P13: 0 | Q13: 0
A14: 2741 | B14: KEY BISCAYNE K-8 CENTER | C14: 31 | D14: 0 | E14: 0 | F14: 2 | G14: 13 | H14: 15 | I14: 1 | J14: 8 | K14: 0 | L14: 23 | M14: 0 | N14: 0 | O14: 1 | P14: 0 | Q14: 0
A15: 3029 | B15: DORAL ACADEMY OF TECHNOLOGY | C15: 5 | D15: 0 | E15: 0 | F15: 1 | G15: 3 | H15: 1 | I15: 0 | J15: 2 | K15: 0 | L15: 3 | M15: 0 | N15: 0 | O15: 2 | P15: 0 | Q15: 0
A16: 3101 | B16: FRANK C. MARTIN K-8 CENTER | C16: 40 | D16: 0 | E16: 0 | F16: 2 | G16: 17 | H16: 21 | I16: 0 | J16: 12 | K16: 7 | L16: 11 | M16: 9 | N16: 0 | O16: 7 | P16: 0 | Q16: 1
A17: 3191 | B17: ADA MERRITT K-8 CENTER | C17: 17 | D17: 0 | E17: 0 | F17: 0 | G17: 9 | H17: 8 | I17: 0 | J17: 6 | K17: 1 | L17: 10 | M17: 0 | N17: 0 | O17: 4 | P17: 0 | Q17: 0
A18: 3281 | B18: MIAMI LAKES K-8 CENTER | C18: 45 | D18: 0 | E18: 0 | F18: 2 | G18: 22 | H18: 21 | I18: 0 | J18: 1 | K18: 2 | L18: 40 | M18: 2 | N18: 0 | O18: 15 | P18: 0 | Q18: 0
A19: 3421 | B19: M.A. MILAM K-8 CENTER | C19: 8 | D19: 0 | E19: 0 | F19: 0 | G19: 5 | H19: 3 | I19: 0 | J19: 0 | K19: 0 | L19: 8 | M19: 0 | N19: 0 | O19: 8 | P19: 0 | Q19: 1
A20: 4691 | B20: JANE ROBERTS K-8 CENTER | C20: 1 | D20: 0 | E20: 0 | F20: 1 | G20: 0 | H20: 0 | I20: 0 | J20: 0 | K20: 0 | L20: 1 | M20: 0 | N20: 0 | O20: 1 | P20: 0 | Q20: 0
A21: 5003 | B21: SOUTH DADE MIDDLE SCHOOL | C21: 1 | D21: 0 | E21: 0 | F21: 0 | G21: 1 | H21: 0 | I21: 0 | J21: 0 | K21: 0 | L21: 1 | M21: 0 | N21: 0 | O21: 1 | P21: 0 | Q21: 0
A22: 5005 | B22: DAVID LAWRENCE JR K-8 CENTER | C22: 11 | D22: 0 | E22: 0 | F22: 0 | G22: 1 | H22: 10 | I22: 0 | J22: 3 | K22: 4 | L22: 3 | M22: 1 | N22: 0 | O22: 6 | P22: 0 | Q22: 0
A23: 5961 | B23: WINSTON PARK K-8 CENTER | C23: 12 | D23: 0 | E23: 0 | F23: 1 | G23: 5 | H23: 6 | I23: 0 | J23: 1 | K23: 0 | L23: 11 | M23: 0 | N23: 0 | O23: 4 | P23: 0 | Q23: 0
A24: 6001 | B24: HERBERT A. AMMONS MIDDLE | C24: 127 | D24: 0 | E24: 0 | F24: 8 | G24: 55 | H24: 64 | I24: 0 | J24: 25 | K24: 14 | L24: 77 | M24: 10 | N24: 0 | O24: 54 | P24: 0 | Q24: 0
A25: 6006 | B25: ARCHIMEDEAN CONSERVATORY | C25: 81 | D25: 0 | E25: 2 | F25: 15 | G25: 27 | H25: 37 | I25: 0 | J25: 5 | K25: 3 | L25: 66 | M25: 5 | N25: 0 | O25: 38 | P25: 1 | Q25: 0
A26: 6010 | B26: FLORIDA INTERNATIONAL ACADEMY | C26: 17 | D26: 0 | E26: 0 | F26: 2 | G26: 13 | H26: 2 | I26: 0 | J26: 0 | K26: 14 | L26: 3 | M26: 0 | N26: 0 | O26: 16 | P26: 0 | Q26: 0
A27: 6012 | B27: MATER ACADEMY CHARTER MIDDLE | C27: 27 | D27: 0 | E27: 0 | F27: 6 | G27: 10 | H27: 11 | I27: 0 | J27: 2 | K27: 1 | L27: 24 | M27: 0 | N27: 0 | O27: 15 | P27: 1 | Q27: 0
A28: 6021 | B28: ARVIDA MIDDLE SCHOOL | C28: 36 | D28: 0 | E28: 0 | F28: 1 | G28: 11 | H28: 24 | I28: 0 | J28: 7 | K28: 0 | L28: 23 | M28: 6 | N28: 0 | O28: 11 | P28: 0 | Q28: 0
A29: 6023 | B29: ANDOVER MIDDLE SCHOOL | C29: 19 | D29: 0 | E29: 0 | F29: 3 | G29: 12 | H29: 4 | I29: 0 | J29: 0 | K29: 18 | L29: 0 | M29: 1 | N29: 0 | O29: 14 | P29: 0 | Q29: 0
A30: 6030 | B30: DORAL ACADEMY CHARTER MIDDLE | C30: 11 | D30: 0 | E30: 0 | F30: 2 | G30: 2 | H30: 7 | I30: 0 | J30: 0 | K30: 0 | L30: 9 | M30: 1 | N30: 1 | O30: 4 | P30: 1 | Q30: 0
A31: 6031 | B31: BROWNSVILLE MIDDLE | C31: 18 | D31: 0 | E31: 0 | F31: 3 | G31: 9 | H31: 5 | I31: 1 | J31: 0 | K31: 13 | L31: 5 | M31: 0 | N31: 0 | O31: 18 | P31: 0 | Q31: 0
A32: 6033 | B32: MATER ACADEMY LAKES MIDDLE | C32: 5 | D32: 0 | E32: 0 | F32: 2 | G32: 0 | H32: 1 | I32: 2 | J32: 0 | K32: 0 | L32: 5 | M32: 0 | N32: 0 | O32: 2 | P32: 0 | Q32: 0
A33: 6040 | B33: DOCTORS CHARTER/MIAMI SHORES | C33: 98 | D33: 0 | E33: 3 | F33: 7 | G33: 13 | H33: 12 | I33: 63 | J33: 12 | K33: 59 | L33: 23 | M33: 3 | N33: 1 | O33: 29 | P33: 1 | Q33: 4
A34: 6052 | B34: ZELDA GLAZER MIDDLE SCHOOL | C34: 77 | D34: 0 | E34: 0 | F34: 13 | G34: 48 | H34: 16 | I34: 0 | J34: 5 | K34: 0 | L34: 70 | M34: 2 | N34: 0 | O34: 46 | P34: 2 | Q34: 3
A35: 6071 | B35: GEORGE WASHINGTON CARVER | C35: 63 | D35: 0 | E35: 0 | F35: 0 | G35: 20 | H35: 43 | I35: 0 | J35: 30 | K35: 4 | L35: 24 | M35: 5 | N35: 0 | O35: 7 | P35: 0 | Q35: 0
A36: 6111 | B36: CUTLER RIDGE MIDDLE | C36: 4 | D36: 0 | E36: 0 | F36: 2 | G36: 1 | H36: 1 | I36: 0 | J36: 0 | K36: 2 | L36: 1 | M36: 1 | N36: 0 | O36: 3 | P36: 0 | Q36: 0
A37: 6151 | B37: DORAL MIDDLE SCHOOL | C37: 20 | D37: 0 | E37: 0 | F37: 1 | G37: 8 | H37: 11 | I37: 0 | J37: 0 | K37: 0 | L37: 19 | M37: 1 | N37: 0 | O37: 6 | P37: 0 | Q37: 0
A38: 6161 | B38: LAWTON CHILES MIDDLE SCHOOL | C38: 3 | D38: 0 | E38: 0 | F38: 0 | G38: 3 | H38: 0 | I38: 0 | J38: 0 | K38: 0 | L38: 2 | M38: 1 | N38: 0 | O38: 3 | P38: 0 | Q38: 0
A39: 6211 | B39: GLADES MIDDLE | C39: 47 | D39: 0 | E39: 0 | F39: 7 | G39: 28 | H39: 12 | I39: 0 | J39: 7 | K39: 1 | L39: 34 | M39: 5 | N39: 0 | O39: 21 | P39: 0 | Q39: 0
A40: 6221 | B40: HAMMOCKS MIDDLE | C40: 5 | D40: 0 | E40: 0 | F40: 1 | G40: 0 | H40: 4 | I40: 0 | J40: 0 | K40: 0 | L40: 4 | M40: 1 | N40: 0 | O40: 1 | P40: 0 | Q40: 0
A41: 6231 | B41: HIALEAH MIDDLE | C41: 28 | D41: 0 | E41: 2 | F41: 18 | G41: 7 | H41: 1 | I41: 0 | J41: 1 | K41: 0 | L41: 27 | M41: 0 | N41: 0 | O41: 22 | P41: 0 | Q41: 0
A42: 6241 | B42: HIGHLAND OAKS MIDDLE | C42: 46 | D42: 0 | E42: 0 | F42: 2 | G42: 21 | H42: 23 | I42: 0 | J42: 24 | K42: 13 | L42: 4 | M42: 4 | N42: 0 | O42: 13 | P42: 0 | Q42: 0
A43: 6301 | B43: JOHN F. KENNEDY MIDDLE | C43: 64 | D43: 0 | E43: 0 | F43: 2 | G43: 31 | H43: 31 | I43: 0 | J43: 3 | K43: 33 | L43: 19 | M43: 9 | N43: 0 | O43: 52 | P43: 0 | Q43: 0
A44: 6411 | B44: HORACE MANN MIDDLE | C44: 24 | D44: 0 | E44: 0 | F44: 6 | G44: 15 | H44: 3 | I44: 0 | J44: 1 | K44: 21 | L44: 2 | M44: 0 | N44: 0 | O44: 23 | P44: 0 | Q44: 0
A45: 6441 | B45: HOWARD D. MCMILLAN MIDDLE | C45: 35 | D45: 0 | E45: 0 | F45: 4 | G45: 25 | H45: 6 | I45: 0 | J45: 1 | K45: 0 | L45: 33 | M45: 1 | N45: 0 | O45: 27 | P45: 0 | Q45: 1
A46: 6501 | B46: MIAMI LAKES MIDDLE | C46: 31 | D46: 0 | E46: 1 | F46: 7 | G46: 16 | H46: 7 | I46: 0 | J46: 0 | K46: 7 | L46: 22 | M46: 1 | N46: 0 | O46: 21 | P46: 0 | Q46: 0
A47: 6521 | B47: MIAMI SPRINGS MIDDLE | C47: 25 | D47: 0 | E47: 0 | F47: 2 | G47: 10 | H47: 11 | I47: 2 | J47: 3 | K47: 1 | L47: 20 | M47: 0 | N47: 0 | O47: 16 | P47: 0 | Q47: 0
A48: 6541 | B48: NAUTILUS MIDDLE | C48: 69 | D48: 0 | E48: 0 | F48: 13 | G48: 27 | H48: 28 | I48: 1 | J48: 36 | K48: 5 | L48: 26 | M48: 1 | N48: 1 | O48: 16 | P48: 1 | Q48: 0
A49: 6611 | B49: COUNTRY CLUB MIDDLE SCHOOL | C49: 16 | D49: 0 | E49: 0 | F49: 0 | G49: 8 | H49: 8 | I49: 0 | J49: 2 | K49: 6 | L49: 7 | M49: 1 | N49: 0 | O49: 10 | P49: 0 | Q49: 0
A50: 6681 | B50: PALM SPRINGS MIDDLE | C50: 43 | D50: 0 | E50: 0 | F50: 14 | G50: 25 | H50: 2 | I50: 2 | J50: 1 | K50: 0 | L50: 42 | M50: 0 | N50: 0 | O50: 39 | P50: 5 | Q50: 1
A51: 6701 | B51: PALMETTO MIDDLE | C51: 36 | D51: 0 | E51: 0 | F51: 1 | G51: 9 | H51: 24 | I51: 2 | J51: 17 | K51: 0 | L51: 7 | M51: 12 | N51: 0 | O51: 2 | P51: 1 | Q51: 1
A52: 6721 | B52: PARKWAY MIDDLE | C52: 17 | D52: 0 | E52: 2 | F52: 6 | G52: 8 | H52: 1 | I52: 0 | J52: 0 | K52: 16 | L52: 1 | M52: 0 | N52: 0 | O52: 13 | P52: 0 | Q52: 0
A53: 6741 | B53: PONCE DE LEON MIDDLE | C53: 18 | D53: 0 | E53: 0 | F53: 1 | G53: 9 | H53: 8 | I53: 0 | J53: 3 | K53: 1 | L53: 14 | M53: 0 | N53: 0 | O53: 9 | P53: 0 | Q53: 0
A54: 6751 | B54: HIALEAH GARDENS MIDDLE SCHOOL | C54: 87 | D54: 0 | E54: 2 | F54: 24 | G54: 45 | H54: 16 | I54: 0 | J54: 4 | K54: 1 | L54: 81 | M54: 0 | N54: 1 | O54: 67 | P54: 0 | Q54: 0
A55: 6761 | B55: REDLAND MIDDLE | C55: 15 | D55: 0 | E55: 1 | F55: 5 | G55: 9 | H55: 0 | I55: 0 | J55: 4 | K55: 5 | L55: 5 | M55: 1 | N55: 0 | O55: 12 | P55: 0 | Q55: 1
A56: 6771 | B56: JORGE MAS CANOSA MIDDLE | C56: 34 | D56: 0 | E56: 0 | F56: 0 | G56: 20 | H56: 14 | I56: 0 | J56: 5 | K56: 0 | L56: 28 | M56: 1 | N56: 0 | O56: 19 | P56: 1 | Q56: 0
A57: 6781 | B57: RICHMOND HEIGHTS MIDDLE | C57: 16 | D57: 0 | E57: 0 | F57: 2 | G57: 4 | H57: 10 | I57: 0 | J57: 2 | K57: 5 | L57: 9 | M57: 0 | N57: 0 | O57: 13 | P57: 0 | Q57: 0
A58: 6821 | B58: ROCKWAY MIDDLE | C58: 16 | D58: 0 | E58: 0 | F58: 0 | G58: 6 | H58: 10 | I58: 0 | J58: 0 | K58: 1 | L58: 14 | M58: 0 | N58: 1 | O58: 14 | P58: 0 | Q58: 0
A59: 6841 | B59: SHENANDOAH MIDDLE | C59: 24 | D59: 0 | E59: 0 | F59: 5 | G59: 14 | H59: 5 | I59: 0 | J59: 0 | K59: 2 | L59: 22 | M59: 0 | N59: 0 | O59: 21 | P59: 1 | Q59: 0
A60: 6861 | B60: SOUTHWOOD MIDDLE | C60: 24 | D60: 0 | E60: 0 | F60: 0 | G60: 5 | H60: 19 | I60: 0 | J60: 11 | K60: 0 | L60: 12 | M60: 0 | N60: 0 | O60: 4 | P60: 0 | Q60: 0
A61: 6901 | B61: W. R. THOMAS MIDDLE | C61: 19 | D61: 0 | E61: 0 | F61: 2 | G61: 7 | H61: 10 | I61: 0 | J61: 2 | K61: 0 | L61: 17 | M61: 0 | N61: 0 | O61: 10 | P61: 1 | Q61: 1
A62: 6921 | B62: LAMAR LOUISE CURRY MIDDLE SCH | C62: 72 | D62: 0 | E62: 0 | F62: 2 | G62: 38 | H62: 31 | I62: 1 | J62: 5 | K62: 1 | L62: 60 | M62: 6 | N62: 0 | O62: 47 | P62: 0 | Q62: 0
A63: 7001 | B63: MIAMI-DADE ONLINE ACADEMY | C63: 33 | D63: 1 | E63: 3 | F63: 2 | G63: 4 | H63: 1 | I63: 22 | J63: 6 | K63: 7 | L63: 18 | M63: 1 | N63: 0 | O63: 17 | P63: 1 | Q63: 1
A64: 7007 | B64: INTL. STUDIES CHARTER SENIOR | C64: 125 | D64: 0 | E64: 0 | F64: 14 | G64: 10 | H64: 7 | I64: 94 | J64: 28 | K64: 3 | L64: 94 | M64: 0 | N64: 0 | O64: 71 | P64: 35 | Q64: 3
A65: 7009 | B65: DORAL PERFORMING ARTS ACADEMY | C65: 107 | D65: 1 | E65: 1 | F65: 27 | G65: 18 | H65: 5 | I65: 55 | J65: 7 | K65: 1 | L65: 99 | M65: 0 | N65: 0 | O65: 61 | P65: 6 | Q65: 3
A66: 7011 | B66: AMERICAN SENIOR | C66: 439 | D66: 5 | E66: 7 | F66: 39 | G66: 13 | H66: 6 | I66: 369 | J66: 20 | K66: 125 | L66: 286 | M66: 6 | N66: 2 | O66: 336 | P66: 75 | Q66: 21
A67: 7014 | B67: MATER PERFORMING ARTS ACADEMY | C67: 90 | D67: 0 | E67: 0 | F67: 0 | G67: 0 | H67: 0 | I67: 90 | J67: 5 | K67: 1 | L67: 83 | M67: 1 | N67: 0 | O67: 73 | P67: 1 | Q67: 0
A68: 7015 | B68: LIFE SKILLS CENTER MIAMI-DADE | C68: 118 | D68: 5 | E68: 3 | F68: 7 | G68: 0 | H68: 1 | I68: 102 | J68: 0 | K68: 93 | L68: 25 | M68: 0 | N68: 0 | O68: 59 | P68: 2 | Q68: 10
A69: 7018 | B69: MATER ACADEMY LAKES HIGH SCH | C69: 237 | D69: 4 | E69: 3 | F69: 32 | G69: 23 | H69: 4 | I69: 171 | J69: 16 | K69: 7 | L69: 212 | M69: 2 | N69: 0 | O69: 165 | P69: 27 | Q69: 9
A70: 7020 | B70: DORAL ACADEMY HIGH SCHOOL | C70: 533 | D70: 2 | E70: 11 | F70: 91 | G70: 111 | H70: 17 | I70: 301 | J70: 46 | K70: 7 | L70: 474 | M70: 4 | N70: 1 | O70: 294 | P70: 40 | Q70: 19
A71: 7022 | B71: ACADEMY OF ARTS AND MINDS | C71: 117 | D71: 0 | E71: 2 | F71: 11 | G71: 15 | H71: 8 | I71: 81 | J71: 15 | K71: 9 | L71: 92 | M71: 1 | N71: 0 | O71: 68 | P71: 6 | Q71: 8
A72: 7024 | B72: MATER ACADEMY HIGH-INTL STUDIE | C72: 46 | D72: 0 | E72: 0 | F72: 7 | G72: 7 | H72: 2 | I72: 30 | J72: 1 | K72: 3 | L72: 42 | M72: 0 | N72: 0 | O72: 38 | P72: 0 | Q72: 0
A73: 7029 | B73: TERRA ENVIRONMENTAL RESEARCH | C73: 433 | D73: 0 | E73: 2 | F73: 45 | G73: 84 | H73: 104 | I73: 198 | J73: 77 | K73: 18 | L73: 319 | M73: 17 | N73: 1 | O73: 189 | P73: 7 | Q73: 29
A74: 7030 | B74: INTEGRATED ACADEMICS (SIATECH) | C74: 149 | D74: 8 | E74: 1 | F74: 1 | G74: 1 | H74: 0 | I74: 138 | J74: 8 | K74: 108 | L74: 33 | M74: 0 | N74: 0 | O74: 32 | P74: 14 | Q74: 32
A75: 7033 | B75: LAW ENFORCEMENT OFFICERS HS | C75: 100 | D75: 0 | E75: 0 | F75: 1 | G75: 0 | H75: 0 | I75: 99 | J75: 6 | K75: 22 | L75: 71 | M75: 1 | N75: 0 | O75: 80 | P75: 1 | Q75: 2
A76: 7034 | B76: SOMERSET ACAD HIGH SOUTH-HMSTD | C76: 7 | D76: 0 | E76: 0 | F76: 1 | G76: 0 | H76: 0 | I76: 6 | J76: 1 | K76: 0 | L76: 6 | M76: 0 | N76: 0 | O76: 4 | P76: 0 | Q76: 1
A77: 7036 | B77: LAWRENCE ACADEMY SENIOR | C77: 31 | D77: 0 | E77: 0 | F77: 1 | G77: 0 | H77: 0 | I77: 30 | J77: 0 | K77: 10 | L77: 21 | M77: 0 | N77: 0 | O77: 29 | P77: 1 | Q77: 3
A78: 7037 | B78: MATER ACADEMY EAST HIGH SCHOOL | C78: 79 | D78: 0 | E78: 1 | F78: 4 | G78: 2 | H78: 1 | I78: 71 | J78: 2 | K78: 4 | L78: 73 | M78: 0 | N78: 0 | O78: 66 | P78: 9 | Q78: 6
A79: 7042 | B79: SOMERSET ACADEMY CHARTER HIGH | C79: 106 | D79: 2 | E79: 1 | F79: 9 | G79: 11 | H79: 5 | I79: 78 | J79: 7 | K79: 4 | L79: 95 | M79: 0 | N79: 0 | O79: 77 | P79: 16 | Q79: 7
A80: 7048 | B80: ALONZO & TRACY MOURNING SH | C80: 404 | D80: 3 | E80: 4 | F80: 15 | G80: 16 | H80: 30 | I80: 336 | J80: 112 | K80: 86 | L80: 199 | M80: 6 | N80: 1 | O80: 227 | P80: 41 | Q80: 40
A81: 7049 | B81: WESTLAND HIALEAH SENIOR HIGH | C81: 488 | D81: 1 | E81: 4 | F81: 27 | G81: 23 | H81: 20 | I81: 413 | J81: 11 | K81: 6 | L81: 470 | M81: 1 | N81: 0 | O81: 409 | P81: 197 | Q81: 34
A82: 7050 | B82: KEYS GATE CHARTER HIGH SCHL | C82: 253 | D82: 4 | E82: 6 | F82: 27 | G82: 29 | H82: 13 | I82: 174 | J82: 45 | K82: 43 | L82: 162 | M82: 3 | N82: 0 | O82: 174 | P82: 24 | Q82: 19
A83: 7051 | B83: G. HOLMES BRADDOCK SENIOR HIGH | C83: 769 | D83: 3 | E83: 9 | F83: 49 | G83: 34 | H83: 22 | I83: 652 | J83: 30 | K83: 22 | L83: 711 | M83: 6 | N83: 0 | O83: 585 | P83: 116 | Q83: 143
A84: 7053 | B84: PINECREST ACADEMY CHARTER HIGH | C84: 60 | D84: 1 | E84: 1 | F84: 2 | G84: 0 | H84: 0 | I84: 56 | J84: 1 | K84: 0 | L84: 59 | M84: 0 | N84: 0 | O84: 36 | P84: 6 | Q84: 0
A85: 7054 | B85: EXCELSIOR CHARTER HIGH SCHOOL | C85: 24 | D85: 1 | E85: 0 | F85: 1 | G85: 1 | H85: 0 | I85: 21 | J85: 0 | K85: 1 | L85: 23 | M85: 0 | N85: 0 | O85: 24 | P85: 9 | Q85: 4
A86: 7055 | B86: YOUNG WOMEN'S PREPARATORY ACAD | C86: 46 | D86: 0 | E86: 0 | F86: 12 | G86: 14 | H86: 16 | I86: 4 | J86: 4 | K86: 5 | L86: 37 | M86: 0 | N86: 0 | O86: 31 | P86: 2 | Q86: 3
A87: 7056 | B87: YOUNG MENS PREPARATORY ACADEMY | C87: 23 | D87: 0 | E87: 0 | F87: 5 | G87: 1 | H87: 0 | I87: 17 | J87: 2 | K87: 11 | L87: 9 | M87: 1 | N87: 0 | O87: 17 | P87: 2 | Q87: 0
A88: 7058 | B88: MIAMI COMMUNITY CH HIGH SCHOOL | C88: 30 | D88: 0 | E88: 2 | F88: 6 | G88: 2 | H88: 0 | I88: 20 | J88: 1 | K88: 3 | L88: 26 | M88: 0 | N88: 0 | O88: 16 | P88: 5 | Q88: 5
A89: 7059 | B89: MIAMI ARTS CHARTER | C89: 78 | D89: 0 | E89: 0 | F89: 13 | G89: 15 | H89: 9 | I89: 41 | J89: 26 | K89: 13 | L89: 39 | M89: 0 | N89: 0 | O89: 14 | P89: 1 | Q89: 3
A90: 7062 | B90: MAVERICKS HIGH OF NORTH M-DADE | C90: 134 | D90: 9 | E90: 6 | F90: 10 | G90: 1 | H90: 1 | I90: 107 | J90: 2 | K90: 106 | L90: 26 | M90: 0 | N90: 0 | O90: 85 | P90: 8 | Q90: 18
A91: 7065 | B91: MAVERICKS HIGH OF SOUTH M-DADE | C91: 98 | D91: 5 | E91: 5 | F91: 4 | G91: 1 | H91: 0 | I91: 83 | J91: 10 | K91: 43 | L91: 43 | M91: 1 | N91: 0 | O91: 74 | P91: 0 | Q91: 7
A92: 7067 | B92: GREEN SPRINGS HIGH SCHOOL | C92: 51 | D92: 1 | E92: 0 | F92: 4 | G92: 2 | H92: 0 | I92: 44 | J92: 1 | K92: 7 | L92: 43 | M92: 0 | N92: 0 | O92: 41 | P92: 2 | Q92: 4
A93: 7068 | B93: NORTH GARDENS HIGH SCHOOL | C93: 102 | D93: 7 | E93: 7 | F93: 10 | G93: 3 | H93: 0 | I93: 75 | J93: 1 | K93: 68 | L93: 33 | M93: 0 | N93: 0 | O93: 55 | P93: 0 | Q93: 15
A94: 7069 | B94: NORTH PARK HIGH SCHOOL | C94: 36 | D94: 1 | E94: 3 | F94: 3 | G94: 0 | H94: 0 | I94: 29 | J94: 2 | K94: 31 | L94: 3 | M94: 0 | N94: 0 | O94: 22 | P94: 1 | Q94: 8
A95: 7071 | B95: CORAL GABLES SENIOR HIGH | C95: 917 | D95: 5 | E95: 11 | F95: 88 | G95: 130 | H95: 107 | I95: 576 | J95: 100 | K95: 49 | L95: 761 | M95: 7 | N95: 0 | O95: 625 | P95: 199 | Q95: 62
A96: 7081 | B96: DESIGN & ARCHITECTURE SENIOR | C96: 173 | D96: 0 | E96: 0 | F96: 10 | G96: 18 | H96: 26 | I96: 119 | J96: 41 | K96: 22 | L96: 101 | M96: 5 | N96: 0 | O96: 63 | P96: 2 | Q96: 9
A97: 7101 | B97: CORAL REEF SENIOR HIGH | C97: 728 | D97: 0 | E97: 6 | F97: 81 | G97: 142 | H97: 160 | I97: 339 | J97: 142 | K97: 120 | L97: 438 | M97: 17 | N97: 0 | O97: 307 | P97: 10 | Q97: 40
A98: 7111 | B98: HIALEAH SENIOR | C98: 737 | D98: 2 | E98: 18 | F98: 46 | G98: 29 | H98: 19 | I98: 623 | J98: 19 | K98: 35 | L98: 682 | M98: 1 | N98: 0 | O98: 641 | P98: 177 | Q98: 81
A99: 7121 | B99: JOHN A FERGUSON SENIOR HIGH | C99: 1156 | D99: 3 | E99: 12 | F99: 52 | G99: 83 | H99: 67 | I99: 939 | J99: 77 | K99: 33 | L99: 1025 | M99: 19 | N99: 1 | O99: 689 | P99: 98 | Q99: 98
A100: 7131 | B100: HIALEAH-MIAMI LAKES SENIOR | C100: 439 | D100: 6 | E100: 5 | F100: 22 | G100: 18 | H100: 8 | I100: 380 | J100: 14 | K100: 98 | L100: 322 | M100: 2 | N100: 0 | O100: 368 | P100: 75 | Q100: 63
A101: 7141 | B101: DR MICHAEL M KROP SENIOR HIGH | C101: 603 | D101: 6 | E101: 2 | F101: 7 | G101: 6 | H101: 2 | I101: 580 | J101: 121 | K101: 252 | L101: 217 | M101: 12 | N101: 1 | O101: 327 | P101: 57 | Q101: 40
A102: 7151 | B102: HOMESTEAD SENIOR HIGH | C102: 526 | D102: 10 | E102: 15 | F102: 32 | G102: 14 | H102: 5 | I102: 450 | J102: 17 | K102: 238 | L102: 270 | M102: 1 | N102: 0 | O102: 474 | P102: 65 | Q102: 97
A103: 7160 | B103: MATER ACADEMY CHARTER HIGH | C103: 329 | D103: 0 | E103: 1 | F103: 2 | G103: 3 | H103: 0 | I103: 323 | J103: 9 | K103: 6 | L103: 313 | M103: 1 | N103: 0 | O103: 256 | P103: 44 | Q103: 18
A104: 7161 | B104: MARITIME & SCIENCE TECHNOLOGY | C104: 100 | D104: 0 | E104: 4 | F104: 21 | G104: 37 | H104: 29 | I104: 9 | J104: 25 | K104: 11 | L104: 63 | M104: 1 | N104: 0 | O104: 40 | P104: 1 | Q104: 4
A105: 7171 | B105: MED ACAD SCIENCE & TECHNOLOGY | C105: 161 | D105: 2 | E105: 24 | F105: 57 | G105: 48 | H105: 22 | I105: 8 | J105: 23 | K105: 30 | L105: 104 | M105: 2 | N105: 1 | O105: 105 | P105: 5 | Q105: 10
A106: 7191 | B106: HIALEAH GARDENS SENIOR | C106: 683 | D106: 4 | E106: 8 | F106: 35 | G106: 41 | H106: 23 | I106: 572 | J106: 17 | K106: 13 | L106: 650 | M106: 3 | N106: 0 | O106: 572 | P106: 151 | Q106: 68
A107: 7201 | B107: MIAMI BEACH SENIOR HIGH | C107: 672 | D107: 2 | E107: 8 | F107: 27 | G107: 69 | H107: 50 | I107: 516 | J107: 152 | K107: 62 | L107: 444 | M107: 10 | N107: 0 | O107: 494 | P107: 84 | Q107: 53
A108: 7231 | B108: MIAMI CAROL CITY SENIOR HIGH | C108: 495 | D108: 8 | E108: 15 | F108: 21 | G108: 5 | H108: 2 | I108: 444 | J108: 2 | K108: 424 | L108: 69 | M108: 0 | N108: 0 | O108: 394 | P108: 14 | Q108: 54
A109: 7241 | B109: RONALD W REAGAN/DORAL SENIOR | C109: 676 | D109: 2 | E109: 7 | F109: 40 | G109: 66 | H109: 62 | I109: 499 | J109: 61 | K109: 9 | L109: 589 | M109: 14 | N109: 1 | O109: 276 | P109: 131 | Q109: 27
A110: 7251 | B110: MIAMI CENTRAL SENIOR HIGH | C110: 482 | D110: 6 | E110: 10 | F110: 35 | G110: 21 | H110: 6 | I110: 404 | J110: 2 | K110: 374 | L110: 105 | M110: 1 | N110: 0 | O110: 373 | P110: 67 | Q110: 69
A111: 7262 | B111: CITY OF HIALEAH EDUCATION ACAD | C111: 111 | D111: 0 | E111: 0 | F111: 1 | G111: 1 | H111: 0 | I111: 109 | J111: 0 | K111: 0 | L111: 111 | M111: 0 | N111: 0 | O111: 102 | P111: 18 | Q111: 6
A112: 7265 | B112: ARCHIMEDEAN UPPER CONSERV CHAR | C112: 57 | D112: 0 | E112: 2 | F112: 10 | G112: 13 | H112: 26 | I112: 6 | J112: 13 | K112: 4 | L112: 39 | M112: 1 | N112: 0 | O112: 24 | P112: 2 | Q112: 1
A113: 7271 | B113: MIAMI CORAL PARK SENIOR HIGH | C113: 655 | D113: 5 | E113: 9 | F113: 23 | G113: 49 | H113: 26 | I113: 543 | J113: 31 | K113: 10 | L113: 609 | M113: 5 | N113: 0 | O113: 518 | P113: 142 | Q113: 67
A114: 7291 | B114: JOSE MARTI MAST 6-12 ACADEMY | C114: 15 | D114: 0 | E114: 0 | F114: 3 | G114: 8 | H114: 4 | I114: 0 | J114: 1 | K114: 0 | L114: 14 | M114: 0 | N114: 0 | O114: 9 | P114: 1 | Q114: 0
A115: 7301 | B115: MIAMI EDISON SENIOR HIGH | C115: 228 | D115: 2 | E115: 2 | F115: 5 | G115: 4 | H115: 1 | I115: 214 | J115: 1 | K115: 195 | L115: 32 | M115: 0 | N115: 0 | O115: 212 | P115: 66 | Q115: 22
A116: 7341 | B116: MIAMI JACKSON SENIOR HIGH | C116: 280 | D116: 4 | E116: 4 | F116: 1 | G116: 4 | H116: 1 | I116: 266 | J116: 3 | K116: 74 | L116: 203 | M116: 0 | N116: 0 | O116: 269 | P116: 61 | Q116: 30
A117: 7351 | B117: ARTHUR AND POLLY MAYS CONSERVA | C117: 9 | D117: 0 | E117: 1 | F117: 2 | G117: 5 | H117: 0 | I117: 1 | J117: 1 | K117: 2 | L117: 6 | M117: 0 | N117: 0 | O117: 7 | P117: 0 | Q117: 1
A118: 7361 | B118: MIAMI KILLIAN SENIOR HIGH | C118: 680 | D118: 4 | E118: 7 | F118: 33 | G118: 39 | H118: 22 | I118: 575 | J118: 110 | K118: 149 | L118: 398 | M118: 14 | N118: 1 | O118: 378 | P118: 69 | Q118: 78
A119: 7371 | B119: ROBERT MORGAN EDUCATIONAL CTR | C119: 619 | D119: 0 | E119: 16 | F119: 93 | G119: 103 | H119: 64 | I119: 343 | J119: 66 | K119: 119 | L119: 421 | M119: 8 | N119: 1 | O119: 396 | P119: 23 | Q119: 40
A120: 7381 | B120: MIAMI NORLAND SENIOR HIGH | C120: 411 | D120: 7 | E120: 12 | F120: 23 | G120: 10 | H120: 2 | I120: 357 | J120: 0 | K120: 389 | L120: 19 | M120: 2 | N120: 0 | O120: 314 | P120: 17 | Q120: 42
A121: 7391 | B121: MIAMI LAKES EDUCATIONAL CENTER | C121: 371 | D121: 0 | E121: 3 | F121: 37 | G121: 25 | H121: 13 | I121: 293 | J121: 12 | K121: 98 | L121: 255 | M121: 4 | N121: 0 | O121: 281 | P121: 20 | Q121: 14
A122: 7411 | B122: MIAMI NORTHWESTERN SENIOR HIGH | C122: 425 | D122: 8 | E122: 3 | F122: 16 | G122: 10 | H122: 2 | I122: 386 | J122: 0 | K122: 387 | L122: 38 | M122: 0 | N122: 0 | O122: 352 | P122: 10 | Q122: 43
A123: 7431 | B123: MIAMI PALMETTO SENIOR HIGH | C123: 709 | D123: 5 | E123: 4 | F123: 24 | G123: 86 | H123: 87 | I123: 503 | J123: 263 | K123: 132 | L123: 291 | M123: 20 | N123: 0 | O123: 234 | P123: 31 | Q123: 73
A124: 7461 | B124: MIAMI SENIOR HIGH | C124: 815 | D124: 8 | E124: 10 | F124: 45 | G124: 48 | H124: 14 | I124: 690 | J124: 27 | K124: 18 | L124: 768 | M124: 2 | N124: 0 | O124: 705 | P124: 184 | Q124: 81
A125: 7511 | B125: MIAMI SPRINGS SENIOR HIGH | C125: 456 | D125: 6 | E125: 5 | F125: 23 | G125: 20 | H125: 15 | I125: 387 | J125: 32 | K125: 50 | L125: 373 | M125: 1 | N125: 0 | O125: 355 | P125: 109 | Q125: 32
A126: 7531 | B126: MIAMI SUNSET SENIOR HIGH | C126: 624 | D126: 4 | E126: 6 | F126: 34 | G126: 30 | H126: 13 | I126: 537 | J126: 61 | K126: 27 | L126: 526 | M126: 7 | N126: 0 | O126: 446 | P126: 91 | Q126: 86
A127: 7541 | B127: NORTH MIAMI BEACH SENIOR HIGH | C127: 557 | D127: 10 | E127: 6 | F127: 45 | G127: 40 | H127: 19 | I127: 437 | J127: 11 | K127: 422 | L127: 109 | M127: 13 | N127: 1 | O127: 473 | P127: 89 | Q127: 54
A128: 7571 | B128: INTL STUDIES PREP ACADEMY | C128: 45 | D128: 0 | E128: 1 | F128: 17 | G128: 15 | H128: 6 | I128: 6 | J128: 6 | K128: 1 | L128: 38 | M128: 0 | N128: 0 | O128: 26 | P128: 6 | Q128: 0
A129: 7581 | B129: IPREPARATORY ACADEMY | C129: 41 | D129: 0 | E129: 0 | F129: 8 | G129: 16 | H129: 12 | I129: 5 | J129: 4 | K129: 9 | L129: 25 | M129: 2 | N129: 0 | O129: 24 | P129: 1 | Q129: 0
A130: 7591 | B130: NORTH MIAMI SENIOR HIGH | C130: 601 | D130: 10 | E130: 15 | F130: 29 | G130: 14 | H130: 3 | I130: 530 | J130: 10 | K130: 515 | L130: 68 | M130: 8 | N130: 0 | O130: 486 | P130: 173 | Q130: 43
A131: 7601 | B131: WILLIAM H. TURNER TECHNICAL | C131: 317 | D131: 0 | E131: 13 | F131: 70 | G131: 52 | H131: 19 | I131: 163 | J131: 3 | K131: 248 | L131: 64 | M131: 2 | N131: 0 | O131: 275 | P131: 27 | Q131: 17
A132: 7631 | B132: MIAMI MACARTHUR SOUTH | C132: 25 | D132: 3 | E132: 0 | F132: 1 | G132: 0 | H132: 0 | I132: 21 | J132: 2 | K132: 13 | L132: 10 | M132: 0 | N132: 0 | O132: 22 | P132: 0 | Q132: 16
A133: 7701 | B133: SOUTH DADE SENIOR HIGH | C133: 941 | D133: 16 | E133: 31 | F133: 86 | G133: 76 | H133: 14 | I133: 718 | J133: 131 | K133: 188 | L133: 610 | M133: 4 | N133: 4 | O133: 711 | P133: 89 | Q133: 140
A134: 7721 | B134: SOUTH MIAMI SENIOR HIGH | C134: 611 | D134: 3 | E134: 8 | F134: 33 | G134: 47 | H134: 18 | I134: 502 | J134: 37 | K134: 34 | L134: 536 | M134: 4 | N134: 0 | O134: 472 | P134: 121 | Q134: 69
A135: 7731 | B135: MIAMI SOUTHRIDGE SENIOR HIGH | C135: 597 | D135: 10 | E135: 11 | F135: 33 | G135: 14 | H135: 7 | I135: 522 | J135: 42 | K135: 226 | L135: 315 | M135: 7 | N135: 4 | O135: 460 | P135: 63 | Q135: 115
A136: 7741 | B136: SOUTHWEST MIAMI SENIOR HIGH | C136: 715 | D136: 3 | E136: 9 | F136: 67 | G136: 69 | H136: 42 | I136: 525 | J136: 49 | K136: 9 | L136: 653 | M136: 4 | N136: 0 | O136: 558 | P136: 152 | Q136: 100
A137: 7751 | B137: BARBARA GOLEMAN SENIOR HIGH | C137: 474 | D137: 6 | E137: 9 | F137: 37 | G137: 19 | H137: 8 | I137: 395 | J137: 34 | K137: 89 | L137: 346 | M137: 4 | N137: 0 | O137: 302 | P137: 41 | Q137: 56
A138: 7781 | B138: FELIX VARELA SENIOR HIGH | C138: 774 | D138: 3 | E138: 9 | F138: 49 | G138: 66 | H138: 39 | I138: 608 | J138: 80 | K138: 44 | L138: 632 | M138: 14 | N138: 0 | O138: 489 | P138: 96 | Q138: 83
A139: 7791 | B139: BOOKER T. WASHINGTON SR. HIGH | C139: 253 | D139: 4 | E139: 8 | F139: 10 | G139: 10 | H139: 2 | I139: 219 | J139: 5 | K139: 125 | L139: 121 | M139: 1 | N139: 0 | O139: 227 | P139: 51 | Q139: 34
A140: 7901 | B140: NEW WORLD SCHOOL OF THE ARTS | C140: 100 | D140: 0 | E140: 1 | F140: 3 | G140: 1 | H140: 0 | I140: 95 | J140: 12 | K140: 32 | L140: 51 | M140: 1 | N140: 0 | O140: 33 | P140: 3 | Q140: 3
A141: 8014 | B141: ALTERNATIVE OUTREACH-EXT. YR | C141: 40 | D141: 8 | E141: 3 | F141: 3 | G141: 0 | H141: 0 | I141: 26 | J141: 2 | K141: 20 | L141: 18 | M141: 0 | N141: 0 | O141: 16 | P141: 2 | Q141: 18
A142: 8017 | B142: ALTERNATIVE OUTREACH PROGRAM | C142: 140 | D142: 8 | E142: 7 | F142: 13 | G142: 3 | H142: 0 | I142: 109 | J142: 4 | K142: 66 | L142: 69 | M142: 1 | N142: 0 | O142: 107 | P142: 10 | Q142: 18
A143: 8019 | B143: ACADEMY FOR COMMUNITY ED | C143: 41 | D143: 0 | E143: 2 | F143: 2 | G143: 2 | H143: 0 | I143: 35 | J143: 0 | K143: 31 | L143: 9 | M143: 0 | N143: 1 | O143: 33 | P143: 0 | Q143: 1
A144: 8101 | B144: JAN MANN OPPORTUNITY SCHOOL | C144: 18 | D144: 7 | E144: 0 | F144: 2 | G144: 0 | H144: 0 | I144: 9 | J144: 1 | K144: 13 | L144: 4 | M144: 0 | N144: 0 | O144: 15 | P144: 0 | Q144: 3
A145: 8121 | B145: COPE CENTER NORTH | C145: 40 | D145: 2 | E145: 2 | F145: 3 | G145: 0 | H145: 0 | I145: 33 | J145: 0 | K145: 33 | L145: 7 | M145: 0 | N145: 0 | O145: 34 | P145: 4 | Q145: 3
A146: 8131 | B146: DOROTHY M WALLACE COPE CENTER | C146: 20 | D146: 2 | E146: 2 | F146: 0 | G146: 0 | H146: 0 | I146: 16 | J146: 3 | K146: 6 | L146: 11 | M146: 0 | N146: 0 | O146: 19 | P146: 2 | Q146: 2
A147: 8141 | B147: JUVENILE JUSTICE CENTER | C147: 41 | D147: 6 | E147: 3 | F147: 4 | G147: 1 | H147: 0 | I147: 27 | J147: 2 | K147: 25 | L147: 14 | M147: 0 | N147: 0 | O147: 32 | P147: 0 | Q147: 10
A148: 8151 | B148: ROBERT RENICK EDUCATION CTR | C148: 1 | D148: 0 | E148: 0 | F148: 0 | G148: 0 | H148: 0 | I148: 1 | J148: 0 | K148: 1 | L148: 0 | M148: 0 | N148: 0 | O148: 1 | P148: 0 | Q148: 1
A149: 8181 | B149: RUTH OWENS KRUSE' EDUC CENTER | C149: 20 | D149: 1 | E149: 0 | F149: 1 | G149: 0 | H149: 0 | I149: 18 | J149: 4 | K149: 5 | L149: 11 | M149: 0 | N149: 0 | O149: 14 | P149: 0 | Q149: 20
A150: 9732 | B150: MERRICK EDUCATIONAL CENTER | C150: 33 | D150: 1 | E150: 2 | F150: 2 | G150: 0 | H150: 0 | I150: 28 | J150: 1 | K150: 9 | L150: 23 | M150: 0 | N150: 0 | O150: 20 | P150: 2 | Q150: 31
A151: 9999 | B151: DISTRICT | C151: 28947 | D151: 276 | E151: 468 | F151: 2178 | G151: 2855 | H151: 2048 | I151: 21122 | J151: 2684 | K151: 6726 | L151: 19058 | M151: 374 | N151: 27 | O151: 19815 | P151: 3629 | Q151: 2719
A152: Grand Total | B152: 0 | C152: 0 | D152: 0 | E152: 0 | F152: 0 | G152: 0 | H152: 0 | I152: 0 | J152: 0 | K152: 0 | L152: 0 | M152: 0 | N152: 0 | O152: 0 | P152: 0 | Q152: 0
A153: 0 | B153: 0 | C153: 0 | D153: 0 | E153: 0 | F153: 0 | G153: 0 | H153: 0 | I153: 0 | J153: 0 | K153: 0 | L153: 0 | M153: 0 | N153: 0 | O153: 0 | P153: 0 | Q153: 0
A154: 0 | B154: 0 | C154: 0 | D154: 0 | E154: 0 | F154: 0 | G154: 0 | H154: 0 | I154: 0 | J154: 0 | K154: 0 | L154: 0 | M154: 0 | N154: 0 | O154: 0 | P154: 0 | Q154: 0
A155: 0 | B155: 0 | C155: 0 | D155: 0 | E155: 0 | F155: 0 | G155: 0 | H155: 0 | I155: 0 | J155: 0 | K155: 0 | L155: 0 | M155: 0 | N155: 0 | O155: 0 | P155: 0 | Q155: 0
A156: 0 | B156: 0 | C156: 0 | D156: 0 | E156: 0 | F156: 0 | G156: 0 | H156: 0 | I156: 0 | J156: 0 | K156: 0 | L156: 0 | M156: 0 | N156: 0 | O156: 0 | P156: 0 | Q156: 0
A157: 0 | B157: 0 | C157: 0 | D157: 0 | E157: 0 | F157: 0 | G157: 0 | H157: 0 | I157: 0 | J157: 0 | K157: 0 | L157: 0 | M157: 0 | N157: 0 | O157: 0 | P157: 0 | Q157: 0
A158: 0 | B158: 0 | C158: 0 | D158: 0 | E158: 0 | F158: 0 | G158: 0 | H158: 0 | I158: 0 | J158: 0 | K158: 0 | L158: 0 | M158: 0 | N158: 0 | O158: 0 | P158: 0 | Q158: 0
A159: 0 | B159: 0 | C159: 0 | D159: 0 | E159: 0 | F159: 0 | G159: 0 | H159: 0 | I159: 0 | J159: 0 | K159: 0 | L159: 0 | M159: 0 | N159: 0 | O159: 0 | P159: 0 | Q159: 0
A160: 0 | B160: 0 | C160: 0 | D160: 0 | E160: 0 | F160: 0 | G160: 0 | H160: 0 | I160: 0 | J160: 0 | K160: 0 | L160: 0 | M160: 0 | N160: 0 | O160: 0 | P160: 0 | Q160: 0
A161: 0 | B161: 0 | C161: 0 | D161: 0 | E161: 0 | F161: 0 | G161: 0 | H161: 0 | I161: 0 | J161: 0 | K161: 0 | L161: 0 | M161: 0 | N161: 0 | O161: 0 | P161: 0 | Q161: 0
A162: 0 | B162: 0 | C162: 0 | D162: 0 | E162: 0 | F162: 0 | G162: 0 | H162: 0 | I162: 0 | J162: 0 | K162: 0 | L162: 0 | M162: 0 | N162: 0 | O162: 0 | P162: 0 | Q162: 0
A163: 0 | B163: 0 | C163: 0 | D163: 0 | E163: 0 | F163: 0 | G163: 0 | H163: 0 | I163: 0 | J163: 0 | K163: 0 | L163: 0 | M163: 0 | N163: 0 | O163: 0 | P163: 0 | Q163: 0
A164: 0 | B164: 0 | C164: 0 | D164: 0 | E164: 0 | F164: 0 | G164: 0 | H164: 0 | I164: 0 | J164: 0 | K164: 0 | L164: 0 | M164: 0 | N164: 0 | O164: 0 | P164: 0 | Q164: 0
A165: 0 | B165: 0 | C165: 0 | D165: 0 | E165: 0 | F165: 0 | G165: 0 | H165: 0 | I165: 0 | J165: 0 | K165: 0 | L165: 0 | M165: 0 | N165: 0 | O165: 0 | P165: 0 | Q165: 0
A166: 0 | B166: 0 | C166: 0 | D166: 0 | E166: 0 | F166: 0 | G166: 0 | H166: 0 | I166: 0 | J166: 0 | K166: 0 | L166: 0 | M166: 0 | N166: 0 | O166: 0 | P166: 0 | Q166: 0
A167: 0 | B167: 0 | C167: 0 | D167: 0 | E167: 0 | F167: 0 | G167: 0 | H167: 0 | I167: 0 | J167: 0 | K167: 0 | L167: 0 | M167: 0 | N167: 0 | O167: 0 | P167: 0 | Q167: 0
A168: 0 | B168: 0 | C168: 0 | D168: 0 | E168: 0 | F168: 0 | G168: 0 | H168: 0 | I168: 0 | J168: 0 | K168: 0 | L168: 0 | M168: 0 | N168: 0 | O168: 0 | P168: 0 | Q168: 0
A169: 0 | B169: 0 | C169: 0 | D169: 0 | E169: 0 | F169: 0 | G169: 0 | H169: 0 | I169: 0 | J169: 0 | K169: 0 | L169: 0 | M169: 0 | N169: 0 | O169: 0 | P169: 0 | Q169: 0
A170: 0 | B170: 0 | C170: 0 | D170: 0 | E170: 0 | F170: 0 | G170: 0 | H170: 0 | I170: 0 | J170: 0 | K170: 0 | L170: 0 | M170: 0 | N170: 0 | O170: 0 | P170: 0 | Q170: 0
A171: 0 | B171: 0 | C171: 0 | D171: 0 | E171: 0 | F171: 0 | G171: 0 | H171: 0 | I171: 0 | J171: 0 | K171: 0 | L171: 0 | M171: 0 | N171: 0 | O171: 0 | P171: 0 | Q171: 0
A172: 0 | B172: 0 | C172: 0 | D172: 0 | E172: 0 | F172: 0 | G172: 0 | H172: 0 | I172: 0 | J172: 0 | K172: 0 | L172: 0 | M172: 0 | N172: 0 | O172: 0 | P172: 0 | Q172: 0
A173: 0 | B173: 0 | C173: 0 | D173: 0 | E173: 0 | F173: 0 | G173: 0 | H173: 0 | I173: 0 | J173: 0 | K173: 0 | L173: 0 | M173: 0 | N173: 0 | O173: 0 | P173: 0 | Q173: 0
A174: 0 | B174: 0 | C174: 0 | D174: 0 | E174: 0 | F174: 0 | G174: 0 | H174: 0 | I174: 0 | J174: 0 | K174: 0 | L174: 0 | M174: 0 | N174: 0 | O174: 0 | P174: 0 | Q174: 0
A175: 0 | B175: 0 | C175: 0 | D175: 0 | E175: 0 | F175: 0 | G175: 0 | H175: 0 | I175: 0 | J175: 0 | K175: 0 | L175: 0 | M175: 0 | N175: 0 | O175: 0 | P175: 0 | Q175: 0
A176: 0 | B176: 0 | C176: 0 | D176: 0 | E176: 0 | F176: 0 | G176: 0 | H176: 0 | I176: 0 | J176: 0 | K176: 0 | L176: 0 | M176: 0 | N176: 0 | O176: 0 | P176: 0 | Q176: 0
A177: 0 | B177: 0 | C177: 0 | D177: 0 | E177: 0 | F177: 0 | G177: 0 | H177: 0 | I177: 0 | J177: 0 | K177: 0 | L177: 0 | M177: 0 | N177: 0 | O177: 0 | P177: 0 | Q177: 0
A178: 0 | B178: 0 | C178: 0 | D178: 0 | E178: 0 | F178: 0 | G178: 0 | H178: 0 | I178: 0 | J178: 0 | K178: 0 | L178: 0 | M178: 0 | N178: 0 | O178: 0 | P178: 0 | Q178: 0
A179: 0 | B179: 0 | C179: 0 | D179: 0 | E179: 0 | F179: 0 | G179: 0 | H179: 0 | I179: 0 | J179: 0 | K179: 0 | L179: 0 | M179: 0 | N179: 0 | O179: 0 | P179: 0 | Q179: 0
A180: 0 | B180: 0 | C180: 0 | D180: 0 | E180: 0 | F180: 0 | G180: 0 | H180: 0 | I180: 0 | J180: 0 | K180: 0 | L180: 0 | M180: 0 | N180: 0 | O180: 0 | P180: 0 | Q180: 0
A181: 0 | B181: 0 | C181: 0 | D181: 0 | E181: 0 | F181: 0 | G181: 0 | H181: 0 | I181: 0 | J181: 0 | K181: 0 | L181: 0 | M181: 0 | N181: 0 | O181: 0 | P181: 0 | Q181: 0
A182: 0 | B182: 0 | C182: 0 | D182: 0 | E182: 0 | F182: 0 | G182: 0 | H182: 0 | I182: 0 | J182: 0 | K182: 0 | L182: 0 | M182: 0 | N182: 0 | O182: 0 | P182: 0 | Q182: 0
A183: 0 | B183: 0 | C183: 0 | D183: 0 | E183: 0 | F183: 0 | G183: 0 | H183: 0 | I183: 0 | J183: 0 | K183: 0 | L183: 0 | M183: 0 | N183: 0 | O183: 0 | P183: 0 | Q183: 0
A184: 0 | B184: 0 | C184: 0 | D184: 0 | E184: 0 | F184: 0 | G184: 0 | H184: 0 | I184: 0 | J184: 0 | K184: 0 | L184: 0 | M184: 0 | N184: 0 | O184: 0 | P184: 0 | Q184: 0
A185: 0 | B185: 0 | C185: 0 | D185: 0 | E185: 0 | F185: 0 | G185: 0 | H185: 0 | I185: 0 | J185: 0 | K185: 0 | L185: 0 | M185: 0 | N185: 0 | O185: 0 | P185: 0 | Q185: 0
A186: 0 | B186: 0 | C186: 0 | D186: 0 | E186: 0 | F186: 0 | G186: 0 | H186: 0 | I186: 0 | J186: 0 | K186: 0 | L186: 0 | M186: 0 | N186: 0 | O186: 0 | P186: 0 | Q186: 0
A187: 0 | B187: 0 | C187: 0 | D187: 0 | E187: 0 | F187: 0 | G187: 0 | H187: 0 | I187: 0 | J187: 0 | K187: 0 | L187: 0 | M187: 0 | N187: 0 | O187: 0 | P187: 0 | Q187: 0
A188: 0 | B188: 0 | C188: 0 | D188: 0 | E188: 0 | F188: 0 | G188: 0 | H188: 0 | I188: 0 | J188: 0 | K188: 0 | L188: 0 | M188: 0 | N188: 0 | O188: 0 | P188: 0 | Q188: 0
A189: 0 | B189: 0 | C189: 0 | D189: 0 | E189: 0 | F189: 0 | G189: 0 | H189: 0 | I189: 0 | J189: 0 | K189: 0 | L189: 0 | M189: 0 | N189: 0 | O189: 0 | P189: 0 | Q189: 0
A190: 0 | B190: 0 | C190: 0 | D190: 0 | E190: 0 | F190: 0 | G190: 0 | H190: 0 | I190: 0 | J190: 0 | K190: 0 | L190: 0 | M190: 0 | N190: 0 | O190: 0 | P190: 0 | Q190: 0
A191: 0 | B191: 0 | C191: 0 | D191: 0 | E191: 0 | F191: 0 | G191: 0 | H191: 0 | I191: 0 | J191: 0 | K191: 0 | L191: 0 | M191: 0 | N191: 0 | O191: 0 | P191: 0 | Q191: 0
A192: 0 | B192: 0 | C192: 0 | D192: 0 | E192: 0 | F192: 0 | G192: 0 | H192: 0 | I192: 0 | J192: 0 | K192: 0 | L192: 0 | M192: 0 | N192: 0 | O192: 0 | P192: 0 | Q192: 0
A193: 0 | B193: 0 | C193: 0 | D193: 0 | E193: 0 | F193: 0 | G193: 0 | H193: 0 | I193: 0 | J193: 0 | K193: 0 | L193: 0 | M193: 0 | N193: 0 | O193: 0 | P193: 0 | Q193: 0
A194: 0 | B194: 0 | C194: 0 | D194: 0 | E194: 0 | F194: 0 | G194: 0 | H194: 0 | I194: 0 | J194: 0 | K194: 0 | L194: 0 | M194: 0 | N194: 0 | O194: 0 | P194: 0 | Q194: 0
A195: 0 | B195: 0 | C195: 0 | D195: 0 | E195: 0 | F195: 0 | G195: 0 | H195: 0 | I195: 0 | J195: 0 | K195: 0 | L195: 0 | M195: 0 | N195: 0 | O195: 0 | P195: 0 | Q195: 0
A196: 0 | B196: 0 | C196: 0 | D196: 0 | E196: 0 | F196: 0 | G196: 0 | H196: 0 | I196: 0 | J196: 0 | K196: 0 | L196: 0 | M196: 0 | N196: 0 | O196: 0 | P196: 0 | Q196: 0
A197: 0 | B197: 0 | C197: 0 | D197: 0 | E197: 0 | F197: 0 | G197: 0 | H197: 0 | I197: 0 | J197: 0 | K197: 0 | L197: 0 | M197: 0 | N197: 0 | O197: 0 | P197: 0 | Q197: 0
A198: 0 | B198: 0 | C198: 0 | D198: 0 | E198: 0 | F198: 0 | G198: 0 | H198: 0 | I198: 0 | J198: 0 | K198: 0 | L198: 0 | M198: 0 | N198: 0 | O198: 0 | P198: 0 | Q198: 0
A199: 0 | B199: 0 | C199: 0 | D199: 0 | E199: 0 | F199: 0 | G199: 0 | H199: 0 | I199: 0 | J199: 0 | K199: 0 | L199: 0 | M199: 0 | N199: 0 | O199: 0 | P199: 0 | Q199: 0
A200: 0 | B200: 0 | C200: 0 | D200: 0 | E200: 0 | F200: 0 | G200: 0 | H200: 0 | I200: 0 | J200: 0 | K200: 0 | L200: 0 | M200: 0 | N200: 0 | O200: 0 | P200: 0 | Q200: 0
... 3 more rows

Sheet Bio Enrollment (hidden)
A1: STUDENT_STATUS_CODE | B1: A
A3: Count of STUDENT_ID
A4: CLASS_SCHOOL | B4: S_SCHL_NAME | C4: Total
A5: 0241 | B5: RUTH K BROAD/BAY HARBOR K-8 | C5: 15
A6: 0950 | B6: AVENTURA CITY OF EXCELLENCE | C6: 21
A7: 1331 | B7: DEVON AIRE K-8 CENTER | C7: 18
A8: 3029 | B8: DORAL ACADEMY OF TECHNOLOGY | C8: 2
A9: 3101 | B9: FRANK C. MARTIN K-8 CENTER | C9: 47
A10: 3281 | B10: MIAMI LAKES K-8 CENTER | C10: 44
A11: 6001 | B11: HERBERT A. AMMONS MIDDLE | C11: 66
A12: 6012 | B12: MATER ACADEMY CHARTER MIDDLE | C12: 234
A13: 6021 | B13: ARVIDA MIDDLE SCHOOL | C13: 109
A14: 6023 | B14: ANDOVER MIDDLE SCHOOL | C14: 20
A15: 6030 | B15: DORAL ACADEMY CHARTER MIDDLE | C15: 2
A16: 6033 | B16: MATER ACADEMY LAKES MIDDLE | C16: 52
A17: 6040 | B17: DOCTORS CHARTER/MIAMI SHORES | C17: 46
A18: 6042 | B18: MATER GARDENS ACADEMY MIDDLE | C18: 49
A19: 6048 | B19: MIAMI COMMUNITY CHARTER MIDDLE | C19: 6
A20: 6070 | B20: ASPIRA EUGENIO MARIA DE HOSTOS | C20: 1
A21: 6071 | B21: GEORGE WASHINGTON CARVER | C21: 27
A22: 6111 | B22: CUTLER RIDGE MIDDLE | C22: 3
A23: 6151 | B23: DORAL MIDDLE SCHOOL | C23: 26
A24: 6211 | B24: GLADES MIDDLE | C24: 54
A25: 6241 | B25: HIGHLAND OAKS MIDDLE | C25: 43
A26: 6411 | B26: HORACE MANN MIDDLE | C26: 17
A27: 6421 | B27: JOSE MARTI MIDDLE | C27: 1
A28: 6431 | B28: MAYS MIDDLE | C28: 6
A29: 6441 | B29: HOWARD D. MCMILLAN MIDDLE | C29: 43
A30: 6501 | B30: MIAMI LAKES MIDDLE | C30: 19
A31: 6521 | B31: MIAMI SPRINGS MIDDLE | C31: 84
A32: 6541 | B32: NAUTILUS MIDDLE | C32: 68
A33: 6761 | B33: REDLAND MIDDLE | C33: 12
A34: 6821 | B34: ROCKWAY MIDDLE | C34: 61
A35: 6841 | B35: SHENANDOAH MIDDLE | C35: 55
A36: 6861 | B36: SOUTHWOOD MIDDLE | C36: 2
A37: 6901 | B37: W. R. THOMAS MIDDLE | C37: 11
A38: 7001 | B38: MIAMI-DADE ONLINE ACADEMY | C38: 30
A39: 7007 | B39: INTL. STUDIES CHARTER SENIOR | C39: 108
A40: 7009 | B40: DORAL PERFORMING ARTS ACADEMY | C40: 66
A41: 7011 | B41: AMERICAN SENIOR | C41: 490
A42: 7014 | B42: MATER PERFORMING ARTS ACADEMY | C42: 54
A43: 7015 | B43: LIFE SKILLS CENTER MIAMI-DADE | C43: 93
A44: 7018 | B44: MATER ACADEMY LAKES HIGH SCH | C44: 154
A45: 7020 | B45: DORAL ACADEMY HIGH SCHOOL | C45: 343
A46: 7022 | B46: ACADEMY OF ARTS AND MINDS | C46: 119
A47: 7024 | B47: MATER ACADEMY HIGH-INTL STUDIE | C47: 34
A48: 7029 | B48: TERRA ENVIRONMENTAL RESEARCH | C48: 592
A49: 7030 | B49: INTEGRATED ACADEMICS (SIATECH) | C49: 52
A50: 7033 | B50: LAW ENFORCEMENT OFFICERS HS | C50: 109
A51: 7036 | B51: LAWRENCE ACADEMY SENIOR | C51: 24
A52: 7037 | B52: MATER ACADEMY EAST HIGH SCHOOL | C52: 56
A53: 7038 | B53: SOMERSET ACADEMY HIGH (SOUTH) | C53: 1
A54: 7042 | B54: SOMERSET ACADEMY CHARTER HIGH | C54: 120
A55: 7048 | B55: ALONZO & TRACY MOURNING SH | C55: 371
A56: 7049 | B56: WESTLAND HIALEAH SENIOR HIGH | C56: 502
A57: 7050 | B57: KEYS GATE CHARTER HIGH SCHL | C57: 267
A58: 7051 | B58: G. HOLMES BRADDOCK SENIOR HIGH | C58: 809
A59: 7054 | B59: EXCELSIOR CHARTER HIGH SCHOOL | C59: 22
A60: 7055 | B60: YOUNG WOMEN'S PREPARATORY ACAD | C60: 43
A61: 7056 | B61: YOUNG MENS PREPARATORY ACADEMY | C61: 26
A62: 7058 | B62: MIAMI COMMUNITY CH HIGH SCHOOL | C62: 32
A63: 7059 | B63: MIAMI ARTS CHARTER | C63: 104
A64: 7062 | B64: MAVERICKS HIGH OF NORTH M-DADE | C64: 123
A65: 7065 | B65: MAVERICKS HIGH OF SOUTH M-DADE | C65: 72
A66: 7067 | B66: GREEN SPRINGS HIGH SCHOOL | C66: 38
A67: 7068 | B67: NORTH GARDENS HIGH SCHOOL | C67: 28
A68: 7069 | B68: NORTH PARK HIGH SCHOOL | C68: 5
A69: 7071 | B69: CORAL GABLES SENIOR HIGH | C69: 883
A70: 7081 | B70: DESIGN & ARCHITECTURE SENIOR | C70: 123
A71: 7101 | B71: CORAL REEF SENIOR HIGH | C71: 802
A72: 7111 | B72: HIALEAH SENIOR | C72: 809
A73: 7121 | B73: JOHN A FERGUSON SENIOR HIGH | C73: 1064
A74: 7131 | B74: HIALEAH-MIAMI LAKES SENIOR | C74: 409
A75: 7141 | B75: DR MICHAEL M KROP SENIOR HIGH | C75: 673
A76: 7151 | B76: HOMESTEAD SENIOR HIGH | C76: 499
A77: 7160 | B77: MATER ACADEMY CHARTER HIGH | C77: 362
A78: 7161 | B78: MARITIME & SCIENCE TECHNOLOGY | C78: 114
A79: 7171 | B79: MED ACAD SCIENCE & TECHNOLOGY | C79: 214
A80: 7191 | B80: HIALEAH GARDENS SENIOR | C80: 725
A81: 7201 | B81: MIAMI BEACH SENIOR HIGH | C81: 626
A82: 7231 | B82: MIAMI CAROL CITY SENIOR HIGH | C82: 458
A83: 7241 | B83: RONALD W REAGAN/DORAL SENIOR | C83: 552
A84: 7251 | B84: MIAMI CENTRAL SENIOR HIGH | C84: 513
A85: 7262 | B85: CITY OF HIALEAH EDUCATION ACAD | C85: 71
A86: 7265 | B86: ARCHIMEDEAN UPPER CONSERV CHAR | C86: 15
A87: 7271 | B87: MIAMI CORAL PARK SENIOR HIGH | C87: 697
A88: 7291 | B88: JOSE MARTI MAST 6-12 ACADEMY | C88: 17
A89: 7301 | B89: MIAMI EDISON SENIOR HIGH | C89: 251
A90: 7341 | B90: MIAMI JACKSON SENIOR HIGH | C90: 245
A91: 7351 | B91: ARTHUR AND POLLY MAYS CONSERVA | C91: 10
A92: 7361 | B92: MIAMI KILLIAN SENIOR HIGH | C92: 627
A93: 7371 | B93: ROBERT MORGAN EDUCATIONAL CTR | C93: 632
A94: 7381 | B94: MIAMI NORLAND SENIOR HIGH | C94: 375
A95: 7391 | B95: MIAMI LAKES EDUCATIONAL CENTER | C95: 359
A96: 7411 | B96: MIAMI NORTHWESTERN SENIOR HIGH | C96: 413
A97: 7431 | B97: MIAMI PALMETTO SENIOR HIGH | C97: 709
A98: 7461 | B98: MIAMI SENIOR HIGH | C98: 675
A99: 7511 | B99: MIAMI SPRINGS SENIOR HIGH | C99: 435
A100: 7531 | B100: MIAMI SUNSET SENIOR HIGH | C100: 585
A101: 7541 | B101: NORTH MIAMI BEACH SENIOR HIGH | C101: 584
A102: 7571 | B102: INTL STUDIES PREP ACADEMY | C102: 62
A103: 7581 | B103: IPREPARATORY ACADEMY | C103: 46
A104: 7591 | B104: NORTH MIAMI SENIOR HIGH | C104: 703
A105: 7601 | B105: WILLIAM H. TURNER TECHNICAL | C105: 300
A106: 7631 | B106: MIAMI MACARTHUR SOUTH | C106: 29
A107: 7701 | B107: SOUTH DADE SENIOR HIGH | C107: 899
A108: 7721 | B108: SOUTH MIAMI SENIOR HIGH | C108: 593
A109: 7731 | B109: MIAMI SOUTHRIDGE SENIOR HIGH | C109: 590
A110: 7741 | B110: SOUTHWEST MIAMI SENIOR HIGH | C110: 726
A111: 7751 | B111: BARBARA GOLEMAN SENIOR HIGH | C111: 468
A112: 7781 | B112: FELIX VARELA SENIOR HIGH | C112: 761
A113: 7791 | B113: BOOKER T. WASHINGTON SR. HIGH | C113: 232
A114: 7901 | B114: NEW WORLD SCHOOL OF THE ARTS | C114: 115
A115: 8014 | B115: ALTERNATIVE OUTREACH-EXT. YR | C115: 36
A116: 8017 | B116: ALTERNATIVE OUTREACH PROGRAM | C116: 149
A117: 8019 | B117: ACADEMY FOR COMMUNITY ED | C117: 38
A118: 8101 | B118: JAN MANN OPPORTUNITY SCHOOL | C118: 23
A119: 8121 | B119: COPE CENTER NORTH | C119: 82
A120: 8131 | B120: DOROTHY M WALLACE COPE CENTER | C120: 28
A121: 8141 | B121: JUVENILE JUSTICE CENTER | C121: 19
A122: 8151 | B122: ROBERT RENICK EDUCATION CTR | C122: 1
A123: 8181 | B123: RUTH OWENS KRUSE' EDUC CENTER | C123: 23
A124: 9732 | B124: MERRICK EDUCATIONAL CENTER | C124: 33
A125: '9999 | B125: DISTRICT | C125: 27633

Sheet TG (hidden)
A1: School Number | B1: School Name | C1: 9999 | E1: TG | F1: Region
A2: 101 | B2: ARCOLA LAKE ELEMENTARY | C2: =A2 -> 101 | D2: Y | E2: ARCOLA LAKE ELEMENTARY | F2: 1
A3: 2041 | B3: BENJAMIN FRANKLIN ELEMENTARY | C3: 2041 | D3: Y | E3: BENJAMIN FRANKLIN ELEMENTARY | F3: 1
A4: 2161 | B4: GOLDEN GLADES ELEMENTARY | C4: 2161 | D4: Y | E4: GOLDEN GLADES ELEMENTARY | F4: 1
A5: 5971 | B5: NATHAN YOUNG ELEMENTARY | C5: 5971 | D5: Y | E5: NATHAN B. YOUNG ELEMENTARY | F5: 1
A6: 1601 | B6: EDISON PARK ELEMENTARY | C6: 1601 | D6: Y | E6: EDISON PARK ELEMENTARY | F6: 2
A7: 1401 | B7: CHARLES R. DREW ELEMENTARY | C7: 1401 | D7: Y | E7: CHARLES DREW ELEMENTARY | F7: 3
A8: 4401 | B8: KELSEY L. PHARR ELEMENTARY | C8: 4401 | D8: Y | E8: KELSEY L. PHARR ELEMENTARY | F8: 3
A9: 81 | B9: LENORA B. SMITH ELEMENTARY | C9: 81 | D9: Y | E9: LENORA BRAYNON SMITH ELEMENTARY | F9: 3
A10: 2981 | B10: LIBERTY CITY ELEMENTARY | C10: 2981 | D10: Y | E10: LIBERTY CITY ELEMENTARY | F10: 3
A11: 4071 | B11: OLINDA ELEMENTARY | C11: 4071 | D11: Y | E11: OLINDA ELEMENTARY | F11: 3
A12: 4171 | B12: ORCHARD VILLA ELEMENTARY | C12: 4171 | D12: Y | E12: ORCHARD VILLA ELEMENTARY | F12: 3
A13: 5931 | B13: PHILLIS WHEATLEY ELEMENTARY | C13: 5931 | D13: Y | E13: PHILLIS WHEATLEY ELEMENTARY | F13: 3
A14: 3621 | B14: COCONUT PALM K-8 ACADEMY | C14: 3621 | D14: Y | E14: COCONUT PALM K-8 ACADEMY | F14: 5
A15: 4651 | B15: ETHEL F BECKFORD/RICHMOND ELEM | C15: 4651 | D15: Y | E15: BECKFORD/RICHMOND ELEMENTARY | F15: 5
A16: 2941 | B16: LAURA C. SAUNDERS ELEMENTARY | C16: 2941 | D16: Y | E16: LAURA C. SAUNDERS ELEMENTARY | F16: 5
A17: 5791 | B17: WEST HOMESTEAD ELEMENTARY | C17: 5791 | D17: Y | E17: WEST HOMESTEAD ELEMENTARY | F17: 5
A18: 6391 | B18: MADISON MIDDLE SCHOOL | C18: 6391 | D18: Y | E18: MADISON MIDDLE | F18: 1
A19: 6981 | B19: WESTVIEW MIDDLE | C19: 6981 | D19: Y | E19: WESTVIEW MIDDLE | F19: 1
A20: 7111 | B20: HIALEAH SENIOR | C20: 7111 | D20: Y | E20: HIALEAH SENIOR | F20: 1
A21: 7131 | B21: HIALEAH-MIAMI LAKES SENIOR | C21: 7131 | D21: Y | E21: HIALEAH-MIAMI LAKES | F21: 1
A22: 6051 | B22: CAROL CITY MIDDLE | C22: 6051 | D22: Y | E22: CAROL CITY MIDDLE | F22: 2
A23: 6351 | B23: LAKE STEVENS MIDDLE | C23: 6351 | D23: Y | E23: LAKE STEVENS MIDDLE | F23: 2
A24: 6721 | B24: PARKWAY MIDDLE | C24: 6721 | D24: Y | E24: PARKWAY MIDDLE | F24: 2
A25: 7541 | B25: NORTH MIAMI BEACH SENIOR HIGH | C25: 7541 | D25: Y | E25: NORTH MIAMI BEACH SENIOR | F25: 2
A26: 6011 | B26: ALLAPATTAH MIDDLE | C26: 6011 | D26: Y | E26: ALLAPATTAH MIDDLE | F26: 3
A27: 6091 | B27: CITRUS GROVE MIDDLE SCHOOL | C27: 6091 | D27: Y | E27: CITRUS GROVE MIDDLE | F27: 3
A28: 6361 | B28: JOSE DE DIEGO MIDDLE SCHOOL | C28: 6361 | D28: Y | E28: JOSE DE DIEGO MIDDLE | F28: 3
A29: 7271 | B29: MIAMI CORAL PARK SENIOR HIGH | C29: 7271 | D29: Y | E29: MIAMI CORAL PARK SENIOR | F29: 4
A30: 6061 | B30: CAMPBELL DRIVE MIDDLE | C30: 6061 | D30: Y | E30: CAMPBELL DRIVE MIDDLE | F30: 5
A31: 7701 | B31: SOUTH DADE SENIOR HIGH | C31: 7701 | D31: Y | E31: SOUTH DADE SENIOR | F31: 5

Sheet ET (hidden)
A1: School Number | B1: School Name | C1: 9999 | E1: TG | F1: Region
A2: 5861 | B2: DR H W MACK/W LITTLE RIVER | C2: =A2 -> 5861 | D2: Y
A3: 1361 | B3: FREDERICK DOUGLASS ELEMENTARY | C3: 1361 | D3: Y
A4: 2501 | B4: HOLMES ELEMENTARY | C4: 2501 | D4: Y
A5: 3021 | B5: JESSE J MCCRARY JR ELEMENTARY | C5: 3021 | D5: Y
A6: 3821 | B6: NORTH COUNTY ELEMENTARY | C6: 3821 | D6: Y
A7: 4461 | B7: PINE VILLA ELEMENTARY | C7: 4461 | D7: Y
A8: 6141 | B8: CHARLES R. DREW MIDDLE | C8: 6141 | D8: Y
A9: 6481 | B9: MIAMI EDISON MIDDLE | C9: 6481 | D9: Y
A10: 6631 | B10: NORTH MIAMI MIDDLE | C10: 6631 | D10: Y
A11: 7791 | B11: BOOKER T. WASHINGTON SR. HIGH | C11: 7791 | D11: Y
A12: 7151 | B12: HOMESTEAD SENIOR HIGH | C12: 7151 | D12: Y
A13: 7231 | B13: MIAMI CAROL CITY SENIOR HIGH | C13: 7231 | D13: Y
A14: 7251 | B14: MIAMI CENTRAL SENIOR HIGH | C14: 7251 | D14: Y
A15: 7301 | B15: MIAMI EDISON SENIOR HIGH | C15: 7301 | D15: Y
A16: 7341 | B16: MIAMI JACKSON SENIOR HIGH | C16: 7341 | D16: Y
A17: 7381 | B17: MIAMI NORLAND SENIOR HIGH | C17: 7381 | D17: Y
A18: 7411 | B18: MIAMI NORTHWESTERN SENIOR HIGH | C18: 7411 | D18: Y
A19: 7731 | B19: MIAMI SOUTHRIDGE SENIOR HIGH | C19: 7731 | D19: Y
A20: 7591 | B20: NORTH MIAMI SENIOR HIGH | C20: 7591 | D20: Y

Sheet 2011DA (hidden)
